Workbook

Sheet START

Sheet Instructions
D2: 2020
X4: Yes
X5: No
W7: Type of Entities Range:
X8: Parent Municipality
X9: Consolidated Information
W17: MTREF Range: | X17: 2008
X18: 2009
X19: 2010
X20: 2011
X21: 2012
X22: 2013
X23: 2014
X24: 2015
X25: 2016
X26: 2017
X27: 2018
X28: 2019
X29: 2020
X30: 2021
X31: 2022
W33: MTREF Linked: | X33: 13
W34: MTREF: | X34: =INDEX(X17:X31,X33,1) -> 2020
W36: Fin Year: | X36: =MTREF&"/"&RIGHT(MTREF,2)+1 -> 2020/21

Sheet Template names (hidden)
A1: Common sheet headings
A2: Head1 | B2: =HLOOKUP(MTREF,Headings,2) -> 2018/19 | C2: Prior year -1
A3: Head1A | B3: =HLOOKUP(MTREF,Headings,3) -> 2017/18 | C3: Prior year -2
A4: Head1B | B4: =HLOOKUP(MTREF,Headings,4) -> 2016/17 | C4: Prior year -3
A5: Head2 | B5: =HLOOKUP(MTREF,Headings,5) -> Current Year 2019/20 | C5: Year in which budget is being prepared
A6: Head2A | B6: =HLOOKUP(MTREF,Headings,6) -> 2019/20 | C6: Year in which budget is being prepared
A7: Head3 | B7: =HLOOKUP(MTREF,Headings,7) -> 2020/21 Medium Term Revenue & Expenditure Framework | C7: MTREF name
A8: Head4 | B8: LTFS | C8: Long term financial strategy
A9: Head5 | B9: Audited Outcome
A10: Head5A | B10: Outcome
A11: Head5B | B11: Pre-audit outcome
A12: Head6 | B12: Original Budget
A13: Head7 | B13: Adjusted Budget
A14: Head8 | B14: Full Year Forecast
A15: Head9 | B15: =HLOOKUP(MTREF,Headings,8) -> Budget Year 2020/21 | C15: 1st year of MTREF | D15: Year1
A16: Head10 | B16: =HLOOKUP(MTREF,Headings,9) -> Budget Year +1 2021/22 | C16: 2nd year of MTREF | D16: Year2
A17: Head11 | B17: =HLOOKUP(MTREF,Headings,10) -> Budget Year +2 2022/23 | C17: 3rd year of MTREF | D17: Year3
A18: Head12 | B18: =HLOOKUP(MTREF,Headings,11) -> Forecast 2023/24 | C18: 1st yr of long term forecast | D18: Year4
A19: Head13 | B19: =HLOOKUP(MTREF,Headings,12) -> Forecast 2024/25 | C19: Next yr of long term forecast | D19: Year5
A20: Head14 | B20: =HLOOKUP(MTREF,Headings,13) -> Forecast 2025/26 | C20: Next yr of long term forecast | D20: Year6
A21: Head15 | B21: =HLOOKUP(MTREF,Headings,14) -> Forecast 2026/27 | C21: Next yr of long term forecast | D21: Year7
A22: Head16 | B22: =HLOOKUP(MTREF,Headings,15) -> Forecast 2027/28 | C22: Next yr of long term forecast | D22: Year8
A23: Head17 | B23: =HLOOKUP(MTREF,Headings,16) -> Forecast 2028/29 | C23: Next yr of long term forecast | D23: Year9
A24: Head18 | B24: =HLOOKUP(MTREF,Headings,17) -> Forecast 2029/30 | C24: Next yr of long term forecast | D24: Year10
A25: Head19 | B25: =HLOOKUP(MTREF,Headings,18) -> Forecast 2030/31 | C25: Next yr of long term forecast | D25: Year11
A26: Head20 | B26: =HLOOKUP(MTREF,Headings,19) -> Forecast 2031/32 | C26: Next yr of long term forecast | D26: Year12
A27: Head21 | B27: =HLOOKUP(MTREF,Headings,20) -> Forecast 2032/33 | C27: Next yr of long term forecast | D27: Year13
A28: Head22 | B28: =HLOOKUP(MTREF,Headings,21) -> Forecast 2033/34 | C28: Next yr of long term forecast | D28: Year14
A29: Head23 | B29: =HLOOKUP(MTREF,Headings,22) -> Forecast 2034/35 | C29: Next yr of long term forecast | D29: Year15
A30: Head24 | B30: Description
A31: Head25
A32: Head26 | B32: Vote Description
A33: Head27 | B33: Ref
A34: Head27a | B34: References
A35: Head28 | B35: Surplus/(Deficit) for the year | D35: Result
A36: Head29 | B36: =HLOOKUP(MTREF,Headings,23) -> Annual target 2020/21
A37: Head30 | B37: =HLOOKUP(MTREF,Headings,24) -> Revised target 2020/21
A38: Head31 | B38: Quarter ended 30 September
A39: Head32 | B39: Quarter ended 31 December
A40: Head33 | B40: Quarter ended 31 March
A41: Head34 | B41: Quarter ended 30 June
A42: Head35 | B42: Variance explanation
A43: Head36 | B43: YTD Actual 31 Dec
A44: Head37 | B44: YTD Budget 31 Dec
A45: Head38 | B45: Monthly actual
A46: Head39 | B46: YTD actual
A47: Head40 | B47: YTD budget
A48: Head41 | B48: YTD variance
A49: Head42 | B49: Surplus/ (Deficit) for the yr/period
A50: Head43 | B50: =Head3&" Summary" -> 2020/21 Medium Term Revenue & Expenditure Framework Summary
A51: Head44 | B51: 2001 Census
A52: Head45 | B52: 2011 Census
A53: Head46 | B53: - Adjustments Budget - January 2007
A54: Head47 | B54: Previous target year to complete
A55: Head48 | B55: Present value
A56: Head49
A57: Head50 | B57: Other Adjusts.
A58: Head51 | B58: Accum. Funds
A59: Head52 | B59: Multi-year capital
A60: Head53 | B60: Unfore. Unavoid.
A61: Head54 | B61: Prior Adjusted
A62: Head55 | B62: Nat. or Prov. Govt
A63: Head56 | B63: Total Adjusts.
A64: SFPerf1 | B64: Budgeted Financial Performance
A65: SFPerf2 | B65: Forecast Financial Performance
A66: SFPos1 | B66: Budgeted Financial Position
A67: SFPos2 | B67: Forecast Financial Position
A68: Cash1 | B68: Budget Cash Flow
A69: Cash2 | B69: Forecast Cash Flow
A70: RandM | B70: Expenditure includes repairs & maintenance of R'000
A71: Depart1 | B71: Department 1 - | D71: DEP1
A72: Depart2 | B72: Department 2 - | D72: DEP2
A73: Depart3 | B73: Department 3 - | D73: DEP3
A74: Depart4 | B74: Department 4 - | D74: DEP4
A75: Depart5 | B75: Department 5 - | D75: DEP5
A76: Depart6 | B76: Department 6 - | D76: DEP6
A77: Depart7 | B77: Department 7 - | D77: DEP7
A78: Depart8 | B78: Department 8 - | D78: DEP8
A79: Depart9 | B79: Department 9 - | D79: DEP9
A80: Depart10 | B80: Department 10 - | D80: DEP10
A81: Depart11 | B81: Department 11 - | D81: DEP11
A82: Depart12 | B82: Department 12 - | D82: DEP12
A83: Depart13 | B83: Department 13 - | D83: DEP13
A84: Depart14 | B84: Department 14 - | D84: DEP14
A87: Base year of forecast column selection names
A88: Choose | B88: ACT
B89: APP
B90: ADJ
A92: Standard nomenclature
A93: Muni | B93: ='Lookup and lists'!B28 -> KZN225 Msunduzi
A94: Municipal Entities | B94: 1 | C94: Type of report: | D94: 2
A95: =IF((MuniEntities=1)*(MuniType=2),"YES","NO") -> YES | B95: Does this municipality have entities (consolidated budget and entity budgets required)? YES/NO
A96: Entity 1 | B96: (Pty) Ltd Example 1 - Municipal entity - | D96: Ent1
A97: Entity 2 | B97: (Pty) Ltd Example 2 - Municipal entity - | D97: Ent2
A98: Entity 3 | B98: Municipal Entity Example 3 | D98: Ent3
A99: Budget approval tables | C99: Chart x-ref | D99: Sch/Tab/Ch | E99: Alternative for municipalities without entities | F99: Alternative for municipalities without entities
B100: =IF(Consolques="YES",E100,F100) -> Table A1 Consolidated Budget Summary | D100: Table A1 | E100: =D100&"Consolidated Budget Summary" -> Table A1 Consolidated Budget Summary | F100: =D100&"Budget Summary" -> Table A1 Budget Summary
B101: Table A2 Consolidated Budgeted Financial Performance (revenue and expenditure by functional classification) | C101: Charts 5, 6 | D101: Table A2 | E101: =D101&"Consolidated Budgeted Financial Performance (revenue and expenditure by functional classification)" -> Table A2 Consolidated Budgeted Financial Performance (revenue and expenditure by functional classification) | F101: =D101&"Budgeted Financial Performance (revenue and expenditure by functional classification)" -> Table A2 Budgeted Financial Performance (revenue and expenditure by functional classification)
B102: Table A3 Consolidated Budgeted Financial Performance (revenue and expenditure by municipal vote) | D102: Table A3 | E102: =D102&"Consolidated Budgeted Financial Performance (revenue and expenditure by municipal vote)" -> Table A3 Consolidated Budgeted Financial Performance (revenue and expenditure by municipal vote) | F102: =D102&"Budgeted Financial Performance (revenue and expenditure by municipal vote)" -> Table A3 Budgeted Financial Performance (revenue and expenditure by municipal vote)
B103: Table A4 Consolidated Budgeted Financial Performance (revenue and expenditure) | C103: Charts 1, 2, 3, 4 | D103: Table A4 | E103: =D103&"Consolidated Budgeted Financial Performance (revenue and expenditure)" -> Table A4 Consolidated Budgeted Financial Performance (revenue and expenditure) | F103: =D103&"Budgeted Financial Performance (revenue and expenditure)" -> Table A4 Budgeted Financial Performance (revenue and expenditure)
B104: Table A5 Consolidated Budgeted Capital Expenditure by vote, functional classification and funding | C104: Charts 7, 8, 9, 10, 20 | D104: Table A5 | E104: =D104&"Consolidated Budgeted Capital Expenditure by vote, functional classification and funding" -> Table A5 Consolidated Budgeted Capital Expenditure by vote, functional classification and funding | F104: =D104&"Budgeted Capital Expenditure by vote, functional classification and funding" -> Table A5 Budgeted Capital Expenditure by vote, functional classification and funding
B105: Table A6 Consolidated Budgeted Financial Position | D105: Table A6 | E105: =D105&"Consolidated Budgeted Financial Position" -> Table A6 Consolidated Budgeted Financial Position | F105: =D105&"Budgeted Financial Position" -> Table A6 Budgeted Financial Position
B106: Table A7 Consolidated Budgeted Cash Flows | D106: Table A7 | E106: =D106&"Consolidated Budgeted Cash Flows" -> Table A7 Consolidated Budgeted Cash Flows | F106: =D106&"Budgeted Cash Flows" -> Table A7 Budgeted Cash Flows
B107: Table A8 Consolidated Cash backed reserves/accumulated surplus reconciliation | D107: Table A8 | E107: =D107&"Consolidated Cash backed reserves/accumulated surplus reconciliation" -> Table A8 Consolidated Cash backed reserves/accumulated surplus reconciliation | F107: =D107&"Cash backed reserves/accumulated surplus reconciliation" -> Table A8 Cash backed reserves/accumulated surplus reconciliation
B108: Table A9 Consolidated Asset Management | D108: Table A9 | E108: =D108&"Consolidated Asset Management" -> Table A9 Consolidated Asset Management | F108: =D108&"Asset Management" -> Table A9 Asset Management
B109: Table A10 Consolidated basic service delivery measurement | D109: Table A10 | E109: =D109&"Consolidated basic service delivery measurement" -> Table A10 Consolidated basic service delivery measurement | F109: =D109&"Basic service delivery measurement" -> Table A10 Basic service delivery measurement
A110: Supportinging Tables to the Budget Approval Tables | C110: =$C$99 -> Chart x-ref | D110: =$D$99 -> Sch/Tab/Ch
A111: Supporting Table SA1 | B111: =A111&" Supportinging detail to 'Budgeted Financial Performance'" -> Supporting Table SA1 Supportinging detail to 'Budgeted Financial Performance'
A112: Supporting Table SA2 | B112: =IF(Consolques="YES",E112,F112) -> Supporting Table SA2 Consolidated Matrix Financial Performance Budget (revenue source/expenditure type & dept.) | E112: =A112&"Consolidated Matrix Financial Performance Budget (revenue source/expenditure type & dept.)" -> Supporting Table SA2 Consolidated Matrix Financial Performance Budget (revenue source/expenditure type & dept.) | F112: =A112&"Matrix Financial Performance Budget (revenue source/expenditure type and dept.)" -> Supporting Table SA2 Matrix Financial Performance Budget (revenue source/expenditure type and dept.)
A113: Supporting Table SA3 | B113: =A113&"Supportinging detail to 'Budgeted Financial Position'" -> Supporting Table SA3 Supportinging detail to 'Budgeted Financial Position'
A114: Supporting Table SA4 | B114: =A114&"Reconciliation of IDP strategic objectives and budget (revenue)" -> Supporting Table SA4 Reconciliation of IDP strategic objectives and budget (revenue) | C114: Chart 11
A115: Supporting Table SA5 | B115: =A115&"Reconciliation of IDP strategic objectives and budget (operating expenditure)" -> Supporting Table SA5 Reconciliation of IDP strategic objectives and budget (operating expenditure) | C115: Chart 12
A116: Supporting Table SA6 | B116: =A116&"Reconciliation of IDP strategic objectives and budget (capital expenditure)" -> Supporting Table SA6 Reconciliation of IDP strategic objectives and budget (capital expenditure) | C116: Chart 13
A117: Supporting Table SA7 | B117: =A117&" Measureable performance objectives" -> Supporting Table SA7 Measureable performance objectives
A118: Supporting Table SA8 | B118: =A118&" Performance indicators and benchmarks" -> Supporting Table SA8 Performance indicators and benchmarks | C118: Chts 15-19
A119: Supporting Table SA9 | B119: =A119&" Social, economic and demographic statistics and assumptions" -> Supporting Table SA9 Social, economic and demographic statistics and assumptions
A120: Supporting Table SA10 | B120: =A120&" Funding measurement" -> Supporting Table SA10 Funding measurement | C120: Chart 14
A121: Supporting Table SA11 | B121: =A121&" Property rates summary" -> Supporting Table SA11 Property rates summary
A122: Supporting Table SA12a | B122: =A122&" Property rates by category (current year)" -> Supporting Table SA12a Property rates by category (current year)
A123: Supporting Table SA12b | B123: =A123&" Property rates by category (budget year)" -> Supporting Table SA12b Property rates by category (budget year)
A124: Supporting Table SA13a | B124: =A124&" Service Tariffs by category" -> Supporting Table SA13a Service Tariffs by category
A125: Supporting Table SA13b | B125: =A125&" Service Tariffs by category - explanatory" -> Supporting Table SA13b Service Tariffs by category - explanatory
A126: Supporting Table SA14 | B126: =A126&" Household bills" -> Supporting Table SA14 Household bills
A127: Supporting Table SA15 | B127: =A127&" Investment particulars by type" -> Supporting Table SA15 Investment particulars by type
A128: Supporting Table SA16 | B128: =A128&" Investment particulars by maturity" -> Supporting Table SA16 Investment particulars by maturity
A129: Supporting Table SA17 | B129: =A129&" Borrowing" -> Supporting Table SA17 Borrowing
A130: Supporting Table SA18 | B130: =A130&" Transfers and grant receipts" -> Supporting Table SA18 Transfers and grant receipts
A131: Supporting Table SA19 | B131: =A131&" Expenditure on transfers and grant programme" -> Supporting Table SA19 Expenditure on transfers and grant programme
A132: Supporting Table SA20 | B132: =A132&" Reconciliation of transfers, grant receipts and unspent funds" -> Supporting Table SA20 Reconciliation of transfers, grant receipts and unspent funds
A133: Supporting Table SA21 | B133: =A133&" Transfers and grants made by the municipality" -> Supporting Table SA21 Transfers and grants made by the municipality
A134: Supporting Table SA22 | B134: =A134&" Summary councillor and staff benefits" -> Supporting Table SA22 Summary councillor and staff benefits
A135: Supporting Table SA23 | B135: =A135&" Salaries, allowances & benefits (political office bearers/councillors/senior managers)" -> Supporting Table SA23 Salaries, allowances & benefits (political office bearers/councillors/senior managers)
A136: Supporting Table SA24 | B136: =A136&" Summary of personnel numbers" -> Supporting Table SA24 Summary of personnel numbers
A137: Supporting Table SA25 | B137: =IF(Consolques="YES",E137,F137) -> Supporting Table SA25 Consolidated budgeted monthly revenue and expenditure | E137: =A137&" Consolidated budgeted monthly revenue and expenditure" -> Supporting Table SA25 Consolidated budgeted monthly revenue and expenditure | F137: =A137&" Budgeted monthly revenue and expenditure" -> Supporting Table SA25 Budgeted monthly revenue and expenditure
A138: Supporting Table SA26 | B138: Supporting Table SA26 Consolidated budgeted monthly revenue and expenditure (municipal vote) | E138: =A138&" Consolidated budgeted monthly revenue and expenditure (municipal vote)" -> Supporting Table SA26 Consolidated budgeted monthly revenue and expenditure (municipal vote) | F138: =A138&" Budgeted monthly revenue and expenditure (municipal vote)" -> Supporting Table SA26 Budgeted monthly revenue and expenditure (municipal vote)
A139: Supporting Table SA27 | B139: Supporting Table SA27 Consolidated budgeted monthly revenue and expenditure (functional classification) | E139: =A139&" Consolidated budgeted monthly revenue and expenditure (functional classification)" -> Supporting Table SA27 Consolidated budgeted monthly revenue and expenditure (functional classification) | F139: =A139&" Budgeted monthly revenue and expenditure (functional classification)" -> Supporting Table SA27 Budgeted monthly revenue and expenditure (functional classification)
A140: Supporting Table SA28 | B140: Supporting Table SA28 Consolidated budgeted monthly capital expenditure (municipal vote) | E140: =A140&" Consolidated budgeted monthly capital expenditure (municipal vote)" -> Supporting Table SA28 Consolidated budgeted monthly capital expenditure (municipal vote) | F140: =A140&" Budgeted monthly capital expenditure (municipal vote)" -> Supporting Table SA28 Budgeted monthly capital expenditure (municipal vote)
A141: Supporting Table SA29 | B141: Supporting Table SA29 Consolidated budgeted monthly capital expenditure (functional classification) | E141: =A141&" Consolidated budgeted monthly capital expenditure (functional classification)" -> Supporting Table SA29 Consolidated budgeted monthly capital expenditure (functional classification) | F141: =A141&" Budgeted monthly capital expenditure (functional classification)" -> Supporting Table SA29 Budgeted monthly capital expenditure (functional classification)
A142: Supporting Table SA30 | B142: Supporting Table SA30 Consolidated budgeted monthly cash flow | E142: =A142&" Consolidated budgeted monthly cash flow" -> Supporting Table SA30 Consolidated budgeted monthly cash flow | F142: =A142&" Budgeted monthly cash flow" -> Supporting Table SA30 Budgeted monthly cash flow
A143: Supporting Table SA31 | B143: Supporting Table SA31 Aggregated entity budget | E143: =A143&" Aggregated entity budget" -> Supporting Table SA31 Aggregated entity budget | F143: NOT REQUIRED - municipality does not have entities
A144: Supporting Table SA32 | B144: =A144&" List of external mechanisms" -> Supporting Table SA32 List of external mechanisms
A145: Supporting Table SA33 | B145: =A145&" Contracts having future budgetary implications" -> Supporting Table SA33 Contracts having future budgetary implications
A146: Supporting Table SA34a | B146: =IF(Consolques="YES",E146,F146) -> Supporting Table SA34a Consolidated capital expenditure on new assets by asset class | E146: =A146&" Consolidated capital expenditure on new assets by asset class" -> Supporting Table SA34a Consolidated capital expenditure on new assets by asset class | F146: =A146&" Capital expenditure on new assets by asset class" -> Supporting Table SA34a Capital expenditure on new assets by asset class
A147: Supporting Table SA34b | B147: Supporting Table SA34b Consolidated capital expenditure on the renewal of existing assets by asset class | E147: =A147&" Consolidated capital expenditure on the renewal of existing assets by asset class" -> Supporting Table SA34b Consolidated capital expenditure on the renewal of existing assets by asset class | F147: =A147&" Capital expenditure on the renewal of existing assets by asset class" -> Supporting Table SA34b Capital expenditure on the renewal of existing assets by asset class
A148: Supporting Table SA34c | B148: Supporting Table SA34c Consolidated repairs and maintenance by asset class | E148: =A148&" Consolidated repairs and maintenance by asset class" -> Supporting Table SA34c Consolidated repairs and maintenance by asset class | F148: =A148&" Repairs and maintenance expenditure by asset class" -> Supporting Table SA34c Repairs and maintenance expenditure by asset class
A149: Supporting Table SA34d | B149: =IF(Consolques="YES",E149,F149) -> Supporting Table SA34d Consolidated Depreciation by asset class | E149: =A149&" Consolidated Depreciation by asset class" -> Supporting Table SA34d Consolidated Depreciation by asset class | F149: =A149&" Depreciation by asset class" -> Supporting Table SA34d Depreciation by asset class
A150: Supporting Table SA34e | B150: =IF(Consolques="YES",E150,F150) -> Supporting Table SA34e Consolidated capital expenditure on the upgrading of existing assets by asset class | E150: =A150&" Consolidated capital expenditure on the upgrading of existing assets by asset class" -> Supporting Table SA34e Consolidated capital expenditure on the upgrading of existing assets by asset class | F150: =A150&" Capital expenditure on the upgrading of existing assets by asset class" -> Supporting Table SA34e Capital expenditure on the upgrading of existing assets by asset class
A151: Supporting Table SA35 | B151: Supporting Table SA35 Consolidated future financial implications of the capital budget | E151: =A151&" Consolidated future financial implications of the capital budget" -> Supporting Table SA35 Consolidated future financial implications of the capital budget | F151: =A151& " Future financial implications of the capital budget" -> Supporting Table SA35 Future financial implications of the capital budget
A152: Supporting Table SA36 | B152: Supporting Table SA36 Consolidated detailed capital budget | E152: =A152&" Consolidated detailed capital budget" -> Supporting Table SA36 Consolidated detailed capital budget | F152: =A152& " Detailed capital budget" -> Supporting Table SA36 Detailed capital budget
A153: Supporting Table SA37 | B153: Supporting Table SA37 Consolidated projects delayed from previous financial year/s | E153: =A153&" Consolidated projects delayed from previous financial year/s" -> Supporting Table SA37 Consolidated projects delayed from previous financial year/s | F153: =A153& " Projects delayed from previous financial year/s" -> Supporting Table SA37 Projects delayed from previous financial year/s
A154: Supporting Table SA38 | B154: =IF(Consolques="YES",E154,F154) -> Supporting Table SA38 Consolidated detailed operational projects | E154: =A154&" Consolidated detailed operational projects" -> Supporting Table SA38 Consolidated detailed operational projects | F154: =A154& " Detailed operational projects" -> Supporting Table SA38 Detailed operational projects
A156: Budget Charts | B156: Charts | C156: Cross reference
A157: Chart A1 | B157: =A157&"Revenue by Municipal Vote" -> Chart A1 Revenue by Municipal Vote
A158: Chart A2 | B158: =A158&"Expenditure by Municipal Vote" -> Chart A2 Expenditure by Municipal Vote
A159: Chart A3 | B159: =A159&"Revenue by Standard Classification" -> Chart A3 Revenue by Standard Classification | C159: A2
A160: Chart A4 | B160: =A160&"Expenditure by Standard Classification" -> Chart A4 Expenditure by Standard Classification | C160: A2
A161: Chart A5 | B161: =A161&"Revenue by Major Source (refer 'Minor' source for 'Other Revenue' allocation" -> Chart A5 Revenue by Major Source (refer 'Minor' source for 'Other Revenue' allocation | C161: A3
A162: Chart A6 | B162: =A162&"Revenue by Minor Source (Other)" -> Chart A6 Revenue by Minor Source (Other) | C162: A3
A163: Chart A7 | B163: =A163&"Expenditure by Major Type" -> Chart A7 Expenditure by Major Type | C163: A3
A164: Chart A8 | B164: =A164&"Expenditure by Minor Type (Other)" -> Chart A8 Expenditure by Minor Type (Other) | C164: A3
A165: Chart A9 | B165: =A165&"Capital Expenditure by Municipal Vote/Appropriation (Major)" -> Chart A9 Capital Expenditure by Municipal Vote/Appropriation (Major) | C165: A5
A166: Chart A10 | B166: =A166&"Capital Expenditure by Municipal Vote/Appropriation (Minor)" -> Chart A10 Capital Expenditure by Municipal Vote/Appropriation (Minor) | C166: A5
A167: Chart A11 | B167: =A166&"Capital Expenditure by Standard Classification" -> Chart A10 Capital Expenditure by Standard Classification | C167: A5
A168: Chart A12 | B168: =A168&"Capital expenditure performance trend" -> Chart A12 Capital expenditure performance trend | C168: A5
A169: Chart A13 | B169: =A169&"Capital funding by Source" -> Chart A13 Capital funding by Source | C169: A5
A170: Chart A14 | B170: =A170&"Cash flow trend" -> Chart A14 Cash flow trend | C170: A7
A171: Chart A15 | B171: =A171&"IDP Strategic Objective - Revenue" -> Chart A15 IDP Strategic Objective - Revenue | C171: Table A4
A172: Chart A16 | B172: =A172&"IDP Strategic Objective - Expenditure" -> Chart A16 IDP Strategic Objective - Expenditure | C172: Table A5
A173: Chart A17 | B173: =A173&"IDP Strategic Objective - Capital Expenditure" -> Chart A17 IDP Strategic Objective - Capital Expenditure | C173: Table A6
A174: Chart A18 | B174: =A174&"Debt (borrowing to Total Revenue)" -> Chart A18 Debt (borrowing to Total Revenue) | C174: Table A8
A175: Chart A19 | B175: =A175&"Debtors' trend analysis" -> Chart A19 Debtors' trend analysis | C175: Table A8
A176: Chart A20 | B176: =A176&"Distribution losses" -> Chart A20 Distribution losses | C176: Table A8
A177: Chart A21 | B177: =A177&"Borrowed funding of capital expenditure" -> Chart A21 Borrowed funding of capital expenditure | C177: Table A8
A178: Chart A22 | B178: =A178&"Expenditure analysis (% of Revenue)" -> Chart A22 Expenditure analysis (% of Revenue) | C178: Table A8
A179: Chart A23 | B179: =A179&"Increases in service charges" -> Chart A23 Increases in service charges | C179: Table A10

Sheet Lookup and lists (hidden)
A1: Description | B1: 2007 | C1: 2008 | D1: 2009 | E1: 2010 | F1: 2011 | G1: 2012 | H1: 2013 | I1: 2014 | J1: 2015 | K1: 2016 | L1: 2017 | M1: 2018 | N1: 2019 | O1: 2020 | Q1: Lists | Y1: Grants: | Z1: National - opex | AA1: Provincial - opex | AB1: National - capex | AC1: Provincial - capex
A2: ='Template names'!C2 -> Prior year -1 | B2: 2005/06 | C2: 2006/07 | D2: 2007/08 | E2: =E1-2&"/"&RIGHT(E1,2)-1 -> 2008/9 | F2: 2009/10 | G2: 2010/11 | H2: 2011/12 | I2: 2012/13 | J2: 2013/14 | K2: 2014/15 | L2: 2015/16 | M2: 2016/17 | N2: 2017/18 | O2: 2018/19 | Q2: Yes | R2: <1 | S2: <4 | T2: Market | U2: Land & impr. | V2: Yes | W2: Uniform | X2: Yrs | Z2: Local Government Equitable Share | AA2: Health subsidy | AB2: Municipal Infrastructure Grant (MIG) | AC2: Agriculture
A3: ='Template names'!C3 -> Prior year -2 | B3: 2004/05 | C3: 2005/06 | D3: 2006/07 | E3: =E1-3&"/"&RIGHT(E1,2)-2 -> 2007/8 | F3: 2008/9 | G3: 2009/10 | H3: 2010/11 | I3: 2011/12 | J3: 2012/13 | K3: 2013/14 | L3: 2014/15 | M3: 2015/16 | N3: 2016/17 | O3: 2017/18 | Q3: No | R3: 1 | S3: 4 | T3: Dep.Replace | U3: Land only | V3: No | W3: Variable | X3: Mths | Z3: RSC Levy Replacement | AA3: Ambulance subsidy | AB3: Public Transport and Systems | AC3: Education
A4: ='Template names'!C4 -> Prior year -3 | B4: 2003/04 | C4: 2004/05 | D4: 2005/06 | E4: =E1-4&"/"&RIGHT(E1,2)-3 -> 2006/7 | F4: 2007/8 | G4: 2008/9 | H4: 2009/10 | I4: 2010/11 | J4: 2011/12 | K4: 2012/13 | L4: 2013/14 | M4: 2014/15 | N4: 2015/16 | O4: 2016/17 | R4: 2 | S4: 5 | T4: Other | U4: Other | Z4: Finance Management | AA4: Housing | AB4: Rural Transport Services and Infrastructure | AC4: Health
A5: ='Template names'!C5 -> Year in which budget is being prepared | B5: Current Year 2006/07 | C5: Current Year 2007/08 | D5: Current Year 2008/09 | E5: ="Current Year "& E1-1&"/"&RIGHT(E1,2) -> Current Year 2009/10 | F5: Current Year 2010/11 | G5: Current Year 2011/12 | H5: Current Year 2012/13 | I5: Current Year 2013/14 | J5: Current Year 2014/15 | K5: Current Year 2015/16 | L5: Current Year 2016/17 | M5: Current Year 2017/18 | N5: Current Year 2018/19 | O5: Current Year 2019/20 | R5: 3 | S5: 6 | Z5: Municipal Systems Improvement | AA5: Sport and Recreation | AB5: Regional Bulk Infrastructure | AC5: Housing and Local Government
A6: ='Template names'!C6 -> Year in which budget is being prepared | B6: 2006/07 | C6: 2007/08 | D6: 2008/09 | E6: =E1-1&"/"&RIGHT(E1,2) -> 2009/10 | F6: 2010/11 | G6: 2011/12 | H6: 2012/13 | I6: 2013/14 | J6: 2014/15 | K6: 2015/16 | L6: 2016/17 | M6: 2017/18 | N6: 2018/19 | O6: 2019/20 | R6: 4 | S6: 6-10 | Z6: Water Services Operating Subsidy | AB6: Rural Households Infrastructure | AC6: Other Departments
A7: ='Template names'!C7 -> MTREF name | B7: 2007/08 Medium Term Revenue & Expenditure Framework | C7: 2008/09 Medium Term Revenue & Expenditure Framework | D7: 2009/10 Medium Term Revenue & Expenditure Framework | E7: =E1&"/"&RIGHT(E1,2)+1&" Medium Term Revenue & Expenditure Framework" -> 2010/11 Medium Term Revenue & Expenditure Framework | F7: 2011/12 Medium Term Revenue & Expenditure Framework | G7: 2012/13 Medium Term Revenue & Expenditure Framework | H7: 2013/14 Medium Term Revenue & Expenditure Framework | I7: 2014/15 Medium Term Revenue & Expenditure Framework | J7: 2015/16 Medium Term Revenue & Expenditure Framework | K7: 2016/17 Medium Term Revenue & Expenditure Framework | L7: 2017/18 Medium Term Revenue & Expenditure Framework | M7: 2018/19 Medium Term Revenue & Expenditure Framework | N7: 2019/20 Medium Term Revenue & Expenditure Framework | O7: 2020/21 Medium Term Revenue & Expenditure Framework | R7: 5 | S7: >10 | Z7: Energy Efficiency and Demand Management | AB7: Neighbourhood Development Partnership | AC7: Public Works, Roads, Transport
A8: ='Template names'!C15 -> 1st year of MTREF | B8: Budget Year 2007/08 | C8: Budget Year 2008/09 | D8: Budget Year 2009/10 | E8: ="Budget Year "&E1&"/"&RIGHT(E1,2)+1 -> Budget Year 2010/11 | F8: Budget Year 2011/12 | G8: Budget Year 2012/13 | H8: Budget Year 2013/14 | I8: Budget Year 2014/15 | J8: Budget Year 2015/16 | K8: Budget Year 2016/17 | L8: Budget Year 2017/18 | M8: Budget Year 2018/19 | N8: Budget Year 2019/20 | O8: Budget Year 2020/21 | R8: >5 | Z8: Integrated National Electrification Programme | AB8: 2010 FIFA World Cup Stadiums Development | AC8: Sport and Recreation
A9: ='Template names'!C16 -> 2nd year of MTREF | B9: Budget Year +1 2008/09 | C9: Budget Year +1 2009/10 | D9: Budget Year +1 2010/11 | E9: ="Budget Year +1 "&E1+1&"/"&RIGHT(E1,2)+2 -> Budget Year +1 2011/12 | F9: Budget Year +1 2012/13 | G9: Budget Year +1 2013/14 | H9: Budget Year +1 2014/15 | I9: Budget Year +1 2015/16 | J9: Budget Year +1 2016/17 | K9: Budget Year +1 2017/18 | L9: Budget Year +1 2018/19 | M9: Budget Year +1 2019/20 | N9: Budget Year +1 2020/21 | O9: Budget Year +1 2021/22 | Z9: Municipal Drought Relief
A10: ='Template names'!C17 -> 3rd year of MTREF | B10: Budget Year +2 2009/10 | C10: Budget Year +2 2010/11 | D10: Budget Year +2 2011/12 | E10: ="Budget Year +2 "&E1+2&"/"&RIGHT(E1,2)+3 -> Budget Year +2 2012/13 | F10: Budget Year +2 2013/14 | G10: Budget Year +2 2014/15 | H10: Budget Year +2 2015/16 | I10: Budget Year +2 2016/17 | J10: Budget Year +2 2017/18 | K10: Budget Year +2 2018/19 | L10: Budget Year +2 2019/20 | M10: Budget Year +2 2020/21 | N10: Budget Year +2 2021/22 | O10: Budget Year +2 2022/23 | Z10: 2010 FIFA World Cup Operating
A11: ='Template names'!C18 -> 1st yr of long term forecast | B11: Forecast 2010/11 | C11: Forecast 2011/12 | D11: Forecast 2012/13 | E11: ="Forecast "&E1+3&"/"&RIGHT(E1,2)+4 -> Forecast 2013/14 | F11: Forecast 2014/15 | G11: Forecast 2015/16 | H11: Forecast 2016/17 | I11: Forecast 2017/18 | J11: Forecast 2018/19 | K11: Forecast 2019/20 | L11: Forecast 2020/21 | M11: Forecast 2021/22 | N11: Forecast 2022/23 | O11: Forecast 2023/24 | Z11: Electricity Demand Side Management
A12: ='Template names'!C19 -> Next yr of long term forecast | B12: Forecast 2011/12 | C12: Forecast 2012/13 | D12: Forecast 2013/14 | E12: ="Forecast "&E1+4&"/"&RIGHT(E1,2)+5 -> Forecast 2014/15 | F12: Forecast 2015/16 | G12: Forecast 2016/17 | H12: Forecast 2017/18 | I12: Forecast 2018/19 | J12: Forecast 2019/20 | K12: Forecast 2020/21 | L12: Forecast 2021/22 | M12: Forecast 2022/23 | N12: Forecast 2023/24 | O12: Forecast 2024/25 | Z12: EPWP Incentive
A13: ='Template names'!C20 -> Next yr of long term forecast | B13: Forecast 2012/13 | C13: Forecast 2013/14 | D13: Forecast 2014/15 | E13: ="Forecast "&E1+5&"/"&RIGHT(E1,2)+6 -> Forecast 2015/16 | F13: Forecast 2016/17 | G13: Forecast 2017/18 | H13: Forecast 2018/19 | I13: Forecast 2019/20 | J13: Forecast 2020/21 | K13: Forecast 2021/22 | L13: Forecast 2022/23 | M13: Forecast 2023/24 | N13: Forecast 2024/25 | O13: Forecast 2025/26
A14: ='Template names'!C21 -> Next yr of long term forecast | B14: Forecast 2013/14 | C14: Forecast 2014/15 | D14: Forecast 2015/16 | E14: ="Forecast "&E1+6&"/"&RIGHT(E1,2)+7 -> Forecast 2016/17 | F14: Forecast 2017/18 | G14: Forecast 2018/19 | H14: Forecast 2019/20 | I14: Forecast 2020/21 | J14: Forecast 2021/22 | K14: Forecast 2022/23 | L14: Forecast 2023/24 | M14: Forecast 2024/25 | N14: Forecast 2025/26 | O14: Forecast 2026/27 | Z14: Asset Class | AA14: Asset sub-class old | AB14: Asset sub-class | AC14: IUDF | AD14: MTSF
A15: ='Template names'!C22 -> Next yr of long term forecast | B15: Forecast 2014/15 | C15: Forecast 2015/16 | D15: Forecast 2016/17 | E15: ="Forecast "&E1+7&"/"&RIGHT(E1,2)+8 -> Forecast 2017/18 | F15: Forecast 2018/19 | G15: Forecast 2019/20 | H15: Forecast 2020/21 | I15: Forecast 2021/22 | J15: Forecast 2022/23 | K15: Forecast 2023/24 | L15: Forecast 2024/25 | M15: Forecast 2025/26 | N15: Forecast 2026/27 | O15: Forecast 2027/28
A16: ='Template names'!C23 -> Next yr of long term forecast | B16: Forecast 2015/16 | C16: Forecast 2016/17 | D16: Forecast 2017/18 | E16: ="Forecast "&E1+8&"/"&RIGHT(E1,2)+9 -> Forecast 2018/19 | F16: Forecast 2019/20 | G16: Forecast 2020/21 | H16: Forecast 2021/22 | I16: Forecast 2022/23 | J16: Forecast 2023/24 | K16: Forecast 2024/25 | L16: Forecast 2025/26 | M16: Forecast 2026/27 | N16: Forecast 2027/28 | O16: Forecast 2028/29 | Z16: Roads Infrastructure | AA16: Roads, Pavements & Bridges | AB16: Roads | AC16: Spatial integration | AD16: Quality basic education
A17: ='Template names'!C24 -> Next yr of long term forecast | B17: Forecast 2016/17 | C17: Forecast 2017/18 | D17: Forecast 2018/19 | E17: ="Forecast "&E1+9&"/"&RIGHT(E1,2)+10 -> Forecast 2019/20 | F17: Forecast 2020/21 | G17: Forecast 2021/22 | H17: Forecast 2022/23 | I17: Forecast 2023/24 | J17: Forecast 2024/25 | K17: Forecast 2025/26 | L17: Forecast 2026/27 | M17: Forecast 2027/28 | N17: Forecast 2028/29 | O17: Forecast 2029/30 | Z17: Storm water Infrastructure | AA17: Storm water | AB17: Road Structures | AC17: Inclusion and access | AD17: A long and healthy life for all South Africans
A18: ='Template names'!C25 -> Next yr of long term forecast | B18: Forecast 2017/18 | C18: Forecast 2018/19 | D18: Forecast 2019/20 | E18: ="Forecast "&E1+10&"/"&RIGHT(E1,2)+11 -> Forecast 2020/21 | F18: Forecast 2021/22 | G18: Forecast 2022/23 | H18: Forecast 2023/24 | I18: Forecast 2024/25 | J18: Forecast 2025/26 | K18: Forecast 2026/27 | L18: Forecast 2027/28 | M18: Forecast 2028/29 | N18: Forecast 2029/30 | O18: Forecast 2030/31 | Z18: Electrical Infrastructure | AA18: Generation | AB18: Road Furniture | AC18: Growth | AD18: All people in South Africa are and feel safe
A19: ='Template names'!C26 -> Next yr of long term forecast | B19: Forecast 2018/19 | C19: Forecast 2019/20 | D19: Forecast 2020/21 | E19: ="Forecast "&E1+11&"/"&RIGHT(E1,2)+12 -> Forecast 2021/22 | F19: Forecast 2022/23 | G19: Forecast 2023/24 | H19: Forecast 2024/25 | I19: Forecast 2025/26 | J19: Forecast 2026/27 | K19: Forecast 2027/28 | L19: Forecast 2028/29 | M19: Forecast 2029/30 | N19: Forecast 2030/31 | O19: Forecast 2031/32 | Z19: Water Supply Infrastructure | AA19: Transmission & Reticulation | AB19: Capital Spares | AC19: Governance | AD19: Decent employment through inclusive growth
A20: ='Template names'!C27 -> Next yr of long term forecast | B20: Forecast 2019/20 | C20: Forecast 2020/21 | D20: Forecast 2021/22 | E20: ="Forecast "&E1+12&"/"&RIGHT(E1,2)+13 -> Forecast 2022/23 | F20: Forecast 2023/24 | G20: Forecast 2024/25 | H20: Forecast 2025/26 | I20: Forecast 2026/27 | J20: Forecast 2027/28 | K20: Forecast 2028/29 | L20: Forecast 2029/30 | M20: Forecast 2030/31 | N20: Forecast 2031/32 | O20: Forecast 2032/33 | Z20: Sanitation Infrastructure | AA20: Street Lighting | AB20: Drainage Collection | AD20: A skilled and capable workforce to support an inclusive growth path
A21: ='Template names'!C28 -> Next yr of long term forecast | B21: Forecast 2020/21 | C21: Forecast 2021/22 | D21: Forecast 2022/23 | E21: ="Forecast "&E1+13&"/"&RIGHT(E1,2)+14 -> Forecast 2023/24 | F21: Forecast 2024/25 | G21: Forecast 2025/26 | H21: Forecast 2026/27 | I21: Forecast 2027/28 | J21: Forecast 2028/29 | K21: Forecast 2029/30 | L21: Forecast 2030/31 | M21: Forecast 2031/32 | N21: Forecast 2032/33 | O21: Forecast 2033/34 | Z21: Solid Waste Infrastructure | AA21: Dams & Reservoirs | AB21: Storm water Conveyance | AD21: An efficient, competitive and responsive economic infrastructure network
A22: ='Template names'!C29 -> Next yr of long term forecast | B22: Forecast 2021/22 | C22: Forecast 2022/23 | D22: Forecast 2023/24 | E22: ="Forecast "&E1+14&"/"&RIGHT(E1,2)+15 -> Forecast 2024/25 | F22: Forecast 2025/26 | G22: Forecast 2026/27 | H22: Forecast 2027/28 | I22: Forecast 2028/29 | J22: Forecast 2029/30 | K22: Forecast 2030/31 | L22: Forecast 2031/32 | M22: Forecast 2032/33 | N22: Forecast 2033/34 | O22: Forecast 2034/35 | Z22: Rail Infrastructure | AA22: Water purification | AB22: Attenuation | AD22: Vibrant, equitable, sustainable rural communities contributing towards food security for all
A23: Adjustments Budget | B23: Annual target 2007/08 | C23: Annual target 2008/09 | D23: Annual target 2009/10 | E23: ="Annual target " & E1&"/"&RIGHT(E1,2)+1 -> Annual target 2010/11 | F23: Annual target 2011/12 | G23: Annual target 2012/13 | H23: Annual target 2013/14 | I23: Annual target 2014/15 | J23: Annual target 2015/16 | K23: Annual target 2016/17 | L23: Annual target 2017/18 | M23: Annual target 2018/19 | N23: Annual target 2019/20 | O23: Annual target 2020/21 | Z23: Coastal Infrastructure | AA23: Reticulation | AB23: Power Plants | AD23: Sustainable human settlements and improved quality of household life
A24: =A23 -> Adjustments Budget | B24: Revised target 2007/08 | C24: Revised target 2008/09 | D24: Revised target 2009/10 | E24: ="Revised target "& E1&"/"&RIGHT(E1,2)+1 -> Revised target 2010/11 | F24: Revised target 2011/12 | G24: Revised target 2012/13 | H24: Revised target 2013/14 | I24: Revised target 2014/15 | J24: Revised target 2015/16 | K24: Revised target 2016/17 | L24: Revised target 2017/18 | M24: Revised target 2018/19 | N24: Revised target 2019/20 | O24: Revised target 2020/21 | Z24: Information and Communication Infrastructure | AA24: Sewerage purification | AB24: HV Substations | AD24: Responsive, accountable, effective and efficient local government
A25: NOTE: This sheet should not be directly amended - select headings from sheet 'S' | Z25: Community Facilities | AA25: Waste Management | AB25: HV Switching Station | AD25: Protect and enhance our environmental assets and natural resources
Z26: Sport and Recreation Facilities | AA26: Transportation | AB26: HV Transmission Conductors | AD26: Create a better South Africa and contribute to a better Africa and a better world
A27: Name link | B27: 85 | Z27: Heritage assets | AA27: Gas | AB27: MV Substations | AD27: An efficient, effective and development-oriented public service
A28: Name of Muni | B28: =INDEX(B29:B307,B27,1) -> KZN225 Msunduzi | Z28: Revenue Generating | AA28: Parks & gardens | AB28: MV Switching Stations | AD28: A comprehensive, responsive and sustainable social protection system
B29: Choose name from list | C29: Set name on 'Instructions' sheet | Z29: Non-revenue Generating | AA29: Sportsfields & stadia | AB29: MV Networks | AD29: A diverse, socially cohesive society with a common national identity
B30: BUF Buffalo City | C30: EC EASTERN CAPE | Z30: Operational Buildings | AA30: Swimming pools | AB30: LV Networks
B31: NMA Nelson Mandela Bay | C31: EC EASTERN CAPE | Z31: Housing | AA31: Community halls | AB31: Capital Spares
B32: EC101 Dr Beyers Naude | C32: EC EASTERN CAPE | Z32: Biological or Cultivated Assets | AA32: Libraries | AB32: Dams and Weirs
B33: EC102 Blue Crane Route | C33: EC EASTERN CAPE | Z33: Servitudes | AA33: Recreational facilities | AB33: Boreholes
B34: EC104 Makana | C34: EC EASTERN CAPE | Z34: Licences and Rights | AA34: Fire, safety & emergency | AB34: Reservoirs
B35: EC105 Ndlambe | C35: EC EASTERN CAPE | Z35: Computer Equipment | AA35: Security and policing | AB35: Pump Stations
B36: EC106 Sundays River Valley | C36: EC EASTERN CAPE | Z36: Furniture and Office Equipment | AA36: Buses | AB36: Water Treatment Works
B37: EC108 Kouga | C37: EC EASTERN CAPE | Z37: Machinery and Equipment | AA37: Clinics | AB37: Bulk Mains
B38: EC109 Kou-Kamma | C38: EC EASTERN CAPE | Z38: Transport Assets | AA38: Museums & Art Galleries | AB38: Distribution
B39: DC10 Sarah Baartman | C39: EC EASTERN CAPE | Z39: Land | AA39: Cemeteries | AB39: Distribution Points
B40: EC121 Mbhashe | C40: EC EASTERN CAPE | Z40: Zoo's, Marine and Non-biological Animals | AA40: Social rental housing | AB40: PRV Stations
B41: EC122 Mnquma | C41: EC EASTERN CAPE | AA41: Buildings | AB41: Capital Spares
B42: EC123 Great Kei | C42: EC EASTERN CAPE | AA42: Housing development | AB42: Pump Station
B43: EC124 Amahlathi | C43: EC EASTERN CAPE | AA43: General vehicles | AB43: Reticulation
B44: EC126 Ngqushwa | C44: EC EASTERN CAPE | AA44: Specialised vehicles - Refuse | AB44: Waste Water Treatment Works
B45: EC129 Raymond Mhlaba | C45: EC EASTERN CAPE | AA45: Specialised vehicles - Fire | AB45: Outfall Sewers
B46: DC12 Amathole | C46: EC EASTERN CAPE | AA46: Specialised vehicles - Conservancy | AB46: Toilet Facilities
B47: EC131 Inxuba Yethemba | C47: EC EASTERN CAPE | AA47: Specialised vehicles - Ambulances | AB47: Capital Spares
B48: EC135 Intsika Yethu | C48: EC EASTERN CAPE | AA48: Plant & equipment | AB48: Landfill Sites
B49: EC136 Emalahleni (Ec) | C49: EC EASTERN CAPE | AA49: Computers - hardware/equipment | AB49: Waste Transfer Stations
B50: EC137 Engcobo | C50: EC EASTERN CAPE | AA50: Furniture and other office equipment | AB50: Waste Processing Facilities
B51: EC138 Sakhisizwe | C51: EC EASTERN CAPE | AA51: Abattoirs | AB51: Waste Drop-off Points
B52: EC139 Enoch Mgijima | C52: EC EASTERN CAPE | AA52: Markets | AB52: Waste Separation Facilities
B53: DC13 Chris Hani | C53: EC EASTERN CAPE | AA53: Civic Land and Buildings | AB53: Electricity Generation Facilities
B54: EC141 Elundini | C54: EC EASTERN CAPE | AA54: Other Buildings | AB54: Capital Spares
B55: EC142 Senqu | C55: EC EASTERN CAPE | AA55: Other Land | AB55: Rail Lines
B56: EC145 Walter Sisulu | C56: EC EASTERN CAPE | AA56: Surplus Assets - (Investment or Inventory) | AB56: Rail Structures
B57: DC14 Joe Gqabi | C57: EC EASTERN CAPE | AA57: Computers - software & programming | AB57: Rail Furniture
B58: EC153 Ngquza Hills | C58: EC EASTERN CAPE | AA58: Other | AB58: Drainage Collection
B59: EC154 Port St Johns | C59: EC EASTERN CAPE | AB59: Storm water Conveyance
B60: EC155 Nyandeni | C60: EC EASTERN CAPE | Z60: SA16 - Investments | AB60: Attenuation
B61: EC156 Mhlontlo | C61: EC EASTERN CAPE | Z61: Security | AA61: Interest rate | AB61: MV Substations
B62: EC157 King Sabata Dalindyebo | C62: EC EASTERN CAPE | Z62: Yes | AA62: Fixed | AB62: LV Networks
B63: DC15 O .R. Tambo | C63: EC EASTERN CAPE | Z63: No | AA63: Variable | AB63: Capital Spares
B64: EC441 Matatiele | C64: EC EASTERN CAPE | AB64: Sand Pumps
B65: EC442 Umzimvubu | C65: EC EASTERN CAPE | AB65: Piers
B66: EC443 Mbizana | C66: EC EASTERN CAPE | Z66: SA36, SA37 - Capital projects | AB66: Revetments
B67: EC444 Ntabankulu | C67: EC EASTERN CAPE | Z67: Yes | AB67: Promenades
B68: DC44 Alfred Nzo | C68: EC EASTERN CAPE | Z68: No | AB68: Capital Spares
B69: MAN Mangaung | C69: FS FREE STATE | AB69: Data Centres
B70: FS161 Letsemeng | C70: FS FREE STATE | AB70: Core Layers
B71: FS162 Kopanong | C71: FS FREE STATE | AB71: Distribution Layers
B72: FS163 Mohokare | C72: FS FREE STATE | AB72: Capital Spares
B73: DC16 Xhariep | C73: FS FREE STATE | AB73: Halls
B74: FS181 Masilonyana | C74: FS FREE STATE | AB74: Centres
B75: FS182 Tokologo | C75: FS FREE STATE | AB75: Crèches
B76: FS183 Tswelopele | C76: FS FREE STATE | AB76: Clinics/Care Centres
B77: FS184 Matjhabeng | C77: FS FREE STATE | AB77: Fire/Ambulance Stations
B78: FS185 Nala | C78: FS FREE STATE | AB78: Testing Stations
B79: DC18 Lejweleputswa | C79: FS FREE STATE | AB79: Museums
B80: FS191 Setsoto | C80: FS FREE STATE | AB80: Galleries
B81: FS192 Dihlabeng | C81: FS FREE STATE | AB81: Theatres
B82: FS193 Nketoana | C82: FS FREE STATE | AB82: Libraries
B83: FS194 Maluti-a-Phofung | C83: FS FREE STATE | AB83: Cemeteries/Crematoria
B84: FS195 Phumelela | C84: FS FREE STATE | AB84: Police
B85: FS196 Mantsopa | C85: FS FREE STATE | AB85: Purls
B86: DC19 Thabo Mofutsanyana | C86: FS FREE STATE | AB86: Public Open Space
B87: FS201 Moqhaka | C87: FS FREE STATE | AB87: Nature Reserves
B88: FS203 Ngwathe | C88: FS FREE STATE | AB88: Public Ablution Facilities
B89: FS204 Metsimaholo | C89: FS FREE STATE | AB89: Markets
B90: FS205 Mafube | C90: FS FREE STATE | AB90: Stalls
B91: DC20 Fezile Dabi | C91: FS FREE STATE | AB91: Abattoirs
B92: EKU City of Ekurhuleni | C92: GT GAUTENG | AB92: Airports
B93: JHB City Of Johannesburg | C93: GT GAUTENG | AB93: Taxi Ranks/Bus Terminals
B94: TSH City Of Tshwane | C94: GT GAUTENG | AB94: Capital Spares
B95: GT421 Emfuleni | C95: GT GAUTENG | AB95: Indoor Facilities
B96: GT422 Midvaal | C96: GT GAUTENG | AB96: Outdoor Facilities
B97: GT423 Lesedi | C97: GT GAUTENG | AB97: Capital Spares
B98: DC42 Sedibeng | C98: GT GAUTENG | AB98: Monuments
B99: GT481 Mogale City | C99: GT GAUTENG | AB99: Historic Buildings
B100: GT484 Merafong City | C100: GT GAUTENG | AB100: Works of Art
B101: GT485 Rand West City | C101: GT GAUTENG | AB101: Conservation Areas
B102: DC48 West Rand | C102: GT GAUTENG | AB102: Other Heritage
B103: ETH eThekwini | C103: KZN KWAZULU-NATAL | AB103: Improved Property
B104: KZN212 Umdoni | C104: KZN KWAZULU-NATAL | AB104: Unimproved Property
B105: KZN213 Umzumbe | C105: KZN KWAZULU-NATAL | AB105: Municipal Offices
B106: KZN214 uMuziwabantu | C106: KZN KWAZULU-NATAL | AB106: Pay/Enquiry Points
B107: KZN216 Ray Nkonyeni | C107: KZN KWAZULU-NATAL | AB107: Building Plan Offices
B108: DC21 Ugu | C108: KZN KWAZULU-NATAL | AB108: Workshops
B109: KZN221 uMshwathi | C109: KZN KWAZULU-NATAL | AB109: Yards
B110: KZN222 uMngeni | C110: KZN KWAZULU-NATAL | AB110: Stores
B111: KZN223 Mpofana | C111: KZN KWAZULU-NATAL | AB111: Laboratories
B112: KZN224 Impendle | C112: KZN KWAZULU-NATAL | AB112: Training Centres
B113: KZN225 Msunduzi | C113: KZN KWAZULU-NATAL | AB113: Manufacturing Plant
B114: KZN226 Mkhambathini | C114: KZN KWAZULU-NATAL | AB114: Depots
B115: KZN227 Richmond | C115: KZN KWAZULU-NATAL | AB115: Capital Spares
B116: DC22 uMgungundlovu | C116: KZN KWAZULU-NATAL | AB116: Staff Housing
B117: KZN235 Okhahlamba | C117: KZN KWAZULU-NATAL | AB117: Social Housing
B118: KZN237 Inkosi Langalibalele | C118: KZN KWAZULU-NATAL | AB118: Capital Spares
B119: KZN238 Alfred Duma | C119: KZN KWAZULU-NATAL | AB119: Water Rights
B120: DC23 Uthukela | C120: KZN KWAZULU-NATAL | AB120: Effluent Licenses
B121: KZN241 Endumeni | C121: KZN KWAZULU-NATAL | AB121: Solid Waste Licenses
B122: KZN242 Nquthu | C122: KZN KWAZULU-NATAL | AB122: Computer Software and Applications
B123: KZN244 Msinga | C123: KZN KWAZULU-NATAL | AB123: Load Settlement Software Applications
B124: KZN245 Umvoti | C124: KZN KWAZULU-NATAL | AB124: Unspecified
B125: DC24 Umzinyathi | C125: KZN KWAZULU-NATAL
B126: KZN252 Newcastle | C126: KZN KWAZULU-NATAL
B127: KZN253 Emadlangeni | C127: KZN KWAZULU-NATAL
B128: KZN254 Dannhauser | C128: KZN KWAZULU-NATAL
B129: DC25 Amajuba | C129: KZN KWAZULU-NATAL
B130: KZN261 eDumbe | C130: KZN KWAZULU-NATAL
B131: KZN262 uPhongolo | C131: KZN KWAZULU-NATAL
B132: KZN263 Abaqulusi | C132: KZN KWAZULU-NATAL
B133: KZN265 Nongoma | C133: KZN KWAZULU-NATAL
B134: KZN266 Ulundi | C134: KZN KWAZULU-NATAL
B135: DC26 Zululand | C135: KZN KWAZULU-NATAL
B136: KZN271 Umhlabuyalingana | C136: KZN KWAZULU-NATAL
B137: KZN272 Jozini | C137: KZN KWAZULU-NATAL
B138: KZN275 Mtubatuba | C138: KZN KWAZULU-NATAL
B139: KZN276 Hlabisa Big Five | C139: KZN KWAZULU-NATAL
B140: DC27 Umkhanyakude | C140: KZN KWAZULU-NATAL
B141: KZN281 Mfolozi | C141: KZN KWAZULU-NATAL
B142: KZN282 uMhlathuze | C142: KZN KWAZULU-NATAL
B143: KZN284 uMlalazi | C143: KZN KWAZULU-NATAL
B144: KZN285 Mthonjaneni | C144: KZN KWAZULU-NATAL
B145: KZN286 Nkandla | C145: KZN KWAZULU-NATAL
B146: DC28 King Cetshwayo | C146: KZN KWAZULU-NATAL
B147: KZN291 Mandeni | C147: KZN KWAZULU-NATAL
B148: KZN292 KwaDukuza | C148: KZN KWAZULU-NATAL
B149: KZN293 Ndwedwe | C149: KZN KWAZULU-NATAL
B150: KZN294 Maphumulo | C150: KZN KWAZULU-NATAL
B151: DC29 iLembe | C151: KZN KWAZULU-NATAL
B152: KZN433 Greater Kokstad | C152: KZN KWAZULU-NATAL
B153: KZN434 Ubuhlebezwe | C153: KZN KWAZULU-NATAL
B154: KZN435 Umzimkhulu | C154: KZN KWAZULU-NATAL
B155: KZN436 Dr Nkosazana Dlamini Zuma | C155: KZN KWAZULU-NATAL
B156: DC43 Harry Gwala | C156: KZN KWAZULU-NATAL
B157: LIM331 Greater Giyani | C157: LIM LIMPOPO
B158: LIM332 Greater Letaba | C158: LIM LIMPOPO
B159: LIM333 Greater Tzaneen | C159: LIM LIMPOPO
B160: LIM334 Ba-Phalaborwa | C160: LIM LIMPOPO
B161: LIM335 Maruleng | C161: LIM LIMPOPO
B162: DC33 Mopani | C162: LIM LIMPOPO
B163: LIM341 Musina | C163: LIM LIMPOPO
B164: LIM343 Thulamela | C164: LIM LIMPOPO
B165: LIM344 Makhado | C165: LIM LIMPOPO
B166: LIM345 Collins Chabane | C166: LIM LIMPOPO
B167: DC34 Vhembe | C167: LIM LIMPOPO
B168: LIM351 Blouberg | C168: LIM LIMPOPO
B169: LIM353 Molemole | C169: LIM LIMPOPO
B170: LIM354 Polokwane | C170: LIM LIMPOPO
B171: LIM355 Lepelle-Nkumpi | C171: LIM LIMPOPO
B172: DC35 Capricorn | C172: LIM LIMPOPO
B173: LIM361 Thabazimbi | C173: LIM LIMPOPO
B174: LIM362 Lephalale | C174: LIM LIMPOPO
B175: LIM366 Bela Bela | C175: LIM LIMPOPO
B176: LIM367 Mogalakwena | C176: LIM LIMPOPO
B177: LIM368 Modimolle-Mookgopong | C177: LIM LIMPOPO
B178: DC36 Waterberg | C178: LIM LIMPOPO
B179: LIM471 Ephraim Mogale | C179: LIM LIMPOPO
B180: LIM472 Elias Motsoaledi | C180: LIM LIMPOPO
B181: LIM473 Makhuduthamaga | C181: LIM LIMPOPO
B182: LIM476 Tubatse Fetakgomo | C182: LIM LIMPOPO
B183: DC47 Sekhukhune | C183: LIM LIMPOPO
B184: MP301 Albert Luthuli | C184: MP MPUMALANGA
B185: MP302 Msukaligwa | C185: MP MPUMALANGA
B186: MP303 Mkhondo | C186: MP MPUMALANGA
B187: MP304 Pixley Ka Seme (MP) | C187: MP MPUMALANGA
B188: MP305 Lekwa | C188: MP MPUMALANGA
B189: MP306 Dipaleseng | C189: MP MPUMALANGA
B190: MP307 Govan Mbeki | C190: MP MPUMALANGA
B191: DC30 Gert Sibande | C191: MP MPUMALANGA
B192: MP311 Victor Khanye | C192: MP MPUMALANGA
B193: MP312 Emalahleni (Mp) | C193: MP MPUMALANGA
B194: MP313 Steve Tshwete | C194: MP MPUMALANGA
B195: MP314 Emakhazeni | C195: MP MPUMALANGA
B196: MP315 Thembisile Hani | C196: MP MPUMALANGA
B197: MP316 Dr J.S. Moroka | C197: MP MPUMALANGA
B198: DC31 Nkangala | C198: MP MPUMALANGA
B199: MP321 Thaba Chweu | C199: MP MPUMALANGA
B200: MP324 Nkomazi | C200: MP MPUMALANGA
... 87 more rows

Sheet Org structure
A1: Organisational Structure Votes | C1: Organisational Structure Sub-Votes | E1: Display Sub-Votes
A2: =B2&" - "&C2 -> Vote 1 - City Manager | B2: Vote 1 | C2: City Manager
A3: =B13&" - "& C13 -> Vote 2 - City Finance | B3: 1.1 | C3: Internal Audit and Compliance | D3: =CONCATENATE(B3, " - ", C3) -> 1,1 - Internal Audit and Compliance | E3: 1.1 - Internal Audit and Compliance
A4: =B24&" - "&C24 -> Vote 3 - Community Services and Social Equity | B4: 1.2 | C4: Office of the City Manager | D4: 1,2 - Office of the City Manager | E4: 1.2 - Office of the City Manager
A5: =B35&" - "&C35 -> Vote 4 - Corporate Services | B5: 1.3 | C5: Political Support | D5: 1,3 - Political Support | E5: 1.3 - Political Support
A6: =B46&" - "&C46 -> Vote 5 - Infrastructure Services | B6: 1.4 | C6: Strategic Planning | D6: 1,4 - Strategic Planning | E6: 1.4 - Strategic Planning
A7: =B57&" - "&C57 -> Vote 6 - Sustainable Development and City Enterprises | B7: 1.5 | C7: [Name of sub-vote] | D7: 1,5 - [Name of sub-vote]
A8: =B68&" - "&C68 -> Vote 7 - [NAME OF VOTE 7] | B8: 1.6 | C8: [Name of sub-vote] | D8: 1,6 - [Name of sub-vote]
A9: =B79&" - "&C79 -> Vote 8 - [NAME OF VOTE 8] | B9: 1.7 | C9: [Name of sub-vote] | D9: 1,7 - [Name of sub-vote]
A10: =B90&" - "&C90 -> Vote 9 - [NAME OF VOTE 9] | B10: 1.8 | C10: [Name of sub-vote] | D10: 1,8 - [Name of sub-vote]
A11: =B101&" - "&C101 -> Vote 10 - [NAME OF VOTE 10] | B11: 1.9 | C11: [Name of sub-vote] | D11: 1,9 - [Name of sub-vote]
A12: =B112&" - "&C112 -> Vote 11 - [NAME OF VOTE 11] | B12: 1.10 | C12: [Name of sub-vote] | D12: 1.10 - [Name of sub-vote]
A13: =B123&" - "&C123 -> Vote 12 - [NAME OF VOTE 12] | B13: Vote 2 | C13: City Finance
A14: =B134&" - "&C134 -> Vote 13 - [NAME OF VOTE 13] | B14: 2.1 | C14: Asset Management | D14: =CONCATENATE(B14, " - ", C14) -> 2,1 - Asset Management | E14: 2.1 - Asset Management
A15: =B145&" - "&C145 -> Vote 14 - [NAME OF VOTE 14] | B15: 2.2 | C15: Budget and Treasury Management | D15: 2,2 - Budget and Treasury Management | E15: 2.2 - Budget and Treasury Management
A16: =B156&" - "&C156 -> Vote 15 - [NAME OF VOTE 15] | B16: 2.3 | C16: Expenditure Management | D16: 2,3 - Expenditure Management | E16: 2.3 - Expenditure Management
B17: 2.4 | C17: Revenue Management | D17: 2,4 - Revenue Management | E17: 2.4 - Revenue Management
B18: 2.5 | C18: Supply Chain Management | D18: 2,5 - Supply Chain Management | E18: 2.5 - Supply Chain Management
B19: 2.6 | C19: [Name of sub-vote] | D19: 2,6 - [Name of sub-vote]
B20: 2.7 | C20: [Name of sub-vote] | D20: 2,7 - [Name of sub-vote]
B21: 2.8 | C21: [Name of sub-vote] | D21: 2,8 - [Name of sub-vote]
B22: 2.9 | C22: [Name of sub-vote] | D22: 2,9 - [Name of sub-vote]
B23: 2.10 | C23: [Name of sub-vote] | D23: 2.10 - [Name of sub-vote]
B24: Vote 3 | C24: Community Services and Social Equity
B25: 3.1 | C25: Area Based Management | D25: =CONCATENATE(B25, " - ", C25) -> 3,1 - Area Based Management | E25: 3.1 - Area Based Management
B26: 3.2 | C26: Public Safety, Emergency Services and Enforcement | D26: 3,2 - Public Safety, Emergency Services and Enforcement | E26: 3.2 - Public Safety, Emergency Services and Enforcement
B27: 3.3 | C27: Recreation and Facilities | D27: 3,3 - Recreation and Facilities | E27: 3.3 - Recreation and Facilities
B28: 3.4 | C28: Waste Management | D28: 3,4 - Waste Management | E28: 3.4 - Waste Management
B29: 3.5 | C29: [Name of sub-vote] | D29: 3,5 - [Name of sub-vote] | E29: 3.5 - [Name of sub-vote]
B30: 3.6 | C30: [Name of sub-vote] | D30: 3,6 - [Name of sub-vote] | E30: 3.5 - [Name of sub-vote]
B31: 3.7 | C31: [Name of sub-vote] | D31: 3,7 - [Name of sub-vote]
B32: 3.8 | C32: [Name of sub-vote] | D32: 3,8 - [Name of sub-vote]
B33: 3.9 | C33: [Name of sub-vote] | D33: 3,9 - [Name of sub-vote]
B34: 3.10 | C34: [Name of sub-vote] | D34: 3.10 - [Name of sub-vote]
B35: Vote 4 | C35: Corporate Services
B36: 4.1 | C36: Human Resources Management | D36: =CONCATENATE(B36, " - ", C36) -> 4,1 - Human Resources Management | E36: 4.1 - Human Resources Management
B37: 4.2 | C37: Information Technology | D37: 4,2 - Information Technology | E37: 4.2 - Information Technology
B38: 4.3 | C38: Legal Services | D38: 4,3 - Legal Services | E38: 4.3 - Legal Services
B39: 4.4 | C39: Secretariat and Auxiliary Services | D39: 4,4 - Secretariat and Auxiliary Services | E39: 4.4 - Secretariat and Auxiliary Services
B40: 4.5 | C40: General Manager: Corporate Service | D40: 4,5 - General Manager: Corporate Service | E40: 4.5 - General Manager: Corporate Service
B41: 4.6 | C41: [Name of sub-vote] | D41: 4,6 - [Name of sub-vote]
B42: 4.7 | C42: [Name of sub-vote] | D42: 4,7 - [Name of sub-vote]
B43: 4.8 | C43: [Name of sub-vote] | D43: 4,8 - [Name of sub-vote]
B44: 4.9 | C44: [Name of sub-vote] | D44: 4,9 - [Name of sub-vote]
B45: 4.10 | C45: [Name of sub-vote] | D45: 4.10 - [Name of sub-vote]
B46: Vote 5 | C46: Infrastructure Services
B47: 5.1 | C47: Electricity | D47: =CONCATENATE(B47, " - ", C47) -> 5,1 - Electricity | E47: 5.1 - Electricity
B48: 5.2 | C48: Project Management Office | D48: 5,2 - Project Management Office | E48: 5.2 - Project Management Office
B49: 5.3 | C49: Roads and Transportation | D49: 5,3 - Roads and Transportation | E49: 5.3 - Roads and Transportation
B50: 5.4 | C50: Water and Sanitation | D50: 5,4 - Water and Sanitation | E50: 5.4 - Water and Sanitation
B51: 5.5 | C51: General Manager: Infrastructure | D51: 5,5 - General Manager: Infrastructure | E51: 5.5 - General Manager: Infrastructure
B52: 5.6 | C52: [Name of sub-vote] | D52: 5,6 - [Name of sub-vote]
B53: 5.7 | C53: [Name of sub-vote] | D53: 5,7 - [Name of sub-vote]
B54: 5.8 | C54: [Name of sub-vote] | D54: 5,8 - [Name of sub-vote]
B55: 5.9 | C55: [Name of sub-vote] | D55: 5,9 - [Name of sub-vote]
B56: 5.10 | C56: [Name of sub-vote] | D56: 5.10 - [Name of sub-vote]
B57: Vote 6 | C57: Sustainable Development and City Enterprises
B58: 6.1 | C58: City Entities | D58: =CONCATENATE(B58, " - ", C58) -> 6,1 - City Entities | E58: 6.1 - City Entities
B59: 6.2 | C59: Development Services | D59: 6,2 - Development Services | E59: 6.2 - Development Services
B60: 6.3 | C60: Human Settlement Development | D60: 6,3 - Human Settlement Development | E60: 6.3 - Human Settlement Development
B61: 6.4 | C61: Town Planning | D61: 6,4 - Town Planning | E61: 6.4 - Town Planning
B62: 6.5 | C62: General Manager: Sustainable Development and City Enterprises | D62: 6,5 - General Manager: Sustainable Development and City Enterprises | E62: 6.5 - General Manager: Sustainable Development and City Enterprises
B63: 6.6 | C63: [Name of sub-vote] | D63: 6,6 - [Name of sub-vote]
B64: 6.7 | C64: [Name of sub-vote] | D64: 6,7 - [Name of sub-vote]
B65: 6.8 | C65: [Name of sub-vote] | D65: 6,8 - [Name of sub-vote]
B66: 6.9 | C66: [Name of sub-vote] | D66: 6,9 - [Name of sub-vote]
B67: 6.10 | C67: [Name of sub-vote] | D67: 6.10 - [Name of sub-vote]
B68: Vote 7 | C68: [NAME OF VOTE 7]
B69: 7.1 | C69: [Name of sub-vote] | D69: =CONCATENATE(B69, " - ", C69) -> 7,1 - [Name of sub-vote] | E69: 7.1 - [Name of sub-vote]
B70: 7.2 | C70: [Name of sub-vote] | D70: 7,2 - [Name of sub-vote]
B71: 7.3 | C71: [Name of sub-vote] | D71: 7,3 - [Name of sub-vote]
B72: 7.4 | C72: [Name of sub-vote] | D72: 7,4 - [Name of sub-vote]
B73: 7.5 | C73: [Name of sub-vote] | D73: 7,5 - [Name of sub-vote]
B74: 7.6 | C74: [Name of sub-vote] | D74: 7,6 - [Name of sub-vote]
B75: 7.7 | C75: [Name of sub-vote] | D75: 7,7 - [Name of sub-vote]
B76: 7.8 | C76: [Name of sub-vote] | D76: 7,8 - [Name of sub-vote]
B77: 7.9 | C77: [Name of sub-vote] | D77: 7,9 - [Name of sub-vote]
B78: 7.10 | C78: [Name of sub-vote] | D78: 7.10 - [Name of sub-vote]
B79: Vote 8 | C79: [NAME OF VOTE 8]
B80: 8.1 | C80: [Name of sub-vote] | D80: =CONCATENATE(B80, " - ", C80) -> 8,1 - [Name of sub-vote] | E80: 8.1 - [Name of sub-vote]
B81: 8.2 | C81: [Name of sub-vote] | D81: 8,2 - [Name of sub-vote]
B82: 8.3 | C82: [Name of sub-vote] | D82: 8,3 - [Name of sub-vote]
B83: 8.4 | C83: [Name of sub-vote] | D83: 8,4 - [Name of sub-vote]
B84: 8.5 | C84: [Name of sub-vote] | D84: 8,5 - [Name of sub-vote]
B85: 8.6 | C85: [Name of sub-vote] | D85: 8,6 - [Name of sub-vote]
B86: 8.7 | C86: [Name of sub-vote] | D86: 8,7 - [Name of sub-vote]
B87: 8.8 | C87: [Name of sub-vote] | D87: 8,8 - [Name of sub-vote]
B88: 8.9 | C88: [Name of sub-vote] | D88: 8,9 - [Name of sub-vote]
B89: 8.10 | C89: [Name of sub-vote] | D89: 8.10 - [Name of sub-vote]
B90: Vote 9 | C90: [NAME OF VOTE 9]
B91: 9.1 | C91: [Name of sub-vote] | D91: =CONCATENATE(B91, " - ", C91) -> 9,1 - [Name of sub-vote] | E91: 9.1 - [Name of sub-vote]
B92: 9.2 | C92: [Name of sub-vote] | D92: 9,2 - [Name of sub-vote]
B93: 9.3 | C93: [Name of sub-vote] | D93: 9,3 - [Name of sub-vote]
B94: 9.4 | C94: [Name of sub-vote] | D94: 9,4 - [Name of sub-vote]
B95: 9.5 | C95: [Name of sub-vote] | D95: 9,5 - [Name of sub-vote]
B96: 9.6 | C96: [Name of sub-vote] | D96: 9,6 - [Name of sub-vote]
B97: 9.7 | C97: [Name of sub-vote] | D97: 9,7 - [Name of sub-vote]
B98: 9.8 | C98: [Name of sub-vote] | D98: 9,8 - [Name of sub-vote]
B99: 9.9 | C99: [Name of sub-vote] | D99: 9,9 - [Name of sub-vote]
B100: 9.10 | C100: [Name of sub-vote] | D100: 9.10 - [Name of sub-vote]
B101: Vote 10 | C101: [NAME OF VOTE 10]
B102: 10.1 | C102: [Name of sub-vote] | D102: =CONCATENATE(B102, " - ", C102) -> 10,1 - [Name of sub-vote] | E102: 10.1 - [Name of sub-vote]
B103: 10.2 | C103: [Name of sub-vote] | D103: 10,2 - [Name of sub-vote]
B104: 10.3 | C104: [Name of sub-vote] | D104: 10,3 - [Name of sub-vote]
B105: 10.4 | C105: [Name of sub-vote] | D105: 10,4 - [Name of sub-vote]
B106: 10.5 | C106: [Name of sub-vote] | D106: 10,5 - [Name of sub-vote]
B107: 10.6 | C107: [Name of sub-vote] | D107: 10,6 - [Name of sub-vote]
B108: 10.7 | C108: [Name of sub-vote] | D108: 10,7 - [Name of sub-vote]
B109: 10.8 | C109: [Name of sub-vote] | D109: 10,8 - [Name of sub-vote]
B110: 10.9 | C110: [Name of sub-vote] | D110: 10,9 - [Name of sub-vote]
B111: 10.10 | C111: [Name of sub-vote] | D111: 10.10 - [Name of sub-vote]
B112: Vote 11 | C112: [NAME OF VOTE 11]
B113: 11.1 | C113: [Name of sub-vote] | D113: =CONCATENATE(B113, " - ", C113) -> 11,1 - [Name of sub-vote] | E113: 11.1 - [Name of sub-vote]
B114: 11.2 | C114: [Name of sub-vote] | D114: 11,2 - [Name of sub-vote]
B115: 11.3 | C115: [Name of sub-vote] | D115: 11,3 - [Name of sub-vote]
B116: 11.4 | C116: [Name of sub-vote] | D116: 11,4 - [Name of sub-vote]
B117: 11.5 | C117: [Name of sub-vote] | D117: 11,5 - [Name of sub-vote]
B118: 11.6 | C118: [Name of sub-vote] | D118: 11,6 - [Name of sub-vote]
B119: 11.7 | C119: [Name of sub-vote] | D119: 11,7 - [Name of sub-vote]
B120: 11.8 | C120: [Name of sub-vote] | D120: 11,8 - [Name of sub-vote]
B121: 11.9 | C121: [Name of sub-vote] | D121: 11,9 - [Name of sub-vote]
B122: 11.10 | C122: [Name of sub-vote] | D122: 11.10 - [Name of sub-vote]
B123: Vote 12 | C123: [NAME OF VOTE 12]
B124: 12.1 | C124: [Name of sub-vote] | D124: =CONCATENATE(B124, " - ", C124) -> 12,1 - [Name of sub-vote] | E124: 12.1 - [Name of sub-vote]
B125: 12.2 | C125: [Name of sub-vote] | D125: 12,2 - [Name of sub-vote]
B126: 12.3 | C126: [Name of sub-vote] | D126: 12,3 - [Name of sub-vote]
B127: 12.4 | C127: [Name of sub-vote] | D127: 12,4 - [Name of sub-vote]
B128: 12.5 | C128: [Name of sub-vote] | D128: 12,5 - [Name of sub-vote]
B129: 12.6 | C129: [Name of sub-vote] | D129: 12,6 - [Name of sub-vote]
B130: 12.7 | C130: [Name of sub-vote] | D130: 12,7 - [Name of sub-vote]
B131: 12.8 | C131: [Name of sub-vote] | D131: 12,8 - [Name of sub-vote]
B132: 12.9 | C132: [Name of sub-vote] | D132: 12,9 - [Name of sub-vote]
B133: 12.10 | C133: [Name of sub-vote] | D133: 12.10 - [Name of sub-vote]
B134: Vote 13 | C134: [NAME OF VOTE 13]
B135: 13.1 | C135: [Name of sub-vote] | D135: =CONCATENATE(B135, " - ", C135) -> 13,1 - [Name of sub-vote] | E135: 13.1 - [Name of sub-vote]
B136: 13.2 | C136: [Name of sub-vote] | D136: 13,2 - [Name of sub-vote]
B137: 13.3 | C137: [Name of sub-vote] | D137: 13,3 - [Name of sub-vote]
B138: 13.4 | C138: [Name of sub-vote] | D138: 13,4 - [Name of sub-vote]
B139: 13.5 | C139: [Name of sub-vote] | D139: 13,5 - [Name of sub-vote]
B140: 13.6 | C140: [Name of sub-vote] | D140: 13,6 - [Name of sub-vote]
B141: 13.7 | C141: [Name of sub-vote] | D141: 13,7 - [Name of sub-vote]
B142: 13.8 | C142: [Name of sub-vote] | D142: 13,8 - [Name of sub-vote]
B143: 13.9 | C143: [Name of sub-vote] | D143: 13,9 - [Name of sub-vote]
B144: 13.10 | C144: [Name of sub-vote] | D144: 13.10 - [Name of sub-vote]
B145: Vote 14 | C145: [NAME OF VOTE 14]
B146: 14.1 | C146: [Name of sub-vote] | D146: =CONCATENATE(B146, " - ", C146) -> 14,1 - [Name of sub-vote] | E146: 14.1 - [Name of sub-vote]
B147: 14.2 | C147: [Name of sub-vote] | D147: 14,2 - [Name of sub-vote]
B148: 14.3 | C148: [Name of sub-vote] | D148: 14,3 - [Name of sub-vote]
B149: 14.4 | C149: [Name of sub-vote] | D149: 14,4 - [Name of sub-vote]
B150: 14.5 | C150: [Name of sub-vote] | D150: 14,5 - [Name of sub-vote]
B151: 14.6 | C151: [Name of sub-vote] | D151: 14,6 - [Name of sub-vote]
B152: 14.7 | C152: [Name of sub-vote] | D152: 14,7 - [Name of sub-vote]
B153: 14.8 | C153: [Name of sub-vote] | D153: 14,8 - [Name of sub-vote]
B154: 14.9 | C154: [Name of sub-vote] | D154: 14,9 - [Name of sub-vote]
B155: 14.10 | C155: [Name of sub-vote] | D155: 14.10 - [Name of sub-vote]
B156: Vote 15 | C156: [NAME OF VOTE 15]
B157: 15.1 | C157: [Name of sub-vote] | D157: =CONCATENATE(B157, " - ", C157) -> 15,1 - [Name of sub-vote] | E157: 15.1 - [Name of sub-vote]
B158: 15.2 | C158: [Name of sub-vote] | D158: 15,2 - [Name of sub-vote]
B159: 15.3 | C159: [Name of sub-vote] | D159: 15,3 - [Name of sub-vote]
B160: 15.4 | C160: [Name of sub-vote] | D160: 15,4 - [Name of sub-vote]
B161: 15.5 | C161: [Name of sub-vote] | D161: 15,5 - [Name of sub-vote]
B162: 15.6 | C162: [Name of sub-vote] | D162: 15,6 - [Name of sub-vote]
B163: 15.7 | C163: [Name of sub-vote] | D163: 15,7 - [Name of sub-vote]
B164: 15.8 | C164: [Name of sub-vote] | D164: 15,8 - [Name of sub-vote]
B165: 15.9 | C165: [Name of sub-vote] | D165: 15,9 - [Name of sub-vote]
B166: 15.10 | C166: [Name of sub-vote] | D166: 15.10 - [Name of sub-vote]

Sheet Contacts
A1: =muni&" - "&" Contact Information" -> KZN225 Msunduzi - Contact Information
A3: A. GENERAL INFORMATION
A4: Municipality | B4: =muni -> KZN225 Msunduzi | C4: =IF(B4="Choose name from List","Set name on 'Instructions' sheet", "") -> 
A6: Grade | C6: 1 Grade in terms of the Remuneration of Public Office Bearers Act.
A8: Province | B8: =IF(B4>" ",VLOOKUP(B4,'Lookup and lists'!B29:C307,2, FALSE)," ") -> KZN KWAZULU-NATAL
A10: Web Address | B10: www.msunduzi.gov.za
A12: e-mail Address | B12: info@msunduzi.gov.za
A14: B. CONTACT INFORMATION
A15: Postal address:
A16: P.O. Box
A17: City / Town
A18: Postal Code
A20: Street address
A21: Building | B21: 341 Professor Nyembezi Building
A22: Street No. & Name | B22: Church street
A23: City / Town | B23: Pietermaritzburg
A24: Postal Code
A26: General Contacts
A27: Telephone number
A28: Fax number
A30: C. POLITICAL LEADERSHIP
A31: Speaker: | C31: Secretary/PA to the Speaker:
A32: ID Number | C32: ID Number
A33: Title | C33: Title
A34: Name | B34: Nomagugu E Majola | C34: Name
A35: Telephone number | C35: Telephone number
A36: Cell number | B36: 071 156 7427 | C36: Cell number
A37: Fax number | C37: Fax number
A38: E-mail address | B38: Nomagugu.majola@msunduzi.gov.za | C38: E-mail address
A40: Mayor/Executive Mayor: | C40: Secretary/PA to the Mayor/Executive Mayor:
A41: ID Number | C41: ID Number
A42: Title | C42: Title
A43: Name | B43: Mzimkhulu M. Thebolla | C43: Name
A44: Telephone number | B44: 033 392 2001 | C44: Telephone number
A45: Cell number | C45: Cell number
A46: Fax number | C46: Fax number
A47: E-mail address | B47: mzimkhulu.thebolla@msunduzi.gov.za | C47: E-mail address
A49: Deputy Mayor/Executive Mayor: | C49: Secretary/PA to the Deputy Mayor/Executive Mayor:
A50: ID Number | C50: ID Number
A51: Title | C51: Title
A52: Name | B52: Manilal Inderjit | C52: Name
A53: Telephone number | B53: 033 392 2000 | C53: Telephone number
A54: Cell number | C54: Cell number
A55: Fax number | B55: manilal.inderjit@msunduzi.gov.za | C55: Fax number
A56: E-mail address | C56: E-mail address
A58: D. MANAGEMENT LEADERSHIP
A59: Municipal Manager: | C59: Secretary/PA to the Municipal Manager:
A60: ID Number | C60: ID Number
A61: Title | C61: Title
A62: Name | B62: Madoda Khathide | C62: Name
A63: Telephone number | B63: 033 392 2002 | C63: Telephone number
A64: Cell number | C64: Cell number
A65: Fax number | C65: Fax number
A66: E-mail address | B66: madoda.khathide@msunduzi.gov.za | C66: E-mail address
A68: Chief Financial Officer | C68: Secretary/PA to the Chief Financial Officer
A69: ID Number | C69: ID Number
A70: Title | B70: CFO | C70: Title
A71: Name | B71: Nelisiwe Ngcobo | C71: Name
A72: Telephone number | B72: 033 392 2601 | C72: Telephone number
A73: Cell number | C73: Cell number
A74: Fax number | C74: Fax number
A75: E-mail address | B75: Nelisiwe.ngcobo@msunduzi.gov.za | C75: E-mail address
A77: Official responsible for submitting financial information | C77: Official responsible for submitting financial information
A78: ID Number | C78: ID Number
A79: Title | B79: Senior Manager Budget Planning-Implementation & Monitoring | C79: Title
A80: Name | B80: Sifiso Khoza | C80: Name
A81: Telephone number | B81: 033 392 2628 | C81: Telephone number
A82: Cell number | C82: Cell number
A83: Fax number | C83: Fax number
A84: E-mail address | B84: sifiso.khoza@msunduzi.gov.za | C84: E-mail address
A85: Official responsible for submitting financial information | C85: Official responsible for submitting financial information
A86: ID Number | C86: ID Number
A87: Title | C87: Title
A88: Name | C88: Name
A89: Telephone number | C89: Telephone number
A90: Cell number | C90: Cell number
A91: Fax number | C91: Fax number
A92: E-mail address | C92: E-mail address
A93: Official responsible for submitting financial information | C93: Official responsible for submitting financial information
A94: ID Number | C94: ID Number
A95: Title | C95: Title
A96: Name | C96: Name
A97: Telephone number | C97: Telephone number
A98: Cell number | C98: Cell number
A99: Fax number | C99: Fax number
A100: E-mail address | C100: E-mail address
A101: Official responsible for submitting financial information | C101: Official responsible for submitting financial information
A102: ID Number | C102: ID Number
A103: Title | C103: Title
A104: Name | C104: Name
A105: Telephone number | C105: Telephone number
A106: Cell number | C106: Cell number
A107: Fax number | C107: Fax number
A108: E-mail address | C108: E-mail address
A109: Official responsible for submitting financial information | C109: Official responsible for submitting financial information
A110: ID Number | C110: ID Number
A111: Title | C111: Title
A112: Name | C112: Name
A113: Telephone number | C113: Telephone number
A114: Cell number | C114: Cell number
A115: Fax number | C115: Fax number
A116: E-mail address | C116: E-mail address
A117: Official responsible for submitting financial information | C117: Official responsible for submitting financial information
A118: ID Number | C118: ID Number
A119: Title | C119: Title
A120: Name | C120: Name
A121: Telephone number | C121: Telephone number
A122: Cell number | C122: Cell number
A123: Fax number | C123: Fax number
A124: E-mail address | C124: E-mail address
A125: Official responsible for submitting financial information | C125: Official responsible for submitting financial information
A126: ID Number | C126: ID Number
A127: Title | C127: Title
A128: Name | C128: Name
A129: Telephone number | C129: Telephone number
A130: Cell number | C130: Cell number
A131: Fax number | C131: Fax number
A132: E-mail address | C132: E-mail address
A133: Official responsible for submitting financial information
A134: ID Number
A135: Title
A136: Name
A137: Telephone number
A138: Cell number
A139: Fax number
A140: E-mail address

Sheet A1-Sum
A1: =muni&" - "&Approve1 -> KZN225 Msunduzi - Table A1 Consolidated Budget Summary
A2: =desc -> Description | B2: =head1b -> 2016/17 | C2: =head1A -> 2017/18 | D2: =Head1 -> 2018/19 | E2: =Head2 -> Current Year 2019/20 | I2: =Head3 -> 2020/21 Medium Term Revenue & Expenditure Framework
A3: R thousands | B3: =Head5 -> Audited Outcome | C3: =Head5 -> Audited Outcome | D3: =Head5 -> Audited Outcome | E3: =Head6 -> Original Budget | F3: =Head7 -> Adjusted Budget | G3: =Head8 -> Full Year Forecast | H3: =Head5b -> Pre-audit outcome | I3: =Head9 -> Budget Year 2020/21 | J3: =Head10 -> Budget Year +1 2021/22 | K3: =Head11 -> Budget Year +2 2022/23
A4: Financial Performance
A5: Property rates | B5: ='A4-FinPerf RE'!C5 -> 793014215 | C5: ='A4-FinPerf RE'!D5 -> 864163568 | D5: ='A4-FinPerf RE'!E5 -> 930979920 | E5: ='A4-FinPerf RE'!F5 -> 1200771538 | F5: ='A4-FinPerf RE'!G5 -> 1200771538 | G5: ='A4-FinPerf RE'!H5 -> 1200771538 | H5: ='A4-FinPerf RE'!I5 -> 0 | I5: ='A4-FinPerf RE'!J5 -> 1269794594 | J5: ='A4-FinPerf RE'!K5 -> 1339633297 | K5: ='A4-FinPerf RE'!L5 -> 1420011294
A6: Service charges | B6: =SUM('A4-FinPerf RE'!C6:C9) -> 2537458384 | C6: =SUM('A4-FinPerf RE'!D6:D9) -> 2710643839 | D6: =SUM('A4-FinPerf RE'!E6:E9) -> 2942462111 | E6: =SUM('A4-FinPerf RE'!F6:F9) -> 3337702982 | F6: =SUM('A4-FinPerf RE'!G6:G9) -> 3337702981 | G6: =SUM('A4-FinPerf RE'!H6:H9) -> 3143428978 | H6: =SUM('A4-FinPerf RE'!I6:I9) -> 0 | I6: =SUM('A4-FinPerf RE'!J6:J9) -> 3575763602 | J6: =SUM('A4-FinPerf RE'!K6:K9) -> 3859229379 | K6: =SUM('A4-FinPerf RE'!L6:L9) -> 4172640933
A7: Investment revenue | B7: ='A4-FinPerf RE'!C12 -> 53705513 | C7: ='A4-FinPerf RE'!D12 -> 39129952 | D7: ='A4-FinPerf RE'!E12 -> 20507403 | E7: ='A4-FinPerf RE'!F12 -> 14702275.05 | F7: ='A4-FinPerf RE'!G12 -> 14702275.05 | G7: ='A4-FinPerf RE'!H12 -> 14603275.05 | H7: ='A4-FinPerf RE'!I12 -> 0 | I7: ='A4-FinPerf RE'!J12 -> 15260422.43 | J7: ='A4-FinPerf RE'!K12 -> 16099745.66 | K7: ='A4-FinPerf RE'!L12 -> 17065730.4
A8: Transfers recognised - operational | B8: ='A4-FinPerf RE'!C18 -> 560051060.4 | C8: ='A4-FinPerf RE'!D18 -> 557086308 | D8: ='A4-FinPerf RE'!E18 -> 604487443.2 | E8: ='A4-FinPerf RE'!F18 -> 672022829 | F8: ='A4-FinPerf RE'!G18 -> 693974406 | G8: ='A4-FinPerf RE'!H18 -> 693974406 | H8: ='A4-FinPerf RE'!I18 -> 0 | I8: ='A4-FinPerf RE'!J18 -> 675483240 | J8: ='A4-FinPerf RE'!K18 -> 724435690 | K8: ='A4-FinPerf RE'!L18 -> 781097541
A9: Other own revenue | B9: ='A4-FinPerf RE'!C11+'A4-FinPerf RE'!C13+'A4-FinPerf RE'!C14+'A4-FinPerf RE'!C15+'A4-FinPerf RE'!C16+'A4-FinPerf RE'!C17+'A4-FinPerf RE'!C19+'A4-FinPerf RE'!C20 -> 394362655 | C9: ='A4-FinPerf RE'!D11+'A4-FinPerf RE'!D13+'A4-FinPerf RE'!D14+'A4-FinPerf RE'!D15+'A4-FinPerf RE'!D16+'A4-FinPerf RE'!D17+'A4-FinPerf RE'!D19+'A4-FinPerf RE'!D20 -> 445631287 | D9: ='A4-FinPerf RE'!E11+'A4-FinPerf RE'!E13+'A4-FinPerf RE'!E14+'A4-FinPerf RE'!E15+'A4-FinPerf RE'!E16+'A4-FinPerf RE'!E17+'A4-FinPerf RE'!E19+'A4-FinPerf RE'!E20 -> 499562293 | E9: ='A4-FinPerf RE'!F11+'A4-FinPerf RE'!F13+'A4-FinPerf RE'!F14+'A4-FinPerf RE'!F15+'A4-FinPerf RE'!F16+'A4-FinPerf RE'!F17+'A4-FinPerf RE'!F19+'A4-FinPerf RE'!F20 -> 379422713.4 | F9: ='A4-FinPerf RE'!G11+'A4-FinPerf RE'!G13+'A4-FinPerf RE'!G14+'A4-FinPerf RE'!G15+'A4-FinPerf RE'!G16+'A4-FinPerf RE'!G17+'A4-FinPerf RE'!G19+'A4-FinPerf RE'!G20 -> 379422713.4 | G9: ='A4-FinPerf RE'!H11+'A4-FinPerf RE'!H13+'A4-FinPerf RE'!H14+'A4-FinPerf RE'!H15+'A4-FinPerf RE'!H16+'A4-FinPerf RE'!H17+'A4-FinPerf RE'!H19+'A4-FinPerf RE'!H20 -> 379422713.4 | H9: ='A4-FinPerf RE'!I11+'A4-FinPerf RE'!I13+'A4-FinPerf RE'!I14+'A4-FinPerf RE'!I15+'A4-FinPerf RE'!I16+'A4-FinPerf RE'!I17+'A4-FinPerf RE'!I19+'A4-FinPerf RE'!I20 -> 0 | I9: ='A4-FinPerf RE'!J11+'A4-FinPerf RE'!J13+'A4-FinPerf RE'!J14+'A4-FinPerf RE'!J15+'A4-FinPerf RE'!J16+'A4-FinPerf RE'!J17+'A4-FinPerf RE'!J19+'A4-FinPerf RE'!J20 -> 381508399.1 | J9: ='A4-FinPerf RE'!K11+'A4-FinPerf RE'!K13+'A4-FinPerf RE'!K14+'A4-FinPerf RE'!K15+'A4-FinPerf RE'!K16+'A4-FinPerf RE'!K17+'A4-FinPerf RE'!K19+'A4-FinPerf RE'!K20 -> 402491361.1 | K9: ='A4-FinPerf RE'!L11+'A4-FinPerf RE'!L13+'A4-FinPerf RE'!L14+'A4-FinPerf RE'!L15+'A4-FinPerf RE'!L16+'A4-FinPerf RE'!L17+'A4-FinPerf RE'!L19+'A4-FinPerf RE'!L20 -> 426640842.7
A10: ='A4-FinPerf RE'!A21 -> Total Revenue (excluding capital transfers and contributions) | B10: =SUM(B5:B9) -> 4338591827 | C10: 4616654954 | D10: 4997999170 | E10: 5604622338 | F10: 5626573914 | G10: 5432200911 | H10: 0 | I10: 5917810258 | J10: 6341889472 | K10: 6817456342
A11: Employee costs | B11: ='A4-FinPerf RE'!C24 -> 1059136405 | C11: ='A4-FinPerf RE'!D24 -> 1194821260 | D11: ='A4-FinPerf RE'!E24 -> 1310730366 | E11: ='A4-FinPerf RE'!F24 -> 1455869443 | F11: ='A4-FinPerf RE'!G24 -> 1455410732 | G11: ='A4-FinPerf RE'!H24 -> 1444883850 | H11: ='A4-FinPerf RE'!I24 -> 0 | I11: ='A4-FinPerf RE'!J24 -> 1478324302 | J11: ='A4-FinPerf RE'!K24 -> 1574415381 | K11: ='A4-FinPerf RE'!L24 -> 1676752381
A12: Remuneration of councillors | B12: ='A4-FinPerf RE'!C25 -> 43574297 | C12: ='A4-FinPerf RE'!D25 -> 45020093 | D12: ='A4-FinPerf RE'!E25 -> 44130681 | E12: ='A4-FinPerf RE'!F25 -> 51487908.94 | F12: ='A4-FinPerf RE'!G25 -> 51487908.94 | G12: ='A4-FinPerf RE'!H25 -> 51487908.94 | H12: ='A4-FinPerf RE'!I25 -> 0 | I12: ='A4-FinPerf RE'!J25 -> 53650401.12 | J12: ='A4-FinPerf RE'!K25 -> 56332921.17 | K12: ='A4-FinPerf RE'!L25 -> 59149567.23
A13: Depreciation & asset impairment | B13: ='A4-FinPerf RE'!C27 -> 598014010 | C13: ='A4-FinPerf RE'!D27 -> 470106108 | D13: ='A4-FinPerf RE'!E27 -> 460955083 | E13: ='A4-FinPerf RE'!F27 -> 492025080.3 | F13: ='A4-FinPerf RE'!G27 -> 492071235.6 | G13: ='A4-FinPerf RE'!H27 -> 491122235.6 | H13: ='A4-FinPerf RE'!I27 -> 0 | I13: ='A4-FinPerf RE'!J27 -> 489941448.3 | J13: ='A4-FinPerf RE'!K27 -> 537817854.5 | K13: ='A4-FinPerf RE'!L27 -> 562557475.8
A14: Finance charges | B14: ='A4-FinPerf RE'!C28 -> 68463041 | C14: ='A4-FinPerf RE'!D28 -> 61439423 | D14: ='A4-FinPerf RE'!E28 -> 52462384 | E14: ='A4-FinPerf RE'!F28 -> 41660099 | F14: ='A4-FinPerf RE'!G28 -> 41660099 | G14: ='A4-FinPerf RE'!H28 -> 41660099 | H14: ='A4-FinPerf RE'!I28 -> 0 | I14: ='A4-FinPerf RE'!J28 -> 31793212.22 | J14: ='A4-FinPerf RE'!K28 -> 24371318.84 | K14: ='A4-FinPerf RE'!L28 -> 16949425.45
A15: Materials and bulk purchases | B15: ='A4-FinPerf RE'!C29+'A4-FinPerf RE'!C30 -> 1912347640 | C15: ='A4-FinPerf RE'!D29+'A4-FinPerf RE'!D30 -> 2026326327 | D15: ='A4-FinPerf RE'!E29+'A4-FinPerf RE'!E30 -> 2188653315 | E15: ='A4-FinPerf RE'!F29+'A4-FinPerf RE'!F30 -> 2338356310 | F15: ='A4-FinPerf RE'!G29+'A4-FinPerf RE'!G30 -> 2334485045 | G15: ='A4-FinPerf RE'!H29+'A4-FinPerf RE'!H30 -> 2334385045 | H15: ='A4-FinPerf RE'!I29+'A4-FinPerf RE'!I30 -> 0 | I15: ='A4-FinPerf RE'!J29+'A4-FinPerf RE'!J30 -> 2654837499 | J15: ='A4-FinPerf RE'!K29+'A4-FinPerf RE'!K30 -> 2865592502 | K15: ='A4-FinPerf RE'!L29+'A4-FinPerf RE'!L30 -> 3121304406
A16: Transfers and grants | B16: ='A4-FinPerf RE'!C32 -> 42911569 | C16: ='A4-FinPerf RE'!D32 -> 19201984 | D16: ='A4-FinPerf RE'!E32 -> 15819791 | E16: ='A4-FinPerf RE'!F32 -> 46379439.52 | F16: ='A4-FinPerf RE'!G32 -> 49902933.63 | G16: ='A4-FinPerf RE'!H32 -> 62989012.42 | H16: ='A4-FinPerf RE'!I32 -> 0 | I16: ='A4-FinPerf RE'!J32 -> 25080461.44 | J16: ='A4-FinPerf RE'!K32 -> 26157492.52 | K16: ='A4-FinPerf RE'!L32 -> 27281767.02
A17: Other expenditure | B17: ='A4-FinPerf RE'!C26+'A4-FinPerf RE'!C31+'A4-FinPerf RE'!C33+'A4-FinPerf RE'!C34 -> 1790545857 | C17: ='A4-FinPerf RE'!D26+'A4-FinPerf RE'!D31+'A4-FinPerf RE'!D33+'A4-FinPerf RE'!D34 -> 1711484133 | D17: ='A4-FinPerf RE'!E26+'A4-FinPerf RE'!E31+'A4-FinPerf RE'!E33+'A4-FinPerf RE'!E34 -> 1478171142 | E17: ='A4-FinPerf RE'!F26+'A4-FinPerf RE'!F31+'A4-FinPerf RE'!F33+'A4-FinPerf RE'!F34 -> 902728708.9 | F17: ='A4-FinPerf RE'!G26+'A4-FinPerf RE'!G31+'A4-FinPerf RE'!G33+'A4-FinPerf RE'!G34 -> 825080933.4 | G17: ='A4-FinPerf RE'!H26+'A4-FinPerf RE'!H31+'A4-FinPerf RE'!H33+'A4-FinPerf RE'!H34 -> 822817309.7 | H17: ='A4-FinPerf RE'!I26+'A4-FinPerf RE'!I31+'A4-FinPerf RE'!I33+'A4-FinPerf RE'!I34 -> 0 | I17: ='A4-FinPerf RE'!J26+'A4-FinPerf RE'!J31+'A4-FinPerf RE'!J33+'A4-FinPerf RE'!J34 -> 782850145.7 | J17: ='A4-FinPerf RE'!K26+'A4-FinPerf RE'!K31+'A4-FinPerf RE'!K33+'A4-FinPerf RE'!K34 -> 819655869 | K17: ='A4-FinPerf RE'!L26+'A4-FinPerf RE'!L31+'A4-FinPerf RE'!L33+'A4-FinPerf RE'!L34 -> 856978442.9
A18: ='A4-FinPerf RE'!A35 -> Total Expenditure | B18: =SUM(B11:B17) -> 5514992819 | C18: =SUM(C11:C17) -> 5528399328 | D18: 5550922762 | E18: 5328506989 | F18: 5250098887 | G18: 5249345460 | H18: 0 | I18: 5516477470 | J18: 5904343339 | K18: 6320973466
A19: ='A4-FinPerf RE'!A37 -> Surplus/(Deficit) | B19: =B10-B18 -> -1176400992 | C19: -911744374 | D19: -552923591.8 | E19: 276115349.2 | F19: 376475027.1 | G19: 182855450.3 | H19: 0 | I19: 401332788.3 | J19: 437546133.2 | K19: 496482876
A20: ='A4-FinPerf RE'!A38 -> Transfers and subsidies - capital (monetary allocations) (National / Provincial and District) | B20: ='A4-FinPerf RE'!C38 -> 389691074.6 | C20: ='A4-FinPerf RE'!D38 -> 386288122 | D20: ='A4-FinPerf RE'!E38 -> 412154185.8 | E20: ='A4-FinPerf RE'!F38 -> 439342400 | F20: ='A4-FinPerf RE'!G38 -> 667412194 | G20: ='A4-FinPerf RE'!H38 -> 667616412 | H20: ='A4-FinPerf RE'!I38 -> 0 | I20: ='A4-FinPerf RE'!J38 -> 525891581 | J20: ='A4-FinPerf RE'!K38 -> 487849400 | K20: ='A4-FinPerf RE'!L38 -> 455968840
A21: ='A4-FinPerf RE'!A39&" & "&'A4-FinPerf RE'!A40 -> Transfers and subsidies - capital (monetary allocations) (National / Provincial Departmental Agencies, Households, Non-profit Institutions, Private Enterprises, Public Corporatons, Higher Educational Institutions) & Transfers and subsidies - capital (in-kind - all) | B21: ='A4-FinPerf RE'!C39+'A4-FinPerf RE'!C40 -> 0 | C21: ='A4-FinPerf RE'!D39+'A4-FinPerf RE'!D40 -> 0 | D21: ='A4-FinPerf RE'!E39+'A4-FinPerf RE'!E40 -> 0 | E21: ='A4-FinPerf RE'!F39+'A4-FinPerf RE'!F40 -> 0 | F21: ='A4-FinPerf RE'!G39+'A4-FinPerf RE'!G40 -> 0 | G21: ='A4-FinPerf RE'!H39+'A4-FinPerf RE'!H40 -> 0 | H21: ='A4-FinPerf RE'!I39+'A4-FinPerf RE'!I40 -> 0 | I21: ='A4-FinPerf RE'!J39+'A4-FinPerf RE'!J40 -> 0 | J21: ='A4-FinPerf RE'!K39+'A4-FinPerf RE'!K40 -> 0 | K21: ='A4-FinPerf RE'!L39+'A4-FinPerf RE'!L40 -> 0
A22: ='A4-FinPerf RE'!A41 -> Surplus/(Deficit) after capital transfers & contributions | B22: =B19+SUM(B20:B21) -> -786709917 | C22: =C19+SUM(C20:C21) -> -525456252 | D22: -140769406 | E22: 715457749.2 | F22: 1043887221 | G22: 850471862.3 | H22: 0 | I22: 927224369.3 | J22: 925395533.2 | K22: 952451716
A23: ='A4-FinPerf RE'!A46 -> Share of surplus/ (deficit) of associate | B23: ='A4-FinPerf RE'!C46 -> 0 | C23: ='A4-FinPerf RE'!D46 -> 0 | D23: ='A4-FinPerf RE'!E46 -> 0 | E23: ='A4-FinPerf RE'!F46 -> 0 | F23: ='A4-FinPerf RE'!G46 -> 0 | G23: ='A4-FinPerf RE'!H46 -> 0 | H23: ='A4-FinPerf RE'!I46 -> 0 | I23: ='A4-FinPerf RE'!J46 -> 0 | J23: ='A4-FinPerf RE'!K46 -> 0 | K23: ='A4-FinPerf RE'!L46 -> 0
A24: ='A4-FinPerf RE'!A47 -> Surplus/(Deficit) for the year | B24: =B22+B23 -> -786709917 | C24: =C22+C23 -> -525456252 | D24: -140769406 | E24: 715457749.2 | F24: 1043887221 | G24: 850471862.3 | H24: 0 | I24: 927224369.3 | J24: 925395533.2 | K24: 952451716
A26: Capital expenditure & funds sources
A27: Capital expenditure | B27: ='A5-Capex'!C63 -> 629031961 | C27: ='A5-Capex'!D63 -> 600053545 | D27: ='A5-Capex'!E63 -> 486193633 | E27: ='A5-Capex'!F63 -> 555371301.4 | F27: ='A5-Capex'!G63 -> 746194545.7 | G27: ='A5-Capex'!H63 -> 746194545.7 | H27: ='A5-Capex'!I63 -> 0 | I27: ='A5-Capex'!J63 -> 568215156 | J27: ='A5-Capex'!K63 -> 537654799.8 | K27: ='A5-Capex'!L63 -> 512740289.8
A28: Transfers recognised - capital | B28: ='A5-Capex'!C70 -> 401255418.1 | C28: ='A5-Capex'!D70 -> 363745921.2 | D28: ='A5-Capex'!E70 -> 366029304 | E28: ='A5-Capex'!F70 -> 439342400 | F28: ='A5-Capex'!G70 -> 667412194 | G28: ='A5-Capex'!H70 -> 667412194 | H28: ='A5-Capex'!I70 -> 0 | I28: ='A5-Capex'!J70 -> 525891581 | J28: ='A5-Capex'!K70 -> 487849400 | K28: ='A5-Capex'!L70 -> 455968840
A30: ='A5-Capex'!A72 -> Borrowing | B30: ='A5-Capex'!C72 -> 40245430.79 | C30: ='A5-Capex'!D72 -> 88896142.76 | D30: ='A5-Capex'!E72 -> 47052852 | E30: ='A5-Capex'!F72 -> 5631044 | F30: ='A5-Capex'!G72 -> 5631044 | G30: ='A5-Capex'!H72 -> 5631044 | H30: ='A5-Capex'!I72 -> 0 | I30: ='A5-Capex'!J72 -> 0 | J30: ='A5-Capex'!K72 -> 0 | K30: ='A5-Capex'!L72 -> 0
A31: ='A5-Capex'!A73 -> Internally generated funds | B31: ='A5-Capex'!C73 -> 187531112.1 | C31: ='A5-Capex'!D73 -> 147411481 | D31: ='A5-Capex'!E73 -> 73111477 | E31: ='A5-Capex'!F73 -> 110397892.6 | F31: ='A5-Capex'!G73 -> 73151307.71 | G31: ='A5-Capex'!H73 -> 73151307.71 | H31: ='A5-Capex'!I73 -> 0 | I31: ='A5-Capex'!J73 -> 55000000 | J31: ='A5-Capex'!K73 -> 66100000 | K31: ='A5-Capex'!L73 -> 66900000
A32: Total sources of capital funds | B32: =+B28+B30+B31 -> 629031961 | C32: =+C28+C30+C31 -> 600053545 | D32: 486193633 | E32: 555371336.6 | F32: 746194545.7 | G32: 746194545.7 | H32: 0 | I32: 580891581 | J32: 553949400 | K32: 522868840
A34: Financial position
A35: ='A6-FinPos'!A12 -> Total current assets | B35: ='A6-FinPos'!C12 -> 1455389742 | C35: ='A6-FinPos'!D12 -> 1339001666 | D35: ='A6-FinPos'!E12 -> 1115445477 | E35: ='A6-FinPos'!F12 -> 1437363761 | F35: ='A6-FinPos'!G12 -> 1453655012 | G35: ='A6-FinPos'!H12 -> 2427853216 | H35: ='A6-FinPos'!I12 -> 0 | I35: ='A6-FinPos'!J12 -> 2972344765 | J35: ='A6-FinPos'!K12 -> 3675930804 | K35: ='A6-FinPos'!L12 -> 4471258701
A36: ='A6-FinPos'!A24 -> Total non current assets | B36: ='A6-FinPos'!C24 -> 7996090115 | C36: ='A6-FinPos'!D24 -> 8165408956 | D36: ='A6-FinPos'!E24 -> 8217504095 | E36: ='A6-FinPos'!F24 -> 8039624767 | F36: ='A6-FinPos'!G24 -> 7945454905 | G36: ='A6-FinPos'!H24 -> 7945454905 | H36: ='A6-FinPos'!I24 -> 0 | I36: ='A6-FinPos'!J24 -> 8340425653 | J36: ='A6-FinPos'!K24 -> 7952398503 | K36: ='A6-FinPos'!L24 -> 7476472197
A37: ='A6-FinPos'!A34 -> Total current liabilities | B37: ='A6-FinPos'!C34 -> 1133119666 | C37: ='A6-FinPos'!D34 -> 1367826748 | D37: ='A6-FinPos'!E34 -> 1473390857 | E37: ='A6-FinPos'!F34 -> 1320730518 | F37: ='A6-FinPos'!G34 -> 1320730518 | G37: ='A6-FinPos'!H34 -> 1320730518 | H37: ='A6-FinPos'!I34 -> 0 | I37: ='A6-FinPos'!J34 -> 1441718351 | J37: ='A6-FinPos'!K34 -> 1451297244 | K37: ='A6-FinPos'!L34 -> 1479236922
A38: ='A6-FinPos'!A39 -> Total non current liabilities | B38: ='A6-FinPos'!C39 -> 1260555769 | C38: ='A6-FinPos'!D39 -> 1181060537 | D38: ='A6-FinPos'!E39 -> 991034435 | E38: ='A6-FinPos'!F39 -> 1202464024 | F38: ='A6-FinPos'!G39 -> 1202464024 | G38: ='A6-FinPos'!H39 -> 1202464024 | H38: ='A6-FinPos'!I39 -> 0 | I38: ='A6-FinPos'!J39 -> 1091864952 | J38: ='A6-FinPos'!K39 -> 1085539099 | K38: ='A6-FinPos'!L39 -> 1089733460
A39: Community wealth/Equity | B39: ='A6-FinPos'!C48 -> 7057804422 | C39: ='A6-FinPos'!D48 -> 6955523337 | D39: ='A6-FinPos'!E48 -> 6868524280 | E39: ='A6-FinPos'!F48 -> 6953793987 | F39: ='A6-FinPos'!G48 -> 6875915375 | G39: ='A6-FinPos'!H48 -> 7850113580 | H39: ='A6-FinPos'!I48 -> 0 | I39: ='A6-FinPos'!J48 -> 8779187114 | J39: ='A6-FinPos'!K48 -> 9091492964 | K39: ='A6-FinPos'!L48 -> 9378760515
A41: Cash flows
A42: Net cash from (used) operating | B42: ='A7-CFlow'!C17 -> 779449252 | C42: ='A7-CFlow'!D17 -> 574982604 | D42: ='A7-CFlow'!E17 -> 371007216 | E42: ='A7-CFlow'!F17 -> 645280409.5 | F42: ='A7-CFlow'!G17 -> 916264569.3 | G42: ='A7-CFlow'!H17 -> 807048074.7 | H42: ='A7-CFlow'!I17 -> 0 | I42: ='A7-CFlow'!J17 -> 752533430.4 | J42: ='A7-CFlow'!K17 -> 1029336133 | K42: ='A7-CFlow'!L17 -> 1346218724
A43: Net cash from (used) investing | B43: ='A7-CFlow'!C27 -> -870026923 | C43: ='A7-CFlow'!D27 -> -676673962 | D43: ='A7-CFlow'!E27 -> -480460578 | E43: ='A7-CFlow'!F27 -> -527602753.1 | F43: ='A7-CFlow'!G27 -> -746452945.7 | G43: ='A7-CFlow'!H27 -> -746194545.7 | H43: ='A7-CFlow'!I27 -> 0 | I43: ='A7-CFlow'!J27 -> -580891581 | J43: ='A7-CFlow'!K27 -> -553949400 | K43: ='A7-CFlow'!L27 -> -522868840
A44: Net cash from (used) financing | B44: ='A7-CFlow'!C36 -> -204487261 | C44: ='A7-CFlow'!D36 -> -61681966 | D44: ='A7-CFlow'!E36 -> -94966367 | E44: ='A7-CFlow'!F36 -> -79056107 | F44: ='A7-CFlow'!G36 -> -79056107 | G44: ='A7-CFlow'!H36 -> -79056107 | H44: ='A7-CFlow'!I36 -> 0 | I44: ='A7-CFlow'!J36 -> -79206000 | J44: ='A7-CFlow'!K36 -> -75245000 | K44: ='A7-CFlow'!L36 -> -71483000
A45: =LEFT('A7-CFlow'!A40,37) -> Cash/cash equivalents at the year end | B45: ='A7-CFlow'!C40 -> 675995631 | C45: ='A7-CFlow'!D40 -> 512622307 | D45: ='A7-CFlow'!E40 -> 308202578 | E45: ='A7-CFlow'!F40 -> 499740557.1 | F45: ='A7-CFlow'!G40 -> 395811680.6 | G45: ='A7-CFlow'!H40 -> 290000000 | H45: ='A7-CFlow'!I40 -> 0 | I45: ='A7-CFlow'!J40 -> 382435849.4 | J45: ='A7-CFlow'!K40 -> 782577582 | K45: ='A7-CFlow'!L40 -> 1534444466
A47: Cash backing/surplus reconciliation
A48: ='A8-ResRecon'!A4 -> Cash and investments available | B48: ='A8-ResRecon'!C8 -> 696087541 | C48: ='A8-ResRecon'!D8 -> 526156054 | D48: ='A8-ResRecon'!E8 -> 326520093 | E48: ='A8-ResRecon'!F8 -> 499740557.1 | F48: ='A8-ResRecon'!G8 -> 516031807.3 | G48: ='A8-ResRecon'!H8 -> 306144753.5 | H48: ='A8-ResRecon'!I8 -> 0 | I48: ='A8-ResRecon'!J8 -> 385405520.9 | J48: ='A8-ResRecon'!K8 -> 785914304.8 | K48: ='A8-ResRecon'!L8 -> 1538193608
A49: ='A8-ResRecon'!A10 -> Application of cash and investments | B49: ='A8-ResRecon'!C18 -> 277116700 | C49: ='A8-ResRecon'!D18 -> 623953497 | D49: ='A8-ResRecon'!E18 -> 679647558 | E49: ='A8-ResRecon'!F18 -> 305642751.1 | F49: ='A8-ResRecon'!G18 -> 546107832.1 | G49: ='A8-ResRecon'!H18 -> -395732167.9 | H49: ='A8-ResRecon'!I18 -> 0 | I49: ='A8-ResRecon'!J18 -> -769169305.3 | J49: ='A8-ResRecon'!K18 -> -1142302231 | K49: ='A8-ResRecon'!L18 -> -1300208076
A50: Balance - surplus (shortfall) | B50: =B48-B49 -> 418970841 | C50: =C48-C49 -> -97797443 | D50: -353127465 | E50: 194097806 | F50: -30076024.74 | G50: 701876921.5 | H50: 0 | I50: 1154574826 | J50: 1928216536 | K50: 2838401684
A52: Asset management
A53: Asset register summary (WDV) | B53: ='A9-Asset'!C165 -> 7170057388 | C53: ='A9-Asset'!D165 -> 8003466549 | D53: ='A9-Asset'!E165 -> 0 | E53: ='A9-Asset'!F165 -> 8299932731 | F53: ='A9-Asset'!G165 -> 8039624767 | G53: ='A9-Asset'!H165 -> 8039624767 | H53: ='A9-Asset'!H165 -> 8039624767 | I53: ='A9-Asset'!I165 -> 7111997636 | J53: ='A9-Asset'!J165 -> 6621893133 | K53: ='A9-Asset'!K165 -> 6034258092
A54: ='A9-Asset'!A168 -> Depreciation | B54: ='A9-Asset'!C168 -> 598014010 | C54: ='A9-Asset'!D168 -> 470106108 | D54: ='A9-Asset'!E168 -> 460955083 | E54: ='A9-Asset'!F168 -> 492025080.3 | F54: ='A9-Asset'!G168 -> 492071235.6 | G54: ='A9-Asset'!H168 -> 491122235.6 | H54: ='A9-Asset'!H168 -> 491122235.6 | I54: ='A9-Asset'!I168 -> 489941448.3 | J54: ='A9-Asset'!J168 -> 537817854.5 | K54: ='A9-Asset'!K168 -> 562557475.8
A55: Renewal and Upgrading of Existing Assets | B55: ='A9-Asset'!C37+'A9-Asset'!C69 -> 297657017.7 | C55: ='A9-Asset'!D37+'A9-Asset'!D69 -> 515763053.1 | D55: ='A9-Asset'!E37+'A9-Asset'!E69 -> 427389635.9 | E55: ='A9-Asset'!F37+'A9-Asset'!F69 -> 400436044.4 | F55: ='A9-Asset'!G37+'A9-Asset'!G69 -> 400177644.4 | G55: ='A9-Asset'!H37+'A9-Asset'!H69 -> 400177644.4 | H55: ='A9-Asset'!H37+'A9-Asset'!H69 -> 400177644.4 | I55: ='A9-Asset'!I37+'A9-Asset'!I69 -> 124650000 | J55: ='A9-Asset'!J37+'A9-Asset'!J69 -> 131438547.8 | K55: ='A9-Asset'!K37+'A9-Asset'!K69 -> 146998162.7
A56: Repairs and Maintenance | B56: ='A9-Asset'!C169 -> 162843610 | C56: ='A9-Asset'!D169 -> 171343507.7 | D56: ='A9-Asset'!E169 -> 0 | E56: ='A9-Asset'!F169 -> 97344629.17 | F56: ='A9-Asset'!G169 -> 97344629.17 | G56: ='A9-Asset'!H169 -> 97344629.17 | H56: ='A9-Asset'!H169 -> 97344629.17 | I56: ='A9-Asset'!I169 -> 233303814.3 | J56: ='A9-Asset'!J169 -> 240361720.7 | K56: ='A9-Asset'!K169 -> 251495810.8
A58: Free services
A59: Cost of Free Basic Services provided | B59: ='A10-SerDel'!C60 -> 158670652.8 | C59: ='A10-SerDel'!D60 -> 169523695.1 | D59: ='A10-SerDel'!E60 -> 169960906.6 | E59: ='A10-SerDel'!F60 -> 183952676.4 | F59: ='A10-SerDel'!G60 -> 183952677.4 | G59: ='A10-SerDel'!H60 -> 192703683.4 | H59: ='A10-SerDel'!I60 -> 218603828.2 | I59: ='A10-SerDel'!I60 -> 218603828.2 | J59: ='A10-SerDel'!J60 -> 233906096.2 | K59: ='A10-SerDel'!K60 -> 250279522.9
A60: Revenue cost of free services provided | B60: ='A10-SerDel'!C79 -> 413873439.6 | C60: ='A10-SerDel'!D79 -> 414339108.9 | D60: ='A10-SerDel'!E79 -> 414860391.4 | E60: ='A10-SerDel'!F79 -> 124035060.5 | F60: ='A10-SerDel'!G79 -> 124035060.5 | G60: ='A10-SerDel'!H79 -> 123989276.5 | H60: ='A10-SerDel'!I79 -> 131444221.4 | I60: ='A10-SerDel'!I79 -> 131444221.4 | J60: ='A10-SerDel'!J79 -> 139323184.6 | K60: ='A10-SerDel'!K79 -> 147707569.6
A61: Households below minimum service level
A62: ='A10-SerDel'!A5 -> Water: | B62: ='A10-SerDel'!C14 -> 9136 | C62: ='A10-SerDel'!D14 -> 9318.72 | D62: ='A10-SerDel'!E14 -> 8505.0944 | E62: ='A10-SerDel'!F14 -> 8195.196288 | F62: ='A10-SerDel'!G14 -> 8195.196288 | G62: ='A10-SerDel'!H14 -> 8195.196288 | H62: ='A10-SerDel'!I14 -> 7889.100214 | I62: ='A10-SerDel'!I14 -> 7889.100214 | J62: ='A10-SerDel'!J14 -> 8078.438619 | K62: ='A10-SerDel'!K14 -> 8272.321146
A63: ='A10-SerDel'!A16 -> Sanitation/sewerage: | B63: ='A10-SerDel'!C26 -> 4022 | C63: ='A10-SerDel'!D26 -> 2102.44 | D63: ='A10-SerDel'!E26 -> 1184.4888 | E63: ='A10-SerDel'!F26 -> 868.178576 | F63: ='A10-SerDel'!G26 -> 868.178576 | G63: ='A10-SerDel'!H26 -> 868.178576 | H63: ='A10-SerDel'!I26 -> 353.5421475 | I63: ='A10-SerDel'!I26 -> 353.5421475 | J63: ='A10-SerDel'!J26 -> 362.0271591 | K63: ='A10-SerDel'!K26 -> 370.7158109
A64: ='A10-SerDel'!A28 -> Energy: | B64: ='A10-SerDel'!C35 -> 14237 | C64: ='A10-SerDel'!D35 -> 10000 | D64: ='A10-SerDel'!E35 -> 8000 | E64: ='A10-SerDel'!F35 -> 6000 | F64: ='A10-SerDel'!G35 -> 6000 | G64: ='A10-SerDel'!H35 -> 6000 | H64: ='A10-SerDel'!I35 -> 4000 | I64: ='A10-SerDel'!I35 -> 4000 | J64: ='A10-SerDel'!J35 -> 4096 | K64: ='A10-SerDel'!K35 -> 4194.304
A65: ='A10-SerDel'!A37 -> Refuse: | B65: ='A10-SerDel'!C45 -> 43993 | C65: ='A10-SerDel'!D45 -> 44872.86 | D65: ='A10-SerDel'!E45 -> 40770.3172 | E65: ='A10-SerDel'!F45 -> 40770.3172 | F65: ='A10-SerDel'!G45 -> 36685.72354 | G65: ='A10-SerDel'!H45 -> 36685.72354 | H65: ='A10-SerDel'!I45 -> 28952.43801 | I65: ='A10-SerDel'!I45 -> 28952.43801 | J65: ='A10-SerDel'!J45 -> 29647.29653 | K65: ='A10-SerDel'!K45 -> 30358.83164

Sheet A2-FinPerf SC
A1: =muni&" - "&Approve3 -> KZN225 Msunduzi - Table A2 Consolidated Budgeted Financial Performance (revenue and expenditure by functional classification)
A2: ="Functional Classification "&desc -> Functional Classification Description | B2: =head27 -> Ref | C2: =head1b -> 2016/17 | D2: =head1A -> 2017/18 | E2: =Head1 -> 2018/19 | F2: =Head2 -> Current Year 2019/20 | I2: =Head3 -> 2020/21 Medium Term Revenue & Expenditure Framework
A3: R thousand | B3: 1 | C3: =Head5 -> Audited Outcome | D3: =Head5 -> Audited Outcome | E3: =Head5 -> Audited Outcome | F3: =Head6 -> Original Budget | G3: =Head7 -> Adjusted Budget | H3: =Head8 -> Full Year Forecast | I3: =Head9 -> Budget Year 2020/21 | J3: =Head10 -> Budget Year +1 2021/22 | K3: =Head11 -> Budget Year +2 2022/23
A4: Revenue - Functional
A5: Governance and administration | C5: =SUM(C6:C8) -> 1726992886 | D5: =SUM(D6:D8) -> 1871078794 | E5: 2467301543 | F5: 1810164797 | G5: 1311670955 | H5: 1308023275 | I5: 1572338502 | J5: 1659974893 | K5: 1758642177
A6: Executive and council | C6: =A2A!C6 -> 3912513.23 | D6: =A2A!D6 -> 8115405.88 | E6: =A2A!E6 -> 3096549 | F6: =A2A!F6 -> 4256966.52 | G6: =A2A!G6 -> 4256966.52 | H6: =A2A!H6 -> 4256966.52 | I6: =A2A!I6 -> 4447530.013 | J6: =A2A!J6 -> 62804.16414 | K6: =A2A!K6 -> 66572.41399
A7: Finance and administration | C7: =A2A!C9 -> 1723080373 | D7: =A2A!D9 -> 1862966177 | E7: =A2A!E9 -> 2464204994 | F7: =A2A!F9 -> 1805907831 | G7: =A2A!G9 -> 1307413989 | H7: =A2A!H9 -> 1303766309 | I7: =A2A!I9 -> 1567890972 | J7: =A2A!J9 -> 1659912089 | K7: =A2A!K9 -> 1758575605
A8: Internal audit | C8: =A2A!C23 -> 0 | D8: =A2A!D23 -> -2788.35 | E8: =A2A!E23 -> 0 | F8: =A2A!F23 -> 0 | G8: =A2A!G23 -> 0 | H8: =A2A!H23 -> 0 | I8: =A2A!I23 -> 0 | J8: =A2A!J23 -> 0 | K8: =A2A!K23 -> 0
A9: Community and public safety | C9: =SUM(C10:C14) -> 321159682.4 | D9: =SUM(D10:D14) -> 114024500 | E9: 189741250 | F9: 109380497.9 | G9: 352003716.6 | H9: 352003716.6 | I9: 369251054.5 | J9: 320711476.2 | K9: 271334626.3
A10: Community and social services | C10: =A2A!C26 -> 35741622.86 | D10: =A2A!D26 -> 28614804.88 | E10: =A2A!E26 -> 29034011 | F10: =A2A!F26 -> 24887236.06 | G10: =A2A!G26 -> 42176969.06 | H10: =A2A!H26 -> 42176969.06 | I10: =A2A!I26 -> 26242986.68 | J10: =A2A!J26 -> 26698280.95 | K10: =A2A!K26 -> 27076497.81
A11: Sport and recreation | C11: =A2A!C48 -> 15520255.66 | D11: =A2A!D48 -> 11184128.98 | E11: =A2A!E48 -> 10053818 | F11: =A2A!F48 -> 10383827.44 | G11: =A2A!G48 -> 265177.02 | H11: =A2A!H48 -> 265177.02 | I11: =A2A!I48 -> 11002054.79 | J11: =A2A!J48 -> 11913699.4 | K11: =A2A!K48 -> 12512307.88
A12: Public safety | C12: =A2A!C54 -> 38769740.07 | D12: =A2A!D54 -> 18371823.37 | E12: =A2A!E54 -> 23856429 | F12: =A2A!F54 -> 3606445.42 | G12: =A2A!G54 -> 3606445.42 | H12: =A2A!H54 -> 3606445.42 | I12: =A2A!I54 -> 3768735.464 | J12: =A2A!J54 -> 3976015.914 | K12: =A2A!K54 -> 4214576.869
A13: Housing | C13: =A2A!C63 -> 231128063.8 | D13: =A2A!D63 -> 55853742.81 | E13: =A2A!E63 -> 126796992 | F13: =A2A!F63 -> 70502989 | G13: =A2A!G63 -> 305955125.1 | H13: =A2A!H63 -> 305955125.1 | I13: =A2A!I63 -> 328237277.5 | J13: =A2A!J63 -> 278123479.9 | K13: =A2A!K63 -> 227531243.7
A14: Health | C14: =A2A!C66 -> 0 | D14: =A2A!D66 -> 0 | E14: =A2A!E66 -> 0 | F14: =A2A!F66 -> 0 | G14: =A2A!G66 -> 0 | H14: =A2A!H66 -> 0 | I14: =A2A!I66 -> 0 | J14: =A2A!J66 -> 0 | K14: =A2A!K66 -> 0
A15: Economic and environmental services | C15: =SUM(C16:C18) -> 294113343.6 | D15: =SUM(D16:D18) -> 284890218.3 | E15: 316615533 | F15: 316347369.9 | G15: 325302614.9 | H15: 325302614.9 | I15: 106923434.4 | J15: 107766938.5 | K15: 116404138.6
A16: Planning and development | C16: =A2A!C75 -> 15852048.66 | D16: =A2A!D75 -> 57660546.35 | E16: =A2A!E75 -> 58630681 | F16: =A2A!F75 -> 53904495.16 | G16: =A2A!G75 -> 50990433.16 | H16: =A2A!H75 -> 50990433.16 | I16: =A2A!I75 -> 41022287.16 | J16: =A2A!J75 -> 40771012.95 | K16: =A2A!K75 -> 45057273.73
A17: Road transport | C17: =A2A!C86 -> 278242067.6 | D17: =A2A!D86 -> 227108094.1 | E17: =A2A!E86 -> 257948727 | F17: =A2A!F86 -> 262339193 | G17: =A2A!G86 -> 274208500 | H17: =A2A!H86 -> 274208500 | I17: =A2A!I86 -> 65792799.76 | J17: =A2A!J86 -> 66881618.93 | K17: =A2A!K86 -> 71225699.88
A18: Environmental protection | C18: =A2A!C91 -> 19227.4 | D18: =A2A!D91 -> 121577.81 | E18: =A2A!E91 -> 36125 | F18: =A2A!F91 -> 103681.78 | G18: =A2A!G91 -> 103681.78 | H18: =A2A!H91 -> 103681.78 | I18: =A2A!I91 -> 108347.4601 | J18: =A2A!J91 -> 114306.5704 | K18: =A2A!K91 -> 121164.9646
A19: Trading services | C19: =SUM(C20:C23) -> 2338905442 | D19: =SUM(D20:D23) -> 2681559726 | E19: 2409575555 | F19: 4057142423 | G19: 4055585333 | H19: 4055585333 | I19: 4331953791 | J19: =SUM(J20:J23) -> 4676813564 | K19: 5058693919
A20: Energy sources | C20: =A2A!C99 -> 1324332253 | D20: =A2A!D99 -> 1475960320 | E20: =A2A!E99 -> 964526827.2 | F20: =A2A!F99 -> 2484432540 | G20: =A2A!G99 -> 2484048572 | H20: =A2A!H99 -> 2484048572 | I20: =A2A!I99 -> 2655002809 | J20: =A2A!J99 -> 2847997159 | K20: =A2A!K99 -> 3076427755
A21: Water management | C21: =A2A!C103 -> 711698173.6 | D21: =A2A!D103 -> 855835877.4 | E21: =A2A!E103 -> 1063455446 | F21: =A2A!F103 -> 1165716745 | G21: =A2A!G103 -> 1161796915 | H21: =A2A!H103 -> 1161796915 | I21: =A2A!I103 -> 1253549994 | J21: =A2A!J103 -> 1375329481 | K21: =A2A!K103 -> 1499657703
A22: Waste water management | C22: =A2A!C107 -> 185039031.7 | D22: =A2A!D107 -> 219430789.6 | E22: =A2A!E107 -> 222239922 | F22: =A2A!F107 -> 242422885.9 | G22: =A2A!G107 -> 240169548.8 | H22: =A2A!H107 -> 240169548.8 | I22: =A2A!I107 -> 173542219.9 | J22: =A2A!J107 -> 184466571.7 | K22: =A2A!K107 -> 196467123.8
A23: Waste management | C23: =A2A!C112 -> 117835983.7 | D23: =A2A!D112 -> 130332739.4 | E23: =A2A!E112 -> 159353360 | F23: =A2A!F112 -> 164570252.3 | G23: =A2A!G112 -> 169570297.6 | H23: =A2A!H112 -> 169570297.6 | I23: =A2A!I112 -> 249858768.2 | J23: =A2A!J112 -> 269020352.3 | K23: =A2A!K112 -> 286141337.4
A24: Other | B24: 4 | C24: =A2A!C117 -> 47111547.8 | D24: =A2A!D117 -> 51389836.79 | E24: =A2A!E117 -> 26919475 | F24: =A2A!F117 -> 58902383.16 | G24: =A2A!G117 -> 58902383.16 | H24: =A2A!H117 -> 58902383.16 | I24: =A2A!I117 -> 63610900.69 | J24: =A2A!J117 -> 64472000.22 | K24: =A2A!K117 -> 68340320.24
A25: ="Total "&A4 -> Total Revenue - Functional | B25: 2 | C25: =C5+C9+C15+C19+C24 -> 4728282902 | D25: =D5+D9+D15+D19+D24 -> 5002943076 | E25: =E5+E9+E15+E19+E24 -> 5410153356 | F25: 6351937471 | G25: 6103465003 | H25: 6099817323 | I25: =I5+I9+I15+I19+I24 -> 6444077683 | J25: 6829738872 | K25: 7273415182
A27: Expenditure - Functional
A28: Governance and administration | C28: =SUM(C29:C31) -> 958976805.2 | D28: =SUM(D29:D31) -> 908162793.9 | E28: 1594305157 | F28: 1417089010 | G28: 1371491884 | H28: 1371491884 | I28: 1354264744 | J28: 1439552104 | K28: 1509428843
A29: Executive and council | C29: =A2A!C128 -> 152627220.4 | D29: =A2A!D128 -> 215359061.9 | E29: =A2A!E128 -> 157678062.5 | F29: =A2A!F128 -> 189360836.8 | G29: =A2A!G128 -> 181807088.2 | H29: =A2A!H128 -> 181807088.2 | I29: =A2A!I128 -> 137732466.4 | J29: =A2A!J128 -> 145454285.3 | K29: =A2A!K128 -> 153150031.9
A30: Finance and administration | C30: =A2A!C131 -> 785737067.9 | D30: =A2A!D131 -> 679958112.4 | E30: =A2A!E131 -> 1407041307 | F30: =A2A!F131 -> 1213645200 | G30: =A2A!G131 -> 1167638435 | H30: =A2A!H131 -> 1167638435 | I30: =A2A!I131 -> 1194545745 | J30: =A2A!J131 -> 1270962591 | K30: =A2A!K131 -> 1331914211
A31: Internal audit | C31: =A2A!C145 -> 20612516.92 | D31: =A2A!D145 -> 12845619.53 | E31: =A2A!E145 -> 29585787 | F31: =A2A!F145 -> 14082972.99 | G31: =A2A!G145 -> 22046360.87 | H31: =A2A!H145 -> 22046360.87 | I31: =A2A!I145 -> 21986532.79 | J31: =A2A!J145 -> 23135228.32 | K31: =A2A!K145 -> 24364600.32
A32: Community and public safety | C32: =SUM(C33:C37) -> 558218845.1 | D32: =SUM(D33:D37) -> 468536565.9 | E32: 527521416.5 | F32: 520692886 | G32: 536118353.3 | H32: 536118353.3 | I32: 440067727.2 | J32: 466629717.8 | K32: 497374752.3
A33: Community and social services | C33: =A2A!C148 -> 130558786.8 | D33: =A2A!D148 -> 113019937.6 | E33: =A2A!E148 -> 114264920 | F33: =A2A!F148 -> 115536350.2 | G33: =A2A!G148 -> 114956798.1 | H33: =A2A!H148 -> 114956798.1 | I33: =A2A!I148 -> 128373725.8 | J33: =A2A!J148 -> 136165888.4 | K33: =A2A!K148 -> 144065603.8
A34: Sport and recreation | C34: =A2A!C170 -> 167480561.4 | D34: =A2A!D170 -> 137259360 | E34: =A2A!E170 -> 121845681.8 | F34: =A2A!F170 -> 125730407.1 | G34: =A2A!G170 -> 122689581.6 | H34: =A2A!H170 -> 122689581.6 | I34: =A2A!I170 -> 114418472.7 | J34: =A2A!J170 -> 122933715.5 | K34: =A2A!K170 -> 130683667.1
A35: Public safety | C35: =A2A!C176 -> 160981680.3 | D35: =A2A!D176 -> 152733927.4 | E35: =A2A!E176 -> 170573214.7 | F35: =A2A!F176 -> 180293582.3 | G35: =A2A!G176 -> 182448576.3 | H35: =A2A!H176 -> 182448576.3 | I35: =A2A!I176 -> 106871795.3 | J35: =A2A!J176 -> 111416469.4 | K35: =A2A!K176 -> 120792280.4
A36: Housing | C36: =A2A!C185 -> 94678208.3 | D36: =A2A!D185 -> 60453655.17 | E36: =A2A!E185 -> 120625836 | F36: =A2A!F185 -> 98864970.18 | G36: =A2A!G185 -> 115817824.7 | H36: =A2A!H185 -> 115817824.7 | I36: =A2A!I185 -> 90129848.36 | J36: =A2A!J185 -> 95825266.56 | K36: =A2A!K185 -> 101533623.1
A37: Health | C37: =A2A!C188 -> 4519608.31 | D37: =A2A!D188 -> 5069685.76 | E37: =A2A!E188 -> 211764 | F37: =A2A!F188 -> 267576.3 | G37: =A2A!G188 -> 205572.63 | H37: =A2A!H188 -> 205572.63 | I37: =A2A!I188 -> 273885.0279 | J37: =A2A!J188 -> 288378.0062 | K37: =A2A!K188 -> 299577.8418
A38: Economic and environmental services | C38: =SUM(C39:C41) -> 339509962.2 | D38: =SUM(D39:D41) -> 338301626.6 | E38: 280587711 | F38: 251001715.6 | G38: 246393394.8 | H38: 246393394.8 | I38: 288173315.6 | J38: 304850388.2 | K38: 324271948.3
A39: Planning and development | C39: =A2A!C197 -> 72583898.06 | D39: =A2A!D197 -> 73017068.09 | E39: =A2A!E197 -> 86015704.44 | F39: =A2A!F197 -> 81394952.58 | G39: =A2A!G197 -> 83040495.58 | H39: =A2A!H197 -> 83040495.58 | I39: =A2A!I197 -> 92239503.88 | J39: =A2A!J197 -> 98499019.57 | K39: =A2A!K197 -> 104688839.3
A40: Road transport | C40: =A2A!C208 -> 255231695.2 | D40: =A2A!D208 -> 253088873.6 | E40: =A2A!E208 -> 177738673.6 | F40: =A2A!F208 -> 151400330.6 | G40: =A2A!G208 -> 146096236.3 | H40: =A2A!H208 -> 146096236.3 | I40: =A2A!I208 -> 171068986.7 | J40: =A2A!J208 -> 180015925.8 | K40: =A2A!K208 -> 191692892.4
A41: Environmental protection | C41: =A2A!C213 -> 11694368.94 | D41: =A2A!D213 -> 12195684.9 | E41: =A2A!E213 -> 16833333 | F41: =A2A!F213 -> 18206432.42 | G41: =A2A!G213 -> 17256662.94 | H41: =A2A!H213 -> 17256662.94 | I41: =A2A!I213 -> 24864824.96 | J41: =A2A!J213 -> 26335442.8 | K41: =A2A!K213 -> 27890216.65
A42: Trading services | C42: =SUM(C43:C46) -> 3568779874 | D42: =SUM(D43:D46) -> 3747922600 | E42: 3076128616 | F42: =SUM(F43:F46) -> 3377237003 | G42: 3027164673 | H42: 3027164673 | I42: 3353046547 | J42: 3601227502 | K42: =SUM(K43:K46) -> 3890195505
A43: Energy sources | C43: =A2A!C221 -> 2380747055 | D43: =A2A!D221 -> 2333576254 | E43: =A2A!E221 -> 1819221127 | F43: =A2A!F221 -> 2021215276 | G43: =A2A!G221 -> 1704330439 | H43: =A2A!H221 -> 1704330439 | I43: =A2A!I221 -> 2291332273 | J43: =A2A!J221 -> 2472399913 | K43: =A2A!K221 -> 2679950059
A44: Water management | C44: =A2A!C225 -> 886437687.3 | D44: =A2A!D225 -> 1067151586 | E44: =A2A!E225 -> 878194761.9 | F44: =A2A!F225 -> 907107115.4 | G44: =A2A!G225 -> 902172261.2 | H44: =A2A!H225 -> 902172261.2 | I44: =A2A!I225 -> 0 | J44: =A2A!J225 -> 0 | K44: =A2A!K225 -> 0
A45: Waste water management | C45: =A2A!C229 -> 195839687.2 | D45: =A2A!D229 -> 265209594.3 | E45: =A2A!E229 -> 258354772 | F45: =A2A!F229 -> 319854782.7 | G45: =A2A!G229 -> 299223945.2 | H45: =A2A!H229 -> 299223945.2 | I45: =A2A!I229 -> 931929869 | J45: =A2A!J229 -> 990936425.1 | K45: =A2A!K229 -> 1065060617
A46: Waste management | C46: =A2A!C234 -> 105755443.6 | D46: =A2A!D234 -> 81985165.73 | E46: =A2A!E234 -> 120357955.2 | F46: =A2A!F234 -> 129059828.6 | G46: =A2A!G234 -> 121438027.5 | H46: =A2A!H234 -> 121438027.5 | I46: =A2A!I234 -> 129784404.9 | J46: =A2A!J234 -> 137891163.7 | K46: =A2A!K234 -> 145184828.5
A47: Other | B47: 4 | C47: =A2A!C239 -> 89507332.98 | D47: =A2A!D239 -> 65475741.97 | E47: =A2A!E239 -> 72379861.56 | F47: =A2A!F239 -> 70459108.67 | G47: =A2A!G239 -> 68177155.26 | H47: =A2A!H239 -> 68177155.26 | I47: =A2A!I239 -> 81300979.88 | J47: =A2A!J239 -> 92083627.43 | K47: =A2A!K239 -> 99692417.1
A48: ="Total "&A27 -> Total Expenditure - Functional | B48: 3 | C48: =C28+C32+C38+C42+C47 -> 5514992819 | D48: =D28+D32+D38+D42+D47 -> 5528399328 | E48: =E28+E32+E38+E42+E47 -> 5550922762 | F48: =F28+F32+F38+F42+F47 -> 5636479723 | G48: 5249345460 | H48: 5249345460 | I48: 5516853314 | J48: 5904343339 | K48: 6320963466
A49: =result -> Surplus/(Deficit) for the year | C49: =C25-C48 -> -786709917 | D49: =D25-D48 -> -525456252 | E49: -140769406 | F49: 715457748.2 | G49: 854119542.3 | H49: 850471862.3 | I49: 927224369.3 | J49: 925395533.2 | K49: 952451716
A50: =head27a -> References
A51: 1. Government Finance Statistics Functions and Sub-functions are standardised to assist the compilation of national and international accounts for comparison purposes
A52: 2. Total Revenue by functional classification must reconcile to Total Operating Revenue shown in Budgeted Financial Performance (revenue and expenditure)
A53: 3. Total Expenditure by Functional Classification must reconcile to Total Operating Expenditure shown in Budgeted Financial Performance (revenue and expenditure)
A54: 4. All amounts must be classified under a functional classification . The GFS function 'Other' is only for Abbatoirs, Air Transport, Forestry, Licensing and Regulation, Markets and Tourism - and if used must be supported by footnotes. Nothing else may be placed under 'Other'. Assign associate share to relevant classification.
A57: check oprev balance | C57: =C25-'A4-FinPerf RE'!C59 -> 0 | D57: =D25-'A4-FinPerf RE'!D59 -> 0 | E57: =E25-'A4-FinPerf RE'!E59 -> 0 | F57: =F25-'A4-FinPerf RE'!F59 -> 307972733.3 | G57: =G25-'A4-FinPerf RE'!G59 -> -190521105.4 | H57: =H25-'A4-FinPerf RE'!H59 -> 0 | I57: =I25-'A4-FinPerf RE'!J59 -> 375844 | J57: =J25-'A4-FinPerf RE'!K59 -> 0 | K57: =K25-'A4-FinPerf RE'!L59 -> -10000
A58: check opexp balance | C58: =C48-'A4-FinPerf RE'!C35 -> 0.009999275208 | D58: =D48-'A4-FinPerf RE'!D35 -> 0.01999950409 | E58: =E48-'A4-FinPerf RE'!E35 -> 0 | F58: =F48-'A4-FinPerf RE'!F35 -> 307972734.3 | G58: =G48-'A4-FinPerf RE'!G35 -> -753426.61 | H58: =H48-'A4-FinPerf RE'!H35 -> 0 | I58: =I48-'A4-FinPerf RE'!J35 -> 375844 | J58: =J48-'A4-FinPerf RE'!K35 -> 0 | K58: =K48-'A4-FinPerf RE'!L35 -> -10000

Sheet A2A
A1: =muni&" - "&Approve3 -> KZN225 Msunduzi - Table A2 Consolidated Budgeted Financial Performance (revenue and expenditure by functional classification)
A2: ="Functional Classification "&desc -> Functional Classification Description | B2: =head27 -> Ref | C2: =head1b -> 2016/17 | D2: =head1A -> 2017/18 | E2: =Head1 -> 2018/19 | F2: =Head2 -> Current Year 2019/20 | I2: =Head3 -> 2020/21 Medium Term Revenue & Expenditure Framework
A3: R thousand | B3: 1 | C3: =Head5 -> Audited Outcome | D3: =Head5 -> Audited Outcome | E3: =Head5 -> Audited Outcome | F3: =Head6 -> Original Budget | G3: =Head7 -> Adjusted Budget | H3: =Head8 -> Full Year Forecast | I3: =Head9 -> Budget Year 2020/21 | J3: =Head10 -> Budget Year +1 2021/22 | K3: =Head11 -> Budget Year +2 2022/23
A4: Revenue - Functional
A5: Municipal governance and administration | C5: =C6+C9+C23 -> 1726992886 | D5: 1871078794 | E5: 2467301543 | F5: 1810164797 | G5: 1311670955 | H5: 1308023275 | I5: 1572338502 | J5: 1659974893 | K5: 1758642177
A6: Executive and council | C6: =SUM(C7:C8) -> 3912513.23 | D6: =SUM(D7:D8) -> 8115405.88 | E6: 3096549 | F6: 4256966.52 | G6: 4256966.52 | H6: 4256966.52 | I6: 4447530.013 | J6: 62804.16414 | K6: 66572.41399
A7: Mayor and Council | D7: 38148.93 | G7: 0 | H7: 0
A8: Municipal Manager, Town Secretary and Chief Executive | C8: 3912513.23 | D8: 8077256.95 | E8: 3096549 | F8: 4256966.52 | G8: 4256966.52 | H8: 4256966.52 | I8: 4447530.013 | J8: 62804.16414 | K8: 66572.41399
A9: Finance and administration | C9: =SUM(C10:C22) -> 1723080373 | D9: 1862966177 | E9: 2464204994 | F9: 1805907831 | G9: 1307413989 | H9: 1303766309 | I9: 1567890972 | J9: 1659912089 | K9: 1758575605
A10: Administrative and Corporate Support | D10: -1108.29 | E10: 380 | G10: 0 | H10: 0
A11: Asset Management | C11: 11486495.12 | D11: 7758588.04 | E11: 280027 | F11: 10640040.44 | G11: 365384.12 | H11: 365384.12
A12: Finance | C12: 1669825687 | D12: 1798580756 | E12: 2417315969 | F12: 1762302546 | G12: 1274083360 | H12: 1270435680 | I12: 1548651792 | J12: 1636620114 | K12: 1734093213
A13: Fleet Management | G13: 0 | H13: 0
A14: Human Resources | C14: 5104936.67 | D14: 6255068.83 | E14: 24486021 | F14: 20093836 | G14: 20093836.02 | H14: 20093836.02 | I14: 18980058.64 | J14: 23018601.87 | K14: 24192615.98
A15: Information Technology | C15: -25122.37 | D15: -47306.64 | E15: 11858 | F15: 1929.2 | G15: 1929.2 | H15: 1929.2 | I15: 2016.014 | J15: 2126.89477 | K15: 2254.508456
A16: Legal Services | C16: 1344.8 | D16: -228133.21 | E16: 9395 | F16: 246034.48 | G16: 246034.48 | H16: 246034.48 | I16: 257106.0316 | J16: 271246.8633 | K16: 287521.6751
A17: Marketing, Customer Relations, Publicity and Media Co-ordination | D17: -4.23 | G17: 0 | H17: 0
A18: Property Services | C18: 11886972.29 | D18: 14347802.9 | E18: 21864521 | F18: 12355263.54 | G18: 12355263.54 | H18: 12355263.54
A19: Risk Management | G19: 0 | H19: 0
A20: Security Services | D20: 7872.74 | E20: 138 | G20: 0 | H20: 0
A21: Supply Chain Management | C21: 24800059.44 | D21: 36292640.32 | E21: 236685 | F21: 268181.06 | G21: 268181.06 | H21: 268181.06
A22: Valuation Service | G22: 0 | H22: 0
A23: Internal audit | C23: =SUM(C24:C24) -> 0 | D23: -2788.35 | E23: 0 | F23: 0 | G23: 0 | H23: 0 | I23: 0 | J23: 0 | K23: 0
A24: Governance Function | D24: -2788.35
A25: Community and public safety | C25: =C26+C48+C54+C63+C66 -> 321159682.4 | D25: 114024500 | E25: 189741250 | F25: 109380497.9 | G25: 352003716.6 | H25: 352003716.6 | I25: 369251054.5 | J25: 320711476.2 | K25: 271334626.3
A26: Community and social services | C26: =SUM(C27:C47) -> 35741622.86 | D26: =SUM(D27:D47) -> 28614804.88 | E26: 29034011 | F26: 24887236.06 | G26: 42176969.06 | H26: 42176969.06 | I26: 26242986.68 | J26: 26698280.95 | K26: 27076497.81
A27: Aged Care | D27: -0.47 | G27: 0 | H27: 0
A28: Agricultural | G28: 0 | H28: 0
A29: Animal Care and Diseases | G29: 0 | H29: 0
A30: Cemeteries, Funeral Parlours and Crematoriums | C30: 3130859.31 | D30: 3097949.28 | E30: 609991 | F30: 3371472.04 | G30: 3971472.04 | H30: 3971472.04 | I30: 3523188.282 | J30: 3716963.637 | K30: 3939981.456
A31: Child Care Facilities | G31: 0 | H31: 0
A32: Community Halls and Facilities | C32: 3672839.02 | D32: 4189000.67 | E32: 7957867 | F32: 1000764.02 | G32: 11317020.02 | H32: 11317020.02 | I32: 1045798.401 | J32: 1103317.313 | K32: 1169516.352
A33: Consumer Protection | G33: 0 | H33: 0
A34: Cultural Matters | G34: 0 | H34: 0
A35: Disaster Management | G35: 0 | H35: 0
A36: Education | G36: 0 | H36: 0
A37: Indigenous and Customary Law | G37: 0 | H37: 0
A38: Industrial Promotion | G38: 0 | H38: 0
A39: Language Policy | G39: 0 | H39: 0
A40: Libraries and Archives | C40: 23987042.24 | D40: 21247691.89 | E40: 20000000 | F40: 20052000 | G40: 25888335 | H40: 25888335 | I40: 10974000 | J40: 11128000 | K40: 13970000
A41: Literacy Programmes | G41: 0 | H41: 0
A42: Media Services | G42: 0 | H42: 0
A43: Museums and Art Galleries | C43: 195308.86 | D43: 124218.47 | E43: 441000 | F43: 463000 | G43: 1000142 | H43: 1000142 | I43: 10700000 | J43: 10750000 | K43: 7997000
A44: Population Development | C44: 4755573.43 | D44: -44054.96 | E44: 25153 | G44: 0 | H44: 0
A45: Provincial Cultural Matters | G45: 0 | H45: 0
A46: Theatres | G46: 0 | H46: 0
A47: Zoo's | G47: 0 | H47: 0
A48: Sport and recreation | C48: =SUM(C49:C53) -> 15520255.66 | D48: =SUM(D49:D53) -> 11184128.98 | E48: 10053818 | F48: 10383827.44 | G48: 265177.02 | H48: 265177.02 | I48: 11002054.79 | J48: 11913699.4 | K48: 12512307.88
A49: Beaches and Jetties | G49: 0 | H49: 0
A50: Casinos, Racing, Gambling, Wagering | G50: 0 | H50: 0
A51: Community Parks (including Nurseries) | C51: 215775.96 | D51: -288.91 | G51: 0 | H51: 0
A52: Recreational Facilities | C52: 15304479.7 | D52: 11184417.89 | E52: 10053818 | F52: 10383827.44 | G52: 265177.02 | H52: 265177.02 | I52: 11002054.79 | J52: 11913699.4 | K52: 12512307.88
A53: Sports Grounds and Stadiums | G53: 0 | H53: 0
A54: Public safety | C54: =SUM(C55:C62) -> 38769740.07 | D54: 18371823.37 | E54: 23856429 | F54: 3606445.42 | G54: 3606445.42 | H54: 3606445.42 | I54: 3768735.464 | J54: 3976015.914 | K54: 4214576.869
A55: Civil Defence | C55: -35568 | D55: -10.66 | E55: 5397 | G55: 0 | H55: 0
A56: Cleansing | G56: 0 | H56: 0
A57: Control of Public Nuisances | G57: 0 | H57: 0
A58: Fencing and Fences | G58: 0 | H58: 0
A59: Fire Fighting and Protection | C59: 524639.98 | D59: 308155.74 | E59: 312733 | F59: 319875.14 | G59: 319875.14 | H59: 319875.14 | I59: 334269.5213 | J59: 352654.345 | K59: 373813.6057
A60: Licensing and Control of Animals | G60: 0 | H60: 0 | I60: 0 | J60: 0 | K60: 0
A61: Police Forces, Traffic and Street Parking Control | C61: 38280668.09 | D61: 18063678.29 | E61: 23538299 | F61: 3286570.28 | G61: 3286570.28 | H61: 3286570.28 | I61: 3434465.943 | J61: 3623361.569 | K61: 3840763.264
A62: Pounds | G62: 0 | H62: 0
A63: Housing | C63: =SUM(C64:C65) -> 231128063.8 | D63: =SUM(D64:D65) -> 55853742.81 | E63: 126796992 | F63: 70502989 | G63: 305955125.1 | H63: 305955125.1 | I63: 328237277.5 | J63: 278123479.9 | K63: 227531243.7
A64: Housing | C64: 231128063.8 | D64: 55853742.81 | E64: 126796992 | F64: 70502989 | G64: 305955125.1 | H64: 305955125.1 | I64: 328237277.5 | J64: 278123479.9 | K64: 227531243.7
A65: Informal Settlements | G65: 0
A66: Health | C66: =SUM(C67:C73) -> 0 | D66: =SUM(D67:D73) -> 0 | E66: 0 | F66: 0 | G66: 0 | H66: 0 | I66: 0 | J66: 0 | K66: 0
A67: Ambulance
A68: Health Services
A69: Laboratory Services
A70: Food Control
A71: Health Surveillance and Prevention of Communicable Diseases including immunizations
A72: Vector Control
A73: Chemical Safety
A74: Economic and environmental services | C74: =C75+C86+C91 -> 294113343.6 | D74: 284890218.3 | E74: 316615533 | F74: 316347369.9 | G74: 325302614.9 | H74: 325302614.9 | I74: 106923434.4 | J74: 107766938.5 | K74: 116404138.6
A75: Planning and development | C75: =SUM(C76:C85) -> 15852048.66 | D75: =SUM(D76:D85) -> 57660546.35 | E75: 58630681 | F75: 53904495.16 | G75: 50990433.16 | H75: 50990433.16 | I75: 41022287.16 | J75: 40771012.95 | K75: 45057273.73
A76: Billboards | G76: 0
A77: Corporate Wide Strategic Planning (IDPs, LEDs) | D77: -11744.97 | G77: 0 | H77: 0
A78: Central City Improvement District | G78: 0 | H78: 0
A79: Development Facilitation | G79: 0 | H79: 0
A80: Economic Development/Planning | C80: 238567.12 | D80: -22108.31 | G80: 0 | H80: 0
A81: Regional Planning and Development | G81: 0 | H81: 0
A82: Town Planning, Building Regulations and Enforcement, and City Engineer | C82: 15613481.54 | D82: 57694399.63 | E82: 58630681 | F82: 53904495.16 | G82: 50990433.16 | H82: 50990433.16 | I82: 41022287.16 | J82: 40771012.95 | K82: 45057273.73
A83: Project Management Unit | G83: 0 | H83: 0
A84: Provincial Planning | G84: 0 | H84: 0
A85: Support to Local Municipalities | G85: 0 | H85: 0
A86: Road transport | C86: =SUM(C87:C90) -> 278242067.6 | D86: 227108094.1 | E86: 257948727 | F86: 262339193 | G86: 274208500 | H86: 274208500 | I86: 65792799.76 | J86: 66881618.93 | K86: 71225699.88
A87: Public Transport | C87: 201247380 | D87: 134317688.4 | E87: 199373912 | F87: 194665000 | G87: 197708500 | H87: 197708500 | I87: 65792799.76 | J87: 66881618.93 | K87: 71225699.88
A88: Road and Traffic Regulation | G88: 0 | H88: 0
A89: Roads | C89: 76994687.58 | D89: 92790405.76 | E89: 58453902 | F89: 67674193 | G89: 76500000 | H89: 76500000
A90: Taxi Ranks | E90: 120913 | G90: 0 | H90: 0
A91: Environmental protection | C91: =SUM(C92:C97) -> 19227.4 | D91: =SUM(D92:D97) -> 121577.81 | E91: 36125 | F91: 103681.78 | G91: 103681.78 | H91: 103681.78 | I91: 108347.4601 | J91: 114306.5704 | K91: 121164.9646
A92: Biodiversity and Landscape | G92: 0 | H92: 0
A93: Coastal Protection | G93: 0 | H93: 0
A94: Indigenous Forests | G94: 0 | H94: 0
A95: Nature Conservation | G95: 0 | H95: 0
A96: Pollution Control | C96: 19227.4 | D96: 121577.81 | E96: 36125 | F96: 103681.78 | G96: 103681.78 | H96: 103681.78 | I96: 108347.4601 | J96: 114306.5704 | K96: 121164.9646
A97: Soil Conservation | G97: 0 | H97: 0
A98: Trading services | C98: =C99+C103+C107+C112 -> 2338905442 | D98: =D99+D103+D107+D112 -> 2681559726 | E98: 2409575555 | F98: 4057142423 | G98: 4055585333 | H98: 4055585333 | I98: 4331953791 | J98: 4676813564 | K98: =K99+K103+K107+K112 -> 5058693919
A99: Energy sources | C99: =SUM(C100:C102) -> 1324332253 | D99: =SUM(D100:D102) -> 1475960320 | E99: 964526827.2 | F99: 2484432540 | G99: 2484048572 | H99: 2484048572 | I99: 2655002809 | J99: 2847997159 | K99: 3076427755
A100: Electricity | C100: =1928044170.87-603742265.975814 -> 1324301905 | D100: =1972392712.96-496432392.860001 -> 1475960320 | E100: =2234877988-1270945908.8364 -> 963932079.2 | F100: 2484432540 | G100: 2484048572 | H100: 2484048572 | I100: 2635365106 | J100: 2827279382 | K100: 3054466911
A101: Street Lighting and Signal Systems | C101: 30348.48 | E101: 594748 | G101: 0 | H101: 0 | I101: 19637703.26 | J101: 20717776.94 | K101: 21960843.56
A102: Nonelectric Energy | G102: 0 | H102: 0 | I102: 0 | J102: 0 | K102: 0
A103: Water management | C103: =SUM(C104:C106) -> 711698173.6 | D103: =SUM(D104:D106) -> 855835877.4 | E103: 1063455446 | F103: 1165716745 | G103: 1161796915 | H103: 1161796915 | I103: 1253549994 | J103: 1375329481 | K103: 1499657703
A104: Water Treatment | G104: 0 | H104: 0
A105: Water Distribution | C105: 711698173.6 | D105: 855835877.4 | E105: 1063455446 | F105: 1165716745 | G105: 1161796915 | H105: 1161796915 | I105: 1253549994 | J105: 1375329481 | K105: 1499657703
A106: Water Storage | G106: 0 | H106: 0
A107: Waste water management | C107: =SUM(C108:C111) -> 185039031.7 | D107: =SUM(D108:D111) -> 219430789.6 | E107: 222239922 | F107: 242422885.9 | G107: 240169548.8 | H107: 240169548.8 | I107: 173542219.9 | J107: 184466571.7 | K107: 196467123.8
A108: Public Toilets | D108: -3078.65 | G108: 0 | H108: 0
A109: Sewerage | C109: 185039031.7 | D109: 219269404 | E109: 222239761 | F109: 242422885.9 | G109: 240169548.8 | H109: 240169548.8 | I109: 173542219.9 | J109: 184466571.7 | K109: 196467123.8
A110: Storm Water Management | D110: 164464.28 | E110: 161 | G110: 0 | H110: 0
A111: Waste Water Treatment | G111: 0 | H111: 0
A112: Waste management | C112: =SUM(C113:C116) -> 117835983.7 | D112: =SUM(D113:D116) -> 130332739.4 | E112: 159353360 | F112: 164570252.3 | G112: 169570297.6 | H112: 169570297.6 | I112: 249858768.2 | J112: 269020352.3 | K112: 286141337.4
A113: Recycling | G113: 0 | H113: 0
A114: Solid Waste Disposal (Landfill Sites) | C114: 32153750.28 | D114: 21468274.25 | E114: 39818614 | F114: 37542392.22 | G114: 42542392.22 | H114: 42542392.22 | I114: 249858768.2 | J114: 269020352.3 | K114: 286141337.4
A115: Solid Waste Removal | C115: 85682233.43 | D115: 108864465.1 | E115: 119534746 | F115: 127027860.1 | G115: 127027905.4 | H115: 127027905.4
A116: Street Cleaning | G116: 0 | H116: 0
A117: Other | C117: =SUM(C118:C123) -> 47111547.8 | D117: =SUM(D118:D123) -> 51389836.79 | E117: 26919475 | F117: 58902383.16 | G117: 58902383.16 | H117: 58902383.16 | I117: 63610900.69 | J117: 64472000.22 | K117: 68340320.24
A118: Abattoirs | G118: 0 | H118: 0
A119: Air Transport | C119: 12331740.06 | D119: 11991073.64 | E119: 7068721 | F119: 9560497.22 | G119: 9560497.22 | H119: 9560497.22 | I119: 12490719.59 | J119: 10540209.17 | K119: 11172621.72
A120: Forestry | C120: 22508048.92 | D120: 9923913.8 | E120: 6918116 | F120: 7333202.96 | G120: 7333202.96 | H120: 7333202.96 | I120: 7663197.093 | J120: 8084672.933 | K120: 8569753.309
A121: Licensing and Regulation | C121: 267222.68 | D121: 362630.42 | E121: 352870 | F121: 423052.36 | G121: 423052.36 | H121: 423052.36
A122: Markets | C122: 12004536.14 | D122: 29106812.27 | E122: 12579768 | F122: 41585630.62 | G122: 41585630.62 | H122: 41585630.62 | I122: 43456984 | J122: 45847118.12 | K122: 48597945.2
A123: Tourism | D123: 5406.66 | G123: 0 | H123: 0
A124: ="Total "&A4 -> Total Revenue - Functional | B124: 2 | C124: =C5+C25+C74+C98+C117 -> 4728282902 | D124: 5002943076 | E124: 5410153356 | F124: 6351937471 | G124: 6103465003 | H124: 6099817323 | I124: 6444077683 | J124: 6829738872 | K124: 7273415182
A126: Expenditure - Functional
A127: =A5 -> Municipal governance and administration | C127: =C128+C131+C145 -> 958976805.2 | D127: 908162793.9 | E127: 1594305157 | F127: 1417089010 | G127: 1371491884 | H127: 1371491884 | I127: 1354264744 | J127: 1439552104 | K127: 1509428843
A128: Executive and council | C128: =SUM(C129:C130) -> 152627220.4 | D128: 215359061.9 | E128: 157678062.5 | F128: 189360836.8 | G128: 181807088.2 | H128: 181807088.2 | I128: 137732466.4 | J128: 145454285.3 | K128: 153150031.9
A129: Mayor and Council | C129: 78149733.76 | D129: 92779927.99 | E129: 93734726 | F129: 97957323.37 | G129: 93958472.19 | H129: 93958472.19 | I129: 86039675.17 | J129: 90664835.22 | K129: 95407289.87
A130: Municipal Manager, Town Secretary and Chief Executive | C130: 74477486.59 | D130: 122579133.9 | E130: 63943336.54 | F130: 91403513.41 | G130: 87848615.96 | H130: 87848615.96 | I130: 51692791.24 | J130: 54789450.12 | K130: 57742742.06
A131: Finance and administration | C131: =SUM(C132:C144) -> 785737067.9 | D131: 679958112.4 | E131: 1407041307 | F131: 1213645200 | G131: 1167638435 | H131: 1167638435 | I131: 1194545745 | J131: 1270962591 | K131: 1331914211
A132: Administrative and Corporate Support | C132: 23457456.41 | D132: 23831897.82 | E132: 52451674 | F132: 55953075.06 | G132: 54901051.41 | H132: 54901051.41 | I132: 63311187.6 | J132: 67390320.41 | K132: 71595456.76
A133: Asset Management | C133: 59710885.64 | D133: 52156209.33 | E133: 108133005.8 | F133: 116359965.9 | G133: 114523026.5 | H133: 114523026.5 | I133: 114851325.4 | J133: 129128598.1 | K133: 131825031.5
A134: Finance | C134: 234500226.2 | D134: 111925136.8 | E134: 797933757.1 | F134: 522068793 | G134: 498498810.4 | H134: 498498810.4 | I134: 527291938.1 | J134: 549317538.4 | K134: 577223587.4
A135: Fleet Management | D135: 949228.1 | G135: 0 | H135: 0
A136: Human Resources | C136: 109444415.9 | D136: 123342315.7 | E136: 113834911.3 | F136: 208925093 | G136: 212111855.3 | H136: 212111855.3 | I136: 167919296.4 | J136: 179418736.8 | K136: 190648578.3
A137: Information Technology | C137: 45712163.3 | D137: 43894388.85 | E137: 41302542 | F137: 39094046.59 | G137: 34339365.91 | H137: 34339365.91 | I137: 36645394.82 | J137: 38486239.11 | K137: 40433291.64
A138: Legal Services | C138: 10777667.44 | D138: 16645212.17 | E138: 10705121 | F138: 10073928.72 | G138: 13515157.72 | H138: 13515157.72 | I138: 11011185.17 | J138: 11589928.4 | K138: 12206359.07
A139: Marketing, Customer Relations, Publicity and Media Co-ordination | C139: 96733.23 | D139: 97792.87 | E139: 7369798 | F139: 7959107.68 | G139: 7958530.27 | H139: 7958530.27 | I139: 20838266.32 | J139: 22192647.1 | K139: 23635057.73
A140: Property Services | C140: 37966171.37 | D140: 55851839.82 | E140: 58887380 | F140: 55766651.45 | G140: 53929921.64 | H140: 53929921.64 | I140: 57794332.63 | J140: 63350325.85 | K140: 63692127.03
A141: Risk Management | G141: 0 | H141: 0
A142: Security Services | C142: 173288719.3 | D142: 150786224 | E142: 150426551 | F142: 133223049 | G142: 114350802.4 | H142: 114350802.4 | I142: 131236960.7 | J142: 142136257.5 | K142: 150608336.3
A143: Supply Chain Management | C143: 90782629.03 | D143: 100477867 | E143: 65996567.22 | F143: 64221489.58 | G143: 63509913.02 | H143: 63509913.02 | I143: 63645857.89 | J143: 67951998.8 | K143: 70046385.32
A144: Valuation Service | G144: 0 | H144: 0
A145: Internal audit | C145: =SUM(C146:C146) -> 20612516.92 | D145: 12845619.53 | E145: 29585787 | F145: 14082972.99 | G145: 22046360.87 | H145: 22046360.87 | I145: 21986532.79 | J145: 23135228.32 | K145: 24364600.32
A146: Governance Function | C146: 20612516.92 | D146: 12845619.53 | E146: 29585787 | F146: 14082972.99 | G146: 22046360.87 | H146: 22046360.87 | I146: 21986532.79 | J146: 23135228.32 | K146: 24364600.32
A147: Community and public safety | C147: =C148+C170+C176+C185+C188 -> 558218845.1 | D147: 468536565.9 | E147: 527521416.5 | F147: 520692886 | G147: 536118353.3 | H147: 536118353.3 | I147: 440067727.2 | J147: 466629717.8 | K147: 497374752.3
A148: Community and social services | C148: =SUM(C149:C169) -> 130558786.8 | D148: =SUM(D149:D169) -> 113019937.6 | E148: 114264920 | F148: 115536350.2 | G148: 114956798.1 | H148: 114956798.1 | I148: 128373725.8 | J148: 136165888.4 | K148: 144065603.8
A149: Aged Care | C149: -80945.57 | D149: 4787.79 | E149: 4368270 | F149: 4717466.09 | G149: 4716629.07 | H149: 4716629.07 | I149: 4431.06125 | J149: 4634.890068 | K149: 4848.095011
A150: Agricultural | G150: 0 | H150: 0
A151: Animal Care and Diseases | C151: 901274.66 | D151: 1178842.41 | E151: 1248398 | F151: 1323388 | G151: 1323388 | H151: 1323388 | I151: 982940.46 | J151: 1446555.721 | K151: 1513097.284
A152: Cemeteries, Funeral Parlours and Crematoriums | C152: 6790122.26 | D152: 8144035.71 | E152: 21888152 | F152: 22558533.08 | G152: 23485034.04 | H152: 23485034.04 | I152: 26579168.83 | J152: 28286493.84 | K152: 30061068.51
A153: Child Care Facilities | G153: 0 | H153: 0
A154: Community Halls and Facilities | C154: 28487827.94 | D154: 25757185.54 | E154: 16419755.46 | F154: 14963961.5 | G154: 14628616.32 | H154: 14628616.32 | I154: 15746961.96 | J154: 16549448.27 | K154: 17383887.93
A155: Consumer Protection | G155: 0 | H155: 0
A156: Cultural Matters | G156: 0 | H156: 0
A157: Disaster Management | G157: 0 | H157: 0
A158: Education | G158: 0 | H158: 0
A159: =A37 -> Indigenous and Customary Law | G159: 0 | H159: 0
A160: Industrial Promotion | G160: 0 | H160: 0
A161: Language Policy | G161: 0 | H161: 0
A162: Libraries and Archives | C162: 64060443.07 | D162: 54041948.11 | E162: 60285670 | F162: 60964497 | G162: 61567288.87 | H162: 61567288.87 | I162: 68987451.48 | J162: 72852854.77 | K162: 77072536.22
A163: Literacy Programmes | G163: 0 | H163: 0
A164: Media Services | G164: 0 | H164: 0
A165: Museums and Art Galleries | C165: 14654350.84 | D165: 7876466.43 | E165: 8147499 | F165: 9028207.13 | G165: 7596650.67 | H165: 7596650.67 | I165: 7907722.202 | J165: 8353926.825 | K165: 8822972.964
A166: Population Development | C166: 15739265.83 | D166: 16010223.83 | E166: 1907175.54 | F166: 1980297.42 | G166: 1639191.11 | H166: 1639191.11 | I166: 8165049.802 | J166: 8671974.098 | K166: 9207192.77
A167: Provincial Cultural Matters | G167: 0 | H167: 0
A168: Theatres | C168: 6447.79 | D168: 6447.79 | G168: 0 | H168: 0
A169: Zoo's | G169: 0 | H169: 0
A170: Sport and recreation | C170: =SUM(C171:C175) -> 167480561.4 | D170: 137259360 | E170: 121845681.8 | F170: 125730407.1 | G170: 122689581.6 | H170: =SUM(H171:H175) -> 122689581.6 | I170: 114418472.7 | J170: 122933715.5 | K170: 130683667.1
A171: Beaches and Jetties | G171: 0 | H171: 0
A172: Casinos, Racing, Gambling, Wagering | G172: 0 | H172: 0
A173: Community Parks (including Nurseries) | C173: 43895762.92 | D173: 34967543.34 | E173: 68830747.07 | F173: 74305880.46 | G173: 74482285.33 | H173: 74482285.33 | I173: 48114791.71 | J173: 51041579.96 | K173: 54099518.57
A174: Recreational Facilities | C174: 123584798.5 | D174: 102291816.7 | E174: 53014934.75 | F174: 51424526.62 | G174: 48207296.24 | H174: 48207296.24 | I174: 66303680.98 | J174: 71892135.49 | K174: 76584148.57
A175: Sports Grounds and Stadiums | G175: 0 | H175: 0
A176: Public safety | C176: =SUM(C177:C184) -> 160981680.3 | D176: 152733927.4 | E176: 170573214.7 | F176: 180293582.3 | G176: 182448576.3 | H176: =SUM(H177:H184) -> 182448576.3 | I176: 106871795.3 | J176: 111416469.4 | K176: 120792280.4
A177: Civil Defence | C177: 8739818.41 | D177: 9533965.7 | E177: 1828973 | F177: 11267482.29 | G177: 14323051.3 | H177: 14323051.3 | I177: 12197113.98 | J177: 10713031.09 | K177: 13695194.82
A178: Cleansing | G178: 0 | H178: 0
A179: =A57 -> Control of Public Nuisances | G179: 0 | H179: 0
A180: Fencing and Fences | G180: 0 | H180: 0
A181: Fire Fighting and Protection | C181: 74897188.83 | D181: 75639242.64 | E181: 97259032 | F181: 92037320.64 | G181: 91350090.2 | H181: 91350090.2 | I181: 94674681.31 | J181: 100703438.3 | K181: 107097085.6
A182: Licensing and Control of Animals | G182: 0 | H182: 0
A183: Police Forces, Traffic and Street Parking Control | C183: 77344673.04 | D183: 67560719.03 | E183: 71485209.72 | F183: 76988779.33 | G183: 76775434.84 | H183: 76775434.84
A184: Pounds | G184: 0 | H184: 0
A185: =A63 -> Housing | C185: =SUM(C186:C187) -> 94678208.3 | D185: 60453655.17 | E185: 120625836 | F185: 98864970.18 | G185: 115817824.7 | H185: 115817824.7 | I185: 90129848.36 | J185: 95825266.56 | K185: 101533623.1
A186: Housing | C186: 94678208.3 | D186: 60453655.17 | E186: 120625836 | F186: 98864970.18 | G186: 115817824.7 | H186: 115817824.7 | I186: 90129848.36 | J186: 95825266.56 | K186: 101533623.1
A187: Informal Settlements | G187: 0
A188: Health | C188: =SUM(C189:C195) -> 4519608.31 | D188: =SUM(D189:D195) -> 5069685.76 | E188: 211764 | F188: 267576.3 | G188: 205572.63 | H188: 205572.63 | I188: 273885.0279 | J188: 288378.0062 | K188: 299577.8418
A189: Ambulance | G189: 0 | H189: 0
A190: Health Services | C190: 4519608.31 | D190: 5069685.76 | E190: 211764 | F190: 267576.3 | G190: 205572.63 | H190: 205572.63 | I190: 273885.0279 | J190: 288378.0062 | K190: 299577.8418
A191: Laboratory Services | G191: 0 | H191: 0
A192: Food Control | G192: 0 | H192: 0
A193: Health Surveillance and Prevention of Communicable Diseases including immunizations | G193: 0 | H193: 0
A194: Vector Control | G194: 0 | H194: 0
A195: Chemical Safety | G195: 0 | H195: 0
A196: Economic and environmental services | C196: =C197+C208+C213 -> 339509962.2 | D196: 338301626.6 | E196: 280587711 | F196: 251001715.6 | G196: 246393394.8 | H196: 246393394.8 | I196: 288173315.6 | J196: 304850388.2 | K196: 324271948.3
A197: Planning and development | C197: =SUM(C198:C207) -> 72583898.06 | D197: =SUM(D198:D207) -> 73017068.09 | E197: 86015704.44 | F197: 81394952.58 | G197: 83040495.58 | H197: 83040495.58 | I197: 92239503.88 | J197: 98499019.57 | K197: 104688839.3
A198: Billboards | G198: 0 | H198: 0
A199: Corporate Wide Strategic Planning (IDPs, LEDs) | C199: 4266557.87 | D199: 4979248.01 | E199: 9393331 | F199: 6677956.12 | G199: 6127315.63 | H199: 6127315.63 | I199: 12848610.79 | J199: 13641755.93 | K199: 14484522.84
A200: Central City Improvement District | G200: 0 | H200: 0
A201: Development Facilitation | G201: 0 | H201: 0
... 61 more rows

Sheet A3-FinPerf V
A1: =muni&" - "&Approve2 -> KZN225 Msunduzi - Table A3 Consolidated Budgeted Financial Performance (revenue and expenditure by municipal vote)
A2: =Vdesc -> Vote Description | B2: =head27 -> Ref | C2: =head1b -> 2016/17 | D2: =head1A -> 2017/18 | E2: =Head1 -> 2018/19 | F2: =Head2 -> Current Year 2019/20 | I2: =Head3 -> 2020/21 Medium Term Revenue & Expenditure Framework | L2: =Head4 -> LTFS
A3: R thousand | C3: =Head5 -> Audited Outcome | D3: =Head5 -> Audited Outcome | E3: =Head5 -> Audited Outcome | F3: =Head6 -> Original Budget | G3: =Head7 -> Adjusted Budget | H3: =Head8 -> Full Year Forecast | I3: =Head9 -> Budget Year 2020/21 | J3: =Head10 -> Budget Year +1 2021/22 | K3: =Head11 -> Budget Year +2 2022/23 | L3: =Head12 -> Forecast 2023/24 | M3: =Head13 -> Forecast 2024/25 | N3: =Head14 -> Forecast 2025/26 | O3: =Head15 -> Forecast 2026/27 | P3: =Head16 -> Forecast 2027/28 | Q3: =Head17 -> Forecast 2028/29 | R3: =Head18 -> Forecast 2029/30 | S3: =Head19 -> Forecast 2030/31 | T3: =Head20 -> Forecast 2031/32 | U3: =Head21 -> Forecast 2032/33 | V3: =Head22 -> Forecast 2033/34 | W3: =Head23 -> Forecast 2034/35
A4: Revenue by Vote | B4: 1
A5: =A3A!A5 -> Vote 1 - City Manager | C5: =A3A!C5 -> 0 | D5: =A3A!D5 -> 88662.54 | E5: =A3A!E5 -> 214 | F5: =A3A!F5 -> 56966.52 | G5: =A3A!G5 -> 56966.52 | H5: =A3A!H5 -> 56966.52 | I5: =A3A!I5 -> 4447530.013 | J5: =A3A!J5 -> 62804.16414 | K5: =A3A!K5 -> 66572.41399
A6: =A3A!A16 -> Vote 2 - City Finance | C6: =A3A!C16 -> 1711607141 | D6: =A3A!D16 -> 1848718404 | E6: =A3A!E16 -> 2424189254 | F6: =A3A!F16 -> 1777245066 | G6: =A3A!G16 -> 2636811135 | H6: =A3A!H16 -> 2443395776 | I6: =A3A!I16 -> 2396133946 | J6: =A3A!J16 -> 2469345485 | K6: =A3A!K16 -> 2564152709
A7: =A3A!A27 -> Vote 3 - Community Services and Social Equity | C7: =A3A!C27 -> 213712394.3 | D7: =A3A!D27 -> 199491348.7 | E7: =A3A!E27 -> 236959425 | F7: =A3A!F27 -> 210736724.6 | G7: =A3A!G27 -> 222370710.5 | H7: =A3A!H27 -> 222370710.5 | I7: =A3A!I27 -> 214664344.3 | J7: =A3A!J27 -> 227168874.5 | K7: =A3A!K27 -> 240391671.3
A8: =A3A!A38 -> Vote 4 - Corporate Services | C8: =A3A!C38 -> 5676012.36 | D8: =A3A!D38 -> 9383448.99 | E8: =A3A!E38 -> 5862268 | F8: =A3A!F38 -> 6541799.7 | G8: =A3A!G38 -> 6541799.7 | H8: =A3A!H38 -> 6541799.7 | I8: =A3A!I38 -> 19239180.69 | J8: =A3A!J38 -> 23291975.62 | K8: =A3A!K38 -> 24482392.16
A9: =A3A!A49 -> Vote 5 - Infrastructure Services | C9: =A3A!C49 -> 2502847184 | D9: =A3A!D49 -> 2784000849 | E9: =A3A!E49 -> 2530317922 | F9: =A3A!F49 -> 4173276747 | G9: =A3A!G49 -> 3010500305 | H9: =A3A!H49 -> 3010500305 | I9: =A3A!I49 -> 3376346373 | J9: =A3A!J49 -> 3726503240 | K9: =A3A!K49 -> 4103402999
A10: =A3A!A60 -> Vote 6 - Sustainable Development and City Enterprises | C10: =A3A!C60 -> 294440169.6 | D10: =A3A!D60 -> 161260363 | E10: =A3A!E60 -> 212824273 | F10: =A3A!F60 -> 184080167 | G10: =A3A!G60 -> 416951765.2 | H10: =A3A!H60 -> 416951765.2 | I10: =A3A!I60 -> 432870465.4 | J10: =A3A!J60 -> 383366493.1 | K10: =A3A!K60 -> 340928837.7
A11: =A3A!A71 -> Vote 7 - [NAME OF VOTE 7] | C11: =A3A!C71 -> 0 | D11: =A3A!D71 -> 0 | E11: =A3A!E71 -> 0 | F11: =A3A!F71 -> 0 | G11: =A3A!G71 -> 0 | H11: =A3A!H71 -> 0 | I11: =A3A!I71 -> 0 | J11: =A3A!J71 -> 0 | K11: =A3A!K71 -> 0
A12: =A3A!A82 -> Vote 8 - [NAME OF VOTE 8] | C12: =A3A!C82 -> 0 | D12: =A3A!D82 -> 0 | E12: =A3A!E82 -> 0 | F12: =A3A!F82 -> 0 | G12: =A3A!G82 -> 0 | H12: =A3A!H82 -> 0 | I12: =A3A!I82 -> 0 | J12: =A3A!J82 -> 0 | K12: =A3A!K82 -> 0
A13: =A3A!A93 -> Vote 9 - [NAME OF VOTE 9] | C13: =A3A!C93 -> 0 | D13: =A3A!D93 -> 0 | E13: =A3A!E93 -> 0 | F13: =A3A!F93 -> 0 | G13: =A3A!G93 -> 0 | H13: =A3A!H93 -> 0 | I13: =A3A!I93 -> 0 | J13: =A3A!J93 -> 0 | K13: =A3A!K93 -> 0
A14: =A3A!A104 -> Vote 10 - [NAME OF VOTE 10] | C14: =A3A!C104 -> 0 | D14: =A3A!D104 -> 0 | E14: =A3A!E104 -> 0 | F14: =A3A!F104 -> 0 | G14: =A3A!G104 -> 0 | H14: =A3A!H104 -> 0 | I14: =A3A!I104 -> 0 | J14: =A3A!J104 -> 0 | K14: =A3A!K104 -> 0
A15: =A3A!A115 -> Vote 11 - [NAME OF VOTE 11] | C15: =A3A!C115 -> 0 | D15: =A3A!D115 -> 0 | E15: =A3A!E115 -> 0 | F15: =A3A!F115 -> 0 | G15: =A3A!G115 -> 0 | H15: =A3A!H115 -> 0 | I15: =A3A!I115 -> 0 | J15: =A3A!J115 -> 0 | K15: =A3A!K115 -> 0 | L15: =A5A!L115 -> 0
A16: =A3A!A126 -> Vote 12 - [NAME OF VOTE 12] | C16: =A3A!C126 -> 0 | D16: =A3A!D126 -> 0 | E16: =A3A!E126 -> 0 | F16: =A3A!F126 -> 0 | G16: =A3A!G126 -> 0 | H16: =A3A!H126 -> 0 | I16: =A3A!I126 -> 0 | J16: =A3A!J126 -> 0 | K16: =A3A!K126 -> 0 | L16: =A5A!L126 -> 0
A17: =A3A!A137 -> Vote 13 - [NAME OF VOTE 13] | C17: =A3A!C137 -> 0 | D17: =A3A!D137 -> 0 | E17: =A3A!E137 -> 0 | F17: =A3A!F137 -> 0 | G17: =A3A!G137 -> 0 | H17: =A3A!H137 -> 0 | I17: =A3A!I137 -> 0 | J17: =A3A!J137 -> 0 | K17: =A3A!K137 -> 0 | L17: =A5A!L137 -> 0
A18: =A3A!A148 -> Vote 14 - [NAME OF VOTE 14] | C18: =A3A!C148 -> 0 | D18: =A3A!D148 -> 0 | E18: =A3A!E148 -> 0 | F18: =A3A!F148 -> 0 | G18: =A3A!G148 -> 0 | H18: =A3A!H148 -> 0 | I18: =A3A!I148 -> 0 | J18: =A3A!J148 -> 0 | K18: =A3A!K148 -> 0 | L18: =A5A!L148 -> 0
A19: =A3A!A159 -> Vote 15 - [NAME OF VOTE 15] | C19: =A3A!C159 -> 0 | D19: =A3A!D159 -> 0 | E19: =A3A!E159 -> 0 | F19: =A3A!F159 -> 0 | G19: =A3A!G159 -> 0 | H19: =A3A!H159 -> 0 | I19: =A3A!I159 -> 0 | J19: =A3A!J159 -> 0 | K19: =A3A!K159 -> 0 | L19: =A5A!L159 -> 0
A20: Total Revenue by Vote | B20: 2 | C20: =SUM(C5:C19) -> 4728282902 | D20: =SUM(D5:D19) -> 5002943076 | E20: 5410153356 | F20: 6351937471 | G20: 6293232681 | H20: 6099817323 | I20: 6443701839 | J20: 6829738872 | K20: 7273425182
A22: Expenditure by Vote to be appropriated | B22: 1
A23: =A3A!A176 -> Vote 1 - City Manager | C23: =A3A!C176 -> 166772623.6 | D23: =A3A!D176 -> 176238545.4 | E23: =A3A!E176 -> 194108064 | F23: =A3A!F176 -> 177602227.4 | G23: =A3A!G176 -> 175505612.5 | H23: =A3A!H176 -> 175505612.5 | I23: =A3A!I176 -> 181805355.9 | J23: =A3A!J176 -> 192156457.9 | K23: =A3A!K176 -> 202664041.6
A24: =A3A!A187 -> Vote 2 - City Finance | C24: =A3A!C187 -> 371289500.3 | D24: =A3A!D187 -> 275761302.6 | E24: =A3A!E187 -> 975349935 | F24: =A3A!F187 -> 691435774.5 | G24: =A3A!G187 -> 670955507.8 | H24: =A3A!H187 -> 670955507.8 | I24: =A3A!I187 -> 700877661.2 | J24: =A3A!J187 -> 741225316.5 | K24: =A3A!K187 -> 773794709.4
A25: =A3A!A198 -> Vote 3 - Community Services and Social Equity | C25: =A3A!C198 -> 768569616.5 | D25: =A3A!D198 -> 668362475.6 | E25: =A3A!E198 -> 724942866.7 | F25: =A3A!F198 -> 742913351.7 | G25: =A3A!G198 -> 707784448.4 | H25: =A3A!H198 -> 707784448.4 | I25: =A3A!I198 -> 743751614.2 | J25: =A3A!J198 -> 794222262.9 | K25: =A3A!K198 -> 840120546.8
A26: =A3A!A209 -> Vote 4 - Corporate Services | C26: =A3A!C209 -> 193613185.4 | D26: =A3A!D209 -> 258379079.4 | E26: =A3A!E209 -> 196080850 | F26: =A3A!F209 -> 289334727.8 | G26: =A3A!G209 -> 293123230.7 | H26: =A3A!H209 -> 293123230.7 | I26: =A3A!I209 -> 200548950.4 | J26: =A3A!J209 -> 212765457.7 | K26: =A3A!K209 -> 225595078.2
A27: =A3A!A220 -> Vote 5 - Infrastructure Services | C27: =A3A!C220 -> 3732573960 | D27: =A3A!D220 -> 3932591376 | E27: =A3A!E220 -> 3156044087 | F27: =A3A!F220 -> 3451917726 | G27: =A3A!G220 -> 3105764803 | H27: =A3A!H220 -> 3105764803 | I27: =A3A!I220 -> 3393288719 | J27: =A3A!J220 -> 3643141653 | K27: =A3A!K220 -> 3936467698
A28: =A3A!A231 -> Vote 6 - Sustainable Development and City Enterprises | C28: =A3A!C231 -> 282173932.9 | D28: =A3A!D231 -> 217066549 | E28: =A3A!E231 -> 304396959 | F28: =A3A!F231 -> 283275916.3 | G28: =A3A!G231 -> 296211858.1 | H28: =A3A!H231 -> 296211858.1 | I28: =A3A!I231 -> 296205168.6 | J28: =A3A!J231 -> 320832190.8 | K28: =A3A!K231 -> 342331392.1
A29: =A3A!A242 -> Vote 7 - [NAME OF VOTE 7] | C29: =A3A!C242 -> 0 | D29: =A3A!D242 -> 0 | E29: =A3A!E242 -> 0 | F29: =A3A!F242 -> 0 | G29: =A3A!G242 -> 0 | H29: =A3A!H242 -> 0 | I29: =A3A!I242 -> 0 | J29: =A3A!J242 -> 0 | K29: =A3A!K242 -> 0
A30: =A3A!A253 -> Vote 8 - [NAME OF VOTE 8] | C30: =A3A!C253 -> 0 | D30: =A3A!D253 -> 0 | E30: =A3A!E253 -> 0 | F30: =A3A!F253 -> 0 | G30: =A3A!G253 -> 0 | H30: =A3A!H253 -> 0 | I30: =A3A!I253 -> 0 | J30: =A3A!J253 -> 0 | K30: =A3A!K253 -> 0
A31: =A3A!A264 -> Vote 9 - [NAME OF VOTE 9] | C31: =A3A!C264 -> 0 | D31: =A3A!D264 -> 0 | E31: =A3A!E264 -> 0 | F31: =A3A!F264 -> 0 | G31: =A3A!G264 -> 0 | H31: =A3A!H264 -> 0 | I31: =A3A!I264 -> 0 | J31: =A3A!J264 -> 0 | K31: =A3A!K264 -> 0
A32: =A3A!A275 -> Vote 10 - [NAME OF VOTE 10] | C32: =A3A!C275 -> 0 | D32: =A3A!D275 -> 0 | E32: =A3A!E275 -> 0 | F32: =A3A!F275 -> 0 | G32: =A3A!G275 -> 0 | H32: =A3A!H275 -> 0 | I32: =A3A!I275 -> 0 | J32: =A3A!J275 -> 0 | K32: =A3A!K275 -> 0
A33: =A3A!A286 -> Vote 11 - [NAME OF VOTE 11] | C33: =A3A!C286 -> 0 | D33: =A3A!D286 -> 0 | E33: =A3A!E286 -> 0 | F33: =A3A!F286 -> 0 | G33: =A3A!G286 -> 0 | H33: =A3A!H286 -> 0 | I33: =A3A!I286 -> 0 | J33: =A3A!J286 -> 0 | K33: =A3A!K286 -> 0 | L33: =A3A!L287 -> 0
A34: =A3A!A297 -> Vote 12 - [NAME OF VOTE 12] | C34: =A3A!C297 -> 0 | D34: =A3A!D297 -> 0 | E34: =A3A!E297 -> 0 | F34: =A3A!F297 -> 0 | G34: =A3A!G297 -> 0 | H34: =A3A!H297 -> 0 | I34: =A3A!I297 -> 0 | J34: =A3A!J297 -> 0 | K34: =A3A!K297 -> 0 | L34: =A3A!L298 -> 0
A35: =A3A!A308 -> Vote 13 - [NAME OF VOTE 13] | C35: =A3A!C308 -> 0 | D35: =A3A!D308 -> 0 | E35: =A3A!E308 -> 0 | F35: =A3A!F308 -> 0 | G35: =A3A!G308 -> 0 | H35: =A3A!H308 -> 0 | I35: =A3A!I308 -> 0 | J35: =A3A!J308 -> 0 | K35: =A3A!K308 -> 0 | L35: =A3A!L309 -> 0
A36: =A3A!A319 -> Vote 14 - [NAME OF VOTE 14] | C36: =A3A!C319 -> 0 | D36: =A3A!D319 -> 0 | E36: =A3A!E319 -> 0 | F36: =A3A!F319 -> 0 | G36: =A3A!G319 -> 0 | H36: =A3A!H319 -> 0 | I36: =A3A!I319 -> 0 | J36: =A3A!J319 -> 0 | K36: =A3A!K319 -> 0 | L36: =A3A!L320 -> 0
A37: =A3A!A330 -> Vote 15 - [NAME OF VOTE 15] | C37: =A3A!C330 -> 0 | D37: =A3A!D330 -> 0 | E37: =A3A!E330 -> 0 | F37: =A3A!F330 -> 0 | G37: =A3A!G330 -> 0 | H37: =A3A!H330 -> 0 | I37: =A3A!I330 -> 0 | J37: =A3A!J330 -> 0 | K37: =A3A!K330 -> 0 | L37: =A3A!L331 -> 0
A38: Total Expenditure by Vote | B38: 2 | C38: =SUM(C23:C37) -> 5514992819 | D38: =SUM(D23:D37) -> 5528399328 | E38: 5550922762 | F38: 5636479723 | G38: 5249345460 | H38: 5249345460 | I38: 5516477470 | J38: 5904343339 | K38: 6320973466 | L38: =SUM(L23:L29) -> 0 | M38: 0 | N38: 0 | O38: 0 | P38: 0 | Q38: 0 | R38: 0 | S38: 0 | T38: 0 | U38: 0 | V38: 0 | W38: 0
A39: =result -> Surplus/(Deficit) for the year | B39: 2 | C39: =C20-C38 -> -786709917 | D39: -525456252 | E39: -140769406 | F39: 715457748.2 | G39: 1043887221 | H39: 850471862.4 | I39: 927224369.3 | J39: 925395533.2 | K39: 952451716 | L39: 0 | M39: 0 | N39: 0 | O39: 0 | P39: 0 | Q39: 0 | R39: 0 | S39: 0 | T39: 0 | U39: 0 | V39: 0 | W39: 0
A40: =head27a -> References
A41: 1. Insert 'Vote'; e.g. department, if different to functional classification structure
A42: 2. Must reconcile to Budgeted Financial Performance (revenue and expenditure)
A43: 3. Assign share in 'associate' to relevant Vote
A45: ="check "&A39 -> check Surplus/(Deficit) for the year | C45: =C39-A3A!C343 -> 0 | D45: =D39-A3A!D343 -> 0 | E45: =E39-A3A!E343 -> 0 | F45: =F39-A3A!F343 -> 0 | G45: =G39-A3A!G343 -> 0 | H45: =H39-A3A!H343 -> 0 | I45: =I39-A3A!I343 -> 0 | J45: =J39-A3A!J343 -> 0 | K45: =K39-A3A!K343 -> 0

Sheet A3A
A1: =muni&" - "&Approve2&"A" -> KZN225 Msunduzi - Table A3 Consolidated Budgeted Financial Performance (revenue and expenditure by municipal vote)A
A2: =Vdesc -> Vote Description | B2: =head27 -> Ref | C2: =head1b -> 2016/17 | D2: =head1A -> 2017/18 | E2: =Head1 -> 2018/19 | F2: =Head2 -> Current Year 2019/20 | I2: =Head3 -> 2020/21 Medium Term Revenue & Expenditure Framework | L2: =Head4 -> LTFS
A3: R thousand | C3: =Head5 -> Audited Outcome | D3: =Head5 -> Audited Outcome | E3: =Head5 -> Audited Outcome | F3: =Head6 -> Original Budget | G3: =Head7 -> Adjusted Budget | H3: =Head8 -> Full Year Forecast | I3: =Head9 -> Budget Year 2020/21 | J3: =Head10 -> Budget Year +1 2021/22 | K3: =Head11 -> Budget Year +2 2022/23 | L3: =Head12 -> Forecast 2023/24 | M3: =Head13 -> Forecast 2024/25 | N3: =Head14 -> Forecast 2025/26 | O3: =Head15 -> Forecast 2026/27 | P3: =Head16 -> Forecast 2027/28 | Q3: =Head17 -> Forecast 2028/29 | R3: =Head18 -> Forecast 2029/30 | S3: =Head19 -> Forecast 2030/31 | T3: =Head20 -> Forecast 2031/32 | U3: =Head21 -> Forecast 2032/33 | V3: =Head22 -> Forecast 2033/34 | W3: =Head23 -> Forecast 2034/35
A4: Revenue by Vote | B4: 1
A5: ='Org structure'!A2 -> Vote 1 - City Manager | C5: =SUM(C6:C15) -> 0 | D5: =SUM(D6:D15) -> 88662.54 | E5: 214 | F5: 56966.52 | G5: 56966.52 | H5: 56966.52 | I5: 4447530.013 | J5: 62804.16414 | K5: 66572.41399
A6: ='Org structure'!E3 -> 1.1 - Internal Audit and Compliance | D6: -2788.35 | G6: 0 | H6: 0
A7: ='Org structure'!E4 -> 1.2 - Office of the City Manager | D7: 65141.63 | E7: 214 | F7: 56966.52 | G7: 56966.52 | H7: 56966.52 | I7: 4447530.013 | J7: 62804.16414 | K7: 66572.41399
A8: ='Org structure'!E5 -> 1.3 - Political Support | D8: 38054.23 | G8: 0 | H8: 0
A9: ='Org structure'!E6 -> 1.4 - Strategic Planning | D9: -11744.97 | G9: 0 | H9: 0
A10: ='Org structure'!E7 -> 0
A11: ='Org structure'!E8 -> 0
A12: ='Org structure'!E9 -> 0
A13: ='Org structure'!E10 -> 0
A14: ='Org structure'!E11 -> 0
A15: ='Org structure'!E12 -> 0
A16: ='Org structure'!A3 -> Vote 2 - City Finance | C16: =SUM(C17:C26) -> 1711607141 | D16: =SUM(D17:D26) -> 1848718404 | E16: 2424189254 | F16: 1777245066 | G16: 2636811135 | H16: 2443395776 | I16: 2396133946 | J16: 2469345485 | K16: 2564152709
A17: ='Org structure'!E14 -> 2.1 - Asset Management | C17: 20819124.91 | D17: 13790711.19 | E17: 6761852 | F17: 14877956.48 | G17: 4603300.16 | H17: 4603300.16
A18: ='Org structure'!E15 -> 2.2 - Budget and Treasury Management | C18: 283313112 | D18: 299699535.5 | E18: 439797155 | F18: 308311384 | G18: 308311384.1 | H18: 308311384.1 | I18: 518591000 | J18: 477254800 | K18: 445340290
A19: ='Org structure'!E16 -> 2.3 - Expenditure Management | C19: 287790.64 | D19: -79924.06 | E19: 62 | F19: 320895.92 | G19: 320895.92 | H19: 320895.92
A20: ='Org structure'!E17 -> 2.4 - Revenue Management | C20: 1382387054 | D20: 1499015441 | E20: 1977393500 | F20: 1453466649 | G20: 2323307374 | H20: 2129892015 | I20: 1877542946 | J20: 1992090685 | K20: 2118812419
A21: ='Org structure'!E18 -> 2.5 - Supply Chain Management | C21: 24800059.44 | D21: 36292640.32 | E21: 236685 | F21: 268181.06 | G21: 268181.06 | H21: 268181.06
A22: ='Org structure'!E19 -> 0
A23: ='Org structure'!E20 -> 0
A24: ='Org structure'!E21 -> 0
A25: ='Org structure'!E22 -> 0
A26: ='Org structure'!E23 -> 0
A27: ='Org structure'!A4 -> Vote 3 - Community Services and Social Equity | C27: =SUM(C28:C37) -> 213712394.3 | D27: 199491348.7 | E27: 236959425 | F27: 210736724.6 | G27: 222370710.5 | H27: 222370710.5 | I27: 214664344.3 | J27: 227168874.5 | K27: 240391671.3
A28: ='Org structure'!E25 -> 3.1 - Area Based Management | C28: 6246733.31 | D28: 629162.9 | E28: 25153 | F28: 972327.4 | G28: 972327.4 | H28: 972327.4 | I28: 3523188.282 | J28: 3716963.637 | K28: 3939981.456
A29: ='Org structure'!E26 -> 3.2 - Public Safety, Emergency Services and Enforcement | C29: 38660412.07 | D29: 18379696.11 | E29: 23856567 | F29: 3606445.42 | G29: 3606445.42 | H29: 3606445.42 | I29: 4814533.865 | J29: 5079333.227 | K29: 5384093.221
A30: ='Org structure'!E27 -> 3.3 - Recreation and Facilities | C30: 50969265.26 | D30: 50152829 | E30: 53724345 | F30: 41587699.48 | G30: 48221640.06 | H30: 48221640.06 | I30: 21976054.79 | J30: 23041699.4 | K30: 26482307.88
A31: ='Org structure'!E28 -> 3.4 - Waste Management | C31: 117835983.7 | D31: 130329660.7 | E31: 159353360 | F31: 164570252.3 | G31: 169570297.6 | H31: 169570297.6 | I31: 184350567.4 | J31: 195330878.2 | K31: 204585288.8
A32: ='Org structure'!E29 -> 3.5 - [Name of sub-vote]
A33: ='Org structure'!E30 -> 3.5 - [Name of sub-vote]
A34: ='Org structure'!E31 -> 0
A35: ='Org structure'!E32 -> 0
A36: ='Org structure'!E33 -> 0
A37: ='Org structure'!E34 -> 0
A38: ='Org structure'!A5 -> Vote 4 - Corporate Services | C38: =SUM(C39:C48) -> 5676012.36 | D38: 9383448.99 | E38: 5862268 | F38: 6541799.7 | G38: 6541799.7 | H38: 6541799.7 | I38: 19239180.69 | J38: 23291975.62 | K38: 24482392.16
A39: ='Org structure'!E36 -> 4.1 - Human Resources Management | C39: 1787276.7 | D39: 1648642.13 | E39: 2948539 | F39: 2093836.02 | G39: 2093836.02 | H39: 2093836.02 | I39: 18980058.64 | J39: 23018601.87 | K39: 24192615.98
A40: ='Org structure'!E37 -> 4.2 - Information Technology | C40: -25122.37 | D40: -47306.64 | E40: 11644 | F40: 1929.2 | G40: 1929.2 | H40: 1929.2 | I40: 2016.014 | J40: 2126.89477 | K40: 2254.508456
A41: ='Org structure'!E38 -> 4.3 - Legal Services | C41: 1344.8 | D41: -228133.21 | E41: 9395 | F41: 246034.48 | G41: 246034.48 | H41: 246034.48 | I41: 257106.0316 | J41: 271246.8633 | K41: 287521.6751
A42: ='Org structure'!E39 -> 4.4 - Secretariat and Auxiliary Services | C42: 3912513.23 | D42: -1071.42 | E42: 341 | F42: 4200000 | G42: 4200000 | H42: 4200000
A43: ='Org structure'!E40 -> 4.5 - General Manager: Corporate Service | D43: 8011318.13 | E43: 2892349 | G43: 0
A44: ='Org structure'!E41 -> 0 | G44: 0
A45: ='Org structure'!E42 -> 0 | G45: 0
A46: ='Org structure'!E43 -> 0 | G46: 0
A47: ='Org structure'!E44 -> 0 | G47: 0
A48: ='Org structure'!E45 -> 0 | G48: 0 | Y48: 3106589450 | Z48: 3280433242 | AA48: 3801263831 | AB48: 4173276747 | AC48: 4178588919
A49: ='Org structure'!A6 -> Vote 5 - Infrastructure Services | C49: =SUM(C50:C59) -> 2502847184 | D49: =SUM(D50:D59) -> 2784000849 | E49: 2530317922 | F49: 4173276747 | G49: 3010500305 | H49: 3010500305 | I49: 3376346373 | J49: 3726503240 | K49: 4103402999 | Y49: 1928074519 | Z49: 1972985112 | AA49: 2235472736 | AB49: 2484338398 | AC49: 2484048572
A50: ='Org structure'!E47 -> 5.1 - Electricity | C50: 1324332253 | D50: 1476552719 | E50: 964526827.2 | F50: 2484338398 | G50: 1315959957 | H50: 1315959957 | I50: 1787507107 | J50: 1994554010 | K50: 2224417415 | Y50: 603742266 | Z50: 496432392.9 | AA50: 1270945909 | AB50: 747315134.3 | AC50: 1168088615
A51: ='Org structure'!E48 -> 5.2 - Project Management Office | C51: 3317659.97 | D51: 4607940.21 | E51: 21662773 | F51: 21662773 | G51: 18000000 | H51: 18000000 | I51: 19637703.26 | J51: 20717776.94 | K51: 21960843.56 | Y51: =Y49-Y50 -> 1324332253 | Z51: =Z49-Z50 -> 1476552719 | AA51: 964526827.2 | AB51: =AB49-AB50 -> 1737023264 | AC51: =AC49-AC50 -> 1315959957
A52: ='Org structure'!E49 -> 5.3 - Roads and Transportation | C52: 278460065.7 | D52: 227734016.2 | E52: 258228915 | F52: 259135944.9 | G52: 274573884.1 | H52: 274573884.1 | I52: 65792799.76 | J52: 66881618.93 | K52: 71225699.88
A53: ='Org structure'!E50 -> 5.4 - Water and Sanitation | C53: 896737205.3 | D53: 1075105281 | E53: 1285695207 | F53: 1408139631 | G53: 1401966464 | H53: 1401966464 | I53: 1503408762 | J53: 1644349834 | K53: 1785799041
A54: ='Org structure'!E51 -> 5.5 - General Manager: Infrastructure | D54: 891.89 | E54: 204200 | G54: 0 | H54: 0
A55: ='Org structure'!E52 -> 0 | G55: 0 | H55: 0
A56: ='Org structure'!E53 -> 0 | G56: 0
A57: ='Org structure'!E54 -> 0 | G57: 0
A58: ='Org structure'!E55 -> 0 | G58: 0
A59: ='Org structure'!E56 -> 0 | G59: 0
A60: ='Org structure'!A7 -> Vote 6 - Sustainable Development and City Enterprises | C60: =SUM(C61:C70) -> 294440169.6 | D60: =SUM(D61:D70) -> 161260363 | E60: 212824273 | F60: 184080167 | G60: 416951765.2 | H60: 416951765.2 | I60: 432870465.4 | J60: 383366493.1 | K60: 340928837.7
A61: ='Org structure'!E58 -> 6.1 - City Entities | C61: 47341268.17 | D61: 51087740.86 | E61: 27007605 | F61: 59041330.8 | G61: 59479472.8 | H61: 59479472.8
A62: ='Org structure'!E59 -> 6.2 - Development Services | C62: 416853.43 | D62: 356064.34 | E62: 352870 | F62: 423052.36 | G62: 423052.36 | H62: 423052.36 | I62: 41022287.16 | J62: 40771012.95 | K62: 45057273.73
A63: ='Org structure'!E60 -> 6.3 - Human Settlement Development | C63: 231128063.8 | D63: 52005113.31 | E63: 126796992 | F63: 70607606.88 | G63: 305955125.1 | H63: 305955125.1 | I63: 328237277.5 | J63: 278123479.9 | K63: 227531243.7
A64: ='Org structure'!E61 -> 6.4 - Town Planning | C64: 15553984.23 | D64: 57826986.74 | E64: 58666806 | F64: 54008176.94 | G64: 51094114.94 | H64: 51094114.94 | I64: 63610900.69 | J64: 64472000.22 | K64: 68340320.24
A65: ='Org structure'!E62 -> 6.5 - General Manager: Sustainable Development and City Enterprises | D65: -15542.23 | G65: 0
A66: ='Org structure'!E63 -> 0 | G66: 0
A67: ='Org structure'!E64 -> 0 | G67: 0
A68: ='Org structure'!E65 -> 0 | G68: 0
A69: ='Org structure'!E66 -> 0 | G69: 0
A70: ='Org structure'!E67 -> 0 | G70: 0
A71: ='Org structure'!A8 -> Vote 7 - [NAME OF VOTE 7] | C71: =SUM(C72:C81) -> 0 | D71: 0 | E71: 0 | F71: 0 | G71: 0 | H71: 0 | I71: 0 | J71: 0 | K71: 0
A72: ='Org structure'!E69 -> 7.1 - [Name of sub-vote]
A73: ='Org structure'!E70 -> 0
A74: ='Org structure'!E71 -> 0
A75: ='Org structure'!E72 -> 0
A76: ='Org structure'!E73 -> 0
A77: ='Org structure'!E74 -> 0
A78: ='Org structure'!E75 -> 0
A79: ='Org structure'!E76 -> 0
A80: ='Org structure'!E77 -> 0
A81: ='Org structure'!E78 -> 0
A82: ='Org structure'!A9 -> Vote 8 - [NAME OF VOTE 8] | C82: =SUM(C83:C92) -> 0 | D82: =SUM(D83:D92) -> 0 | E82: 0 | F82: 0 | G82: 0 | H82: 0 | I82: 0 | J82: 0 | K82: 0
A83: ='Org structure'!E80 -> 8.1 - [Name of sub-vote]
A84: ='Org structure'!E81 -> 0
A85: ='Org structure'!E82 -> 0
A86: ='Org structure'!E83 -> 0
A87: ='Org structure'!E84 -> 0
A88: ='Org structure'!E85 -> 0
A89: ='Org structure'!E86 -> 0
A90: ='Org structure'!E87 -> 0
A91: ='Org structure'!E88 -> 0
A92: ='Org structure'!E89 -> 0
A93: ='Org structure'!A10 -> Vote 9 - [NAME OF VOTE 9] | C93: =SUM(C94:C103) -> 0 | D93: =SUM(D94:D103) -> 0 | E93: 0 | F93: 0 | G93: 0 | H93: 0 | I93: 0 | J93: 0 | K93: 0
A94: ='Org structure'!E91 -> 9.1 - [Name of sub-vote]
A95: ='Org structure'!E92 -> 0
A96: ='Org structure'!E93 -> 0
A97: ='Org structure'!E94 -> 0
A98: ='Org structure'!E95 -> 0
A99: ='Org structure'!E96 -> 0
A100: ='Org structure'!E97 -> 0
A101: ='Org structure'!E98 -> 0
A102: ='Org structure'!E99 -> 0
A103: ='Org structure'!E100 -> 0
A104: ='Org structure'!A11 -> Vote 10 - [NAME OF VOTE 10] | C104: =SUM(C105:C114) -> 0 | D104: =SUM(D105:D114) -> 0 | E104: 0 | F104: 0 | G104: 0 | H104: 0 | I104: 0 | J104: 0 | K104: 0
A105: ='Org structure'!E102 -> 10.1 - [Name of sub-vote]
A106: ='Org structure'!E103 -> 0
A107: ='Org structure'!E104 -> 0
A108: ='Org structure'!E105 -> 0
A109: ='Org structure'!E106 -> 0
A110: ='Org structure'!E107 -> 0
A111: ='Org structure'!E108 -> 0
A112: ='Org structure'!E109 -> 0
A113: ='Org structure'!E110 -> 0
A114: ='Org structure'!E111 -> 0
A115: ='Org structure'!A12 -> Vote 11 - [NAME OF VOTE 11] | C115: =SUM(C116:C125) -> 0 | D115: =SUM(D116:D125) -> 0 | E115: 0 | F115: 0 | G115: 0 | H115: 0 | I115: 0 | J115: 0 | K115: 0
A116: ='Org structure'!E113 -> 11.1 - [Name of sub-vote]
A117: ='Org structure'!E114 -> 0
A118: ='Org structure'!E115 -> 0
A119: ='Org structure'!E116 -> 0
A120: ='Org structure'!E117 -> 0
A121: ='Org structure'!E118 -> 0
A122: ='Org structure'!E119 -> 0
A123: ='Org structure'!E120 -> 0
A124: ='Org structure'!E121 -> 0
A125: ='Org structure'!E122 -> 0
A126: ='Org structure'!A13 -> Vote 12 - [NAME OF VOTE 12] | C126: =SUM(C127:C136) -> 0 | D126: =SUM(D127:D136) -> 0 | E126: 0 | F126: 0 | G126: 0 | H126: 0 | I126: 0 | J126: 0 | K126: 0
A127: ='Org structure'!E124 -> 12.1 - [Name of sub-vote]
A128: ='Org structure'!E125 -> 0
A129: ='Org structure'!E126 -> 0
A130: ='Org structure'!E127 -> 0
A131: ='Org structure'!E128 -> 0
A132: ='Org structure'!E129 -> 0
A133: ='Org structure'!E130 -> 0
A134: ='Org structure'!E131 -> 0
A135: ='Org structure'!E132 -> 0
A136: ='Org structure'!E133 -> 0
A137: ='Org structure'!A14 -> Vote 13 - [NAME OF VOTE 13] | C137: =SUM(C138:C147) -> 0 | D137: =SUM(D138:D147) -> 0 | E137: 0 | F137: 0 | G137: 0 | H137: 0 | I137: 0 | J137: 0 | K137: 0
A138: ='Org structure'!E135 -> 13.1 - [Name of sub-vote]
A139: ='Org structure'!E136 -> 0
A140: ='Org structure'!E137 -> 0
A141: ='Org structure'!E138 -> 0
A142: ='Org structure'!E139 -> 0
A143: ='Org structure'!E140 -> 0
A144: ='Org structure'!E141 -> 0
A145: ='Org structure'!E142 -> 0
A146: ='Org structure'!E143 -> 0
A147: ='Org structure'!E144 -> 0
A148: ='Org structure'!A15 -> Vote 14 - [NAME OF VOTE 14] | C148: =SUM(C149:C158) -> 0 | D148: =SUM(D149:D158) -> 0 | E148: 0 | F148: 0 | G148: 0 | H148: 0 | I148: 0 | J148: 0 | K148: 0
A149: ='Org structure'!E146 -> 14.1 - [Name of sub-vote]
A150: ='Org structure'!E147 -> 0
A151: ='Org structure'!E148 -> 0
A152: ='Org structure'!E149 -> 0
A153: ='Org structure'!E150 -> 0
A154: ='Org structure'!E151 -> 0
A155: ='Org structure'!E152 -> 0
A156: ='Org structure'!E153 -> 0
A157: ='Org structure'!E154 -> 0
A158: ='Org structure'!E155 -> 0
A159: ='Org structure'!A16 -> Vote 15 - [NAME OF VOTE 15] | C159: =SUM(C160:C169) -> 0 | D159: =SUM(D160:D169) -> 0 | E159: 0 | F159: 0 | G159: 0 | H159: 0 | I159: 0 | J159: 0 | K159: 0
A160: ='Org structure'!E157 -> 15.1 - [Name of sub-vote]
A161: ='Org structure'!E158 -> 0
A162: ='Org structure'!E159 -> 0
A163: ='Org structure'!E160 -> 0
A164: ='Org structure'!E161 -> 0
A165: ='Org structure'!E162 -> 0
A166: ='Org structure'!E163 -> 0
A167: ='Org structure'!E164 -> 0
A168: ='Org structure'!E165 -> 0
A169: ='Org structure'!E166 -> 0
A170: Total Revenue by Vote | B170: 2 | C170: =C5+C16+C27+C38+C49+C60+C71+C82+C93+C104+C115+C126+C137+C148+C159 -> 4728282902 | D170: =D5+D16+D27+D38+D49+D60+D71+D82+D93+D104+D115+D126+D137+D148+D159 -> 5002943076 | E170: =E5+E16+E27+E38+E49+E60+E71+E82+E93+E104+E115+E126+E137+E148+E159 -> 5410153356 | F170: 6351937471 | G170: 6293232681 | H170: 6099817323 | I170: =I5+I16+I27+I38+I49+I60+I71+I82+I93+I104+I115+I126+I137+I148+I159 -> 6443701839 | J170: 6829738872 | K170: 7273425182 | L170: =SUM(L78:L81) -> 0 | M170: 0 | N170: 0 | O170: 0 | P170: 0 | Q170: 0 | R170: 0 | S170: 0 | T170: 0 | U170: 0 | V170: 0 | W170: 0
A171: Total Reveniue as per A4 | C171: ='A4-FinPerf RE'!C21 -> 4338591827 | D171: ='A4-FinPerf RE'!D21 -> 4616654954 | E171: ='A4-FinPerf RE'!E21 -> 4997999170 | F171: ='A4-FinPerf RE'!F21 -> 5604622338 | G171: ='A4-FinPerf RE'!G21 -> 5626573914
A172: Diff | C172: =C170-C171 -> 389691074.6 | D172: 386288122 | E172: 412154185.8 | F172: =F170-F171 -> 747315133.3 | G172: =G170-G171 -> 666658767.3 | Y172: 603742266 | Z172: 496432392.9 | AA172: 1270945909 | AB172: 747315134.3 | AC172: 1168088615
A175: Expenditure by Vote | B175: 1
A176: =A5 -> Vote 1 - City Manager | C176: =SUM(C177:C186) -> 166772623.6 | D176: 176238545.4 | E176: 194108064 | F176: 177602227.4 | G176: 175505612.5 | H176: 175505612.5 | I176: 181805355.9 | J176: 192156457.9 | K176: 202664041.6
A177: 1.1 - Internal Audit and Compliance | C177: 20612516.92 | D177: 12845619.53 | E177: 29585787 | F177: 14082972.99 | G177: 22046360.87 | H177: 22046360.87 | I177: 19757657.66 | J177: 20761476.31 | K177: 21836554.43
A178: 1.2 - Office of the City Manager | C178: 66678819.66 | D178: 78843976.27 | E178: 69404433 | F178: 66783091.83 | G178: 60375786.03 | H178: 60375786.03 | I178: 42326752.98 | J178: 44901608.3 | K178: 47306751.52
A179: 1.3 - Political Support | C179: 75214729.12 | D179: 79569701.56 | E179: 85724513 | F179: 90058206.45 | G179: 86956150 | H179: 86956150 | I179: 106872334.4 | J179: 112851617.3 | K179: 119036212.8
A180: 1.4 - Strategic Planning | C180: 4266557.87 | D180: 4979248.01 | E180: 9393331 | F180: 6677956.12 | G180: 6127315.63 | H180: 6127315.63 | I180: 12848610.79 | J180: 13641755.93 | K180: 14484522.84
A181: 0
A182: 0
A183: 0
A184: 0
A185: 0
A186: 0
A187: Vote 2 - City Finance | C187: =SUM(C188:C197) -> 371289500.3 | D187: =SUM(D188:D197) -> 275761302.6 | E187: =SUM(E188:E197) -> 975349935 | F187: 691435774.5 | G187: 670955507.8 | H187: 670955507.8 | I187: 700877661.2 | J187: 741225316.5 | K187: 773794709.4
A188: 2.1 - Asset Management | C188: 40809334.92 | D188: 56698215.01 | E188: 121395371.8 | F188: 119442557.9 | G188: 115510545.4 | H188: 115510545.4 | I188: 94584991.87 | J188: 107564159.5 | K188: 108907328
A189: 2.2 - Budget and Treasury Management | C189: 162432799.8 | D189: -25922100.37 | E189: 80325809 | F189: 103173194 | G189: 109395393.8 | H189: 109395393.8 | I189: 34270508.09 | J189: 36122159.73 | K189: 38113817.58
A190: 2.3 - Expenditure Management | C190: 58234389.04 | D190: 58469733.36 | E190: 46587775 | F190: 57898260.21 | G190: 45875646.24 | H190: 45875646.24 | I190: 484978367.6 | J190: 505070609.5 | K190: 530512882.6
A191: 2.4 - Revenue Management | C191: 19030347.52 | D191: 86037587.67 | E191: 661044412 | F191: 346700272.9 | G191: 336664009.4 | H191: 336664009.4 | I191: 22239285.46 | J191: 23304440.7 | K191: 24946598.03
A192: 2.5 - Supply Chain Management | C192: 90782629.03 | D192: 100477867 | E192: 65996567.22 | F192: 64221489.58 | G192: 63509913.02 | H192: 63509913.02 | I192: 64804508.21 | J192: 69163947.04 | K192: 71314083.18
A193: 0
A194: 0
A195: 0
A196: 0
A197: 0
A198: Vote 3 - Community Services and Social Equity | C198: =SUM(C199:C208) -> 768569616.5 | D198: 668362475.6 | E198: 724942866.7 | F198: 742913351.7 | G198: 707784448.4 | H198: 707784448.4 | I198: 743751614.2 | J198: 794222262.9 | K198: 840120546.8
A199: 3.1 - Area Based Management | C199: 25483263.59 | D199: 26776269.83 | E199: 29901836.54 | F199: 32191569.52 | G199: 31458764.06 | H199: 31458764.06
A200: 3.2 - Public Safety, Emergency Services and Enforcement | C200: 329139478.6 | D200: 295712197 | E200: 309168018.7 | F200: 304172524.5 | G200: 284687362.9 | H200: 284687362.9 | I200: 743751614.2 | J200: 794222262.9 | K200: 840120546.8
A201: 3.3 - Recreation and Facilities | C201: 293348104.8 | D201: 252089568.5 | E201: 258723405.3 | F201: 269930846.6 | G201: 262330111 | H201: 262330111
A202: 3.4 - Waste Management | C202: 120598769.5 | D202: 93784440.16 | E202: 127149606.2 | F202: 136618411.1 | G202: 129308210.5 | H202: 129308210.5
... 149 more rows

Sheet A4-FinPerf RE
A1: =muni&" - "&Approve4 -> KZN225 Msunduzi - Table A4 Consolidated Budgeted Financial Performance (revenue and expenditure)
A2: =desc -> Description | B2: =head27 -> Ref | C2: =head1b -> 2016/17 | D2: =head1A -> 2017/18 | E2: =Head1 -> 2018/19 | F2: =Head2 -> Current Year 2019/20 | J2: =Head3 -> 2020/21 Medium Term Revenue & Expenditure Framework | M2: =Head4 -> LTFS
A3: R thousand | B3: 1 | C3: =Head5 -> Audited Outcome | D3: =Head5 -> Audited Outcome | E3: =Head5 -> Audited Outcome | F3: =Head6 -> Original Budget | G3: =Head7 -> Adjusted Budget | H3: =Head8 -> Full Year Forecast | I3: =Head5b -> Pre-audit outcome | J3: =Head9 -> Budget Year 2020/21 | K3: =Head10 -> Budget Year +1 2021/22 | L3: =Head11 -> Budget Year +2 2022/23 | M3: =Head12 -> Forecast 2023/24 | N3: =Head13 -> Forecast 2024/25 | O3: =Head14 -> Forecast 2025/26 | P3: =Head15 -> Forecast 2026/27 | Q3: =Head16 -> Forecast 2027/28 | R3: =Head17 -> Forecast 2028/29 | S3: =Head18 -> Forecast 2029/30 | T3: =Head19 -> Forecast 2030/31 | U3: =Head20 -> Forecast 2031/32 | V3: =Head21 -> Forecast 2032/33 | W3: =Head22 -> Forecast 2033/34 | X3: =Head23 -> Forecast 2034/35
A4: Revenue By Source
A5: Property rates | B5: 2 | C5: ='SA1'!C9 -> 793014215 | D5: ='SA1'!D9 -> 864163568 | E5: ='SA1'!E9 -> 930979920 | F5: ='SA1'!F9 -> 1200771538 | G5: ='SA1'!G9 -> 1200771538 | H5: ='SA1'!H9 -> 1200771538 | I5: ='SA1'!I9 -> 0 | J5: ='SA1'!J9 -> 1269794594 | K5: ='SA1'!K9 -> 1339633297 | L5: ='SA1'!L9 -> 1420011294
A6: Service charges - electricity revenue | B6: 2 | C6: ='SA1'!C15 -> 1862660596 | D6: ='SA1'!D15 -> 1904923329 | E6: ='SA1'!E15 -> 2032091624 | F6: ='SA1'!F15 -> 2417937959 | G6: ='SA1'!G15 -> 2417937958 | H6: ='SA1'!H15 -> 2414404738 | I6: ='SA1'!I15 -> 0 | J6: ='SA1'!J15 -> 2584775677 | K6: ='SA1'!K15 -> 2781218629 | L6: ='SA1'!L15 -> 2998153682
A7: Service charges - water revenue | B7: 2 | C7: ='SA1'!C21 -> 464106823 | D7: ='SA1'!D21 -> 563095497 | E7: ='SA1'!E21 -> 649733747 | F7: ='SA1'!F21 -> 662966142 | G7: ='SA1'!G21 -> 662966142 | H7: ='SA1'!H21 -> 490418724.7 | I7: ='SA1'!I21 -> 0 | J7: ='SA1'!J21 -> 722633094.8 | K7: ='SA1'!K21 -> 794896404.3 | L7: ='SA1'!L21 -> 874386044.7
A8: Service charges - sanitation revenue | B8: 2 | C8: ='SA1'!C27 -> 121773982 | D8: ='SA1'!D27 -> 142391879 | E8: ='SA1'!E27 -> 161144633 | F8: ='SA1'!F27 -> 145475358.2 | G8: ='SA1'!G27 -> 145475358.2 | H8: ='SA1'!H27 -> 133620086.1 | I8: ='SA1'!I27 -> 0 | J8: ='SA1'!J27 -> 152021749.4 | K8: ='SA1'!K27 -> 160382945.6 | L8: ='SA1'!L27 -> 170005922.3
A9: Service charges - refuse revenue | B9: 2 | C9: ='SA1'!C34 -> 88916983 | D9: ='SA1'!D34 -> 100233134 | E9: ='SA1'!E34 -> 99492107 | F9: ='SA1'!F34 -> 111323522.5 | G9: ='SA1'!G34 -> 111323522.5 | H9: ='SA1'!H34 -> 104985428.6 | I9: ='SA1'!I34 -> 0 | J9: ='SA1'!J34 -> 116333081 | K9: ='SA1'!K34 -> 122731400.4 | L9: ='SA1'!L34 -> 130095284.4
A11: Rental of facilities and equipment | C11: 26144056 | D11: 27295067 | E11: 20617910 | F11: 27826600.6 | G11: 27826600.6 | H11: 27826600.6 | J11: 29078797.63 | K11: 30678131.5 | L11: 32518819.39
A12: Interest earned - external investments | C12: 53705513 | D12: 39129952 | E12: 20507403 | F12: 14702275.05 | G12: 14702275.05 | H12: 14603275.05 | J12: 15260422.43 | K12: 16099745.66 | L12: 17065730.4
A13: Interest earned - outstanding debtors | C13: 120869107 | D13: 201961916 | E13: 218926060 | F13: 193739515.7 | G13: 193739515.7 | H13: 193739515.7 | J13: 202457793.9 | K13: 213592972.5 | L13: 226408550.9
A14: Dividends received | C14: 0 | D14: 0 | E14: 0 | F14: 0 | G14: 0 | H14: 0 | I14: 0 | J14: 0 | K14: 0 | L14: 0
A15: Fines, penalties and forfeits | C15: 17813254 | D15: 14284733 | E15: 12557144 | F15: 16064007.44 | G15: 16064007.44 | H15: 16064007.44 | J15: 1798551.444 | K15: 1897471.773 | L15: 2011320.079
A16: Licences and permits | C16: 520627 | D16: 898614 | E16: 829644 | F16: 1071357.9 | G16: 1071357.9 | H16: 1071357.9 | J16: 1119569.005 | K16: 1181145.301 | L16: 1252014.019
A17: Agency services | C17: 2997556 | D17: 2577730 | E17: 1970390 | F17: 575982.8 | G17: 575982.8 | H17: 575982.8 | J17: 601902.026 | K17: 635006.6374 | L17: 673107.0357
A18: Transfers and subsidies | C18: 560051060.4 | D18: 557086308 | E18: 604487443.2 | F18: 672022829 | G18: 693974406 | H18: 693974406 | J18: 675483240 | K18: 724435690 | L18: 781097541
A19: Other revenue | B19: 2 | C19: ='SA1'!C49 -> 97038183 | D19: ='SA1'!D49 -> 69050805 | E19: ='SA1'!E49 -> 63774510 | F19: ='SA1'!F49 -> 140145248.9 | G19: ='SA1'!G49 -> 140145248.9 | H19: ='SA1'!H49 -> 140145248.9 | I19: ='SA1'!I49 -> 0 | J19: ='SA1'!J49 -> 146451785.1 | K19: ='SA1'!K49 -> 154506633.3 | L19: ='SA1'!L49 -> 163777031.3
A20: Gains | C20: 128979872 | D20: 129562422 | E20: 180886635
A21: Total Revenue (excluding capital transfers and contributions) | C21: =SUM(C5:C9)+SUM(C11:C20) -> 4338591827 | D21: =SUM(D5:D9)+SUM(D11:D20) -> 4616654954 | E21: 4997999170 | F21: 5604622338 | G21: 5626573914 | H21: 5432200911 | I21: 0 | J21: 5917810258 | K21: 6341889472 | L21: 6817456342 | M21: =SUM(M5:M20) -> 0 | N21: 0 | O21: 0 | P21: 0 | Q21: 0 | R21: 0 | S21: 0 | T21: 0 | U21: 0 | V21: 0 | W21: 0 | X21: 0
A23: Expenditure By Type
A24: Employee related costs | B24: 2 | C24: ='SA1'!C67 -> 1059136405 | D24: ='SA1'!D67 -> 1194821260 | E24: ='SA1'!E67 -> 1310730366 | F24: ='SA1'!F67 -> 1455869443 | G24: ='SA1'!G67 -> 1455410732 | H24: ='SA1'!H67 -> 1444883850 | I24: ='SA1'!I67 -> 0 | J24: ='SA1'!J67 -> 1478324302 | K24: ='SA1'!K67 -> 1574415381 | L24: ='SA1'!L67 -> 1676752381
A25: Remuneration of councillors | C25: 43574297 | D25: 45020093 | E25: 44130681 | F25: 51487908.94 | G25: 51487908.94 | H25: 51487908.94 | J25: 53650401.12 | K25: 56332921.17 | L25: 59149567.23
A26: Debt impairment | B26: 3 | C26: 40800039 | D26: 908868803 | E26: 697521846 | F26: 116890701.2 | G26: 116890701.2 | H26: 116890701.2 | J26: 123904143.3 | K26: 130099350.4 | L26: 135303324.5
A27: Depreciation & asset impairment | B27: 2 | C27: ='SA1'!C83 -> 598014010 | D27: ='SA1'!D83 -> 470106108 | E27: ='SA1'!E83 -> 460955083 | F27: ='SA1'!F83 -> 492025080.3 | G27: ='SA1'!G83 -> 492071235.6 | H27: ='SA1'!H83 -> 491122235.6 | I27: ='SA1'!I83 -> 0 | J27: ='SA1'!J83 -> 489941448.3 | K27: ='SA1'!K83 -> 537817854.5 | L27: ='SA1'!L83 -> 562557475.8
A28: Finance charges | C28: 68463041 | D28: 61439423 | E28: 52462384 | F28: 41660099 | G28: 41660099 | H28: 41660099 | J28: 31793212.22 | K28: 24371318.84 | L28: 16949425.45
A29: Bulk purchases | B29: 2 | C29: ='SA1'!C88 -> 1866282816 | D29: ='SA1'!D88 -> 1956998980 | E29: ='SA1'!E88 -> 2132173417 | F29: ='SA1'!F88 -> 2282599889 | G29: ='SA1'!G88 -> 2282599889 | H29: ='SA1'!H88 -> 2282599889 | I29: ='SA1'!I88 -> 0 | J29: ='SA1'!J88 -> 2608224085 | K29: ='SA1'!K88 -> 2816882011 | L29: ='SA1'!L88 -> 3070401392
A30: Other materials | B30: 8 | C30: 46064824 | D30: 69327347 | E30: 56479898 | F30: 55756420.65 | G30: 51885155.71 | H30: 51785155.71 | J30: 46613414.69 | K30: 48710490.71 | L30: 50903014.17
A31: Contracted services | C31: ='SA1'!C127 -> 602791214 | D31: ='SA1'!D127 -> 42558828 | E31: ='SA1'!E127 -> 33079463 | F31: ='SA1'!F127 -> 587242320.1 | G31: ='SA1'!G127 -> 542284946.5 | H31: ='SA1'!H127 -> 541911652.8 | I31: ='SA1'!I127 -> 0 | J31: ='SA1'!J127 -> 464722594.3 | K31: ='SA1'!K127 -> 486099833.6 | L31: ='SA1'!L127 -> 508460425.9
A32: Transfers and subsidies | C32: ='SA1'!C93 -> 42911569 | D32: ='SA1'!D93 -> 19201984 | E32: ='SA1'!E93 -> 15819791 | F32: ='SA1'!F93 -> 46379439.52 | G32: ='SA1'!G93 -> 49902933.63 | H32: ='SA1'!H93 -> 62989012.42 | I32: ='SA1'!I93 -> 0 | J32: ='SA1'!J93 -> 25080461.44 | K32: ='SA1'!K93 -> 26157492.52 | L32: ='SA1'!L93 -> 27281767.02
A33: Other expenditure | B33: 4, 5 | C33: ='SA1'!C203 -> 156795959 | D33: ='SA1'!D203 -> 754380838 | E33: ='SA1'!E203 -> 698306556 | F33: ='SA1'!F203 -> 198552291.6 | G33: ='SA1'!G203 -> 165905285.7 | H33: ='SA1'!H203 -> 164014955.7 | I33: ='SA1'!I203 -> 0 | J33: ='SA1'!J203 -> 194223408.2 | K33: ='SA1'!K203 -> 203456685 | L33: ='SA1'!L203 -> 213214692.5
A34: Losses | C34: 990158645 | D34: 5675664 | E34: 49263277 | F34: 43396
A35: Total Expenditure | C35: =SUM(C24:C34) -> 5514992819 | D35: =SUM(D24:D34) -> 5528399328 | E35: 5550922762 | F35: 5328506989 | G35: 5250098887 | H35: 5249345460 | I35: 0 | J35: 5516477470 | K35: 5904343339 | L35: 6320973466 | M35: =SUM(M24:M34) -> 0 | N35: 0 | O35: 0 | P35: 0 | Q35: 0 | R35: 0 | S35: 0 | T35: 0 | U35: 0 | V35: 0 | W35: 0 | X35: 0
A37: Surplus/(Deficit) | C37: =C21-C35 -> -1176400992 | D37: -911744374 | E37: -552923591.8 | F37: 276115349.2 | G37: 376475027.1 | H37: 182855450.3 | I37: 0 | J37: 401332788.3 | K37: 437546133.2 | L37: 496482876 | M37: =M21+M35 -> 0 | N37: 0 | O37: 0 | P37: 0 | Q37: 0 | R37: 0 | S37: 0 | T37: 0 | U37: 0 | V37: 0 | W37: 0 | X37: 0
A38: Transfers and subsidies - capital (monetary allocations) (National / Provincial and District) | C38: 389691074.6 | D38: 386288122 | E38: 412154185.8 | F38: 439342400 | G38: 667412194 | H38: 667616412 | J38: 525891581 | K38: 487849400 | L38: 455968840
A39: Transfers and subsidies - capital (monetary allocations) (National / Provincial Departmental Agencies, Households, Non-profit Institutions, Private Enterprises, Public Corporatons, Higher Educational Institutions) | B39: 6 | C39: ='SA1'!C76 -> 0
A40: Transfers and subsidies - capital (in-kind - all)
A41: Surplus/(Deficit) after capital transfers & contributions | C41: =SUM(C37:C40) -> -786709917 | D41: -525456252 | E41: -140769406 | F41: 715457749.2 | G41: 1043887221 | H41: 850471862.3 | I41: 0 | J41: 927224369.3 | K41: 925395533.2 | L41: 952451716
A42: Taxation
A43: Surplus/(Deficit) after taxation | C43: =C41-C42 -> -786709917 | D43: -525456252 | E43: -140769406 | F43: 715457749.2 | G43: 1043887221 | H43: 850471862.3 | I43: 0 | J43: 927224369.3 | K43: 925395533.2 | L43: 952451716
A44: Attributable to minorities
A45: Surplus/(Deficit) attributable to municipality | C45: =SUM(C43:C44) -> -786709917 | D45: -525456252 | E45: -140769406 | F45: 715457749.2 | G45: 1043887221 | H45: 850471862.3 | I45: 0 | J45: 927224369.3 | K45: 925395533.2 | L45: 952451716
A46: Share of surplus/ (deficit) of associate | B46: 7
A47: =result -> Surplus/(Deficit) for the year | C47: =SUM(C45:C46) -> -786709917 | D47: =SUM(D45:D46) -> -525456252 | E47: -140769406 | F47: 715457749.2 | G47: 1043887221 | H47: 850471862.3 | I47: 0 | J47: 927224369.3 | K47: 925395533.2 | L47: 952451716 | M47: =M25+M46 -> 0 | N47: 0 | O47: 0 | P47: 0 | Q47: 0 | R47: 0 | S47: 0 | T47: 0 | U47: 0 | V47: 0 | W47: 0 | X47: 0
A48: =head27a -> References
A49: 1. Classifications are revenue sources and expenditure type
A50: 2. Detail to be provided in Table SA1
A51: 3. Previously described as 'bad or doubtful debts' - amounts shown should reflect the change in the provision for debt impairment
A52: 4. Expenditure type components previously shown under repairs and maintenance should be allocated back to the originating expenditure group/item; e.g. employee costs
A53: 5. Repairs & maintenance detailed in Table A9 and Table SA34c
A54: 6. Contributions are funds provided by external organisations to assist with infrastructure development; e.g. developer contributions (detail to be provided in Table SA1)
A55: 7. Equity method ( Includes Joint Ventures)
A56: 8. All materials not part of 'bulk' e.g road making materials, pipe, cable etc.
A57: check balance | C57: =C45-'A3-FinPerf V'!C39 -> 0.009999871254 | D57: =D45-'A3-FinPerf V'!D39 -> 0.01999855042 | E57: =E45-'A3-FinPerf V'!E39 -> 0 | F57: =F45-'A3-FinPerf V'!F39 -> 0.999997139 | G57: =G45-'A3-FinPerf V'!G39 -> 0 | H57: =H45-'A3-FinPerf V'!H39 -> -0.04857826233 | J57: =J45-'A3-FinPerf V'!I39 -> 0 | K57: =K45-'A3-FinPerf V'!J39 -> 0 | L57: =L45-'A3-FinPerf V'!K39 -> 9.536743164e-07
A59: Total revenue | C59: =C21+SUM(C38:C40) -> 4728282902 | D59: 5002943076 | E59: 5410153356 | F59: 6043964738 | G59: 6293986108 | H59: 6099817323 | I59: 0 | J59: 6443701839 | K59: 6829738872 | L59: 7273425182

Sheet A5-Capex
A2: =Vdesc -> Vote Description | B2: =head27 -> Ref | C2: =head1b -> 2016/17 | D2: =head1A -> 2017/18 | E2: =Head1 -> 2018/19 | F2: =Head2 -> Current Year 2019/20 | J2: =Head3 -> 2020/21 Medium Term Revenue & Expenditure Framework
A3: R thousand | B3: 1 | C3: =Head5 -> Audited Outcome | D3: =Head5 -> Audited Outcome | E3: =Head5 -> Audited Outcome | F3: =Head6 -> Original Budget | G3: =Head7 -> Adjusted Budget | H3: =Head8 -> Full Year Forecast | I3: =Head5b -> Pre-audit outcome | J3: =Head9 -> Budget Year 2020/21 | K3: =Head10 -> Budget Year +1 2021/22 | L3: =Head11 -> Budget Year +2 2022/23
A4: Capital expenditure - Vote
A5: Multi-year expenditure to be appropriated | B5: 2
A6: =A5A!A6 -> Vote 1 - City Manager | C6: =A5A!C6 -> 3866284.29 | D6: =A5A!D6 -> 320532.86 | E6: =A5A!E6 -> 10000 | F6: =A5A!F6 -> 5131500 | G6: =A5A!G6 -> 0 | H6: =A5A!H6 -> 0 | I6: =A5A!I6 -> 0 | J6: =A5A!J6 -> 3800000 | K6: =A5A!K6 -> 5000000 | L6: =A5A!L6 -> 3000000
A7: =A5A!A17 -> Vote 2 - City Finance | C7: =A5A!C17 -> 30114037.03 | D7: =A5A!D17 -> 8968380.12 | E7: =A5A!E17 -> 0 | F7: =A5A!F17 -> 22500000 | G7: =A5A!G17 -> 25594505.69 | H7: =A5A!H17 -> 25594505.69 | I7: =A5A!I17 -> 0 | J7: =A5A!J17 -> 12500000 | K7: =A5A!K17 -> 18000000 | L7: =A5A!L17 -> 18000000
A8: =A5A!A28 -> Vote 3 - Community Services and Social Equity | C8: =A5A!C28 -> 102852006.5 | D8: =A5A!D28 -> 20104586.9 | E8: =A5A!E28 -> 35939310 | F8: =A5A!F28 -> 22974656 | G8: =A5A!G28 -> 16369979.46 | H8: =A5A!H28 -> 16369979.46 | I8: =A5A!I28 -> 0 | J8: =A5A!J28 -> 23812425 | K8: =A5A!K28 -> 34900000 | L8: =A5A!L28 -> 39580000
A9: =A5A!A39 -> Vote 4 - Corporate Services | C9: =A5A!C39 -> 25749118.25 | D9: =A5A!D39 -> 823826.7 | E9: =A5A!E39 -> 2587789 | F9: =A5A!F39 -> 500000 | G9: =A5A!G39 -> 80126.62 | H9: =A5A!H39 -> 80126.62 | I9: =A5A!I39 -> 0 | J9: =A5A!J39 -> 0 | K9: =A5A!K39 -> 0 | L9: =A5A!L39 -> 0
A10: =A5A!A50 -> Vote 5 - Infrastructure Services | C10: =A5A!C50 -> 438846136.9 | D10: =A5A!D50 -> 391837160.5 | E10: =A5A!E50 -> 29245686 | F10: =A5A!F50 -> 377869601 | G10: =A5A!G50 -> 360524721 | H10: =A5A!H50 -> 360524721 | I10: =A5A!I50 -> 0 | J10: =A5A!J50 -> 168455000 | K10: =A5A!K50 -> 174485747.5 | L10: =A5A!L50 -> 186260226
A11: =A5A!A61 -> Vote 6 - Sustainable Development and City Enterprises | C11: =A5A!C61 -> 46681959.06 | D11: =A5A!D61 -> 72410247 | E11: =A5A!E61 -> 75459271 | F11: =A5A!F61 -> 60790000.4 | G11: =A5A!G61 -> 40558766.7 | H11: =A5A!H61 -> 40558766.7 | I11: =A5A!I61 -> 0 | J11: =A5A!J61 -> 300600156 | K11: =A5A!K61 -> 243094000 | L11: =A5A!L61 -> 191913000
A12: =A5A!A72 -> Vote 7 - [NAME OF VOTE 7] | C12: =A5A!C72 -> 0 | D12: =A5A!D72 -> 0 | E12: =A5A!E72 -> 0 | F12: =A5A!F72 -> 0 | G12: =A5A!G72 -> 0 | H12: =A5A!H72 -> 0 | I12: =A5A!I72 -> 0 | J12: =A5A!J72 -> 0 | K12: =A5A!K72 -> 0 | L12: =A5A!L72 -> 0
A13: =A5A!A83 -> Vote 8 - [NAME OF VOTE 8] | C13: =A5A!C83 -> 0 | D13: =A5A!D83 -> 0 | E13: =A5A!E83 -> 0 | F13: =A5A!F83 -> 0 | G13: =A5A!G83 -> 0 | H13: =A5A!H83 -> 0 | I13: =A5A!I83 -> 0 | J13: =A5A!J83 -> 0 | K13: =A5A!K83 -> 0 | L13: =A5A!L83 -> 0
A14: =A5A!A94 -> Vote 9 - [NAME OF VOTE 9] | C14: =A5A!C94 -> 0 | D14: =A5A!D94 -> 0 | E14: =A5A!E94 -> 0 | F14: =A5A!F94 -> 0 | G14: =A5A!G94 -> 0 | H14: =A5A!H94 -> 0 | I14: =A5A!I94 -> 0 | J14: =A5A!J94 -> 0 | K14: =A5A!K94 -> 0 | L14: =A5A!L94 -> 0
A15: =A5A!A105 -> Vote 10 - [NAME OF VOTE 10] | C15: =A5A!C105 -> 0 | D15: =A5A!D105 -> 0 | E15: =A5A!E105 -> 0 | F15: =A5A!F105 -> 0 | G15: =A5A!G105 -> 0 | H15: =A5A!H105 -> 0 | I15: =A5A!I105 -> 0 | J15: =A5A!J105 -> 0 | K15: =A5A!K105 -> 0 | L15: =A5A!L105 -> 0
A16: =A5A!A116 -> Vote 11 - [NAME OF VOTE 11] | C16: =A5A!C116 -> 0 | D16: =A5A!D116 -> 0 | E16: =A5A!E116 -> 0 | F16: =A5A!F116 -> 0 | G16: =A5A!G116 -> 0 | H16: =A5A!H116 -> 0 | I16: =A5A!I116 -> 0 | J16: =A5A!J116 -> 0 | K16: =A5A!K116 -> 0 | L16: =A5A!L116 -> 0
A17: =A5A!A127 -> Vote 12 - [NAME OF VOTE 12] | C17: =A5A!C127 -> 0 | D17: =A5A!D127 -> 0 | E17: =A5A!E127 -> 0 | F17: =A5A!F127 -> 0 | G17: =A5A!G127 -> 0 | H17: =A5A!H127 -> 0 | I17: =A5A!I127 -> 0 | J17: =A5A!J127 -> 0 | K17: =A5A!K127 -> 0 | L17: =A5A!L127 -> 0
A18: =A5A!A138 -> Vote 13 - [NAME OF VOTE 13] | C18: =A5A!C138 -> 0 | D18: =A5A!D138 -> 0 | E18: =A5A!E138 -> 0 | F18: =A5A!F138 -> 0 | G18: =A5A!G138 -> 0 | H18: =A5A!H138 -> 0 | I18: =A5A!I138 -> 0 | J18: =A5A!J138 -> 0 | K18: =A5A!K138 -> 0 | L18: =A5A!L138 -> 0
A19: =A5A!A149 -> Vote 14 - [NAME OF VOTE 14] | C19: =A5A!C149 -> 0 | D19: =A5A!D149 -> 0 | E19: =A5A!E149 -> 0 | F19: =A5A!F149 -> 0 | G19: =A5A!G149 -> 0 | H19: =A5A!H149 -> 0 | I19: =A5A!I149 -> 0 | J19: =A5A!J149 -> 0 | K19: =A5A!K149 -> 0 | L19: =A5A!L149 -> 0
A20: =A5A!A160 -> Vote 15 - [NAME OF VOTE 15] | C20: =A5A!C160 -> 0 | D20: =A5A!D160 -> 0 | E20: =A5A!E160 -> 0 | F20: =A5A!F160 -> 0 | G20: =A5A!G160 -> 0 | H20: =A5A!H160 -> 0 | I20: =A5A!I160 -> 0 | J20: =A5A!J160 -> 0 | K20: =A5A!K160 -> 0 | L20: =A5A!L160 -> 0
A21: Capital multi-year expenditure sub-total | B21: 7 | C21: =SUM(C6:C20) -> 648109542 | D21: =SUM(D6:D20) -> 494464734.1 | E21: 143242056 | F21: 489765757.4 | G21: 443128099.5 | H21: =SUM(H6:H20) -> 443128099.5 | I21: 0 | J21: 509167581 | K21: 475479747.5 | L21: 438753226
A23: Single-year expenditure to be appropriated | B23: 2
A24: =A6 -> Vote 1 - City Manager | C24: =A5A!C175 -> 0 | D24: =A5A!D175 -> 872127.31 | E24: =A5A!E175 -> 4313936 | F24: =A5A!F175 -> 4868500 | G24: =A5A!G175 -> 5006330.97 | H24: =A5A!H175 -> 5006330.97 | I24: =A5A!I175 -> 0 | J24: =A5A!J175 -> 0 | K24: =A5A!K175 -> 0 | L24: =A5A!L175 -> 0
A25: =A7 -> Vote 2 - City Finance | C25: =A5A!C186 -> 0 | D25: =A5A!D186 -> 14741557.57 | E25: =A5A!E186 -> 17257057 | F25: =A5A!F186 -> 12335000 | G25: =A5A!G186 -> 7856900.21 | H25: =A5A!H186 -> 7856900.21 | I25: =A5A!I186 -> 0 | J25: =A5A!J186 -> 15000000 | K25: =A5A!K186 -> 9300000 | L25: =A5A!L186 -> 10400000
A26: Vote 3 - Community Services and Social Equity | C26: =A5A!C197 -> 0 | D26: =A5A!D197 -> 62491875.35 | E26: =A5A!E197 -> 15738155 | F26: =A5A!F197 -> 12991000 | G26: =A5A!G197 -> 17444846.28 | H26: =A5A!H197 -> 17444846.28 | I26: =A5A!I197 -> 0 | J26: =A5A!J197 -> 13700000 | K26: =A5A!K197 -> 8800000 | L26: =A5A!L197 -> 8500000
A27: Vote 4 - Corporate Services | C27: =A5A!C208 -> 0 | D27: =A5A!D208 -> 4126633.36 | E27: =A5A!E208 -> 875802 | F27: =A5A!F208 -> 4500000 | G27: =A5A!G208 -> 2523165 | H27: =A5A!H208 -> 2523165 | I27: =A5A!I208 -> 0 | J27: =A5A!J208 -> 0 | K27: =A5A!K208 -> 0 | L27: =A5A!L208 -> 0
A28: Vote 5 - Infrastructure Services | C28: =A5A!C219 -> 0 | D28: =A5A!D219 -> 15489003.69 | E28: =A5A!E219 -> 414791205 | F28: =A5A!F219 -> 27501044 | G28: =A5A!G219 -> 35915652 | H28: =A5A!H219 -> 35915652 | I28: =A5A!I219 -> 0 | J28: =A5A!J219 -> 33000000 | K28: =A5A!K219 -> 53541652 | L28: =A5A!L219 -> 64345614
A29: Vote 6 - Sustainable Development and City Enterprises | C29: =A5A!C230 -> 0 | D29: =A5A!D230 -> 2710737.17 | E29: =A5A!E230 -> 17268330 | F29: =A5A!F230 -> 3210000 | G29: =A5A!G230 -> 234319552.2 | H29: =A5A!H230 -> 234319552.2 | I29: =A5A!I230 -> 0 | J29: =A5A!J230 -> 10024000 | K29: =A5A!K230 -> 6828000 | L29: =A5A!L230 -> 870000
A30: Vote 7 - [NAME OF VOTE 7] | C30: =A5A!C241 -> 0 | D30: =A5A!D241 -> 0 | E30: =A5A!E241 -> 0 | F30: =A5A!F241 -> 0 | G30: =A5A!G241 -> 0 | H30: =A5A!H241 -> 0 | I30: =A5A!I241 -> 0 | J30: =A5A!J241 -> 0 | K30: =A5A!K241 -> 0 | L30: =A5A!L241 -> 0
A31: Vote 8 - [NAME OF VOTE 8] | C31: =A5A!C252 -> 0 | D31: =A5A!D252 -> 0 | E31: =A5A!E252 -> 0 | F31: =A5A!F252 -> 0 | G31: =A5A!G252 -> 0 | H31: =A5A!H252 -> 0 | I31: =A5A!I252 -> 0 | J31: =A5A!J252 -> 0 | K31: =A5A!K252 -> 0 | L31: =A5A!L252 -> 0
A32: Vote 9 - [NAME OF VOTE 9] | C32: =A5A!C263 -> 0 | D32: =A5A!D263 -> 0 | E32: =A5A!E263 -> 0 | F32: =A5A!F263 -> 0 | G32: =A5A!G263 -> 0 | H32: =A5A!H263 -> 0 | I32: =A5A!I263 -> 0 | J32: =A5A!J263 -> 0 | K32: =A5A!K263 -> 0 | L32: =A5A!L263 -> 0
A33: Vote 10 - [NAME OF VOTE 10] | C33: =A5A!C274 -> 0 | D33: =A5A!D274 -> 0 | E33: =A5A!E274 -> 0 | F33: =A5A!F274 -> 0 | G33: =A5A!G274 -> 0 | H33: =A5A!H274 -> 0 | I33: =A5A!I274 -> 0 | J33: =A5A!J274 -> 0 | K33: =A5A!K274 -> 0 | L33: =A5A!L274 -> 0
A34: Vote 11 - [NAME OF VOTE 11] | C34: =A5A!C285 -> 0 | D34: =A5A!D285 -> 0 | E34: =A5A!E285 -> 0 | F34: =A5A!F285 -> 0 | G34: =A5A!G285 -> 0 | H34: =A5A!H285 -> 0 | I34: =A5A!I285 -> 0 | J34: =A5A!J285 -> 0 | K34: =A5A!K285 -> 0 | L34: =A5A!L285 -> 0
A35: Vote 12 - [NAME OF VOTE 12] | C35: =A5A!C296 -> 0 | D35: =A5A!D296 -> 0 | E35: =A5A!E296 -> 0 | F35: =A5A!F296 -> 0 | G35: =A5A!G296 -> 0 | H35: =A5A!H296 -> 0 | I35: =A5A!I296 -> 0 | J35: =A5A!J296 -> 0 | K35: =A5A!K296 -> 0 | L35: =A5A!L296 -> 0
A36: Vote 13 - [NAME OF VOTE 13] | C36: =A5A!C307 -> 0 | D36: =A5A!D307 -> 0 | E36: =A5A!E307 -> 0 | F36: =A5A!F307 -> 0 | G36: =A5A!G307 -> 0 | H36: =A5A!H307 -> 0 | I36: =A5A!I307 -> 0 | J36: =A5A!J307 -> 0 | K36: =A5A!K307 -> 0 | L36: =A5A!L307 -> 0
A37: Vote 14 - [NAME OF VOTE 14] | C37: =A5A!C318 -> 0 | D37: =A5A!D318 -> 0 | E37: =A5A!E318 -> 0 | F37: =A5A!F318 -> 0 | G37: =A5A!G318 -> 0 | H37: =A5A!H318 -> 0 | I37: =A5A!I318 -> 0 | J37: =A5A!J318 -> 0 | K37: =A5A!K318 -> 0 | L37: =A5A!L318 -> 0
A38: =A20 -> Vote 15 - [NAME OF VOTE 15] | C38: =A5A!C329 -> 0 | D38: =A5A!D329 -> 0 | E38: =A5A!E329 -> 0 | F38: =A5A!F329 -> 0 | G38: =A5A!G329 -> 0 | H38: =A5A!H329 -> 0 | I38: =A5A!I329 -> 0 | J38: =A5A!J329 -> 0 | K38: =A5A!K329 -> 0 | L38: =A5A!L329 -> 0
A39: Capital single-year expenditure sub-total | C39: =SUM(C24:C38) -> 0 | D39: =SUM(D24:D38) -> 100431934.4 | E39: 470244485 | F39: 65405544 | G39: 303066446.7 | H39: 303066446.7 | I39: 0 | J39: 71724000 | K39: 78469652 | L39: 84115614
A40: Total Capital Expenditure - Vote | C40: =C39+C21 -> 648109542 | D40: =D39+D21 -> 594896668.5 | E40: 613486541 | F40: 555171301.4 | G40: 746194546.2 | H40: 746194546.2 | I40: 0 | J40: 580891581 | K40: 553949399.5 | L40: 522868840
A42: Capital Expenditure - Functional
A43: Governance and administration | C43: =SUM(C44:C46) -> 61849172.99 | D43: =SUM(D44:D46) -> 29972312.97 | E43: 28132933 | F43: 51135000 | G43: 40960901.42 | H43: 40960901.42 | I43: 0 | J43: 32500000 | K43: 27300000 | L43: 28400000
A44: Executive and council | C44: 3706714.29 | D44: 999317.72 | E44: 3715815 | F44: 2178500 | G44: 4705618.88 | H44: 4705618.88 | J44: 5000000
A45: Finance and administration | C45: 57978663.7 | D45: 28972995.25 | E45: 24297118 | F45: 48706500 | G45: 35954570.45 | H45: 35954570.45 | J45: 27500000 | K45: 27300000 | L45: 28400000
A46: Internal audit | C46: 163795 | E46: 120000 | F46: 250000 | G46: 300712.09 | H46: 300712.09
A47: Community and public safety | C47: =SUM(C48:C52) -> 119183080.9 | D47: =SUM(D48:D52) -> 66163824.06 | E47: 94239595 | F47: 28965656 | G47: 256849069.3 | H47: 256849069.3 | I47: 0 | J47: 324874092 | K47: 262093502 | L47: 208588582.5
A48: Community and social services | C48: 40840403.86 | D48: 10800630.3 | E48: 30651091 | F48: 22407256 | G48: 23977454.35 | H48: 23977454.35 | J48: 45972000 | K48: 34831400 | L48: 40005724
A49: Sport and recreation | C49: 50889611.23 | D49: 29669037.71 | E49: 11558226 | F49: 1500000 | G49: 750949.64 | H49: 750949.64
A50: Public safety | C50: 1959969.31 | D50: 5109025.42 | E50: 2000000 | F50: 1058400 | G50: 1902405.75 | H50: 1902405.75
A51: Housing | C51: 25493096.45 | D51: 20585130.63 | E51: 50030278 | F51: 4000000 | G51: 230218259.6 | H51: 230218259.6 | J51: 278902092 | K51: 227262102 | L51: 168582858.5
A52: Health | G52: 0 | H52: 0
A53: Economic and environmental services | C53: =SUM(C54:C56) -> 272394052.3 | D53: =SUM(D54:D56) -> 276491579 | E53: 181530343 | F53: 286538900.4 | G53: 312614819.7 | H53: 312614819.7 | I53: 0 | J53: 104572064 | K53: 88666172.82 | L53: 104570094.8
A54: Planning and development | C54: 15201018.66 | D54: 53736385.34 | E54: 35975923 | F54: 51800000.4 | G54: 40151253.69 | H54: 40151253.69 | J54: 13936064 | K54: 15274123 | L54: 26000000
A55: Road transport | C55: 255942307.6 | D55: 222441760 | E55: 143969445 | F55: 234378900 | G55: 272463566 | H55: 272463566 | J55: 90636000 | K55: 73392049.82 | L55: 78570094.81
A56: Environmental protection | C56: 1250726.01 | D56: 313433.59 | E56: 1584975 | F56: 360000 | G56: 0 | H56: 0
A57: Trading services | C57: =SUM(C58:C61) -> 173198526.2 | D57: =SUM(D58:D61) -> 226939794.4 | E57: 177154337 | F57: 180491745 | G57: 131169354.6 | H57: 131169354.6 | I57: 0 | J57: 103769000 | K57: 159595125 | L57: 171181612.5
A58: Energy sources | C58: 79785727.25 | D58: 108120630.9 | E58: 56636360 | F58: 28331044 | G58: 17808538.09 | H58: 17808538.09 | J58: 12500000 | K58: 9000000 | L58: 16540000
A59: Water management | C59: 61137887.75 | D59: 59634353.24 | E59: 75391016 | F59: 100054457 | G59: 78088841.36 | H59: 78088841.36 | J59: 59255000 | K59: 94817500 | L59: 96466550
A60: Waste water management | C60: 23781407.9 | D60: 25570137.06 | E60: 44301896 | F60: 45106244 | G60: 27987832.55 | H60: 27987832.55 | J60: 27514000 | K60: 48977625 | L60: 51815062.5
A61: Waste management | C61: 8493503.3 | D61: 33614673.25 | E61: 825065 | F61: 7000000 | G61: 7284142.62 | H61: 7284142.62 | J61: 4500000 | K61: 6800000 | L61: 6360000
A62: Other | C62: 2407128.7 | D62: 486034.61 | E62: 5136425 | F62: 8240000 | G62: 4600400.69 | H62: 4600400.69 | J62: 2500000
A63: Total Capital Expenditure - Functional | B63: 3 | C63: =C43+C47+C53+C57+C62 -> 629031961 | D63: =D43+D47+D53+D57+D62 -> 600053545 | E63: 486193633 | F63: 555371301.4 | G63: 746194545.7 | H63: 746194545.7 | I63: 0 | J63: 568215156 | K63: 537654799.8 | L63: =L43+L47+L53+L57+L62 -> 512740289.8
A65: Funded by:
A66: National Government | C66: 376644064.5 | D66: 232549654.4 | E66: 293481109 | F66: 429351400 | G66: 393443478 | H66: 393443478 | J66: 255267425 | K66: 278927400 | L66: 303185840
A67: Provincial Government | C67: 24611353.61 | D67: 131196266.8 | E67: 72548195 | F67: 9991000 | G67: 273968716 | H67: 273968716 | J67: 270624156 | K67: 208922000 | L67: 152783000
A68: District Municipality | G68: 0 | H68: 0
A69: ='A4-FinPerf RE'!A39 -> Transfers and subsidies - capital (monetary allocations) (National / Provincial Departmental Agencies, Households, Non-profit Institutions, Private Enterprises, Public Corporatons, Higher Educational Institutions) | G69: 0
A70: Transfers recognised - capital | B70: 4 | C70: =SUM(C66:C69) -> 401255418.1 | D70: 363745921.2 | E70: 366029304 | F70: 439342400 | G70: 667412194 | H70: 667412194 | I70: 0 | J70: 525891581 | K70: 487849400 | L70: 455968840
A72: Borrowing | B72: 6 | C72: 40245430.79 | D72: 88896142.76 | E72: 47052852 | F72: 5631044 | G72: 5631044 | H72: 5631044
A73: Internally generated funds | C73: 187531112.1 | D73: 147411481 | E73: 73111477 | F73: 110397892.6 | G73: 73151307.71 | H73: 73151307.71 | I73: 0 | J73: 55000000 | K73: 66100000 | L73: 66900000
A74: Total Capital Funding | B74: 7 | C74: =+C70+C72+C73 -> 629031961 | D74: =+D70+D72+D73 -> 600053545 | E74: 486193633 | F74: 555371336.6 | G74: 746194545.7 | H74: 746194545.7 | I74: 0 | J74: 580891581 | K74: 553949400 | L74: 522868840
A75: =head27a -> References
A76: 1. Municipalities may choose to appropriate for capital expenditure for three years or for one year (if one year appropriation projected expenditure required for yr2 and yr3).
A77: 2. Include capital component of PPP unitary payment. Note that capital transfers are only appropriated to municipalities for the budget year
A78: 3. Capital expenditure by functional classification must reconcile to the appropriations by vote
A79: 4. Must reconcile to supporting table SA20 and to Budgeted Financial Performance (revenue and expenditure)
A81: 6. Include finance leases and PPP capital funding component of unitary payment - total borrowing/repayments to reconcile to changes in Table SA17
A82: 7. Total Capital Funding must balance with Total Capital Expenditure
A83: 8. Include any capitalised interest (MFMA section 46) as part of relevant capital budget
A85: check balance | C85: =IF((C63-C74)=0,0,"Unbalanced") -> Unbalanced | D85: =IF((D63-D74)=0,0,"Unbalanced") -> 0 | E85: 0 | F85: Unbalanced | G85: 0 | H85: 0 | I85: 0 | J85: Unbalanced | K85: Unbalanced | L85: Unbalanced

Sheet A5A
A1: =muni&" - "&Approve5 -> KZN225 Msunduzi - Table A5 Consolidated Budgeted Capital Expenditure by vote, functional classification and funding
A2: =Vdesc -> Vote Description | B2: =head27 -> Ref | C2: =head1b -> 2016/17 | D2: =head1A -> 2017/18 | E2: =Head1 -> 2018/19 | F2: =Head2 -> Current Year 2019/20 | J2: =Head3 -> 2020/21 Medium Term Revenue & Expenditure Framework | N2: ="Multi-year appropriation for "&Head9& " in the "&Head2A&" Annual Budget" -> Multi-year appropriation for Budget Year 2020/21 in the 2019/20 Annual Budget | R2: ="Multi-year appropriation for "&RIGHT(Head10,7)& " in the "&Head2A&" Annual Budget" -> Multi-year appropriation for 2021/22 in the 2019/20 Annual Budget | V2: New multi-year appropriations (funds for new and existing projects)
A3: R thousand | B3: 1 | C3: =Head5 -> Audited Outcome | D3: =Head5 -> Audited Outcome | E3: =Head5 -> Audited Outcome | F3: =Head6 -> Original Budget | G3: =Head7 -> Adjusted Budget | H3: =Head8 -> Full Year Forecast | I3: =Head5b -> Pre-audit outcome | J3: =Head9 -> Budget Year 2020/21 | K3: =Head10 -> Budget Year +1 2021/22 | L3: =Head11 -> Budget Year +2 2022/23 | N3: ="Appropriation for "&RIGHT(Head9,7) -> Appropriation for 2020/21 | O3: ="Adjustments in "&Head2A -> Adjustments in 2019/20 | P3: ="Downward adjustments for "&RIGHT(Head9,7) -> Downward adjustments for 2020/21 | Q3: Appropriation carried forward | R3: ="Appropriation for "&RIGHT(Head9,7) -> Appropriation for 2020/21 | S3: ="Adjustments in "&Head2A -> Adjustments in 2019/20 | T3: ="Downward adjustments for "&RIGHT(Head9,7) -> Downward adjustments for 2020/21 | U3: Appropriation carried forward | V3: =Head9 -> Budget Year 2020/21 | W3: =Head10 -> Budget Year +1 2021/22 | X3: =Head11 -> Budget Year +2 2022/23
A4: Capital expenditure - Municipal Vote
A5: Multi-year expenditure appropriation | B5: 2
A6: ='Org structure'!A2 -> Vote 1 - City Manager | C6: =SUM(C7:C16) -> 3866284.29 | D6: =SUM(D7:D16) -> 320532.86 | E6: 10000 | F6: 5131500 | G6: 0 | H6: 0 | I6: =SUM(I7:I16) -> 0 | J6: 3800000 | K6: 5000000 | L6: 3000000 | N6: =SUM(N7:N16) -> 0 | O6: 0 | P6: 0 | Q6: 0 | R6: 0 | S6: 0 | T6: 0 | U6: 0 | V6: =SUM(V7:V16) -> 3800000 | W6: =SUM(W7:W16) -> 5000000 | X6: =SUM(X7:X16) -> 3000000
A7: ='Org structure'!E3 -> 1.1 - Internal Audit and Compliance | C7: 163795 | F7: 0 | G7: 0 | H7: 0 | J7: =Q7+V7 -> 0 | K7: =U7+W7 -> 0 | L7: =X7 -> 0 | Q7: =SUM(N7:P7) -> 0 | U7: =SUM(R7:T7) -> 0
A8: ='Org structure'!E4 -> 1.2 - Office of the City Manager | C8: 3683616.56 | D8: 320532.86 | E8: 10000 | F8: 5131500 | G8: 0 | H8: 0 | J8: =Q8+V8 -> 3800000 | K8: =U8+W8 -> 5000000 | L8: =X8 -> 3000000 | Q8: =SUM(N8:P8) -> 0 | U8: =SUM(R8:T8) -> 0 | V8: 3800000 | W8: 5000000 | X8: 3000000
A9: ='Org structure'!E5 -> 1.3 - Political Support | C9: 18872.73 | F9: 0 | G9: 0 | H9: 0 | J9: =Q9+V9 -> 0 | K9: =U9+W9 -> 0 | L9: 0 | Q9: 0 | U9: 0
A10: ='Org structure'!E6 -> 1.4 - Strategic Planning | F10: 0 | G10: 0 | H10: 0 | J10: 0 | K10: 0 | L10: 0 | Q10: 0 | U10: 0
A11: ='Org structure'!E7 -> 0 | J11: 0 | K11: 0 | L11: =X11 -> 0 | Q11: 0 | U11: 0
A12: ='Org structure'!E8 -> 0 | J12: 0 | K12: 0 | L12: 0 | Q12: 0 | U12: 0
A13: ='Org structure'!E9 -> 0 | J13: 0 | K13: 0 | L13: 0 | Q13: 0 | U13: 0
A14: ='Org structure'!E10 -> 0 | J14: 0 | K14: 0 | L14: 0 | Q14: 0 | U14: 0
A15: ='Org structure'!E11 -> 0 | J15: 0 | K15: 0 | L15: 0 | Q15: 0 | U15: 0
A16: ='Org structure'!E12 -> 0 | J16: 0 | K16: 0 | L16: 0 | Q16: 0 | U16: 0
A17: ='Org structure'!A3 -> Vote 2 - City Finance | C17: =SUM(C18:C27) -> 30114037.03 | D17: =SUM(D18:D27) -> 8968380.12 | E17: 0 | F17: 22500000 | G17: 25594505.69 | H17: 25594505.69 | I17: =SUM(I18:I27) -> 0 | J17: 12500000 | K17: 18000000 | L17: 18000000 | N17: =SUM(N18:N27) -> 0 | O17: 0 | P17: 0 | Q17: 0 | R17: 0 | S17: 0 | T17: 0 | U17: 0 | V17: 12500000 | W17: 18000000 | X17: 18000000
A18: ='Org structure'!E14 -> 2.1 - Asset Management | C18: 15400 | F18: 500000 | G18: 0 | H18: 0 | J18: =Q18+V18 -> 0 | K18: =U18+W18 -> 0 | L18: =X18 -> 0 | Q18: =SUM(N18:P18) -> 0 | U18: 0
A19: ='Org structure'!E15 -> 2.2 - Budget and Treasury Management | C19: 29348282.23 | D19: 8968380.12 | F19: 22000000 | G19: 25594505.69 | H19: 25594505.69 | J19: =Q19+V19 -> 12500000 | K19: =U19+W19 -> 18000000 | L19: 18000000 | Q19: 0 | U19: 0 | V19: 12500000 | W19: 18000000 | X19: 18000000
A20: ='Org structure'!E16 -> 2.3 - Expenditure Management | C20: 76372.78 | F20: 0 | G20: 0 | H20: 0 | J20: 0 | K20: 0 | L20: 0 | Q20: 0 | U20: 0
A21: ='Org structure'!E17 -> 2.4 - Revenue Management | C21: 312172.48 | F21: 0 | G21: 0 | H21: 0 | J21: 0 | K21: =U21+W21 -> 0 | L21: 0 | Q21: 0 | U21: 0
A22: ='Org structure'!E18 -> 2.5 - Supply Chain Management | C22: 361809.54 | F22: 0 | G22: 0 | H22: 0 | J22: 0 | K22: 0 | L22: 0 | Q22: 0 | U22: 0
A23: ='Org structure'!E19 -> 0 | J23: 0 | K23: 0 | L23: 0 | Q23: 0 | U23: 0
A24: ='Org structure'!E20 -> 0 | J24: 0 | K24: 0 | L24: 0 | Q24: 0 | U24: 0
A25: ='Org structure'!E21 -> 0 | J25: 0 | K25: 0 | L25: 0 | Q25: 0 | U25: 0
A26: ='Org structure'!E22 -> 0 | J26: 0 | K26: 0 | L26: 0 | Q26: 0 | U26: 0
A27: ='Org structure'!E23 -> 0 | J27: 0 | K27: 0 | L27: 0 | Q27: 0 | U27: 0
A28: ='Org structure'!A4 -> Vote 3 - Community Services and Social Equity | C28: =SUM(C29:C38) -> 102852006.5 | D28: =SUM(D29:D38) -> 20104586.9 | E28: 35939310 | F28: 22974656 | G28: 16369979.46 | H28: 16369979.46 | I28: =SUM(I29:I38) -> 0 | J28: 23812425 | K28: 34900000 | L28: 39580000 | N28: =SUM(N29:N38) -> 0 | O28: 0 | P28: 0 | Q28: 0 | R28: 0 | S28: 0 | T28: 0 | U28: 0 | V28: 23812425 | W28: 34900000 | X28: 39580000
A29: ='Org structure'!E25 -> 3.1 - Area Based Management | C29: 32500 | E29: 0 | F29: 800000 | G29: 400506.47 | H29: 400506.47 | J29: =Q29+V29 -> 0 | K29: =U29+W29 -> 0 | L29: =X29 -> 0 | Q29: =SUM(N29:P29) -> 0 | U29: 0
A30: ='Org structure'!E26 -> 3.2 - Public Safety, Emergency Services and Enforcement | C30: 3098655.24 | D30: 254720.61 | E30: 4241000 | F30: 3258400 | G30: 1501899.28 | H30: 1501899.28 | J30: 0 | K30: 0 | L30: 0 | Q30: 0 | U30: 0
A31: ='Org structure'!E27 -> 3.3 - Recreation and Facilities | C31: 91227347.95 | D31: 15517625.77 | E31: 31612609 | F31: 11916256 | G31: 7183431.09 | H31: 7183431.09 | J31: 7000000 | K31: 26900000 | L31: 31100000 | Q31: 0 | U31: =SUM(R31:T31) -> 0 | V31: 7000000 | W31: 26900000 | X31: 31100000
A32: ='Org structure'!E28 -> 3.4 - Waste Management | C32: 8493503.3 | D32: 4332240.52 | E32: 85701 | F32: 7000000 | G32: 7284142.62 | H32: 7284142.62 | J32: 16812425 | K32: =U32+W32 -> 8000000 | L32: 8480000 | Q32: 0 | U32: 0 | V32: 16812425 | W32: 8000000 | X32: 8480000
A33: ='Org structure'!E29 -> 3.5 - [Name of sub-vote] | J33: =Q33+V33 -> 0 | K33: 0 | L33: 0 | Q33: 0 | U33: 0
A34: ='Org structure'!E30 -> 3.5 - [Name of sub-vote] | J34: 0 | K34: 0 | L34: 0 | Q34: 0 | U34: 0
A35: ='Org structure'!E31 -> 0 | J35: 0 | K35: 0 | L35: 0 | Q35: 0 | U35: 0
A36: ='Org structure'!E32 -> 0 | J36: 0 | K36: 0 | L36: 0 | Q36: 0 | U36: 0
A37: ='Org structure'!E33 -> 0 | J37: 0 | K37: 0 | L37: 0 | Q37: 0 | U37: 0
A38: ='Org structure'!E34 -> 0 | J38: 0 | K38: 0 | L38: 0 | Q38: 0 | U38: 0
A39: ='Org structure'!A5 -> Vote 4 - Corporate Services | C39: =SUM(C40:C49) -> 25749118.25 | D39: =SUM(D40:D49) -> 823826.7 | E39: 2587789 | F39: 500000 | G39: 80126.62 | H39: 80126.62 | I39: =SUM(I40:I49) -> 0 | J39: 0 | K39: 0 | L39: 0 | N39: =SUM(N40:N49) -> 0 | O39: 0 | P39: 0 | Q39: 0 | R39: 0 | S39: 0 | T39: 0 | U39: 0 | V39: 0 | W39: 0 | X39: 0
A40: ='Org structure'!E36 -> 4.1 - Human Resources Management | C40: 92909.01 | F40: 0 | G40: 0 | H40: 0 | J40: =Q40+V40 -> 0 | K40: =U40+W40 -> 0 | L40: =X40 -> 0 | Q40: =SUM(N40:P40) -> 0 | U40: 0
A41: ='Org structure'!E37 -> 4.2 - Information Technology | C41: 25516692.05 | D41: 823826.7 | E41: 2587789 | F41: 0 | G41: -500000 | H41: -500000 | J41: 0 | K41: 0 | L41: 0 | Q41: 0 | U41: 0
A42: ='Org structure'!E38 -> 4.3 - Legal Services | C42: 7500 | F42: 500000 | G42: 500000 | H42: 500000 | J42: 0 | K42: 0 | L42: 0 | Q42: 0 | U42: 0
A43: ='Org structure'!E39 -> 4.4 - Secretariat and Auxiliary Services | C43: 132017.19 | F43: 0 | G43: 80126.62 | H43: 80126.62 | J43: 0 | K43: 0 | L43: 0 | Q43: 0 | U43: 0
A44: ='Org structure'!E40 -> 4.5 - General Manager: Corporate Service | G44: 0 | H44: 0 | J44: 0 | K44: 0 | L44: 0 | Q44: 0 | U44: 0
A45: ='Org structure'!E41 -> 0 | J45: 0 | K45: 0 | L45: 0 | Q45: 0 | U45: 0
A46: ='Org structure'!E42 -> 0 | J46: 0 | K46: 0 | L46: 0 | Q46: 0 | U46: 0
A47: ='Org structure'!E43 -> 0 | J47: 0 | K47: 0 | L47: 0 | Q47: 0 | U47: 0
A48: ='Org structure'!E44 -> 0 | J48: 0 | K48: 0 | L48: 0 | Q48: 0 | U48: 0
A49: ='Org structure'!E45 -> 0 | J49: 0 | K49: 0 | L49: 0 | Q49: 0 | U49: 0
A50: ='Org structure'!A6 -> Vote 5 - Infrastructure Services | C50: =SUM(C51:C60) -> 438846136.9 | D50: =SUM(D51:D60) -> 391837160.5 | E50: 29245686 | F50: 377869601 | G50: 360524721 | H50: 360524721 | I50: =SUM(I51:I60) -> 0 | J50: 168455000 | K50: 174485747.5 | L50: 186260226 | N50: =SUM(N51:N60) -> 0 | O50: 0 | P50: 0 | Q50: 0 | R50: 0 | S50: 0 | T50: 0 | U50: 0 | V50: 168455000 | W50: 174485747.5 | X50: 186260226
A51: ='Org structure'!E47 -> 5.1 - Electricity | C51: 79785727.25 | D51: 99456099.19 | E51: 7811932 | F51: 14900000 | G51: 7776708 | H51: 7776708 | J51: =Q51+V51 -> 0 | K51: =U51+W51 -> 0 | L51: =X51 -> 0 | Q51: =SUM(N51:P51) -> 0 | U51: 0
A52: ='Org structure'!E48 -> 5.2 - Project Management Office | C52: 160686.32 | F52: 0 | G52: 0 | H52: 0 | J52: 0 | K52: 0 | L52: 0 | Q52: 0 | U52: 0
A53: ='Org structure'!E49 -> 5.3 - Roads and Transportation | C53: 273980427.7 | D53: 210859456.2 | E53: 19991754 | F53: 219058900 | G53: 255171718 | H53: 255171718 | J53: 55700000 | K53: 64445122.55 | L53: 70987163.99 | Q53: 0 | U53: 0 | V53: 55700000 | W53: 64445122.55 | X53: 70987163.99
A54: ='Org structure'!E50 -> 5.4 - Water and Sanitation | C54: 84919295.65 | D54: 81517380.13 | E54: 1442000 | F54: 143910701 | G54: 97576295 | H54: 97576295 | J54: 112755000 | K54: 110040625 | L54: 115273062 | Q54: 0 | U54: 0 | V54: 112755000 | W54: 110040625 | X54: 115273062
A55: ='Org structure'!E51 -> 5.5 - General Manager: Infrastructure | D55: 4225 | J55: 0 | K55: 0 | L55: 0 | Q55: 0 | U55: 0
A56: ='Org structure'!E52 -> 0 | J56: 0 | K56: 0 | L56: 0 | Q56: 0 | U56: 0
A57: ='Org structure'!E53 -> 0 | J57: 0 | K57: 0 | L57: 0 | Q57: 0 | U57: 0
A58: ='Org structure'!E54 -> 0 | J58: 0 | K58: 0 | L58: 0 | Q58: 0 | U58: 0
A59: ='Org structure'!E55 -> 0 | J59: 0 | K59: 0 | L59: 0 | Q59: 0 | U59: 0
A60: ='Org structure'!E56 -> 0 | J60: 0 | K60: 0 | L60: 0 | Q60: 0 | U60: 0
A61: ='Org structure'!A7 -> Vote 6 - Sustainable Development and City Enterprises | C61: =SUM(C62:C71) -> 46681959.06 | D61: =SUM(D62:D71) -> 72410247 | E61: 75459271 | F61: 60790000.4 | G61: 40558766.7 | H61: 40558766.7 | I61: =SUM(I62:I71) -> 0 | J61: 300600156 | K61: 243094000 | L61: 191913000 | N61: =SUM(N62:N71) -> 0 | O61: 0 | P61: 0 | Q61: 0 | R61: 0 | S61: 0 | T61: 0 | U61: 0 | V61: 300600156 | W61: 243094000 | X61: 191913000
A62: ='Org structure'!E58 -> 6.1 - City Entities | C62: 4717972.94 | D62: 77653.21 | E62: 4173693 | F62: 6540000 | G62: 3274140.43 | H62: 3274140.43 | J62: =Q62+V62 -> 10212000 | K62: =U62+W62 -> 10235000 | L62: =X62 -> 7468000 | Q62: =SUM(N62:P62) -> 0 | U62: 0 | V62: 10212000 | W62: 10235000 | X62: 7468000
A63: ='Org structure'!E59 -> 6.2 - Development Services | C63: 19145 | F63: 0 | G63: 0 | H63: 0 | J63: 35000000 | K63: 35000000 | L63: 40000000 | Q63: 0 | U63: 0 | V63: 35000000 | W63: 35000000 | X63: 40000000
A64: ='Org structure'!E60 -> 6.3 - Human Settlement Development | C64: 25493096.45 | D64: 19804945.66 | E64: 42805253 | F64: 4000000 | G64: 1730607 | H64: 1730607 | J64: 255388156 | K64: 197859000 | L64: 144445000 | Q64: 0 | U64: 0 | V64: 255388156 | W64: 197859000 | X64: 144445000
A65: ='Org structure'!E61 -> 6.4 - Town Planning | C65: 16451744.67 | D65: 52527648.13 | E65: 28480325 | F65: 50250000.4 | G65: 35554019.27 | H65: 35554019.27 | J65: 0 | K65: 0 | L65: 0 | Q65: 0 | U65: 0
A66: ='Org structure'!E62 -> 6.5 - General Manager: Sustainable Development and City Enterprises | G66: 0 | H66: 0 | J66: 0 | K66: 0 | L66: 0 | Q66: 0 | U66: 0
A67: ='Org structure'!E63 -> 0 | J67: 0 | K67: 0 | L67: 0 | Q67: 0 | U67: 0
A68: ='Org structure'!E64 -> 0 | J68: 0 | K68: 0 | L68: 0 | Q68: 0 | U68: 0
A69: ='Org structure'!E65 -> 0 | J69: 0 | K69: 0 | L69: 0 | Q69: 0 | U69: 0
A70: ='Org structure'!E66 -> 0 | J70: 0 | K70: 0 | L70: 0 | Q70: 0 | U70: 0
A71: ='Org structure'!E67 -> 0 | J71: 0 | K71: 0 | L71: 0 | Q71: 0 | U71: 0
A72: ='Org structure'!A8 -> Vote 7 - [NAME OF VOTE 7] | C72: =SUM(C73:C82) -> 0 | D72: 0 | E72: 0 | F72: 0 | G72: 0 | H72: 0 | I72: 0 | J72: 0 | K72: 0 | L72: 0 | N72: =SUM(N73:N82) -> 0 | O72: 0 | P72: 0 | Q72: 0 | R72: 0 | S72: 0 | T72: 0 | U72: 0 | V72: 0 | W72: 0 | X72: 0
A73: ='Org structure'!E69 -> 7.1 - [Name of sub-vote] | J73: =Q73+V73 -> 0 | K73: =U73+W73 -> 0 | L73: =X73 -> 0 | Q73: =SUM(N73:P73) -> 0 | U73: =SUM(R73:T73) -> 0
A74: ='Org structure'!E70 -> 0 | J74: 0 | K74: 0 | L74: 0 | Q74: 0 | U74: 0
A75: ='Org structure'!E71 -> 0 | J75: 0 | K75: 0 | L75: 0 | Q75: 0 | U75: 0
A76: ='Org structure'!E72 -> 0 | J76: 0 | K76: 0 | L76: 0 | Q76: 0 | U76: 0
A77: ='Org structure'!E73 -> 0 | J77: 0 | K77: 0 | L77: 0 | Q77: 0 | U77: 0
A78: ='Org structure'!E74 -> 0 | J78: 0 | K78: 0 | L78: 0 | Q78: 0 | U78: 0
A79: ='Org structure'!E75 -> 0 | J79: 0 | K79: 0 | L79: 0 | Q79: 0 | U79: 0
A80: ='Org structure'!E76 -> 0 | J80: 0 | K80: 0 | L80: 0 | Q80: 0 | U80: 0
A81: ='Org structure'!E77 -> 0 | J81: 0 | K81: 0 | L81: 0 | Q81: 0 | U81: 0
A82: ='Org structure'!E78 -> 0 | J82: 0 | K82: 0 | L82: 0 | Q82: 0 | U82: 0
A83: ='Org structure'!A9 -> Vote 8 - [NAME OF VOTE 8] | C83: =SUM(C84:C93) -> 0 | D83: 0 | E83: 0 | F83: 0 | G83: 0 | H83: 0 | I83: 0 | J83: 0 | K83: 0 | L83: 0 | N83: =SUM(N84:N93) -> 0 | O83: 0 | P83: 0 | Q83: 0 | R83: 0 | S83: 0 | T83: 0 | U83: 0 | V83: 0 | W83: 0 | X83: 0
A84: ='Org structure'!E80 -> 8.1 - [Name of sub-vote] | J84: =Q84+V84 -> 0 | K84: =U84+W84 -> 0 | L84: =X84 -> 0 | Q84: =SUM(N84:P84) -> 0 | U84: 0
A85: ='Org structure'!E81 -> 0 | J85: 0 | K85: 0 | L85: 0 | Q85: 0 | U85: 0
A86: ='Org structure'!E82 -> 0 | J86: 0 | K86: 0 | L86: 0 | Q86: 0 | U86: 0
A87: ='Org structure'!E83 -> 0 | J87: 0 | K87: 0 | L87: 0 | Q87: 0 | U87: 0
A88: ='Org structure'!E84 -> 0 | J88: 0 | K88: 0 | L88: 0 | Q88: 0 | U88: 0
A89: ='Org structure'!E85 -> 0 | J89: 0 | K89: 0 | L89: 0 | Q89: 0 | U89: 0
A90: ='Org structure'!E86 -> 0 | J90: 0 | K90: 0 | L90: 0 | Q90: 0 | U90: 0
A91: ='Org structure'!E87 -> 0 | J91: 0 | K91: 0 | L91: 0 | Q91: 0 | U91: 0
A92: ='Org structure'!E88 -> 0 | J92: 0 | K92: 0 | L92: 0 | Q92: 0 | U92: 0
A93: ='Org structure'!E89 -> 0 | J93: 0 | K93: 0 | L93: 0 | Q93: 0 | U93: 0
A94: ='Org structure'!A10 -> Vote 9 - [NAME OF VOTE 9] | C94: =SUM(C95:C104) -> 0 | D94: =SUM(D95:D104) -> 0 | E94: 0 | F94: 0 | G94: 0 | H94: 0 | I94: 0 | J94: 0 | K94: 0 | L94: 0 | N94: =SUM(N95:N104) -> 0 | O94: 0 | P94: 0 | Q94: 0 | R94: 0 | S94: 0 | T94: 0 | U94: 0 | V94: 0 | W94: 0 | X94: 0
A95: ='Org structure'!E91 -> 9.1 - [Name of sub-vote] | J95: =Q95+V95 -> 0 | K95: =U95+W95 -> 0 | L95: =X95 -> 0 | Q95: =SUM(N95:P95) -> 0 | U95: 0
A96: ='Org structure'!E92 -> 0 | J96: 0 | K96: 0 | L96: 0 | Q96: 0 | U96: 0
A97: ='Org structure'!E93 -> 0 | J97: 0 | K97: 0 | L97: 0 | Q97: 0 | U97: 0
A98: ='Org structure'!E94 -> 0 | J98: 0 | K98: 0 | L98: 0 | Q98: 0 | U98: 0
A99: ='Org structure'!E95 -> 0 | J99: 0 | K99: 0 | L99: 0 | Q99: 0 | U99: 0
A100: ='Org structure'!E96 -> 0 | J100: 0 | K100: 0 | L100: 0 | Q100: 0 | U100: 0
A101: ='Org structure'!E97 -> 0 | J101: 0 | K101: 0 | L101: 0 | Q101: 0 | U101: 0
A102: ='Org structure'!E98 -> 0 | J102: 0 | K102: 0 | L102: 0 | Q102: 0 | U102: 0
A103: ='Org structure'!E99 -> 0 | J103: 0 | K103: 0 | L103: 0 | Q103: 0 | U103: 0
A104: ='Org structure'!E100 -> 0 | J104: 0 | K104: 0 | L104: 0 | Q104: 0 | U104: 0
A105: ='Org structure'!A11 -> Vote 10 - [NAME OF VOTE 10] | C105: =SUM(C106:C115) -> 0 | D105: =SUM(D106:D115) -> 0 | E105: 0 | F105: 0 | G105: 0 | H105: 0 | I105: 0 | J105: 0 | K105: 0 | L105: 0 | N105: =SUM(N106:N115) -> 0 | O105: 0 | P105: 0 | Q105: 0 | R105: 0 | S105: 0 | T105: 0 | U105: 0 | V105: 0 | W105: 0 | X105: 0
A106: ='Org structure'!E102 -> 10.1 - [Name of sub-vote] | J106: =Q106+V106 -> 0 | K106: =U106+W106 -> 0 | L106: =X106 -> 0 | Q106: =SUM(N106:P106) -> 0 | U106: 0
A107: ='Org structure'!E103 -> 0 | J107: 0 | K107: 0 | L107: 0 | Q107: 0 | U107: 0
A108: ='Org structure'!E104 -> 0 | J108: 0 | K108: 0 | L108: 0 | Q108: 0 | U108: 0
A109: ='Org structure'!E105 -> 0 | J109: 0 | K109: 0 | L109: 0 | Q109: 0 | U109: 0
A110: ='Org structure'!E106 -> 0 | J110: 0 | K110: 0 | L110: 0 | Q110: 0 | U110: 0
A111: ='Org structure'!E107 -> 0 | J111: 0 | K111: 0 | L111: 0 | Q111: 0 | U111: 0
A112: ='Org structure'!E108 -> 0 | J112: 0 | K112: 0 | L112: 0 | Q112: 0 | U112: 0
A113: ='Org structure'!E109 -> 0 | J113: 0 | K113: 0 | L113: 0 | Q113: 0 | U113: 0
A114: ='Org structure'!E110 -> 0 | J114: 0 | K114: 0 | L114: 0 | Q114: 0 | U114: 0
A115: ='Org structure'!E111 -> 0 | J115: 0 | K115: 0 | L115: 0 | Q115: 0 | U115: 0
A116: ='Org structure'!A12 -> Vote 11 - [NAME OF VOTE 11] | C116: =SUM(C117:C126) -> 0 | D116: 0 | E116: 0 | F116: 0 | G116: 0 | H116: 0 | I116: 0 | J116: 0 | K116: 0 | L116: 0 | N116: =SUM(N117:N126) -> 0 | O116: 0 | P116: 0 | Q116: 0 | R116: 0 | S116: 0 | T116: 0 | U116: 0 | V116: 0 | W116: 0 | X116: 0
A117: ='Org structure'!E113 -> 11.1 - [Name of sub-vote] | J117: =Q117+V117 -> 0 | K117: =U117+W117 -> 0 | L117: =X117 -> 0 | Q117: =SUM(N117:P117) -> 0 | U117: 0
A118: ='Org structure'!E114 -> 0 | J118: 0 | K118: 0 | L118: 0 | Q118: 0 | U118: 0
A119: ='Org structure'!E115 -> 0 | J119: 0 | K119: 0 | L119: 0 | Q119: 0 | U119: 0
A120: ='Org structure'!E116 -> 0 | J120: 0 | K120: 0 | L120: 0 | Q120: 0 | U120: 0
A121: ='Org structure'!E117 -> 0 | J121: 0 | K121: 0 | L121: 0 | Q121: 0 | U121: 0
A122: ='Org structure'!E118 -> 0 | J122: 0 | K122: 0 | L122: 0 | Q122: 0 | U122: 0
A123: ='Org structure'!E119 -> 0 | J123: 0 | K123: 0 | L123: 0 | Q123: 0 | U123: 0
A124: ='Org structure'!E120 -> 0 | J124: 0 | K124: 0 | L124: 0 | Q124: 0 | U124: 0
A125: ='Org structure'!E121 -> 0 | J125: 0 | K125: 0 | L125: 0 | Q125: 0 | U125: 0
A126: ='Org structure'!E122 -> 0 | J126: 0 | K126: 0 | L126: 0 | Q126: 0 | U126: 0
A127: ='Org structure'!A13 -> Vote 12 - [NAME OF VOTE 12] | C127: =SUM(C128:C137) -> 0 | D127: 0 | E127: 0 | F127: 0 | G127: 0 | H127: 0 | I127: 0 | J127: 0 | K127: 0 | L127: 0 | N127: =SUM(N128:N137) -> 0 | O127: 0 | P127: 0 | Q127: 0 | R127: 0 | S127: 0 | T127: 0 | U127: 0 | V127: 0 | W127: 0 | X127: 0
A128: ='Org structure'!E124 -> 12.1 - [Name of sub-vote] | J128: =Q128+V128 -> 0 | K128: =U128+W128 -> 0 | L128: =X128 -> 0 | Q128: =SUM(N128:P128) -> 0 | U128: 0
A129: ='Org structure'!E125 -> 0 | J129: 0 | K129: 0 | L129: 0 | Q129: 0 | U129: 0
A130: ='Org structure'!E126 -> 0 | J130: 0 | K130: 0 | L130: 0 | Q130: 0 | U130: 0
A131: ='Org structure'!E127 -> 0 | J131: 0 | K131: 0 | L131: 0 | Q131: 0 | U131: 0
A132: ='Org structure'!E128 -> 0 | J132: 0 | K132: 0 | L132: 0 | Q132: 0 | U132: 0
A133: ='Org structure'!E129 -> 0 | J133: =Q133+V133 -> 0 | K133: 0 | L133: 0 | Q133: 0 | U133: 0
A134: ='Org structure'!E130 -> 0 | J134: 0 | K134: 0 | L134: 0 | Q134: 0 | U134: 0
A135: ='Org structure'!E131 -> 0 | J135: 0 | K135: 0 | L135: 0 | Q135: 0 | U135: 0
A136: ='Org structure'!E132 -> 0 | J136: 0 | K136: 0 | L136: 0 | Q136: 0 | U136: =SUM(R136:T136) -> 0
A137: ='Org structure'!E133 -> 0 | J137: 0 | K137: 0 | L137: 0 | Q137: 0 | U137: 0
A138: ='Org structure'!A14 -> Vote 13 - [NAME OF VOTE 13] | C138: =SUM(C139:C148) -> 0 | D138: 0 | E138: 0 | F138: 0 | G138: 0 | H138: 0 | I138: 0 | J138: 0 | K138: 0 | L138: 0 | N138: =SUM(N139:N148) -> 0 | O138: 0 | P138: 0 | Q138: 0 | R138: 0 | S138: 0 | T138: 0 | U138: 0 | V138: 0 | W138: 0 | X138: 0
A139: ='Org structure'!E135 -> 13.1 - [Name of sub-vote] | J139: =Q139+V139 -> 0 | K139: =U139+W139 -> 0 | L139: =X139 -> 0 | Q139: =SUM(N139:P139) -> 0 | U139: 0
A140: ='Org structure'!E136 -> 0 | J140: 0 | K140: 0 | L140: 0 | Q140: 0 | U140: 0
A141: ='Org structure'!E137 -> 0 | J141: 0 | K141: 0 | L141: 0 | Q141: 0 | U141: 0
A142: ='Org structure'!E138 -> 0 | J142: 0 | K142: 0 | L142: 0 | Q142: 0 | U142: 0
A143: ='Org structure'!E139 -> 0 | J143: 0 | K143: 0 | L143: 0 | Q143: 0 | U143: 0
A144: ='Org structure'!E140 -> 0 | J144: 0 | K144: 0 | L144: 0 | Q144: 0 | U144: 0
A145: ='Org structure'!E141 -> 0 | J145: 0 | K145: 0 | L145: 0 | Q145: 0 | U145: 0
A146: ='Org structure'!E142 -> 0 | J146: 0 | K146: 0 | L146: 0 | Q146: 0 | U146: 0
A147: ='Org structure'!E143 -> 0 | J147: 0 | K147: 0 | L147: 0 | Q147: 0 | U147: 0
A148: ='Org structure'!E144 -> 0 | J148: 0 | K148: 0 | L148: 0 | Q148: 0 | U148: 0
A149: ='Org structure'!A15 -> Vote 14 - [NAME OF VOTE 14] | C149: =SUM(C150:C159) -> 0 | D149: 0 | E149: 0 | F149: 0 | G149: 0 | H149: 0 | I149: 0 | J149: 0 | K149: 0 | L149: 0 | N149: =SUM(N150:N159) -> 0 | O149: 0 | P149: 0 | Q149: 0 | R149: 0 | S149: 0 | T149: 0 | U149: 0 | V149: 0 | W149: 0 | X149: 0
A150: ='Org structure'!E146 -> 14.1 - [Name of sub-vote] | J150: =Q150+V150 -> 0 | K150: =U150+W150 -> 0 | L150: =X150 -> 0 | Q150: =SUM(N150:P150) -> 0 | U150: 0
A151: ='Org structure'!E147 -> 0 | J151: 0 | K151: 0 | L151: 0 | Q151: 0 | U151: 0
A152: ='Org structure'!E148 -> 0 | J152: 0 | K152: 0 | L152: 0 | Q152: 0 | U152: 0
A153: ='Org structure'!E149 -> 0 | J153: 0 | K153: 0 | L153: 0 | Q153: 0 | U153: 0
A154: ='Org structure'!E150 -> 0 | J154: 0 | K154: 0 | L154: 0 | Q154: 0 | U154: 0
A155: ='Org structure'!E151 -> 0 | J155: 0 | K155: 0 | L155: 0 | Q155: 0 | U155: 0
A156: ='Org structure'!E152 -> 0 | J156: 0 | K156: 0 | L156: 0 | Q156: 0 | U156: 0
A157: ='Org structure'!E153 -> 0 | J157: 0 | K157: 0 | L157: 0 | Q157: 0 | U157: 0
A158: ='Org structure'!E154 -> 0 | J158: 0 | K158: 0 | L158: 0 | Q158: 0 | U158: 0
A159: ='Org structure'!E155 -> 0 | J159: 0 | K159: 0 | L159: 0 | Q159: 0 | U159: 0
A160: ='Org structure'!A16 -> Vote 15 - [NAME OF VOTE 15] | C160: =SUM(C161:C170) -> 0 | D160: 0 | E160: 0 | F160: 0 | G160: 0 | H160: 0 | I160: 0 | J160: 0 | K160: 0 | L160: 0 | N160: =SUM(N161:N170) -> 0 | O160: 0 | P160: 0 | Q160: 0 | R160: 0 | S160: 0 | T160: 0 | U160: 0 | V160: 0 | W160: 0 | X160: 0
A161: ='Org structure'!E157 -> 15.1 - [Name of sub-vote] | J161: =Q161+V161 -> 0 | K161: =U161+W161 -> 0 | L161: =X161 -> 0 | Q161: =SUM(N161:P161) -> 0 | U161: 0
A162: ='Org structure'!E158 -> 0 | J162: 0 | K162: 0 | L162: 0 | Q162: 0 | U162: 0
A163: ='Org structure'!E159 -> 0 | J163: 0 | K163: 0 | L163: 0 | Q163: 0 | U163: 0
A164: ='Org structure'!E160 -> 0 | J164: 0 | K164: 0 | L164: 0 | Q164: 0 | U164: 0
A165: ='Org structure'!E161 -> 0 | J165: 0 | K165: 0 | L165: 0 | Q165: 0 | U165: 0
A166: ='Org structure'!E162 -> 0 | J166: 0 | K166: 0 | L166: 0 | Q166: 0 | U166: 0
A167: ='Org structure'!E163 -> 0 | J167: 0 | K167: 0 | L167: 0 | Q167: 0 | U167: 0
A168: ='Org structure'!E164 -> 0 | J168: 0 | K168: 0 | L168: 0 | Q168: 0 | U168: 0
A169: ='Org structure'!E165 -> 0 | J169: 0 | K169: 0 | L169: 0 | Q169: 0 | U169: 0
A170: ='Org structure'!E166 -> 0 | J170: 0 | K170: 0 | L170: 0 | Q170: 0 | U170: 0
A171: Capital multi-year expenditure sub-total | C171: =C6+C17+C28+C39+C50+C61+C72+C83+C94+C105+C116+C127+C138+C149+C160 -> 648109542 | D171: =D6+D17+D28+D39+D50+D61+D72+D83+D94+D105+D116+D127+D138+D149+D160 -> 494464734.1 | E171: 143242056 | F171: 489765757.4 | G171: 443128099.5 | H171: 443128099.5 | I171: 0 | J171: 509167581 | K171: 475479747.5 | L171: 438753226 | N171: =N6+N17+N28+N39+N50+N61+N72+N83+N94+N105+N116+N127+N138+N149+N160 -> 0 | O171: 0 | P171: 0 | Q171: 0 | R171: 0 | S171: 0 | U171: 0 | V171: =V6+V17+V28+V39+V50+V61+V72+V83+V94+V105+V116+V127+V138+V149+V160 -> 509167581 | W171: =W6+W17+W28+W39+W50+W61+W72+W83+W94+W105+W116+W127+W138+W149+W160 -> 475479747.5
A173: Capital expenditure - Municipal Vote
A174: Single-year expenditure appropriation | B174: 2
A175: =A6 -> Vote 1 - City Manager | C175: =SUM(C176:C185) -> 0 | D175: 872127.31 | E175: 4313936 | F175: 4868500 | G175: 5006330.97 | H175: 5006330.97 | I175: 0 | J175: 0 | K175: 0 | L175: 0
A176: =A7 -> 1.1 - Internal Audit and Compliance | E176: 120000 | F176: 250000 | G176: 125158.28 | H176: 125158.28
A177: 1.2 - Office of the City Manager | D177: 365629.35 | E177: 3913171 | F177: 3000000 | G177: 3880847.35 | H177: 3880847.35
A178: 1.3 - Political Support | D178: 506497.96 | E178: 280765 | F178: 1218500 | G178: 750072.1 | H178: 750072.1
A179: 1.4 - Strategic Planning | F179: 400000 | G179: 250253.24 | H179: 250253.24
A180: 0
A181: 0
A182: 0
A183: 0
A184: 0
A185: 0
A186: Vote 2 - City Finance | C186: =SUM(C187:C196) -> 0 | D186: 14741557.57 | E186: 17257057 | F186: 12335000 | G186: 7856900.21 | H186: 7856900.21 | I186: 0 | J186: 15000000 | K186: 9300000 | L186: 10400000
A187: 2.1 - Asset Management | D187: 12967773.48 | E187: 5250000 | F187: 8580000 | G187: 4495748.94 | H187: 4495748.94 | J187: 15000000 | K187: 9300000 | L187: 10400000
A188: 2.2 - Budget and Treasury Management | D188: 360308.93 | E188: 8147057 | F188: 750000 | G188: 375474.82 | H188: 375474.82
A189: 2.3 - Expenditure Management | D189: 95618.8 | E189: 50000 | G189: 0 | H189: 0
A190: 2.4 - Revenue Management | D190: 548139.91 | E190: 2050000 | F190: 1665000 | G190: 1915190.1 | H190: 1915190.1
A191: 2.5 - Supply Chain Management | D191: 769716.45 | E191: 1760000 | F191: 1340000 | G191: 1070486.35 | H191: 1070486.35
A192: 0
A193: 0
A194: 0
A195: 0
A196: 0
A197: Vote 3 - Community Services and Social Equity | C197: =SUM(C198:C207) -> 0 | D197: 62491875.35 | E197: 15738155 | F197: 12991000 | G197: 17444846.28 | H197: 17444846.28 | I197: 0 | J197: 13700000 | K197: 8800000 | L197: 8500000
A198: 3.1 - Area Based Management | D198: 354586.95 | E198: 2349800 | F198: 700000 | G198: 350443.17 | H198: 350443.17 | J198: 10000000 | K198: 8000000 | L198: 8000000
A199: 3.2 - Public Safety, Emergency Services and Enforcement | D199: 8257400.38 | E199: 2902083 | F199: 800000 | G199: 400506.47 | H199: 400506.47
A200: 3.3 - Recreation and Facilities | D200: 24597455.29 | E200: 9746908 | F200: 11491000 | G200: 16693896.64 | H200: 16693896.64 | J200: 1200000
A201: 3.4 - Waste Management | D201: 29282432.73 | E201: 739364 | G201: 0 | H201: 0 | J201: 2500000 | K201: 800000 | L201: 500000
... 140 more rows

Sheet A6-FinPos
A1: =muni&" - "&Approve6 -> KZN225 Msunduzi - Table A6 Consolidated Budgeted Financial Position
A2: =desc -> Description | B2: =head27 -> Ref | C2: =head1b -> 2016/17 | D2: =head1A -> 2017/18 | E2: =Head1 -> 2018/19 | F2: =Head2 -> Current Year 2019/20 | J2: =Head3 -> 2020/21 Medium Term Revenue & Expenditure Framework
A3: R thousand | C3: =Head5 -> Audited Outcome | D3: =Head5 -> Audited Outcome | E3: =Head5 -> Audited Outcome | F3: =Head6 -> Original Budget | G3: =Head7 -> Adjusted Budget | H3: =Head8 -> Full Year Forecast | I3: =Head5b -> Pre-audit outcome | J3: =Head9 -> Budget Year 2020/21 | K3: =Head10 -> Budget Year +1 2021/22 | L3: =Head11 -> Budget Year +2 2022/23
A4: ASSETS
A5: Current assets
A6: Cash | C6: 675995631 | D6: 512622307 | E6: 308202578 | F6: 483595803.5 | G6: 499887053.8 | H6: 290000000 | J6: 365664115.2 | K6: 764631826.3 | L6: 1515242508
A7: Call investment deposits | B7: 1 | C7: 8799357 | D7: 8869457 | E7: 15674518 | F7: 16144753.54 | G7: 16144753.54 | H7: 16144753.54 | J7: 16771734.26 | K7: 17945755.66 | L7: 19201958.55
A8: Consumer debtors | B8: 1 | C8: ='SA3'!C14 -> 610353729 | D8: ='SA3'!D14 -> 424770387 | E8: ='SA3'!E14 -> 454837531 | F8: ='SA3'!F14 -> 835519383 | G8: ='SA3'!G14 -> 835519382.9 | H8: ='SA3'!H14 -> 2019604641 | I8: ='SA3'!I14 -> 0 | J8: ='SA3'!J14 -> 2485904794 | K8: ='SA3'!K14 -> 2785188936 | L8: ='SA3'!L14 -> 2824323377
A9: Other debtors | C9: 31483422 | D9: 35001598 | E9: 7571464 | F9: 66723549.67 | G9: 66723549.67 | H9: 66723549.67 | J9: 67823549.67 | K9: 70536491.66 | L9: 73357951.33
A10: Current portion of long-term receivables | C10: 12857044 | D10: 0 | E10: 0 | F10: 0 | G10: 0 | H10: 0 | J10: 0
A11: Inventory | B11: 2 | C11: 115900559 | D11: 357737917 | E11: 329159386 | F11: 35380271.68 | G11: 35380271.68 | H11: 35380271.68 | J11: 36180571.68 | K11: 37627794.55 | L11: 39132906.33
A12: Total current assets | C12: =SUM(C6:C11) -> 1455389742 | D12: 1339001666 | E12: 1115445477 | F12: 1437363761 | G12: 1453655012 | H12: 2427853216 | I12: 0 | J12: 2972344765 | K12: 3675930804 | L12: 4471258701
A14: Non current assets
A15: Long-term receivables | C15: 0 | D15: 0 | E15: 0 | G15: 0 | H15: 0 | J15: 0 | K15: 0 | L15: 0
A16: Investments | C16: 11292553 | D16: 4664290 | E16: 2642997 | G16: 0 | H16: 0 | J16: 2969671.429 | K16: 3336722.818 | L16: 3749141.758
A17: Investment property | C17: 702831229 | D17: 849500000 | E17: 816690000 | F17: 738049560 | G17: 738049560 | H17: 738049560 | J17: 782332533.6 | K17: 829272485.6 | L17: 879028834.8
A18: Investment in Associate | C18: 0 | D18: 0 | E18: 0 | G18: 0 | H18: 0 | J18: 0 | K18: 0 | L18: 0
A19: Property, plant and equipment | B19: 3 | C19: ='SA3'!C26 -> 7004381305 | D19: ='SA3'!D26 -> 6967433290 | E19: ='SA3'!E26 -> 7003790703 | F19: ='SA3'!F26 -> 7154795394 | G19: ='SA3'!G26 -> 7060625532 | H19: ='SA3'!H26 -> 7060625532 | I19: ='SA3'!I26 -> 0 | J19: ='SA3'!J26 -> 7111997636 | K19: ='SA3'!K26 -> 6621893133 | L19: ='SA3'!L26 -> 6034258092
A21: Biological | C21: 769726 | D21: 928494 | E21: 948425 | G21: 0 | H21: 0 | J21: 1065650.33 | K21: 1197364.711 | L21: 1345358.989
A22: Intangible | C22: 50602956 | D22: 52109485 | E22: 41057963 | F22: 146779813.5 | G22: 146779813.5 | H22: 146779813.5 | J22: 46132727.23 | K22: 51834732.31 | L22: 58241505.23
A23: Other non-current assets | C23: 226212346 | D23: 290773397 | E23: 352374007 | G23: 0 | H23: 0 | J23: 395927434.3 | K23: 444864065.1 | L23: 499849263.6
A24: Total non current assets | C24: =SUM(C15:C19)+SUM(C21:C23) -> 7996090115 | D24: =SUM(D15:D19)+SUM(D21:D23) -> 8165408956 | E24: 8217504095 | F24: 8039624767 | G24: 7945454905 | H24: 7945454905 | I24: 0 | J24: 8340425653 | K24: 7952398503 | L24: 7476472197
A25: TOTAL ASSETS | C25: =C12+C24 -> 9451479857 | D25: =D12+D24 -> 9504410622 | E25: =E12+E24 -> 9332949572 | F25: =F12+F24 -> 9476988529 | G25: 9399109917 | H25: 1.037330812e+10 | I25: 0 | J25: 1.131277042e+10 | K25: 1.162832931e+10 | L25: 1.19477309e+10
A27: LIABILITIES
A28: Current liabilities
A29: Bank overdraft | B29: 1
A30: Borrowing | B30: 4 | C30: ='SA3'!C32 -> 79368332 | D30: ='SA3'!D32 -> 113888397 | E30: ='SA3'!E32 -> 114310751 | F30: ='SA3'!F32 -> 79056107.29 | G30: ='SA3'!G32 -> 79056107.29 | H30: ='SA3'!H32 -> 79056107.29 | I30: ='SA3'!I32 -> 0 | J30: ='SA3'!J32 -> 85380595.88 | K30: ='SA3'!K32 -> 92211043.55 | L30: ='SA3'!L32 -> 99587927.03
A31: Consumer deposits | C31: 101381633 | D31: 108809333 | E31: 107229302 | F31: 108899457.8 | G31: 108899457.8 | H31: 108899457.8 | J31: 114344430.7 | K31: 121205096.5 | L31: 128477402.3
A32: Trade and other payables | B32: 4 | C32: ='SA3'!C39 -> 838227976 | D32: ='SA3'!D39 -> 1105869085 | E32: ='SA3'!E39 -> 1208394576 | F32: ='SA3'!F39 -> 999062751.1 | G32: ='SA3'!G39 -> 999062751.1 | H32: ='SA3'!H39 -> 999062751.1 | I32: ='SA3'!I39 -> 0 | J32: ='SA3'!J39 -> 1101595513 | K32: ='SA3'!K39 -> 1089059423 | L32: ='SA3'!L39 -> 1093420612
A33: Provisions | C33: 114141725 | D33: 39259933 | E33: 43456228 | F33: 133712201.7 | G33: 133712201.7 | H33: 133712201.7 | J33: 140397811.8 | K33: 148821680.5 | L33: 157750981.3
A34: Total current liabilities | C34: =SUM(C29:C33) -> 1133119666 | D34: 1367826748 | E34: 1473390857 | F34: 1320730518 | G34: 1320730518 | H34: 1320730518 | I34: 0 | J34: 1441718351 | K34: 1451297244 | L34: 1479236922
A36: Non current liabilities
A37: Borrowing | C37: ='SA3'!C44 -> 535738525 | D37: ='SA3'!D44 -> 451226205 | E37: ='SA3'!E44 -> 366291537 | F37: ='SA3'!F44 -> 459547129.4 | G37: ='SA3'!G44 -> 459547129.4 | H37: ='SA3'!H44 -> 459547129.4 | I37: ='SA3'!I44 -> 0 | J37: ='SA3'!J44 -> 282085537 | K37: ='SA3'!K44 -> 202879537 | L37: ='SA3'!L44 -> 127634537
A38: Provisions | C38: ='SA3'!C51 -> 724817244 | D38: ='SA3'!D51 -> 729834332 | E38: ='SA3'!E51 -> 624742898 | F38: ='SA3'!F51 -> 742916894.4 | G38: ='SA3'!G51 -> 742916894.4 | H38: ='SA3'!H51 -> 742916894.4 | I38: ='SA3'!I51 -> 0 | J38: ='SA3'!J51 -> 809779414.9 | K38: ='SA3'!K51 -> 882659562.3 | L38: ='SA3'!L51 -> 962098922.9
A39: Total non current liabilities | C39: =SUM(C37:C38) -> 1260555769 | D39: =SUM(D37:D38) -> 1181060537 | E39: =SUM(E37:E38) -> 991034435 | F39: =SUM(F37:F38) -> 1202464024 | G39: 1202464024 | H39: 1202464024 | I39: 0 | J39: 1091864952 | K39: =SUM(K37:K38) -> 1085539099 | L39: 1089733460
A40: TOTAL LIABILITIES | C40: =C34+C39 -> 2393675435 | D40: =D34+D39 -> 2548887285 | E40: =E34+E39 -> 2464425292 | F40: =F34+F39 -> 2523194542 | G40: 2523194542 | H40: 2523194542 | I40: 0 | J40: 2533583303 | K40: =K34+K39 -> 2536836343 | L40: 2568970382
A42: NET ASSETS | B42: 5 | C42: =C25-C40 -> 7057804422 | D42: 6955523337 | E42: 6868524280 | F42: 6953793987 | G42: 6875915375 | H42: 7850113580 | I42: 0 | J42: 8779187114 | K42: 9091492964 | L42: 9378760515
A44: COMMUNITY WEALTH/EQUITY
A45: Accumulated Surplus/(Deficit) | C45: 6761956393 | D45: 6723888693 | E45: 6639611022 | F45: 6717549721 | G45: 6733840971 | H45: 7708039176 | I45: 0 | J45: 8550273856 | K45: 8862579706 | L45: 9149847257
A46: Reserves | B46: 4 | C46: ='SA3'!C70 -> 295848029 | D46: ='SA3'!D70 -> 231634644 | E46: ='SA3'!E70 -> 228913258 | F46: ='SA3'!F70 -> 236244266 | G46: ='SA3'!G70 -> 142074404 | H46: ='SA3'!H70 -> 142074404 | I46: ='SA3'!I70 -> 0 | J46: ='SA3'!J70 -> 228913258 | K46: ='SA3'!K70 -> 228913258 | L46: ='SA3'!L70 -> 228913258
A48: TOTAL COMMUNITY WEALTH/EQUITY | B48: 5 | C48: =SUM(C45:C46) -> 7057804422 | D48: =SUM(D45:D46) -> 6955523337 | E48: 6868524280 | F48: 6953793987 | G48: 6875915375 | H48: 7850113580 | I48: 0 | J48: 8779187114 | K48: 9091492964 | L48: 9378760515
A49: =head27a -> References
A50: 1. Detail to be provided in Table SA3
A51: 2. Include completed low cost housing to be transferred to beneficiaries within 12 months
A52: 3. Include 'Construction-work-in-progress' (disclosed separately in annual financial statements)
A53: 4. Detail to be provided in Table SA3. Includes reserves to be funded by statute.
A54: 5. Net assets must balance with Total Community Wealth/Equity
A55: check balance | C55: =IF((C42-C48)=0,0,"Unbalanced") -> 0 | D55: =IF((D42-D48)=0,0,"Unbalanced") -> 0 | E55: 0 | F55: 0 | G55: 0 | H55: 0 | I55: 0 | J55: 0 | K55: 0 | L55: 0

Sheet A7-CFlow
A1: =muni&" - "&Approve7 -> KZN225 Msunduzi - Table A7 Consolidated Budgeted Cash Flows
A2: =desc -> Description | B2: =head27 -> Ref | C2: =head1b -> 2016/17 | D2: =head1A -> 2017/18 | E2: =Head1 -> 2018/19 | F2: =Head2 -> Current Year 2019/20 | J2: =Head3 -> 2020/21 Medium Term Revenue & Expenditure Framework
A3: R thousand | C3: =Head5 -> Audited Outcome | D3: =Head5 -> Audited Outcome | E3: =Head5 -> Audited Outcome | F3: =Head6 -> Original Budget | G3: =Head7 -> Adjusted Budget | H3: =Head8 -> Full Year Forecast | I3: =Head5b -> Pre-audit outcome | J3: =Head9 -> Budget Year 2020/21 | K3: =Head10 -> Budget Year +1 2021/22 | L3: =Head11 -> Budget Year +2 2022/23
A4: CASH FLOW FROM OPERATING ACTIVITIES
A5: Receipts
A6: Property rates | C6: 735044920 | D6: 842538662 | E6: 869541960 | F6: 960617230.8 | G6: 1020655808 | H6: 991901073.7 | J6: ='SA30'!N5 -> 1079325405 | K6: ='SA30'!O5 -> 1205669967 | L6: ='SA30'!P5 -> 1349010730
A7: Service charges | C7: 2339023873 | D7: 2527616429 | E7: 2608625965 | F7: 2670162385 | G7: 2837047534 | H7: 2757119955 | J7: ='SA30'!N6+'SA30'!N7+'SA30'!N8+'SA30'!N9 -> 3039399062 | K7: ='SA30'!O6+'SA30'!O7+'SA30'!O8+'SA30'!O9 -> 3473306441 | L7: ='SA30'!P6+'SA30'!P7+'SA30'!P8+'SA30'!P9 -> 3964008886
A8: Other revenue | C8: 0 | D8: 136375 | E8: 1488 | F8: 148876026.3 | G8: 158077819.1 | H8: 158077819.1 | J8: ='SA30'!N11+'SA30'!N15+'SA30'!N16+'SA30'!N17+'SA30'!N19 -> 152193014.5 | K8: ='SA30'!O11+'SA30'!O15+'SA30'!O16+'SA30'!O17+'SA30'!O19 -> 170008549.7 | L8: ='SA30'!P11+'SA30'!P15+'SA30'!P16+'SA30'!P17+'SA30'!P19 -> 190220677.3
A9: Transfers and Subsidies - Operational | B9: 1 | C9: 564421560.3 | D9: 605812000.6 | E9: 629285921.6 | F9: 672022829 | G9: 693974406 | H9: 693974406 | J9: ='SA30'!N18 -> 675483240 | K9: ='SA30'!O18 -> 724435690 | L9: ='SA30'!P18 -> 781097541
A10: Transfers and Subsidies - Capital | B10: 1 | C10: 335567777.7 | D10: 396056334.4 | E10: 411402673.4 | F10: 439342400 | G10: 667412194 | H10: 667616412 | J10: ='SA30'!N23 -> 525891581 | K10: ='SA30'!O23 -> 487849400 | L10: ='SA30'!P23 -> 455968840
A11: Interest | C11: 174574620 | D11: 42051116 | E11: 37482111 | F11: 169693887.6 | G11: 179381000 | H11: 179282000 | J11: ='SA30'!N12+'SA30'!N13 -> 185060483.9 | K11: ='SA30'!O12+'SA30'!O13 -> 206723446.4 | L11: ='SA30'!P12+'SA30'!P13 -> 231300567.2
A12: Dividends | C12: 0 | D12: 0 | E12: 0 | F12: 0 | G12: 0 | H12: 0 | J12: ='SA30'!N14 -> 0 | K12: ='SA30'!O14 -> 0 | L12: ='SA30'!P14 -> 0
A13: Payments | C13: 0 | D13: 0 | E13: 0
A14: Suppliers and employees | C14: -3296429302 | D14: -3765066174 | E14: -4122108704 | F14: -4329713783 | G14: -4548721158 | H14: -4536274480 | J14: =-('SA30'!N35+'SA30'!N36+'SA30'!N38+'SA30'!N39+'SA30'!N40+'SA30'!N41+'SA30'!N44+'SA30'!N50) -> -4847945682 | K14: =-('SA30'!O35+'SA30'!O36+'SA30'!O38+'SA30'!O39+'SA30'!O40+'SA30'!O41+'SA30'!O44+'SA30'!O50) -> -5188128550 | L14: =-('SA30'!P35+'SA30'!P36+'SA30'!P38+'SA30'!P39+'SA30'!P40+'SA30'!P41+'SA30'!P44+'SA30'!P50) -> -5581157325
A15: Finance charges | C15: -68463041 | D15: -54960155 | E15: -47404408 | F15: -41660099 | G15: -41660099 | H15: -41660099 | J15: =-('SA30'!N37) -> -31793212.22 | K15: =-('SA30'!O37) -> -24371318.84 | L15: =-('SA30'!P37) -> -16949425.45
A16: Transfers and Grants | B16: 1 | C16: -4291156 | D16: -19201984 | E16: -15819791 | F16: -44060467.54 | G16: -49902934.42 | H16: -62989012.42 | J16: =-('SA30'!N42+'SA30'!N43) -> -25080461.44 | K16: =-('SA30'!O42+'SA30'!O43) -> -26157492.52 | L16: =-('SA30'!P42+'SA30'!P43) -> -27281767.02
A17: NET CASH FROM/(USED) OPERATING ACTIVITIES | C17: =SUM(C6:C12)+SUM(C14:C16) -> 779449252 | D17: 574982604 | E17: 371007216 | F17: 645280409.5 | G17: 916264569.3 | H17: 807048074.7 | I17: 0 | J17: 752533430.4 | K17: 1029336133 | L17: 1346218724
A19: CASH FLOWS FROM INVESTING ACTIVITIES
A20: Receipts
A21: Proceeds on disposal of PPE | C21: 0 | D21: 0 | E21: 3715678 | F21: 0 | J21: ='SA30'!N24+'SA30'!N25 -> 0 | K21: ='SA30'!O24+'SA30'!O25 -> 0 | L21: ='SA30'!P24+'SA30'!P25 -> 0
C22: 0 | D22: 0 | E22: 0 | F22: 0
A23: Decrease (increase) in non-current receivables | C23: 0 | D23: -8616620 | E23: -613746 | F23: 0 | J23: ='SA30'!N30 -> 0 | K23: ='SA30'!O30 -> 0 | L23: ='SA30'!P30 -> 0
A24: Decrease (increase) in non-current investments | C24: -481174 | D24: 306236 | E24: -6155452 | F24: 0 | J24: ='SA30'!N31 -> 0 | K24: ='SA30'!O31 -> 0 | L24: ='SA30'!P31 -> 0
A25: Payments | C25: 0 | D25: 0 | E25: 0
A26: Capital assets | C26: -869545749 | D26: -668363578 | E26: -477407058 | F26: -527602753.1 | G26: -746452945.7 | H26: -746194545.7 | J26: =-('SA30'!N48) -> -580891581 | K26: =-('SA30'!O48) -> -553949400 | L26: =-('SA30'!P48) -> -522868840
A27: NET CASH FROM/(USED) INVESTING ACTIVITIES | C27: =+C21+C23+C24+C26 -> -870026923 | D27: =+D21+D23+D24+D26 -> -676673962 | E27: -480460578 | F27: -527602753.1 | G27: -746452945.7 | H27: -746194545.7 | I27: 0 | J27: -580891581 | K27: -553949400 | L27: -522868840
A29: CASH FLOWS FROM FINANCING ACTIVITIES
A30: Receipts
A31: Short term loans | C31: 0 | D31: 0 | E31: 0 | F31: 0 | G31: 0 | H31: 0 | I31: 0 | J31: ='SA30'!N26 -> 0 | K31: ='SA30'!O26 -> 0 | L31: ='SA30'!P26 -> 0
A32: Borrowing long term/refinancing | C32: -212352690 | D32: 0 | E32: 0 | F32: 0 | G32: 0 | H32: 0 | I32: 0 | J32: ='SA30'!N27 -> 0 | K32: ='SA30'!O27 -> 0 | L32: ='SA30'!P27 -> 0
A33: Increase (decrease) in consumer deposits | C33: 7865429 | D33: 0 | E33: 0 | F33: 0 | G33: 0 | H33: 0 | I33: 0 | J33: ='SA30'!N28 -> 0 | K33: ='SA30'!O28 -> 0 | L33: ='SA30'!P28 -> 0
A34: Payments | C34: 0 | D34: 0 | E34: 0
A35: Repayment of borrowing | C35: 0 | D35: -61681966 | E35: -94966367 | F35: -79056107 | G35: -79056107 | H35: -79056107 | J35: =-('SA30'!N49) -> -79206000 | K35: =-('SA30'!O49) -> -75245000 | L35: =-('SA30'!P49) -> -71483000
A36: NET CASH FROM/(USED) FINANCING ACTIVITIES | C36: =SUM(C31:C33)+C35 -> -204487261 | D36: =SUM(D31:D33)+D35 -> -61681966 | E36: -94966367 | F36: -79056107 | G36: -79056107 | H36: -79056107 | I36: 0 | J36: -79206000 | K36: -75245000 | L36: -71483000
A38: NET INCREASE/ (DECREASE) IN CASH HELD | C38: =C17+C27+C36 -> -295064932 | D38: =D17+D27+D36 -> -163373324 | E38: -204419729 | F38: 38621549.4 | G38: 90755516.64 | H38: -18202578 | I38: 0 | J38: 92435849.43 | K38: 400141732.6 | L38: 751866884.3
A39: Cash/cash equivalents at the year begin: | B39: 2 | C39: 971060563 | D39: 675995631 | E39: 512622307 | F39: 461119007.7 | G39: 305056164 | H39: 308202578 | J39: ='SA30'!N54 -> 290000000 | K39: =J40 -> 382435849.4 | L39: =K40 -> 782577582
A40: Cash/cash equivalents at the year end: | B40: 2 | C40: =C38+C39 -> 675995631 | D40: =D38+D39 -> 512622307 | E40: =E38+E39 -> 308202578 | F40: =F38+F39 -> 499740557.1 | G40: 395811680.6 | H40: 290000000 | I40: 0 | J40: 382435849.4 | K40: 782577582 | L40: 1534444466
A41: =head27a -> References
A42: 1. Local/District municipalities to include transfers from/to District/Local Municipalities
A43: 2. Cash equivalents includes investments with maturities of 3 months or less
A44: 3. The MTREF is populated directly from SA30.
A45: Total receipts | C45: =SUM(C6:C12)+SUM(C21:C23) -> 4148632751 | D45: 4405594297 | E45: 4559442051 | F45: 5060714759 | G45: 5556548761 | H45: 5447971666 | I45: 0 | J45: 5657352786 | K45: 6267993494 | L45: 6971607242
A46: Total payments | C46: =SUM(C14:C16)+C26 -> -4238729248 | D46: =SUM(D14:D16)+D26 -> -4507591891 | E46: -4662739961 | F46: -4943037102 | G46: -5386737137 | H46: -5387118137 | I46: 0 | J46: -5485710937 | K46: -5792606762 | L46: -6148257357
C47: =C45+C46 -> -90096497 | D47: =D45+D46 -> -101997594 | E47: -103297910 | F47: 117677656.4 | G47: 169811623.6 | H47: 60853529 | I47: 0 | J47: 171641849.4 | K47: 475386732.6 | L47: 823349884.3
A48: Borrowings & investments & c.deposits | C48: =C24+C32+C33 -> -204968435 | D48: =D24+D32+D33 -> 306236 | E48: -6155452 | F48: 0 | G48: 0 | H48: 0 | I48: 0 | J48: 0 | K48: 0 | L48: 0
A49: =A35 -> Repayment of borrowing | C49: =C35 -> 0 | D49: =D35 -> -61681966 | E49: -94966367 | F49: -79056107 | G49: -79056107 | H49: -79056107 | I49: =I35 -> 0 | J49: -79206000 | K49: -75245000 | L49: -71483000
C50: =C47+C48+C49 -> -295064932 | D50: =D47+D48+D49 -> -163373324 | E50: -204419729 | F50: 38621549.4 | G50: 90755516.64 | H50: -18202578 | I50: 0 | J50: 92435849.43 | K50: 400141732.6 | L50: 751866884.3
C51: =C38-C50 -> 0 | D51: 0 | E51: 0 | F51: 1.788139343e-07 | G51: 1.192092896e-07 | H51: 1.192092896e-07 | I51: 0 | J51: 1.192092896e-07 | K51: 0 | L51: 0

Sheet A8-ResRecon
A1: =muni&" - "&Approve8 -> KZN225 Msunduzi - Table A8 Consolidated Cash backed reserves/accumulated surplus reconciliation
A2: =desc -> Description | B2: =head27 -> Ref | C2: =head1b -> 2016/17 | D2: =head1A -> 2017/18 | E2: =Head1 -> 2018/19 | F2: =Head2 -> Current Year 2019/20 | J2: =Head3 -> 2020/21 Medium Term Revenue & Expenditure Framework
A3: R thousand | C3: =Head5 -> Audited Outcome | D3: =Head5 -> Audited Outcome | E3: =Head5 -> Audited Outcome | F3: =Head6 -> Original Budget | G3: =Head7 -> Adjusted Budget | H3: =Head8 -> Full Year Forecast | I3: =Head5b -> Pre-audit outcome | J3: =Head9 -> Budget Year 2020/21 | K3: =Head10 -> Budget Year +1 2021/22 | L3: =Head11 -> Budget Year +2 2022/23
A4: Cash and investments available
A5: =LEFT('A7-CFlow'!A40,37) -> Cash/cash equivalents at the year end | B5: 1 | C5: ='A7-CFlow'!C40 -> 675995631 | D5: ='A7-CFlow'!D40 -> 512622307 | E5: ='A7-CFlow'!E40 -> 308202578 | F5: ='A7-CFlow'!F40 -> 499740557.1 | G5: ='A7-CFlow'!G40 -> 395811680.6 | H5: ='A7-CFlow'!H40 -> 290000000 | I5: ='A7-CFlow'!I40 -> 0 | J5: ='A7-CFlow'!J40 -> 382435849.4 | K5: ='A7-CFlow'!K40 -> 782577582 | L5: ='A7-CFlow'!L40 -> 1534444466
A6: Other current investments > 90 days | C6: ='A6-FinPos'!C6+'A6-FinPos'!C7-'A6-FinPos'!C29-'A8-ResRecon'!C5 -> 8799357 | D6: ='A6-FinPos'!D6+'A6-FinPos'!D7-'A6-FinPos'!D29-'A8-ResRecon'!D5 -> 8869457 | E6: ='A6-FinPos'!E6+'A6-FinPos'!E7-'A6-FinPos'!E29-'A8-ResRecon'!E5 -> 15674518 | F6: ='A6-FinPos'!F6+'A6-FinPos'!F7-'A6-FinPos'!F29-'A8-ResRecon'!F5 -> 0 | G6: ='A6-FinPos'!G6+'A6-FinPos'!G7-'A6-FinPos'!G29-'A8-ResRecon'!G5 -> 120220126.7 | H6: ='A6-FinPos'!H6+'A6-FinPos'!H7-'A6-FinPos'!H29-'A8-ResRecon'!H5 -> 16144753.54 | I6: ='A6-FinPos'!I6+'A6-FinPos'!I7-'A6-FinPos'!I29-'A8-ResRecon'!I5 -> 0 | J6: ='A6-FinPos'!J6+'A6-FinPos'!J7-'A6-FinPos'!J29-'A8-ResRecon'!J5 -> 0 | K6: ='A6-FinPos'!K6+'A6-FinPos'!K7-'A6-FinPos'!K29-'A8-ResRecon'!K5 -> 0 | L6: ='A6-FinPos'!L6+'A6-FinPos'!L7-'A6-FinPos'!L29-'A8-ResRecon'!L5 -> 0
A7: ='A6-FinPos'!A14&" - "&'A6-FinPos'!A16 -> Non current assets - Investments | B7: 1 | C7: ='A6-FinPos'!C16 -> 11292553 | D7: ='A6-FinPos'!D16 -> 4664290 | E7: ='A6-FinPos'!E16 -> 2642997 | F7: ='A6-FinPos'!F16 -> 0 | G7: ='A6-FinPos'!G16 -> 0 | H7: ='A6-FinPos'!H16 -> 0 | I7: ='A6-FinPos'!I16 -> 0 | J7: ='A6-FinPos'!J16 -> 2969671.429 | K7: ='A6-FinPos'!K16 -> 3336722.818 | L7: ='A6-FinPos'!L16 -> 3749141.758
A8: Cash and investments available: | C8: =SUM(C5:C7) -> 696087541 | D8: =SUM(D5:D7) -> 526156054 | E8: 326520093 | F8: 499740557.1 | G8: 516031807.3 | H8: 306144753.5 | I8: 0 | J8: 385405520.9 | K8: 785914304.8 | L8: 1538193608
A10: Application of cash and investments
A11: ='SA3'!A37 -> Unspent conditional transfers | C11: ='SA3'!C37 -> 80276486 | D11: ='SA3'!D37 -> 122349562 | E11: ='SA3'!E37 -> 127958878 | F11: ='SA3'!F37 -> 0 | G11: ='SA3'!G37 -> 0 | H11: ='SA3'!H37 -> 0 | I11: ='SA3'!I37 -> 0 | J11: ='SA3'!J37 -> 60197644.34 | K11: ='SA3'!K37 -> 45433597.23 | L11: ='SA3'!L37 -> 37122269.17
A12: Unspent borrowing | C12: ='SA17'!C67 -> 0 | D12: ='SA17'!D67 -> 0 | E12: ='SA17'!E67 -> 0 | F12: ='SA17'!F67 -> 0 | G12: ='SA17'!G67 -> 0 | H12: ='SA17'!H67 -> 0 | J12: ='SA17'!I67 -> 0 | K12: ='SA17'!J67 -> 0 | L12: ='SA17'!K67 -> 0
A13: Statutory requirements | B13: 2 | H13: -7894000 | J13: -5950000 | K13: -6687000 | L13: -6658000
A14: Other working capital requirements | B14: 3 | C14: =-C32 -> 196840214 | D14: =-D32 -> 501603935 | E14: 551688680 | F14: =-F32 -> 305642751.1 | G14: 262322751.1 | H14: -726623248.9 | I14: 0 | J14: -1123186950 | K14: -1489472829 | L14: -1646926345
A15: Other provisions | H15: 55000000 | J15: 63000000 | K15: 66919000 | L15: 69919000
A16: Long term investments committed | B16: 4 | C16: =C52 -> 0 | D16: =D52 -> 0 | E16: 0 | F16: 0 | G16: 0 | H16: 0 | I16: 0 | J16: 0 | K16: 0 | L16: 0
A17: Reserves to be backed by cash/investments | B17: 5 | G17: 283785081 | H17: 283785081 | J17: 236770000 | K17: 241505000 | L17: 246335000
A18: ="Total "&A10&":" -> Total Application of cash and investments: | C18: =SUM(C11:C17) -> 277116700 | D18: =SUM(D11:D17) -> 623953497 | E18: 679647558 | F18: 305642751.1 | G18: 546107832.1 | H18: -395732167.9 | I18: 0 | J18: -769169305.3 | K18: -1142302231 | L18: -1300208076
A19: Surplus(shortfall) | C19: =C8-C18 -> 418970841 | D19: =D8-D18 -> -97797443 | E19: -353127465 | F19: 194097806 | G19: -30076024.74 | H19: 701876921.5 | I19: 0 | J19: 1154574826 | K19: 1928216536 | L19: 2838401684
A20: =head27a -> References
A21: 1. Must reconcile with Budgeted Cash Flows
A22: 2. For example: VAT, taxation
A23: 3. Council approval for policy required - include sufficient working capital (e.g. allowing for a % of current debtors > 90 days as uncollectable)
A24: 4. For example: sinking fund requirements for borrowing
A25: 5. Council approval required for each reserve created and basis of cash backing of reserves
A28: Other working capital requirements
A29: Debtors | C29: =IF(ISERROR(ROUND(C35*C36,-3)),0,(ROUND(C35*C36,-3))) -> 548702000 | D29: =IF(ISERROR(ROUND(D35*D36,-3)),0,(ROUND(D35*D36,-3))) -> 398256000 | E29: 383657000 | F29: 693420000 | G29: 736740000 | H29: 1725686000 | I29: 0 | J29: 2086593000 | K29: 2472147000 | L29: 2649254000
A31: Creditors due | C31: ='SA3'!C35+'SA3'!C36 -> 745542214 | D31: ='SA3'!D35+'SA3'!D36 -> 899859935 | E31: ='SA3'!E35+'SA3'!E36 -> 935345680 | F31: ='SA3'!F35+'SA3'!F36 -> 999062751.1 | G31: ='SA3'!G35+'SA3'!G36 -> 999062751.1 | H31: ='SA3'!H35+'SA3'!H36 -> 999062751.1 | I31: ='SA3'!I35+'SA3'!I36 -> 0 | J31: ='SA3'!J35+'SA3'!J36 -> 963406050.4 | K31: ='SA3'!K35+'SA3'!K36 -> 982674171.4 | L31: ='SA3'!L35+'SA3'!L36 -> 1002327655
A32: Total | C32: =C29-C31 -> -196840214 | D32: =D29-D31 -> -501603935 | E32: -551688680 | F32: -305642751.1 | G32: -262322751.1 | H32: 726623248.9 | I32: 0 | J32: 1123186950 | K32: 1489472829 | L32: 1646926345
A34: Debtors collection assumptions
A35: Balance outstanding - debtors | C35: ='A6-FinPos'!C8+'A6-FinPos'!C9+'A6-FinPos'!C15 -> 641837151 | D35: ='A6-FinPos'!D8+'A6-FinPos'!D9+'A6-FinPos'!D15 -> 459771985 | E35: ='A6-FinPos'!E8+'A6-FinPos'!E9+'A6-FinPos'!E15 -> 462408995 | F35: ='A6-FinPos'!F8+'A6-FinPos'!F9+'A6-FinPos'!F15 -> 902242932.7 | G35: ='A6-FinPos'!G8+'A6-FinPos'!G9+'A6-FinPos'!G15 -> 902242932.5 | H35: ='A6-FinPos'!H8+'A6-FinPos'!H9+'A6-FinPos'!H15 -> 2086328191 | I35: ='A6-FinPos'!I8+'A6-FinPos'!I9+'A6-FinPos'!I15 -> 0 | J35: ='A6-FinPos'!J8+'A6-FinPos'!J9+'A6-FinPos'!J15 -> 2553728344 | K35: ='A6-FinPos'!K8+'A6-FinPos'!K9+'A6-FinPos'!K15 -> 2855725428 | L35: ='A6-FinPos'!L8+'A6-FinPos'!L9+'A6-FinPos'!L15 -> 2897681328
A36: Estimate of debtors collection rate | C36: =IF(ISERROR('SA10'!D10),0,('SA10'!D10)) -> 0.8548922207 | D36: =IF(ISERROR('SA10'!E10),0,('SA10'!E10)) -> 0.866203711 | E36: =IF(ISERROR('SA10'!F10),0,('SA10'!F10)) -> 0.8296926926 | F36: =IF(ISERROR('SA10'!G10),0,('SA10'!G10)) -> 0.7685511637 | G36: =IF(ISERROR('SA10'!H10),0,('SA10'!H10)) -> 0.816564676 | H36: =IF(ISERROR('SA10'!I10),0,('SA10'!I10)) -> 0.8271402392 | I36: =IF(ISERROR('SA10'!J10),0,('SA10'!J10)) -> 0 | J36: =IF(ISERROR('SA10'!K10),0,('SA10'!K10)) -> 0.8170773039 | K36: =IF(ISERROR('SA10'!L10),0,('SA10'!L10)) -> 0.8656808561 | L36: =IF(ISERROR('SA10'!M10),0,('SA10'!M10)) -> 0.9142668797
K39: `
A40: =A16 -> Long term investments committed
A41: Balance (Insert description; eg sinking fund)
C52: =SUM(C41:C51) -> 0 | D52: =SUM(D41:D51) -> 0 | E52: 0 | F52: 0 | G52: 0 | H52: 0 | I52: 0 | J52: 0 | K52: 0 | L52: 0
A53: =A17 -> Reserves to be backed by cash/investments
A54: ='SA3'!A65 -> Housing Development Fund | C54: ='SA3'!C65 -> 80530079 | D54: ='SA3'!D65 -> 87653806 | E54: ='SA3'!E65 -> 90761936 | F54: ='SA3'!F65 -> 89406883 | G54: ='SA3'!G65 -> 142074404 | H54: ='SA3'!H65 -> 142074404 | I54: ='SA3'!I65 -> 0 | J54: ='SA3'!J65 -> 90761936 | K54: ='SA3'!K65 -> 90761936 | L54: ='SA3'!L65 -> 90761936
A55: ='SA3'!A66 -> Capital replacement
A56: ='SA3'!A67 -> Self-insurance
A57: Other (list)
C67: =SUM(C54:C65) -> 80530079 | D67: 87653806 | E67: 90761936 | F67: 89406883 | G67: 142074404 | H67: 142074404 | I67: 0 | J67: 90761936 | K67: 90761936 | L67: 90761936

Sheet A9-Asset
A1: =muni&" - "&Approve9 -> KZN225 Msunduzi - Table A9 Consolidated Asset Management
A2: =desc -> Description | B2: =head27 -> Ref | C2: =head1b -> 2016/17 | D2: =head1A -> 2017/18 | E2: =Head1 -> 2018/19 | F2: =Head2 -> Current Year 2019/20 | I2: =Head3 -> 2020/21 Medium Term Revenue & Expenditure Framework
A3: R thousand | C3: =Head5 -> Audited Outcome | D3: =Head5 -> Audited Outcome | E3: =Head5 -> Audited Outcome | F3: =Head6 -> Original Budget | G3: =Head7 -> Adjusted Budget | H3: =Head8 -> Full Year Forecast | I3: =Head9 -> Budget Year 2020/21 | J3: =Head10 -> Budget Year +1 2021/22 | K3: =Head11 -> Budget Year +2 2022/23
A4: CAPITAL EXPENDITURE
A5: Total New Assets | B5: 1 | C5: =C15+C18+C19+C22+C25+C26+SUM(C29:C35) -> 350452524.3 | D5: =D15+D18+D19+D22+D25+D26+SUM(D29:D35) -> 79133615.43 | E5: 186096905.2 | F5: 154735257 | G5: 5949211319 | H5: 346016901.8 | I5: 456241581 | J5: 422510851.7 | K5: 375870677.3
A6: Roads Infrastructure | C6: =SA34a!C7 -> 34982820.64 | D6: =SA34a!D7 -> 2747414.07 | E6: =SA34a!E7 -> 15103038.98 | F6: =SA34a!F7 -> 3800000 | G6: 2405642981 | H6: =SA34a!H7 -> 3800000 | I6: =SA34a!I7 -> 10845780.9 | J6: =SA34a!J7 -> 9932548.596 | K6: =SA34a!K7 -> 8942900.323
A7: Storm water Infrastructure | C7: =SA34a!C12 -> 0 | D7: =SA34a!D12 -> 0 | E7: =SA34a!E12 -> 0 | F7: =SA34a!F12 -> 0 | G7: 171146519.2 | H7: =SA34a!H12 -> 0 | I7: =SA34a!I12 -> 0 | J7: =SA34a!J12 -> 0 | K7: =SA34a!K12 -> 0
A8: Electrical Infrastructure | C8: =SA34a!C16 -> 192975827.4 | D8: =SA34a!D16 -> -43045834.14 | E8: =SA34a!E16 -> 67277868.22 | F8: =SA34a!F16 -> 46627101 | G8: 1319290256 | H8: =SA34a!H16 -> 237433561.8 | I8: =SA34a!I16 -> 133651704.7 | J8: =SA34a!J16 -> 122398014.8 | K8: =SA34a!K16 -> 110202657
A9: Water Supply Infrastructure | C9: =SA34a!C26 -> 3412274.2 | D9: =SA34a!D26 -> 0 | E9: =SA34a!E26 -> 0 | F9: =SA34a!F26 -> 0 | G9: 1207157612 | H9: =SA34a!H26 -> 0 | I9: =SA34a!I26 -> 0 | J9: =SA34a!J26 -> 0 | K9: =SA34a!K26 -> 0
A10: Sanitation Infrastructure | C10: =SA34a!C37 -> 8376795.31 | D10: =SA34a!D37 -> 0 | E10: =SA34a!E37 -> 0 | F10: =SA34a!F37 -> 0 | G10: 682631645.9 | H10: =SA34a!H37 -> 17000000 | I10: =SA34a!I37 -> 48520598.77 | J10: =SA34a!J37 -> 44435085.83 | K10: =SA34a!K37 -> 40007711.97
A11: Solid Waste Infrastructure | C11: =SA34a!C44 -> 0 | D11: =SA34a!D44 -> 148867 | E11: =SA34a!E44 -> 0 | F11: =SA34a!F44 -> 17000000 | G11: 37297702.88 | H11: =SA34a!H44 -> 0 | I11: =SA34a!I44 -> 0 | J11: =SA34a!J44 -> 0 | K11: =SA34a!K44 -> 0
A12: Rail Infrastructure | C12: =SA34a!C52 -> 0 | D12: =SA34a!D52 -> 0 | E12: =SA34a!E52 -> 0 | F12: =SA34a!F52 -> 0 | G12: 1552439.07 | H12: =SA34a!H52 -> 0 | I12: =SA34a!I52 -> 0 | J12: =SA34a!J52 -> 0 | K12: =SA34a!K52 -> 0
A13: Coastal Infrastructure | C13: =SA34a!C62 -> 0 | D13: =SA34a!D62 -> 0 | E13: =SA34a!E62 -> 0 | F13: =SA34a!F62 -> 0 | G13: 5366020.748 | H13: =SA34a!H62 -> 0 | I13: =SA34a!I62 -> 0 | J13: =SA34a!J62 -> 0 | K13: =SA34a!K62 -> 0
A14: Information and Communication Infrastructure | C14: =SA34a!C68 -> 0 | D14: =SA34a!D68 -> 0 | E14: =SA34a!E68 -> 0 | F14: =SA34a!F68 -> 0 | G14: 5859000 | H14: =SA34a!H68 -> 0 | I14: =SA34a!I68 -> 0 | J14: =SA34a!J68 -> 0 | K14: =SA34a!K68 -> 0
A15: Infrastructure | C15: =SUM(C6:C14) -> 239747717.6 | D15: =SUM(D6:D14) -> -40149553.07 | E15: 82380907.2 | F15: 67427101 | G15: 5835944177 | H15: 258233561.8 | I15: 193018084.3 | J15: 176765649.2 | K15: 159153269.3
A16: Community Facilities | C16: =SA34a!C75 -> 168828 | D16: =SA34a!D75 -> 0 | E16: =SA34a!E75 -> 336655.96 | F16: =SA34a!F75 -> 10274656 | G16: 36233641.81 | H16: =SA34a!H75 -> 10749840 | I16: =SA34a!I75 -> 39558111.67 | J16: =SA34a!J75 -> 39392838.73 | K16: =SA34a!K75 -> 32427167.98
A17: Sport and Recreation Facilities | C17: =SA34a!C98 -> 34334715.2 | D17: =SA34a!D98 -> 5106431.17 | E17: =SA34a!E98 -> 0 | F17: =SA34a!F98 -> 0 | G17: =SA34a!G98 -> 0 | H17: =SA34a!H98 -> 0 | I17: =SA34a!I98 -> 0 | J17: =SA34a!J98 -> 0 | K17: =SA34a!K98 -> 0
A18: Community Assets | C18: =SUM(C16:C17) -> 34503543.2 | D18: =SUM(D16:D17) -> 5106431.17 | E18: 336655.96 | F18: 10274656 | G18: 36233641.81 | H18: 10749840 | I18: 39558111.67 | J18: 39392838.73 | K18: 32427167.98
A19: Heritage Assets | C19: =SA34a!C103 -> 7290305.24 | D19: =SA34a!D103 -> 24328842.71 | E19: =SA34a!E103 -> 18343511.91 | F19: =SA34a!F103 -> 11884000 | G19: =SA34a!G103 -> 11884000 | H19: =SA34a!H103 -> 11884000 | I19: =SA34a!I103 -> 33918752.69 | J19: =SA34a!J103 -> 31062738.82 | K19: =SA34a!K103 -> 27967744.06
A20: Revenue Generating | C20: =SA34a!C111 -> 0 | D20: =SA34a!D111 -> 0 | E20: =SA34a!E111 -> 0 | F20: =SA34a!F111 -> 0 | G20: =SA34a!G111 -> 0 | H20: =SA34a!H111 -> 0 | I20: =SA34a!I111 -> 0 | J20: =SA34a!J111 -> 0 | K20: =SA34a!K111 -> 0
A21: Non-revenue Generating | C21: =SA34a!C114 -> 0 | D21: =SA34a!D114 -> 0 | E21: =SA34a!E114 -> 0 | F21: =SA34a!F114 -> 0 | G21: =SA34a!G114 -> 0 | H21: =SA34a!H114 -> 0 | I21: =SA34a!I114 -> 0 | J21: =SA34a!J114 -> 0 | K21: =SA34a!K114 -> 0
A22: Investment properties | C22: =SUM(C20:C21) -> 0 | D22: =SUM(D20:D21) -> 0 | E22: 0 | F22: 0 | G22: 0 | H22: 0 | I22: 0 | J22: 0 | K22: 0
A23: Operational Buildings | C23: =SA34a!C119 -> 5182667.6 | D23: =SA34a!D119 -> 0 | E23: =SA34a!E119 -> 2885283.88 | F23: =SA34a!F119 -> 0 | G23: =SA34a!G119 -> 0 | H23: =SA34a!H119 -> 0 | I23: =SA34a!I119 -> 3800000 | J23: =SA34a!J119 -> 5000000 | K23: =SA34a!K119 -> 3000000
A24: Housing | C24: =SA34a!C131 -> 0 | D24: =SA34a!D131 -> 0 | E24: =SA34a!E131 -> 0 | F24: =SA34a!F131 -> 0 | G24: =SA34a!G131 -> 0 | H24: =SA34a!H131 -> 0 | I24: =SA34a!I131 -> 0 | J24: =SA34a!J131 -> 0 | K24: =SA34a!K131 -> 0
A25: Other Assets | C25: =SUM(C23:C24) -> 5182667.6 | D25: =SUM(D23:D24) -> 0 | E25: 2885283.88 | F25: 0 | G25: 0 | H25: 0 | I25: 3800000 | J25: 5000000 | K25: 3000000
A26: Biological or Cultivated Assets | C26: =SA34a!C136 -> 0 | D26: =SA34a!D136 -> 0 | E26: =SA34a!E136 -> 0 | F26: =SA34a!F136 -> 0 | G26: =SA34a!G136 -> 0 | H26: =SA34a!H136 -> 0 | I26: =SA34a!I136 -> 0 | J26: =SA34a!J136 -> 0 | K26: =SA34a!K136 -> 0
A27: Servitudes | C27: =SA34a!C140 -> 0 | D27: =SA34a!D140 -> 0 | E27: =SA34a!E140 -> 0 | F27: =SA34a!F140 -> 0 | G27: =SA34a!G140 -> 0 | H27: =SA34a!H140 -> 0 | I27: =SA34a!I140 -> 0 | J27: =SA34a!J140 -> 0 | K27: =SA34a!K140 -> 0
A28: Licences and Rights | C28: =SA34a!C141 -> 29286885.5 | D28: =SA34a!D141 -> 195112.8 | E28: =SA34a!E141 -> 8968380.12 | F28: =SA34a!F141 -> 16200000 | G28: =SA34a!G141 -> 16200000 | H28: =SA34a!H141 -> 16200000 | I28: =SA34a!I141 -> 46237276.47 | J28: =SA34a!J141 -> 42344022.96 | K28: =SA34a!K141 -> 38124996.11
A29: Intangible Assets | C29: =SUM(C27:C28) -> 29286885.5 | D29: =SUM(D27:D28) -> 195112.8 | E29: 8968380.12 | F29: 16200000 | G29: 16200000 | H29: 16200000 | I29: 46237276.47 | J29: 42344022.96 | K29: 38124996.11
A30: Computer Equipment | C30: =SA34a!C149 -> 0 | D30: =SA34a!D149 -> 19861904.45 | E30: =SA34a!E149 -> 34960244.87 | F30: =SA34a!F149 -> 10682500 | G30: =SA34a!G149 -> 10682500 | H30: =SA34a!H149 -> 10682500 | I30: =SA34a!I149 -> 30489488.02 | J30: =SA34a!J149 -> 27922223.78 | K30: =SA34a!K149 -> 25140140.19
A31: Furniture and Office Equipment | C31: =SA34a!C152 -> 9148861.98 | D31: =SA34a!D152 -> 50761735.64 | E31: =SA34a!E152 -> 4304516.88 | F31: =SA34a!F152 -> 9187000 | G31: =SA34a!G152 -> 9187000 | H31: =SA34a!H152 -> 9187000 | I31: =SA34a!I152 -> 26221102.4 | J31: =SA34a!J152 -> 24013243.15 | K31: =SA34a!K152 -> 21620638.23
A32: Machinery and Equipment | C32: =SA34a!C155 -> 24823213.99 | D32: =SA34a!D155 -> 10858594.59 | E32: =SA34a!E155 -> 33839751.12 | F32: =SA34a!F155 -> 12080000 | G32: =SA34a!G155 -> 12080000 | H32: =SA34a!H155 -> 12080000 | I32: =SA34a!I155 -> 34478166.65 | J32: =SA34a!J155 -> 31575049.22 | K32: =SA34a!K155 -> 28429009.45
A33: Transport Assets | C33: =SA34a!C158 -> 469329.27 | D33: =SA34a!D158 -> 337124.62 | E33: =SA34a!E158 -> 77653.21 | F33: =SA34a!F158 -> 0 | G33: =SA34a!G158 -> 0 | H33: =SA34a!H158 -> 0 | I33: =SA34a!I158 -> 0 | J33: =SA34a!J158 -> 0 | K33: =SA34a!K158 -> 0
A34: Land | C34: =SA34a!C161 -> 0 | D34: =SA34a!D161 -> 7833422.52 | E34: =SA34a!E161 -> 0 | F34: =SA34a!F161 -> 17000000 | G34: =SA34a!G161 -> 17000000 | H34: =SA34a!H161 -> 17000000 | I34: =SA34a!I161 -> 48520598.77 | J34: =SA34a!J161 -> 44435085.83 | K34: =SA34a!K161 -> 40007711.97
A35: Zoo's, Marine and Non-biological Animals | C35: =SA34a!C164 -> 0 | D35: =SA34a!D164 -> 0 | E35: =SA34a!E164 -> 0 | F35: =SA34a!F164 -> 0 | G35: =SA34a!G164 -> 0 | H35: =SA34a!H164 -> 0 | I35: =SA34a!I164 -> 0 | J35: =SA34a!J164 -> 0 | K35: =SA34a!K164 -> 0
A37: Total Renewal of Existing Assets | B37: 2 | C37: =C47+C50+C51+C54+C57+C58+SUM(C61:C67) -> 297657017.7 | D37: =D47+D50+D51+D54+D57+D58+SUM(D61:D67) -> 515763053.1 | E37: 251586368.5 | F37: 19531500 | G37: 19531500 | H37: 19531500 | I37: 15200000 | J37: 16959473 | K37: 17977041.38
A38: Roads Infrastructure | C38: =SA34b!C7 -> 108918249.6 | D38: =SA34b!D7 -> 98713824.34 | E38: =SA34b!E7 -> 32198255.8 | F38: =SA34b!F7 -> 7600000 | G38: =SA34b!G7 -> 7600000 | H38: =SA34b!H7 -> 7600000 | I38: =SA34b!I7 -> 5914548.294 | J38: =SA34b!J7 -> 6599185.664 | K38: =SA34b!K7 -> 6995136.804 | M38: 34B
A39: Storm water Infrastructure | C39: =SA34b!C12 -> 0 | D39: =SA34b!D12 -> 0 | E39: =SA34b!E12 -> 0 | F39: =SA34b!F12 -> 0 | G39: =SA34b!G12 -> 0 | H39: =SA34b!H12 -> 0 | I39: =SA34b!I12 -> 0 | J39: =SA34b!J12 -> 0 | K39: =SA34b!K12 -> 0
A40: Electrical Infrastructure | C40: =SA34b!C16 -> 66802290.32 | D40: =SA34b!D16 -> 51960594.32 | E40: =SA34b!E16 -> 44447125.26 | F40: =SA34b!F16 -> 0 | G40: =SA34b!G16 -> 0 | H40: =SA34b!H16 -> 0 | I40: =SA34b!I16 -> 0 | J40: =SA34b!J16 -> 0 | K40: =SA34b!K16 -> 0
A41: Water Supply Infrastructure | C41: =SA34b!C26 -> 71045870.73 | D41: =SA34b!D26 -> 48979612.42 | E41: =SA34b!E26 -> 0 | F41: =SA34b!F26 -> 0 | G41: =SA34b!G26 -> 0 | H41: =SA34b!H26 -> 0 | I41: =SA34b!I26 -> 0 | J41: =SA34b!J26 -> 0 | K41: =SA34b!K26 -> 0
A42: Sanitation Infrastructure | C42: =SA34b!C37 -> 28814431.18 | D42: =SA34b!D37 -> 0 | E42: =SA34b!E37 -> 1197869.29 | F42: =SA34b!F37 -> 0 | G42: =SA34b!G37 -> 0 | H42: =SA34b!H37 -> 0 | I42: =SA34b!I37 -> 0 | J42: =SA34b!J37 -> 0 | K42: =SA34b!K37 -> 0
A43: Solid Waste Infrastructure | C43: =SA34b!C44 -> 1056656.56 | D43: =SA34b!D44 -> 30713723.54 | E43: =SA34b!E44 -> 19377263.52 | F43: =SA34b!F44 -> 2000000 | G43: =SA34b!G44 -> 2000000 | H43: =SA34b!H44 -> 2000000 | I43: =SA34b!I44 -> 1556460.077 | J43: =SA34b!J44 -> 1736627.806 | K43: =SA34b!K44 -> 1840825.475
A44: Rail Infrastructure | C44: =SA34b!C52 -> 0 | D44: =SA34b!D52 -> 0 | E44: =SA34b!E52 -> 0 | F44: =SA34b!F52 -> 0 | G44: =SA34b!G52 -> 0 | H44: =SA34b!H52 -> 0 | I44: =SA34b!I52 -> 0 | J44: =SA34b!J52 -> 0 | K44: =SA34b!K52 -> 0
A45: Coastal Infrastructure | C45: =SA34b!C62 -> 0 | D45: =SA34b!D62 -> 0 | E45: =SA34b!E62 -> 0 | F45: =SA34b!F62 -> 0 | G45: =SA34b!G62 -> 0 | H45: =SA34b!H62 -> 0 | I45: =SA34b!I62 -> 0 | J45: =SA34b!J62 -> 0 | K45: =SA34b!K62 -> 0
A46: Information and Communication Infrastructure | C46: =SA34b!C68 -> 0 | D46: =SA34b!D68 -> 0 | E46: =SA34b!E68 -> 0 | F46: =SA34b!F68 -> 0 | G46: =SA34b!G68 -> 0 | H46: =SA34b!H68 -> 0 | I46: =SA34b!I68 -> 0 | J46: =SA34b!J68 -> 0 | K46: =SA34b!K68 -> 0
A47: Infrastructure | C47: =SUM(C38:C46) -> 276637498.4 | D47: =SUM(D38:D46) -> 230367754.6 | E47: 97220513.87 | F47: 9600000 | G47: 9600000 | H47: 9600000 | I47: 7471008.371 | J47: 8335813.471 | K47: 8835962.279
A48: Community Facilities | C48: =SA34b!C75 -> 909995.46 | D48: =SA34b!D75 -> 8706674.4 | E48: =SA34b!E75 -> 3705234.78 | F48: =SA34b!F75 -> 0 | G48: =SA34b!G75 -> 0 | H48: =SA34b!H75 -> 0 | I48: =SA34b!I75 -> 0 | J48: =SA34b!J75 -> 0 | K48: =SA34b!K75 -> 0
A49: Sport and Recreation Facilities | C49: =SA34b!C98 -> 2822837.94 | D49: =SA34b!D98 -> 28616267.99 | E49: =SA34b!E98 -> 24870985.83 | F49: =SA34b!F98 -> 0 | G49: =SA34b!G98 -> 0 | H49: =SA34b!H98 -> 0 | I49: =SA34b!I98 -> 0 | J49: =SA34b!J98 -> 0 | K49: =SA34b!K98 -> 0
A50: Community Assets | C50: =SUM(C48:C49) -> 3732833.4 | D50: =SUM(D48:D49) -> 37322942.39 | E50: 28576220.61 | F50: 0 | G50: 0 | H50: 0 | I50: 0 | J50: 0 | K50: 0
A51: Heritage Assets | C51: =SA34b!C103 -> 311199.53 | D51: =SA34b!D103 -> 16065512.57 | E51: =SA34b!E103 -> 15407721.55 | F51: =SA34b!F103 -> 0 | G51: =SA34b!G103 -> 0 | H51: =SA34b!H103 -> 0 | I51: =SA34b!I103 -> 0 | J51: =SA34b!J103 -> 0 | K51: =SA34b!K103 -> 0
A52: Revenue Generating | C52: =SA34b!C111 -> 0 | D52: =SA34b!D111 -> 0 | E52: =SA34b!E111 -> 0 | F52: =SA34b!F111 -> 0 | G52: =SA34b!G111 -> 0 | H52: =SA34b!H111 -> 0 | I52: =SA34b!I111 -> 0 | J52: =SA34b!J111 -> 0 | K52: =SA34b!K111 -> 0
A53: Non-revenue Generating | C53: =SA34b!C114 -> 0 | D53: =SA34b!D114 -> 0 | E53: =SA34b!E114 -> 0 | F53: =SA34b!F114 -> 0 | G53: =SA34b!G114 -> 0 | H53: =SA34b!H114 -> 0 | I53: =SA34b!I114 -> 0 | J53: =SA34b!J114 -> 0 | K53: =SA34b!K114 -> 0
A54: Investment properties | C54: =SUM(C52:C53) -> 0 | D54: =SUM(D52:D53) -> 0 | E54: 0 | F54: 0 | G54: 0 | H54: 0 | I54: 0 | J54: 0 | K54: 0
A55: Operational Buildings | C55: =SA34b!C119 -> 13702356.26 | D55: =SA34b!D119 -> 0 | E55: =SA34b!E119 -> 0 | F55: =SA34b!F119 -> 0 | G55: =SA34b!G119 -> 0 | H55: =SA34b!H119 -> 0 | I55: =SA34b!I119 -> 0 | J55: =SA34b!J119 -> 0 | K55: =SA34b!K119 -> 0
A56: Housing | C56: =SA34b!C131 -> 0 | D56: =SA34b!D131 -> 0 | E56: =SA34b!E131 -> 0 | F56: =SA34b!F131 -> 0 | G56: =SA34b!G131 -> 0 | H56: =SA34b!H131 -> 0 | I56: =SA34b!I131 -> 0 | J56: =SA34b!J131 -> 0 | K56: =SA34b!K131 -> 0
A57: Other Assets | C57: =SUM(C55:C56) -> 13702356.26 | D57: =SUM(D55:D56) -> 0 | E57: 0 | F57: 0 | G57: 0 | H57: 0 | I57: 0 | J57: 0 | K57: 0
A58: Biological or Cultivated Assets | C58: =SA34b!C136 -> 0 | D58: =SA34b!D136 -> 0 | E58: =SA34b!E136 -> 0 | F58: =SA34b!F136 -> 0 | G58: =SA34b!G136 -> 0 | H58: =SA34b!H136 -> 0 | I58: =SA34b!I136 -> 0 | J58: =SA34b!J136 -> 0 | K58: =SA34b!K136 -> 0
A59: Servitudes | C59: =SA34b!C140 -> 0 | D59: =SA34b!D140 -> 0 | E59: =SA34b!E140 -> 0 | F59: =SA34b!F140 -> 0 | G59: =SA34b!G140 -> 0 | H59: =SA34b!H140 -> 0 | I59: =SA34b!I140 -> 0 | J59: =SA34b!J140 -> 0 | K59: =SA34b!K140 -> 0
A60: Licences and Rights | C60: =SA34b!C141 -> 0 | D60: =SA34b!D141 -> 0 | E60: =SA34b!E141 -> 0 | F60: =SA34b!F141 -> 0 | G60: =SA34b!G141 -> 0 | H60: =SA34b!H141 -> 0 | I60: =SA34b!I141 -> 0 | J60: =SA34b!J141 -> 0 | K60: =SA34b!K141 -> 0
A61: Intangible Assets | C61: =SUM(C59:C60) -> 0 | D61: =SUM(D59:D60) -> 0 | E61: 0 | F61: 0 | G61: 0 | H61: 0 | I61: 0 | J61: 0 | K61: 0
A62: Computer Equipment | C62: =SA34b!C149 -> 0 | D62: =SA34b!D149 -> 1950065.1 | E62: =SA34b!E149 -> 0 | F62: =SA34b!F149 -> 0 | G62: =SA34b!G149 -> 0 | H62: =SA34b!H149 -> 0 | I62: =SA34b!I149 -> 0 | J62: =SA34b!J149 -> 0 | K62: =SA34b!K149 -> 0
A63: Furniture and Office Equipment | C63: =SA34b!C152 -> 2018789.55 | D63: =SA34b!D152 -> 5781198.02 | E63: =SA34b!E152 -> 0 | F63: =SA34b!F152 -> 500000 | G63: =SA34b!G152 -> 500000 | H63: =SA34b!H152 -> 500000 | I63: =SA34b!I152 -> 389115.0193 | J63: =SA34b!J152 -> 434156.9516 | K63: =SA34b!K152 -> 460206.3687
A64: Machinery and Equipment | C64: =SA34b!C155 -> 299999.27 | D64: =SA34b!D155 -> 15350489.89 | E64: =SA34b!E155 -> 0 | F64: =SA34b!F155 -> 9431500 | G64: =SA34b!G155 -> 9431500 | H64: =SA34b!H155 -> 9431500 | I64: =SA34b!I155 -> 7339876.61 | J64: =SA34b!J155 -> 8189502.578 | K64: =SA34b!K155 -> 8680872.733
A65: Transport Assets | C65: =SA34b!C158 -> 954341.25 | D65: =SA34b!D158 -> 177628403.2 | E65: =SA34b!E158 -> 110381912.5 | F65: =SA34b!F158 -> 0 | G65: =SA34b!G158 -> 0 | H65: =SA34b!H158 -> 0 | I65: =SA34b!I158 -> 0 | J65: =SA34b!J158 -> 0 | K65: =SA34b!K158 -> 0
A66: Land | C66: =SA34b!C161 -> 0 | D66: =SA34b!D161 -> 31296687.34 | E66: =SA34b!E161 -> 0 | F66: =SA34b!F161 -> 0 | G66: =SA34b!G161 -> 0 | H66: =SA34b!H161 -> 0 | I66: =SA34b!I161 -> 0 | J66: =SA34b!J161 -> 0 | K66: =SA34b!K161 -> 0
A67: Zoo's, Marine and Non-biological Animals | C67: =SA34b!C164 -> 0 | D67: =SA34b!D164 -> 0 | E67: =SA34b!E164 -> 0 | F67: =SA34b!F164 -> 0 | G67: =SA34b!G164 -> 0 | H67: =SA34b!H164 -> 0 | I67: =SA34b!I164 -> 0 | J67: =SA34b!J164 -> 0 | K67: =SA34b!K164 -> 0
A69: Total Upgrading of Existing Assets | B69: 6 | C69: =C79+C82+C83+C86+C89+C90+SUM(C93:C99) -> 0 | D69: =D79+D82+D83+D86+D89+D90+SUM(D93:D99) -> 0 | E69: 175803267.3 | F69: 380904544.4 | G69: 380646144.4 | H69: 380646144.4 | I69: 109450000 | J69: 114479074.8 | K69: 129021121.3
A70: Roads Infrastructure | C70: =SA34e!C7 -> 0 | D70: =SA34e!D7 -> 0 | E70: =SA34e!E7 -> 90517841.19 | F70: =SA34e!F7 -> 108700000.4 | G70: =SA34e!G7 -> 108700000.4 | H70: =SA34e!H7 -> 108700000.4 | I70: =SA34e!I7 -> 31255314.73 | J70: =SA34e!J7 -> 32691452.84 | K70: =SA34e!K7 -> 36844182.3 | M70: 34E
A71: Storm water Infrastructure | C71: =SA34e!C12 -> 0 | D71: =SA34e!D12 -> 0 | E71: =SA34e!E12 -> 0 | F71: =SA34e!F12 -> 0 | G71: =SA34e!G12 -> 0 | H71: =SA34e!H12 -> 0 | I71: =SA34e!I12 -> 0 | J71: =SA34e!J12 -> 0 | K71: =SA34e!K12 -> 0
A72: Electrical Infrastructure | C72: =SA34e!C16 -> 0 | D72: =SA34e!D16 -> 0 | E72: =SA34e!E16 -> 6325203.16 | F72: =SA34e!F16 -> 56290000 | G72: =SA34e!G16 -> 56290000 | H72: =SA34e!H16 -> 56290000 | I72: =SA34e!I16 -> 16185479.85 | J72: =SA34e!J16 -> 16929180.07 | K72: =SA34e!K16 -> 19079659.74
A73: Water Supply Infrastructure | C73: =SA34e!C26 -> 0 | D73: =SA34e!D26 -> 0 | E73: =SA34e!E26 -> 50483941.24 | F73: =SA34e!F26 -> 19000000 | G73: =SA34e!G26 -> 19000000 | H73: =SA34e!H26 -> 19000000 | I73: =SA34e!I26 -> 5463210.466 | J73: =SA34e!J26 -> 5714237.366 | K73: =SA34e!K26 -> 6440105.439
A74: Sanitation Infrastructure | C74: =SA34e!C37 -> 0 | D74: =SA34e!D37 -> 0 | E74: =SA34e!E37 -> 0 | F74: =SA34e!F37 -> 0 | G74: =SA34e!G37 -> 0 | H74: =SA34e!H37 -> 0 | I74: =SA34e!I37 -> 0 | J74: =SA34e!J37 -> 0 | K74: =SA34e!K37 -> 0
A75: Solid Waste Infrastructure | C75: =SA34e!C44 -> 0 | D75: =SA34e!D44 -> 0 | E75: =SA34e!E44 -> 4262949.49 | F75: =SA34e!F44 -> 14356244 | G75: =SA34e!G44 -> 14356244 | H75: =SA34e!H44 -> 14356244 | I75: =SA34e!I44 -> 4127956.972 | J75: =SA34e!J44 -> 4317630.837 | K75: =SA34e!K44 -> 4866090.793
A76: Rail Infrastructure | C76: =SA34e!C52 -> 0 | D76: =SA34e!D52 -> 0 | E76: =SA34e!E52 -> 0 | F76: =SA34e!F52 -> 0 | G76: =SA34e!G52 -> 0 | H76: =SA34e!H52 -> 0 | I76: =SA34e!I52 -> 0 | J76: =SA34e!J52 -> 0 | K76: =SA34e!K52 -> 0
A77: Coastal Infrastructure | C77: =SA34e!C62 -> 0 | D77: =SA34e!D62 -> 0 | E77: =SA34e!E62 -> 0 | F77: =SA34e!F62 -> 0 | G77: =SA34e!G62 -> 0 | H77: =SA34e!H62 -> 0 | I77: =SA34e!I62 -> 0 | J77: =SA34e!J62 -> 0 | K77: =SA34e!K62 -> 0
A78: Information and Communication Infrastructure | C78: =SA34e!C68 -> 0 | D78: =SA34e!D68 -> 0 | E78: =SA34e!E68 -> 0 | F78: =SA34e!F68 -> 0 | G78: =SA34e!G68 -> 0 | H78: =SA34e!H68 -> 0 | I78: =SA34e!I68 -> 0 | J78: =SA34e!J68 -> 0 | K78: =SA34e!K68 -> 0
A79: Infrastructure | C79: =SUM(C70:C78) -> 0 | D79: 0 | E79: 151589935.1 | F79: 198346244.4 | G79: 198346244.4 | H79: 198346244.4 | I79: 57031962.02 | J79: 59652501.11 | K79: 67230038.28
A80: Community Facilities | C80: =SA34e!C75 -> 0 | D80: =SA34e!D75 -> 0 | E80: =SA34e!E75 -> 149110.31 | F80: =SA34e!F75 -> 0 | G80: =SA34e!G75 -> 0 | H80: =SA34e!H75 -> 0 | I80: =SA34e!I75 -> 0 | J80: =SA34e!J75 -> 0 | K80: =SA34e!K75 -> 0
A81: Sport and Recreation Facilities | C81: =SA34e!C98 -> 0 | D81: =SA34e!D98 -> 0 | E81: =SA34e!E98 -> 1632721.64 | F81: =SA34e!F98 -> 0 | G81: =SA34e!G98 -> 0 | H81: =SA34e!H98 -> 0 | I81: =SA34e!I98 -> 0 | J81: =SA34e!J98 -> 0 | K81: =SA34e!K98 -> 0
A82: Community Assets | C82: =SUM(C80:C81) -> 0 | D82: 0 | E82: 1781831.95 | F82: 0 | G82: 0 | H82: 0 | I82: 0 | J82: 0 | K82: 0
A83: Heritage Assets | C83: =SA34e!C103 -> 0 | D83: =SA34e!D103 -> 0 | E83: =SA34e!E103 -> 8422674.74 | F83: =SA34e!F103 -> 14143500 | G83: =SA34e!G103 -> 14143500 | H83: =SA34e!H103 -> 14143500 | I83: =SA34e!I103 -> 4066785.117 | J83: =SA34e!J103 -> 4253648.22 | K83: =SA34e!K103 -> 4793980.593
A84: Revenue Generating | C84: =SA34e!C111 -> 0 | D84: =SA34e!D111 -> 0 | E84: =SA34e!E111 -> 0 | F84: =SA34e!F111 -> 0 | G84: =SA34e!G111 -> 0 | H84: =SA34e!H111 -> 0 | I84: =SA34e!I111 -> 0 | J84: =SA34e!J111 -> 0 | K84: =SA34e!K111 -> 0
A85: Non-revenue Generating | C85: =SA34e!C114 -> 0 | D85: =SA34e!D114 -> 0 | E85: =SA34e!E114 -> 0 | F85: =SA34e!F114 -> 0 | G85: =SA34e!G114 -> 0 | H85: =SA34e!H114 -> 0 | I85: =SA34e!I114 -> 0 | J85: =SA34e!J114 -> 0 | K85: =SA34e!K114 -> 0
A86: Investment properties | C86: =SUM(C84:C85) -> 0 | D86: 0 | E86: 0 | F86: 0 | G86: 0 | H86: 0 | I86: 0 | J86: 0 | K86: 0
A87: Operational Buildings | C87: =SA34e!C119 -> 0 | D87: =SA34e!D119 -> 0 | E87: =SA34e!E119 -> 0 | F87: =SA34e!F119 -> 0 | G87: =SA34e!G119 -> 0 | H87: =SA34e!H119 -> 0 | I87: =SA34e!I119 -> 0 | J87: =SA34e!J119 -> 0 | K87: =SA34e!K119 -> 0
A88: Housing | C88: =SA34e!C131 -> 0 | D88: =SA34e!D131 -> 0 | E88: =SA34e!E131 -> 0 | F88: =SA34e!F131 -> 0 | G88: =SA34e!G131 -> 0 | H88: =SA34e!H131 -> 0 | I88: =SA34e!I131 -> 0 | J88: =SA34e!J131 -> 0 | K88: =SA34e!K131 -> 0
A89: Other Assets | C89: =SUM(C87:C88) -> 0 | D89: 0 | E89: 0 | F89: 0 | G89: 0 | H89: 0 | I89: 0 | J89: 0 | K89: 0
A90: Biological or Cultivated Assets | C90: =SA34e!C136 -> 0 | D90: =SA34e!D136 -> 0 | E90: =SA34e!E136 -> 0 | F90: =SA34e!F136 -> 0 | G90: =SA34e!G136 -> 0 | H90: =SA34e!H136 -> 0 | I90: =SA34e!I136 -> 0 | J90: =SA34e!J136 -> 0 | K90: =SA34e!K136 -> 0
A91: Servitudes | C91: =SA34e!C140 -> 0 | D91: =SA34e!D140 -> 0 | E91: =SA34e!E140 -> 0 | F91: =SA34e!F140 -> 0 | G91: =SA34e!G140 -> 0 | H91: =SA34e!H140 -> 0 | I91: =SA34e!I140 -> 0 | J91: =SA34e!J140 -> 0 | K91: =SA34e!K140 -> 0
A92: Licences and Rights | C92: =SA34e!C141 -> 0 | D92: =SA34e!D141 -> 0 | E92: =SA34e!E141 -> 0 | F92: =SA34e!F141 -> 0 | G92: =SA34e!G141 -> 0 | H92: =SA34e!H141 -> 0 | I92: =SA34e!I141 -> 0 | J92: =SA34e!J141 -> 0 | K92: =SA34e!K141 -> 0
A93: Intangible Assets | C93: =SUM(C91:C92) -> 0 | D93: 0 | E93: 0 | F93: 0 | G93: 0 | H93: 0 | I93: 0 | J93: 0 | K93: 0
A94: Computer Equipment | C94: =SA34e!C149 -> 0 | D94: =SA34e!D149 -> 0 | E94: =SA34e!E149 -> 0 | F94: =SA34e!F149 -> 600000 | G94: =SA34e!G149 -> 600000 | H94: =SA34e!H149 -> 600000 | I94: =SA34e!I149 -> 172522.4358 | J94: =SA34e!J149 -> 180449.601 | K94: =SA34e!K149 -> 203371.7507
A95: Furniture and Office Equipment | C95: =SA34e!C152 -> 0 | D95: =SA34e!D152 -> 0 | E95: =SA34e!E152 -> 0 | F95: =SA34e!F152 -> 100000 | G95: =SA34e!G152 -> 100000 | H95: =SA34e!H152 -> 100000 | I95: =SA34e!I152 -> 28753.7393 | J95: =SA34e!J152 -> 30074.93351 | K95: =SA34e!K152 -> 33895.29178
A96: Machinery and Equipment | C96: =SA34e!C155 -> 0 | D96: =SA34e!D155 -> 0 | E96: =SA34e!E155 -> 1388509.91 | F96: =SA34e!F155 -> 0 | G96: =SA34e!G155 -> 0 | H96: =SA34e!H155 -> 0 | I96: =SA34e!I155 -> 0 | J96: =SA34e!J155 -> 0 | K96: =SA34e!K155 -> 0
A97: Transport Assets | C97: =SA34e!C158 -> 0 | D97: =SA34e!D158 -> 0 | E97: =SA34e!E158 -> 0 | F97: =SA34e!F158 -> 167714800 | G97: =SA34e!G158 -> 167456400 | H97: =SA34e!H158 -> 167456400 | I97: =SA34e!I158 -> 48149976.69 | J97: =SA34e!J158 -> 50362400.95 | K97: =SA34e!K158 -> 56759835.39
A98: Land | C98: =SA34e!C161 -> 0 | D98: =SA34e!D161 -> 0 | E98: =SA34e!E161 -> 12620315.63 | F98: =SA34e!F161 -> 0 | G98: =SA34e!G161 -> 0 | H98: =SA34e!H161 -> 0 | I98: =SA34e!I161 -> 0 | J98: =SA34e!J161 -> 0 | K98: =SA34e!K161 -> 0
A99: Zoo's, Marine and Non-biological Animals | C99: =SA34e!C164 -> 0 | D99: =SA34e!D164 -> 0 | E99: =SA34e!E164 -> 0 | F99: =SA34e!F164 -> 0 | G99: =SA34e!G164 -> 0 | H99: =SA34e!H164 -> 0 | I99: =SA34e!I164 -> 0 | J99: =SA34e!J164 -> 0 | K99: =SA34e!K164 -> 0
A101: Total Capital Expenditure | B101: 4 | C101: =+C5+C37+C69 -> 648109542 | D101: =+D5+D37+D69 -> 594896668.5 | E101: 613486541 | F101: 555171301.4 | G101: 6349388963 | H101: 746194546.2 | I101: 580891581 | J101: 553949399.5 | K101: 522868840
A102: Roads Infrastructure | C102: =+C6+C38+C70 -> 143901070.3 | D102: =+D6+D38+D70 -> 101461238.4 | E102: 137819136 | F102: 120100000.4 | G102: 2521942981 | H102: 120100000.4 | I102: 48015643.92 | J102: 49223187.1 | K102: 52782219.43
A103: Storm water Infrastructure | C103: =+C7+C39+C71 -> 0 | D103: 0 | E103: 0 | F103: 0 | G103: 171146519.2 | H103: 0 | I103: 0 | J103: 0 | K103: 0
A104: Electrical Infrastructure | C104: 259778117.7 | D104: 8914760.18 | E104: 118050196.6 | F104: 102917101 | G104: 1375580256 | H104: 293723561.8 | I104: 149837184.5 | J104: 139327194.9 | K104: 129282316.8
A105: Water Supply Infrastructure | C105: 74458144.93 | D105: 48979612.42 | E105: 50483941.24 | F105: 19000000 | G105: 1226157612 | H105: 19000000 | I105: 5463210.466 | J105: 5714237.366 | K105: 6440105.439
A106: Sanitation Infrastructure | C106: 37191226.49 | D106: 0 | E106: 1197869.29 | F106: 0 | G106: 682631645.9 | H106: 17000000 | I106: 48520598.77 | J106: 44435085.83 | K106: 40007711.97
A107: Solid Waste Infrastructure | C107: 1056656.56 | D107: 30862590.54 | E107: 23640213.01 | F107: 33356244 | G107: 53653946.88 | H107: 16356244 | I107: 5684417.05 | J107: 6054258.643 | K107: 6706916.268
A108: Rail Infrastructure | C108: 0 | D108: 0 | E108: 0 | F108: 0 | G108: 1552439.07 | H108: 0 | I108: 0 | J108: 0 | K108: 0
A109: Coastal Infrastructure | C109: 0 | D109: 0 | E109: 0 | F109: 0 | G109: 5366020.748 | H109: 0 | I109: 0 | J109: 0 | K109: 0
A110: Information and Communication Infrastructure | C110: 0 | D110: 0 | E110: 0 | F110: 0 | G110: 5859000 | H110: 0 | I110: 0 | J110: 0 | K110: 0
A111: Infrastructure | C111: =SUM(C102:C110) -> 516385216 | D111: =SUM(D102:D110) -> 190218201.5 | E111: 331191356.2 | F111: 275373345.4 | G111: 6043890422 | H111: 466179806.2 | I111: 257521054.7 | J111: 244753963.8 | K111: 235219269.9
A112: Community Facilities | C112: =+C16+C48+C80 -> 1078823.46 | D112: =+D16+D48+D80 -> 8706674.4 | E112: 4191001.05 | F112: 10274656 | G112: 36233641.81 | H112: 10749840 | I112: 39558111.67 | J112: 39392838.73 | K112: 32427167.98
A113: Sport and Recreation Facilities | C113: =+C17+C49+C81 -> 37157553.14 | D113: =+D17+D49+D81 -> 33722699.16 | E113: 26503707.47 | F113: 0 | G113: 0 | H113: 0 | I113: 0 | J113: 0 | K113: 0
A114: Community Assets | C114: =SUM(C112:C113) -> 38236376.6 | D114: =SUM(D112:D113) -> 42429373.56 | E114: 30694708.52 | F114: 10274656 | G114: 36233641.81 | H114: 10749840 | I114: 39558111.67 | J114: 39392838.73 | K114: 32427167.98
A115: Heritage Assets | C115: =+C19+C51+C83 -> 7601504.77 | D115: =+D19+D51+D83 -> 40394355.28 | E115: 42173908.2 | F115: 26027500 | G115: 26027500 | H115: 26027500 | I115: 37985537.81 | J115: 35316387.04 | K115: 32761724.66
A116: Revenue Generating | C116: =+C20+C52+C84 -> 0 | D116: =+D20+D52+D84 -> 0 | E116: 0 | F116: 0 | G116: 0 | H116: 0 | I116: 0 | J116: 0 | K116: 0
A117: Non-revenue Generating | C117: =+C21+C53+C85 -> 0 | D117: =+D21+D53+D85 -> 0 | E117: 0 | F117: 0 | G117: 0 | H117: 0 | I117: 0 | J117: 0 | K117: 0
A118: Investment properties | C118: =SUM(C116:C117) -> 0 | D118: =SUM(D116:D117) -> 0 | E118: 0 | F118: 0 | G118: 0 | H118: 0 | I118: 0 | J118: 0 | K118: 0
A119: Operational Buildings | C119: =+C23+C55+C87 -> 18885023.86 | D119: =+D23+D55+D87 -> 0 | E119: 2885283.88 | F119: 0 | G119: 0 | H119: 0 | I119: 3800000 | J119: 5000000 | K119: 3000000
A120: Housing | C120: =+C24+C56+C88 -> 0 | D120: =+D24+D56+D88 -> 0 | E120: 0 | F120: 0 | G120: 0 | H120: 0 | I120: 0 | J120: 0 | K120: 0
A121: Other Assets | C121: =SUM(C119:C120) -> 18885023.86 | D121: 0 | E121: 2885283.88 | F121: 0 | G121: 0 | H121: 0 | I121: 3800000 | J121: 5000000 | K121: 3000000
A122: Biological or Cultivated Assets | C122: =+C26+C58+C90 -> 0 | D122: =+D26+D58+D90 -> 0 | E122: 0 | F122: 0 | G122: 0 | H122: 0 | I122: 0 | J122: 0 | K122: 0
A123: Servitudes | C123: =+C27+C59+C91 -> 0 | D123: =+D27+D59+D91 -> 0 | E123: 0 | F123: 0 | G123: 0 | H123: 0 | I123: 0 | J123: 0 | K123: 0
A124: Licences and Rights | C124: =+C28+C60+C92 -> 29286885.5 | D124: =+D28+D60+D92 -> 195112.8 | E124: 8968380.12 | F124: 16200000 | G124: 16200000 | H124: 16200000 | I124: 46237276.47 | J124: 42344022.96 | K124: 38124996.11
A125: Intangible Assets | C125: =SUM(C123:C124) -> 29286885.5 | D125: =SUM(D123:D124) -> 195112.8 | E125: 8968380.12 | F125: 16200000 | G125: 16200000 | H125: 16200000 | I125: 46237276.47 | J125: 42344022.96 | K125: 38124996.11
A126: Computer Equipment | C126: =+C30+C62+C94 -> 0 | D126: =+D30+D62+D94 -> 21811969.55 | E126: 34960244.87 | F126: 11282500 | G126: 11282500 | H126: 11282500 | I126: 30662010.46 | J126: 28102673.39 | K126: 25343511.94
A127: Furniture and Office Equipment | C127: =+C31+C63+C95 -> 11167651.53 | D127: 56542933.66 | E127: 4304516.88 | F127: 9787000 | G127: 9787000 | H127: 9787000 | I127: 26638971.16 | J127: 24477475.03 | K127: 22114739.89
A128: Machinery and Equipment | C128: 25123213.26 | D128: 26209084.48 | E128: 35228261.03 | F128: 21511500 | G128: 21511500 | H128: 21511500 | I128: 41818043.26 | J128: 39764551.8 | K128: 37109882.18
A129: Transport Assets | C129: 1423670.52 | D129: 177965527.8 | E129: 110459565.7 | F129: 167714800 | G129: 167456400 | H129: 167456400 | I129: 48149976.69 | J129: 50362400.95 | K129: 56759835.39
A130: Land | C130: 0 | D130: 39130109.86 | E130: 12620315.63 | F130: 17000000 | G130: 17000000 | H130: 17000000 | I130: 48520598.77 | J130: 44435085.83 | K130: 40007711.97
A131: Zoo's, Marine and Non-biological Animals | C131: 0 | D131: 0 | E131: 0 | F131: 0 | G131: 0 | H131: 0 | I131: 0 | J131: 0 | K131: 0
A132: TOTAL CAPITAL EXPENDITURE - Asset class | C132: =+C5+C37+C69 -> 648109542 | D132: =+D5+D37+D69 -> 594896668.5 | E132: 613486541 | F132: 555171301.4 | G132: 6349388963 | H132: 746194546.2 | I132: 580891581 | J132: 553949399.5 | K132: 522868840
A134: ASSET REGISTER SUMMARY - PPE (WDV) | B134: 5 | C134: =C144+C147+C148+C151+C154+C155+C158+C159+C160+C161+C162+C163+C164 -> 7170057388 | D134: =D144+D147+D148+D151+D154+D155+D158+D159+D160+D161+D162+D163+D164 -> 8003466549 | E134: 0 | F134: 8299932731 | G134: 8039624767 | H134: 8039624767 | I134: 7111997636 | J134: 6621893133 | K134: 6034258092
A135: Roads Infrastructure | C135: 2995368342 | D135: 3657550278 | F135: 2665950944 | G135: 2405642981 | H135: 2405642981 | I135: 2128075338 | J135: 1981424656 | K135: 1805590565
A136: Storm water Infrastructure | C136: 156434542 | D136: 164256269.1 | F136: 171146519.2 | G136: 171146519.2 | H136: 171146519.2 | I136: 151399309.7 | J136: 140966026.8 | K136: 128456526.1
A137: Electrical Infrastructure | C137: 1275053426 | D137: 1338806097 | F137: 1319290256 | G137: 1319290256 | H137: 1319290256 | I137: 1167068048 | J137: 1086642641 | K137: 990212620.2
A138: Water Supply Infrastructure | C138: 912162895 | D138: 957771039.8 | F138: 1207157612 | G138: 1207157612 | H138: 1207157612 | I138: 1067873481 | J138: 994283804.6 | K138: 906049821.9
A139: Sanitation Infrastructure | C139: 470204815 | D139: 493715055.8 | F139: 682631645.9 | G139: 682631645.9 | H139: 682631645.9 | I139: 603868313.7 | J139: 562254326.4 | K139: 512359177.5
A140: Solid Waste Infrastructure | C140: 15672934 | D140: 16456580.7 | F140: 37297702.88 | G140: 37297702.88 | H140: 37297702.88 | I140: 32994223.28 | J140: 30720513.67 | K140: 27994337.04
A141: Rail Infrastructure | C141: 1408108 | D141: 1478513.4 | F141: 1552439.07 | G141: 1552439.07 | H141: 1552439.07 | I141: 1373315.71 | J141: 1278677.291 | K141: 1165205.876
A142: Coastal Infrastructure | C142: 4867139 | D142: 5110495.95 | F142: 5366020.748 | G142: 5366020.748 | H142: 5366020.748 | I142: 4746879.111 | J142: 4419760.495 | K142: 4027545.446
A143: Information and Communication Infrastructure | C143: 5022000 | D143: 5301000 | F143: 5859000 | G143: 5859000 | H143: 5859000 | I143: 5182977.484 | J143: 4825806.302 | K143: 4397558.243
A144: Infrastructure | C144: =SUM(C135:C143) -> 5836194201 | D144: =SUM(D135:D143) -> 6640445330 | E144: 0 | F144: 6096252140 | G144: 5835944177 | H144: 5835944177 | I144: 5162581886 | J144: 4806816212 | K144: 4380253357
A147: Community Assets | C147: 294811229 | D147: 309551790.4 | F147: 36233641.81 | G147: 36233641.81 | H147: 36233641.81 | I147: 32052935.6 | J147: 29844092.34 | K147: 27195690.43
A148: Heritage Assets | C148: 126091404 | D148: 132395974.2 | F148: 260307963.3 | G148: 260307963.3 | H148: 260307963.3 | I148: 230273137.5 | J148: 214404473.4 | K148: 195377953.5
I149: 0 | J149: 0 | K149: 0
I150: 0 | J150: 0 | K150: 0
A151: Investment properties | C151: 226212346 | D151: 230736592.9 | F151: 756234992.1 | G151: 756234992.1 | H151: 756234992.1 | I151: 668979166.5 | J151: 622878237 | K151: 567603246.8
I152: 0 | J152: 0 | K152: 0
I153: 0 | J153: 0 | K153: 0
A154: Other Assets | C154: 283455412 | D154: 289124520.2 | F154: 351457459.5 | G154: 351457459.5 | H154: 351457459.5 | I154: 310905632.2 | J154: 289480393 | K154: 263791542.6
A155: Biological or Cultivated Assets | I155: 0 | J155: 0 | K155: 0
I156: 0 | J156: 0 | K156: 0
I157: 0 | J157: 0 | K157: 0
A158: Intangible Assets | C158: 803846 | D158: 844038.3 | F158: 27865742.94 | G158: 27865742.94 | H158: 27865742.94 | I158: 24650540.75 | J158: 22951813.94 | K158: 20915041.4
A159: Computer Equipment | C159: 49799112 | D159: 52289067.6 | F159: 1288020.205 | G159: 1288020.205 | H159: 1288020.205 | I159: 1139405.995 | J159: 1060886.845 | K159: 966742.4256
A160: Furniture and Office Equipment | C160: 56298121 | D160: 59113027.05 | F160: 16820364.75 | G160: 16820364.75 | H160: 16820364.75 | I160: 14879599.21 | J160: 13854210.99 | K160: 12624771.06
A161: Machinery and Equipment | C161: 222450941 | D161: 211328393.9 | F161: 606200849.9 | G161: 606200849.9 | H161: 606200849.9 | I161: 536256247.8 | J161: 499301567.1 | K161: 454992924.4
A162: Transport Assets | C162: 73940776 | D162: 77637814.8 | F162: 147271555.6 | G162: 147271555.6 | H162: 147271555.6 | I162: 130279084.6 | J162: 121301246.1 | K162: 110536822.5
A163: Land | I163: 0 | J163: 0 | K163: 0
A164: Zoo's, Marine and Non-biological Animals | I164: 0 | J164: 0 | K164: 0
A165: TOTAL ASSET REGISTER SUMMARY - PPE (WDV) | B165: 5 | C165: =C144+C147+C148+C151+C154+C155+C158+C159+C160+C161+C162+C163+C164 -> 7170057388 | D165: =D144+D147+D148+D151+D154+D155+D158+D159+D160+D161+D162+D163+D164 -> 8003466549 | E165: 0 | F165: 8299932731 | G165: 8039624767 | H165: 8039624767 | I165: 7111997636 | J165: 6621893133 | K165: 6034258092
A167: EXPENDITURE OTHER ITEMS | C167: =SUM(C168:C169) -> 760857620 | D167: =SUM(D168:D169) -> 641449615.7 | E167: 460955083 | F167: 589369709.4 | G167: 589415864.8 | H167: 588466864.8 | I167: 723245262.6 | J167: 778179575.2 | K167: 814053286.6
A168: Depreciation | B168: 7 | C168: =SA34d!C167 -> 598014010 | D168: =SA34d!D167 -> 470106108 | E168: =SA34d!E167 -> 460955083 | F168: =SA34d!F167 -> 492025080.3 | G168: =SA34d!G167 -> 492071235.6 | H168: =SA34d!H167 -> 491122235.6 | I168: =SA34d!I167 -> 489941448.3 | J168: =SA34d!J167 -> 537817854.5 | K168: =SA34d!K167 -> 562557475.8 | M168: 34D
A169: Repairs and Maintenance by Asset Class | B169: 3 | C169: =C179+C182+C183+C186+C189+C190+SUM(C193:C199) -> 162843610 | D169: =D179+D182+D183+D186+D189+D190+SUM(D193:D199) -> 171343507.7 | E169: 0 | F169: 97344629.17 | G169: 97344629.17 | H169: 97344629.17 | I169: 233303814.3 | J169: 240361720.7 | K169: 251495810.8
A170: Roads Infrastructure | C170: =SA34c!C7 -> 47028527 | D170: =SA34c!D7 -> 49483260.51 | E170: =SA34c!E7 -> 0 | F170: =SA34c!F7 -> 0 | G170: =SA34c!G7 -> 0 | H170: =SA34c!H7 -> 0 | I170: =SA34c!I7 -> 67377416.65 | J170: =SA34c!J7 -> 69415709.35 | K170: =SA34c!K7 -> 72631186.19 | M170: 34 C
A171: Storm water Infrastructure | C171: =SA34c!C12 -> 0 | D171: =SA34c!D12 -> 0 | E171: =SA34c!E12 -> 0 | F171: =SA34c!F12 -> 0 | G171: =SA34c!G12 -> 0 | H171: =SA34c!H12 -> 0 | I171: =SA34c!I12 -> 0 | J171: =SA34c!J12 -> 0 | K171: =SA34c!K12 -> 0
A172: Electrical Infrastructure | C172: =SA34c!C16 -> 50160358 | D172: =SA34c!D16 -> 52778562.73 | E172: =SA34c!E16 -> 0 | F172: =SA34c!F16 -> 60146066 | G172: =SA34c!G16 -> 60146066 | H172: =SA34c!H16 -> 60146066 | I172: =SA34c!I16 -> 72368461.65 | J172: =SA34c!J16 -> 74557773.04 | K172: =SA34c!K16 -> 78011487.04
A173: Water Supply Infrastructure | C173: =SA34c!C26 -> 15460146 | D173: =SA34c!D26 -> 16267114.47 | E173: =SA34c!E26 -> 0 | F173: =SA34c!F26 -> 0 | G173: =SA34c!G26 -> 0 | H173: =SA34c!H26 -> 0 | I173: =SA34c!I26 -> 22149634.81 | J173: =SA34c!J26 -> 22819702.63 | K173: =SA34c!K26 -> 23876757.67
A174: Sanitation Infrastructure | C174: =SA34c!C37 -> 6125106 | D174: =SA34c!D37 -> 6444816.268 | E174: =SA34c!E37 -> 0 | F174: =SA34c!F37 -> 0 | G174: =SA34c!G37 -> 0 | H174: =SA34c!H37 -> 0 | I174: =SA34c!I37 -> 8775393.263 | J174: =SA34c!J37 -> 9040865.3 | K174: =SA34c!K37 -> 9459656.568
A175: Solid Waste Infrastructure | C175: =SA34c!C44 -> 8472287 | D175: =SA34c!D44 -> 8914512.35 | E175: =SA34c!E44 -> 0 | F175: =SA34c!F44 -> 0 | G175: =SA34c!G44 -> 0 | H175: =SA34c!H44 -> 0 | I175: =SA34c!I44 -> 12138181.81 | J175: =SA34c!J44 -> 12505384.49 | K175: =SA34c!K44 -> 13084659.33
A176: Rail Infrastructure | C176: =SA34c!C52 -> 0 | D176: =SA34c!D52 -> 0 | E176: =SA34c!E52 -> 0 | F176: =SA34c!F52 -> 0 | G176: =SA34c!G52 -> 0 | H176: =SA34c!H52 -> 0 | I176: =SA34c!I52 -> 0 | J176: =SA34c!J52 -> 0 | K176: =SA34c!K52 -> 0
A177: Coastal Infrastructure | C177: =SA34c!C62 -> 0 | D177: =SA34c!D62 -> 0 | E177: =SA34c!E62 -> 0 | F177: =SA34c!F62 -> 0 | G177: =SA34c!G62 -> 0 | H177: =SA34c!H62 -> 0 | I177: =SA34c!I62 -> 0 | J177: =SA34c!J62 -> 0 | K177: =SA34c!K62 -> 0
A178: Information and Communication Infrastructure | C178: =SA34c!C68 -> 0 | D178: =SA34c!D68 -> 0 | E178: =SA34c!E68 -> 0 | F178: =SA34c!F68 -> 0 | G178: =SA34c!G68 -> 0 | H178: =SA34c!H68 -> 0 | I178: =SA34c!I68 -> 0 | J178: =SA34c!J68 -> 0 | K178: =SA34c!K68 -> 0
A179: Infrastructure | C179: =SUM(C170:C178) -> 127246424 | D179: =SUM(D170:D178) -> 133888266.3 | E179: 0 | F179: 60146066 | G179: 60146066 | H179: 60146066 | I179: 182809088.2 | J179: 188339434.8 | K179: 197063746.8
A180: Community Facilities | C180: =SA34c!C75 -> 17218037 | D180: =SA34c!D75 -> 17639142.13 | E180: =SA34c!E75 -> 0 | F180: =SA34c!F75 -> 21490 | G180: =SA34c!G75 -> 21490 | H180: =SA34c!H75 -> 21490 | I180: =SA34c!I75 -> 23512721.35 | J180: =SA34c!J75 -> 24224025.09 | K180: =SA34c!K75 -> 25346131.2
A181: Sport and Recreation Facilities | C181: =SA34c!C98 -> 0 | D181: =SA34c!D98 -> 0 | E181: =SA34c!E98 -> 0 | F181: =SA34c!F98 -> 0 | G181: =SA34c!G98 -> 0 | H181: =SA34c!H98 -> 0 | I181: =SA34c!I98 -> 0 | J181: =SA34c!J98 -> 0 | K181: =SA34c!K98 -> 0
A182: Community Assets | C182: =SUM(C180:C181) -> 17218037 | D182: 17639142.13 | E182: 0 | F182: 21490 | G182: 21490 | H182: 21490 | I182: 23512721.35 | J182: 24224025.09 | K182: 25346131.2
A183: Heritage Assets | C183: =SA34c!C103 -> 18379149 | D183: =SA34c!D103 -> 19816099.2 | E183: =SA34c!E103 -> 0 | F183: =SA34c!F103 -> 0 | G183: =SA34c!G103 -> 0 | H183: =SA34c!H103 -> 0 | I183: =SA34c!I103 -> 26982004.8 | J183: =SA34c!J103 -> 27798260.84 | K183: =SA34c!K103 -> 29085932.82
A184: Revenue Generating | C184: =SA34c!C111 -> 0 | D184: =SA34c!D111 -> 0 | E184: =SA34c!E111 -> 0 | F184: =SA34c!F111 -> 0 | G184: =SA34c!G111 -> 0 | H184: =SA34c!H111 -> 0 | I184: =SA34c!I111 -> 0 | J184: =SA34c!J111 -> 0 | K184: =SA34c!K111 -> 0
A185: Non-revenue Generating | C185: =SA34c!C114 -> 0 | D185: =SA34c!D114 -> 0 | E185: =SA34c!E114 -> 0 | F185: =SA34c!F114 -> 0 | G185: =SA34c!G114 -> 0 | H185: =SA34c!H114 -> 0 | I185: =SA34c!I114 -> 0 | J185: =SA34c!J114 -> 0 | K185: =SA34c!K114 -> 0
A186: Investment properties | C186: =SUM(C184:C185) -> 0 | D186: 0 | E186: 0 | F186: 0 | G186: 0 | H186: 0 | I186: 0 | J186: 0 | K186: 0
A187: Operational Buildings | C187: =SA34c!C119 -> 0 | D187: =SA34c!D119 -> 0 | E187: =SA34c!E119 -> 0 | F187: =SA34c!F119 -> 20718629 | G187: =SA34c!G119 -> 20718629 | H187: =SA34c!H119 -> 20718629 | I187: =SA34c!I119 -> 0 | J187: =SA34c!J119 -> 0 | K187: =SA34c!K119 -> 0
A188: Housing | C188: =SA34c!C131 -> 0 | D188: =SA34c!D131 -> 0 | E188: =SA34c!E131 -> 0 | F188: =SA34c!F131 -> 0 | G188: =SA34c!G131 -> 0 | H188: =SA34c!H131 -> 0 | I188: =SA34c!I131 -> 0 | J188: =SA34c!J131 -> 0 | K188: =SA34c!K131 -> 0
A189: Other Assets | C189: =SUM(C187:C188) -> 0 | D189: 0 | E189: 0 | F189: 20718629 | G189: 20718629 | H189: 20718629 | I189: 0 | J189: 0 | K189: 0
A190: Biological or Cultivated Assets | C190: =SA34c!C136 -> 0 | D190: =SA34c!D136 -> 0 | E190: =SA34c!E136 -> 0 | F190: =SA34c!F136 -> 0 | G190: =SA34c!G136 -> 0 | H190: =SA34c!H136 -> 0 | I190: =SA34c!I136 -> 0 | J190: =SA34c!J136 -> 0 | K190: =SA34c!K136 -> 0
A191: Servitudes | C191: =SA34c!C140 -> 0 | D191: =SA34c!D140 -> 0 | E191: =SA34c!E140 -> 0 | F191: =SA34c!F140 -> 0 | G191: =SA34c!G140 -> 0 | H191: =SA34c!H140 -> 0 | I191: =SA34c!I140 -> 0 | J191: =SA34c!J140 -> 0 | K191: =SA34c!K140 -> 0
A192: Licences and Rights | C192: =SA34c!C141 -> 0 | D192: =SA34c!D141 -> 0 | E192: =SA34c!E141 -> 0 | F192: =SA34c!F141 -> 0 | G192: =SA34c!G141 -> 0 | H192: =SA34c!H141 -> 0 | I192: =SA34c!I141 -> 0 | J192: =SA34c!J141 -> 0 | K192: =SA34c!K141 -> 0
A193: Intangible Assets | C193: =SUM(C191:C192) -> 0 | D193: 0 | E193: 0 | F193: 0 | G193: 0 | H193: 0 | I193: 0 | J193: 0 | K193: 0
A194: Computer Equipment | C194: =SA34c!C149 -> 0 | D194: =SA34c!D149 -> 0 | E194: =SA34c!E149 -> 0 | F194: =SA34c!F149 -> 0 | G194: =SA34c!G149 -> 0 | H194: =SA34c!H149 -> 0 | I194: =SA34c!I149 -> 0 | J194: =SA34c!J149 -> 0 | K194: =SA34c!K149 -> 0
A195: Furniture and Office Equipment | C195: =SA34c!C152 -> 0 | D195: =SA34c!D152 -> 0 | E195: =SA34c!E152 -> 0 | F195: =SA34c!F152 -> 0 | G195: =SA34c!G152 -> 0 | H195: =SA34c!H152 -> 0 | I195: =SA34c!I152 -> 0 | J195: =SA34c!J152 -> 0 | K195: =SA34c!K152 -> 0
A196: Machinery and Equipment | C196: =SA34c!C155 -> 0 | D196: =SA34c!D155 -> 0 | E196: =SA34c!E155 -> 0 | F196: =SA34c!F155 -> 16458444.17 | G196: =SA34c!G155 -> 16458444.17 | H196: =SA34c!H155 -> 16458444.17 | I196: =SA34c!I155 -> 0 | J196: =SA34c!J155 -> 0 | K196: =SA34c!K155 -> 0
A197: Transport Assets | C197: =SA34c!C158 -> 0 | D197: =SA34c!D158 -> 0 | E197: =SA34c!E158 -> 0 | F197: =SA34c!F158 -> 0 | G197: =SA34c!G158 -> 0 | H197: =SA34c!H158 -> 0 | I197: =SA34c!I158 -> 0 | J197: =SA34c!J158 -> 0 | K197: =SA34c!K158 -> 0
A198: Land | C198: =SA34c!C161 -> 0 | D198: =SA34c!D161 -> 0 | E198: =SA34c!E161 -> 0 | F198: =SA34c!F161 -> 0 | G198: =SA34c!G161 -> 0 | H198: =SA34c!H161 -> 0 | I198: =SA34c!I161 -> 0 | J198: =SA34c!J161 -> 0 | K198: =SA34c!K161 -> 0
A199: Zoo's, Marine and Non-biological Animals | C199: =SA34c!C164 -> 0 | D199: =SA34c!D164 -> 0 | E199: =SA34c!E164 -> 0 | F199: =SA34c!F164 -> 0 | G199: =SA34c!G164 -> 0 | H199: =SA34c!H164 -> 0 | I199: =SA34c!I164 -> 0 | J199: =SA34c!J164 -> 0 | K199: =SA34c!K164 -> 0
A201: TOTAL EXPENDITURE OTHER ITEMS | C201: =SUM(C168:C169) -> 760857620 | D201: 641449615.7 | E201: 460955083 | F201: 589369709.4 | G201: 589415864.8 | H201: 588466864.8 | I201: 723245262.6 | J201: 778179575.2 | K201: 814053286.6
A203: Renewal and upgrading of Existing Assets as % of total capex | C203: =IF(ISERROR((C37+C69)/C132),0,((C37+C69)/C132)) -> 0.4592696117 | D203: =IF(ISERROR((D37+D69)/D132),0,((D37+D69)/D132)) -> 0.8669792258 | E203: 0.6966569065 | F203: 0.7212837612 | G203: 0.06302616625 | H203: 0.5362913016 | I203: 0.2145839328 | J203: 0.2372753683 | K203: 0.2811377375
A204: Renewal and upgrading of Existing Assets as % of deprecn | C204: =IF(ISERROR((C37+C69)/C168),0,((C37+C69)/C168)) -> 0.497742549 | D204: =IF(ISERROR((D37+D69)/D168),0,((D37+D69)/D168)) -> 1.09712051 | E204: 0.9271828246 | F204: 0.8138529121 | G204: 0.813251447 | H204: 0.8148229002 | I204: 0.2544181564 | J204: 0.24439231 | K204: 0.2613033672
A205: R&M as a % of PPE | C205: =IF(ISERROR(ROUND(C169/'A6-FinPos'!C19,3)),0,(ROUND(C169/'A6-FinPos'!C19,3))) -> 0.023 | D205: =IF(ISERROR(ROUND(D169/'A6-FinPos'!D19,3)),0,(ROUND(D169/'A6-FinPos'!D19,3))) -> 0.025 | E205: =IF(ISERROR(ROUND(E169/'A6-FinPos'!E19,3)),0,(ROUND(E169/'A6-FinPos'!E19,3))) -> 0 | F205: =IF(ISERROR(ROUND(F169/'A6-FinPos'!F19,3)),0,(ROUND(F169/'A6-FinPos'!F19,3))) -> 0.014 | G205: =IF(ISERROR(ROUND(G169/'A6-FinPos'!G19,3)),0,(ROUND(G169/'A6-FinPos'!G19,3))) -> 0.014 | H205: =IF(ISERROR(ROUND(H169/'A6-FinPos'!H19,3)),0,(ROUND(H169/'A6-FinPos'!H19,3))) -> 0.014 | I205: =IF(ISERROR(ROUND(I169/'A6-FinPos'!J19,3)),0,(ROUND(I169/'A6-FinPos'!J19,3))) -> 0.033 | J205: =IF(ISERROR(ROUND(J169/'A6-FinPos'!K19,3)),0,(ROUND(J169/'A6-FinPos'!K19,3))) -> 0.036 | K205: =IF(ISERROR(ROUND(K169/'A6-FinPos'!L19,3)),0,(ROUND(K169/'A6-FinPos'!L19,3))) -> 0.042
A206: Renewal and upgrading and R&M as a % of PPE | C206: =IF(ISERROR(ROUND((C37+C69+C169)/C165,2)),0,(ROUND((C37+C69+C169)/C165,2))) -> 0.06 | D206: =IF(ISERROR(ROUND((D37+D69+D169)/D165,2)),0,(ROUND((D37+D69+D169)/D165,2))) -> 0.09 | E206: 0 | F206: 0.06 | G206: 0.06 | H206: 0.06 | I206: 0.05 | J206: 0.06 | K206: 0.07
A208: =head27a -> References
A209: 1. Detail of new assets provided in Table SA34a
A210: 2. Detail of renewal of existing assets provided in Table SA34b
... 6 more rows

Sheet A10-SerDel
A1: =muni&" - "&Approve10 -> KZN225 Msunduzi - Table A10 Consolidated basic service delivery measurement
A2: =desc -> Description | B2: =head27 -> Ref | C2: =head1b -> 2016/17 | D2: =head1A -> 2017/18 | E2: =Head1 -> 2018/19 | F2: =Head2 -> Current Year 2019/20 | I2: =Head3 -> 2020/21 Medium Term Revenue & Expenditure Framework
C3: =Head5A -> Outcome | D3: =Head5A -> Outcome | E3: =Head5A -> Outcome | F3: =Head6 -> Original Budget | G3: =Head7 -> Adjusted Budget | H3: =Head8 -> Full Year Forecast | I3: =Head9 -> Budget Year 2020/21 | J3: =Head10 -> Budget Year +1 2021/22 | K3: =Head11 -> Budget Year +2 2022/23
A4: Household service targets | B4: 1
A5: Water:
A6: Piped water inside dwelling | C6: 81490 | D6: 83119.8 | E6: 84782.196 | F6: 86477.83992 | G6: 86477.83992 | H6: 86477.83992 | I6: 90207.39672 | J6: 92372.37424 | K6: 94589.31122
A7: Piped water inside yard (but not in dwelling) | C7: 63899 | D7: 65176.98 | E7: 67480.5196 | F7: 69310.12999 | G7: 69310.12999 | H7: 69310.12999 | I7: 69166.33259 | J7: 70826.32457 | K7: 72526.15636
A8: Using public tap (at least min.service level) | B8: 2 | C8: 6396 | D8: 6523.92 | E8: 6654.3984 | F8: 6787.486368 | G8: 6787.486368 | H8: 6787.486368 | I8: 6923.236095 | J8: 7089.393762 | K8: 7259.539212
A9: Other water supply (at least min.service level) | B9: 4 | C9: 3072 | D9: 3133.44 | E9: 3196.1088 | F9: 3260.030976 | G9: 3260.030976 | H9: 3260.030976 | I9: 3325.231596 | J9: 3405.037154 | K9: 3486.758046
A10: Minimum Service Level and Above sub-total | C10: =SUM(C6:C9) -> 154857 | D10: =SUM(D6:D9) -> 157954.14 | E10: 162113.2228 | F10: 165835.4873 | G10: 165835.4873 | H10: 165835.4873 | I10: 169622.197 | J10: 173693.1297 | K10: 177861.7648
A11: Using public tap (< min.service level) | B11: 3 | C11: 6396 | D11: 6523.92 | E11: 6654.3984 | F11: 6787.486368 | G11: 6787.486368 | H11: 6787.486368 | I11: 6923.236095 | J11: 7089.393762 | K11: 7259.539212
A12: Other water supply (< min.service level) | B12: =B9 -> 4 | C12: 2740 | D12: 2794.8 | E12: 1850.696 | F12: 1407.70992 | G12: 1407.70992 | H12: 1407.70992 | I12: 965.8641184 | J12: 989.0448572 | K12: 1012.781934
A13: No water supply | C13: 0 | D13: 0 | E13: 0 | F13: 0 | G13: 0 | H13: 0 | I13: 0 | J13: 0 | K13: 0
A14: Below Minimum Service Level sub-total | C14: =SUM(C11:C13) -> 9136 | D14: =SUM(D11:D13) -> 9318.72 | E14: 8505.0944 | F14: 8195.196288 | G14: 8195.196288 | H14: 8195.196288 | I14: 7889.100214 | J14: 8078.438619 | K14: 8272.321146
A15: Total number of households | B15: 5 | C15: =C10+C14 -> 163993 | D15: =D10+D14 -> 167272.86 | E15: 170618.3172 | F15: 174030.6835 | G15: 174030.6835 | H15: 174030.6835 | I15: 177511.2972 | J15: 181771.5683 | K15: 186134.086
A16: Sanitation/sewerage:
A17: Flush toilet (connected to sewerage) | C17: 85149 | D17: 86851.98 | E17: 91589.0196 | F17: 96760.79999 | G17: 96760.79999 | H17: 96760.79999 | I17: 101168.016 | J17: 103596.0484 | K17: 106082.3535
A18: Flush toilet (with septic tank) | C18: 8319 | D18: 8485.38 | E18: 8655.0876 | F18: 8828.189352 | G18: 8828.189352 | H18: 8828.189352 | I18: 9004.753139 | J18: 9220.867214 | K18: 9442.168028
A19: Chemical toilet | C19: 7076 | D19: 7217.52 | E19: 7361.8704 | F19: 7509.107808 | G19: 7509.107808 | H19: 7509.107808 | I19: 7659.289964 | J19: 7843.112923 | K19: 8031.347633
A20: Pit toilet (ventilated) | C20: 59427 | D20: 62615.54 | E20: 61827.8508 | F20: 60064.40782 | G20: 60064.40782 | H20: 60064.40782 | I20: 59325.69597 | J20: 60749.51268 | K20: 62207.50098
A21: Other toilet provisions (> min.service level) | C21: 0 | D21: 0 | E21: 0 | F21: 0 | G21: 0 | H21: 0 | I21: 0 | J21: 0 | K21: 0
A22: =$A$10 -> Minimum Service Level and Above sub-total | C22: =SUM(C17:C21) -> 159971 | D22: =SUM(D17:D21) -> 165170.42 | E22: 169433.8284 | F22: 173162.505 | G22: 173162.505 | H22: 173162.505 | I22: 177157.7551 | J22: 181409.5412 | K22: 185763.3702
A23: Bucket toilet | C23: 0 | D23: 0 | E23: 0 | F23: 0 | G23: 0 | H23: 0 | I23: 0 | J23: 0 | K23: 0
A24: Other toilet provisions (< min.service level) | C24: 4022 | D24: 2102.44 | E24: 1184.4888 | F24: 868.178576 | G24: 868.178576 | H24: 868.178576 | I24: 353.5421475 | J24: 362.0271591 | K24: 370.7158109
A25: No toilet provisions | C25: 0 | D25: 0 | E25: 0 | F25: 0 | G25: 0 | H25: 0 | I25: 0 | J25: 0 | K25: 0
A26: =$A$14 -> Below Minimum Service Level sub-total | C26: =SUM(C23:C25) -> 4022 | D26: =SUM(D23:D25) -> 2102.44 | E26: 1184.4888 | F26: 868.178576 | G26: 868.178576 | H26: 868.178576 | I26: 353.5421475 | J26: 362.0271591 | K26: 370.7158109
A27: =$A$15 -> Total number of households | B27: =$B$15 -> 5 | C27: =C22+C26 -> 163993 | D27: =D22+D26 -> 167272.86 | E27: 170618.3172 | F27: 174030.6835 | G27: 174030.6835 | H27: 174030.6835 | I27: 177511.2972 | J27: 181771.5683 | K27: 186134.086
A28: Energy:
A29: Electricity (at least min.service level) | C29: 123471 | D29: 130462.16 | E29: 135271.4032 | F29: 140136.8313 | G29: 140136.8313 | H29: 140136.8313 | I29: 145059.5679 | J29: 148540.9975 | K29: 152105.9815
A30: Electricity - prepaid (min.service level) | C30: 26285 | D30: 26810.7 | E30: 27346.914 | F30: 27893.85228 | G30: 27893.85228 | H30: 27893.85228 | I30: 28451.72933 | J30: 29134.57083 | K30: 29833.80053
A31: =$A$10 -> Minimum Service Level and Above sub-total | C31: =SUM(C29:C30) -> 149756 | D31: =SUM(D29:D30) -> 157272.86 | E31: 162618.3172 | F31: 168030.6835 | G31: 168030.6835 | H31: 168030.6835 | I31: 173511.2972 | J31: 177675.5683 | K31: 181939.782
A32: Electricity (< min.service level) | C32: 1570 | D32: 0 | E32: 0 | F32: 0 | G32: 0 | H32: 0 | I32: 0 | J32: 0 | K32: 0
A33: Electricity - prepaid (< min. service level) | C33: 0 | D33: 0 | E33: 0 | F33: 0 | G33: 0 | H33: 0 | I33: 0 | J33: 0 | K33: 0
A34: Other energy sources | C34: 12667 | D34: 10000 | E34: 8000 | F34: 6000 | G34: 6000 | H34: 6000 | I34: 4000 | J34: 4096 | K34: 4194.304
A35: =$A$14 -> Below Minimum Service Level sub-total | C35: =SUM(C32:C34) -> 14237 | D35: =SUM(D32:D34) -> 10000 | E35: 8000 | F35: 6000 | G35: 6000 | H35: 6000 | I35: 4000 | J35: 4096 | K35: 4194.304
A36: =$A$15 -> Total number of households | B36: =$B$15 -> 5 | C36: =C31+C35 -> 163993 | D36: =D31+D35 -> 167272.86 | E36: 170618.3172 | F36: 174030.6835 | G36: 174030.6835 | H36: 174030.6835 | I36: 177511.2972 | J36: 181771.5683 | K36: 186134.086
A37: Refuse:
A38: Removed at least once a week - XXXXPulling from multiple sheets | C38: ='SA9'!E99 -> 120000 | D38: ='SA9'!F99 -> 122400 | E38: ='SA9'!G99 -> 129848 | F38: ='SA9'!H99 -> 137344.96 | G38: ='SA9'!I99 -> 137344.96 | H38: ='SA9'!J99 -> 137344.96 | I38: ='SA9'!K99 -> 148558.8592 | J38: ='SA9'!L99 -> 152124.2718 | K38: ='SA9'!M99 -> 155775.2543
A39: =$A$10 -> Minimum Service Level and Above sub-total | C39: =SUM(C38) -> 120000 | D39: =SUM(D38) -> 122400 | E39: 129848 | F39: 137344.96 | G39: 137344.96 | H39: 137344.96 | I39: 148558.8592 | J39: 152124.2718 | K39: 155775.2543
A40: Removed less frequently than once a week | C40: ='SA9'!E101 -> 43993 | D40: ='SA9'!F101 -> 44872.86 | E40: ='SA9'!G101 -> 40770.3172 | F40: ='SA9'!H101 -> 40770.3172 | G40: ='SA9'!I101 -> 36685.72354 | H40: ='SA9'!J101 -> 36685.72354 | I40: ='SA9'!K101 -> 28952.43801 | J40: ='SA9'!L101 -> 29647.29653 | K40: ='SA9'!M101 -> 30358.83164
A41: Using communal refuse dump | C41: ='SA9'!E102 -> 0 | D41: ='SA9'!F102 -> 0 | E41: ='SA9'!G102 -> 0 | F41: ='SA9'!H102 -> 0 | G41: ='SA9'!I102 -> 0 | H41: ='SA9'!J102 -> 0 | I41: ='SA9'!K102 -> 0 | J41: ='SA9'!L102 -> 0 | K41: ='SA9'!M102 -> 0
A42: Using own refuse dump | C42: ='SA9'!E103 -> 0 | D42: ='SA9'!F103 -> 0 | E42: ='SA9'!G103 -> 0 | F42: ='SA9'!H103 -> 0 | G42: ='SA9'!I103 -> 0 | H42: ='SA9'!J103 -> 0 | I42: ='SA9'!K103 -> 0 | J42: ='SA9'!L103 -> 0 | K42: ='SA9'!M103 -> 0
A43: Other rubbish disposal | C43: ='SA9'!E104 -> 0 | D43: ='SA9'!F104 -> 0 | E43: ='SA9'!G104 -> 0 | F43: ='SA9'!H104 -> 0 | G43: ='SA9'!I104 -> 0 | H43: ='SA9'!J104 -> 0 | I43: ='SA9'!K104 -> 0 | J43: ='SA9'!L104 -> 0 | K43: ='SA9'!M104 -> 0
A44: No rubbish disposal | C44: ='SA9'!E105 -> 0 | D44: ='SA9'!F105 -> 0 | E44: ='SA9'!G105 -> 0 | F44: ='SA9'!H105 -> 0 | G44: ='SA9'!I105 -> 0 | H44: ='SA9'!J105 -> 0 | I44: ='SA9'!K105 -> 0 | J44: ='SA9'!L105 -> 0 | K44: ='SA9'!M105 -> 0
A45: =$A$14 -> Below Minimum Service Level sub-total | C45: =SUM(C40:C44) -> 43993 | D45: 44872.86 | E45: 40770.3172 | F45: 40770.3172 | G45: 36685.72354 | H45: 36685.72354 | I45: 28952.43801 | J45: 29647.29653 | K45: 30358.83164
A46: =$A$15 -> Total number of households | B46: =$B$15 -> 5 | C46: =C39+C45 -> 163993 | D46: =D39+D45 -> 167272.86 | E46: 170618.3172 | F46: 178115.2772 | G46: 174030.6835 | H46: 174030.6835 | I46: 177511.2972 | J46: 181771.5683 | K46: 186134.086
A48: Households receiving Free Basic Service | B48: 7
A49: Water (6 kilolitres per household per month) | C49: ='SA9'!E263 -> 23884 | D49: ='SA9'!F263 -> 29536.08 | E49: ='SA9'!G263 -> 39475.6016 | F49: ='SA9'!H263 -> 43586.71363 | G49: ='SA9'!I263 -> 43586.71363 | H49: ='SA9'!J263 -> 43586.71363 | I49: ='SA9'!K263 -> 48550.3679 | J49: ='SA9'!L263 -> 51948.89366 | K49: ='SA9'!M263 -> 55585.31621
A50: Sanitation (free minimum level service) | C50: ='SA9'!E275 -> 23884 | D50: ='SA9'!F275 -> 29536.08 | E50: ='SA9'!G275 -> 39475.6016 | F50: ='SA9'!H275 -> 43586.71363 | G50: ='SA9'!I275 -> 43586.71363 | H50: ='SA9'!J275 -> 43586.71363 | I50: ='SA9'!K275 -> 48550.3679 | J50: ='SA9'!L275 -> 51948.89366 | K50: ='SA9'!M275 -> 55585.31621
A51: Electricity/other energy (50kwh per household per month) | C51: ='SA9'!E251 -> 2800 | D51: ='SA9'!F251 -> 3080 | E51: ='SA9'!G251 -> 3264.8 | F51: ='SA9'!H251 -> 3460.688 | G51: ='SA9'!I251 -> 3460.688 | H51: ='SA9'!J251 -> 3460.688 | I51: ='SA9'!K251 -> 3668.32928 | J51: ='SA9'!L251 -> 3925.11233 | K51: ='SA9'!M251 -> 4199.870193
A52: Refuse (removed at least once a week) | C52: ='SA9'!E287 -> 5182 | D52: ='SA9'!F287 -> 5959.3 | E52: ='SA9'!G287 -> 6078.486 | F52: ='SA9'!H287 -> 6200.05572 | G52: ='SA9'!I287 -> 6200.05572 | H52: ='SA9'!J287 -> 6200.05572 | I52: ='SA9'!K287 -> 6324.056834 | J52: ='SA9'!L287 -> 6766.740813 | K52: ='SA9'!M287 -> 7240.41267
A54: Cost of Free Basic Services provided - Formal Settlements (R'000) | B54: 8
A55: Water (6 kilolitres per indigent household per month) | C55: ='SA1'!C20 -> 141905727.1 | D55: ='SA1'!D20 -> 151612052 | E55: ='SA1'!E20 -> 150960120.2 | F55: ='SA1'!F20 -> 163681951.2 | G55: ='SA1'!G20 -> 163681951.2 | H55: ='SA1'!H20 -> 172547417.4 | I55: ='SA1'!J20 -> 197221698 | J55: ='SA1'!K20 -> 211027216.9 | K55: ='SA1'!L20 -> 225799122.1
A56: Sanitation (free sanitation service to indigent households) | C56: ='SA1'!C26 -> 9875656.935 | D56: ='SA1'!D26 -> 10551150 | E56: ='SA1'!E26 -> 11184219 | F56: ='SA1'!F26 -> 11855272.14 | G56: ='SA1'!G26 -> 11855272.14 | H56: ='SA1'!H26 -> 11855272.14 | I56: ='SA1'!J26 -> 12566588.47 | J56: ='SA1'!K26 -> 13446249.66 | K56: ='SA1'!L26 -> 14387487.14
A57: Electricity/other energy (50kwh per indigent household per month) | C57: ='SA1'!C14 -> 1609521.446 | D57: ='SA1'!D14 -> 1719612.143 | E57: ='SA1'!E14 -> 1837233.571 | F57: ='SA1'!F14 -> 2077358.999 | G57: ='SA1'!G14 -> 2077359.999 | H57: ='SA1'!H14 -> 1962900 | I57: ='SA1'!J14 -> 2097162.143 | J57: ='SA1'!K14 -> 2243963.493 | K57: ='SA1'!L14 -> 2401040.937
A58: Refuse (removed once a week for indigent households) | C58: ='SA1'!C33 -> 5279747.285 | D58: ='SA1'!D33 -> 5640881 | E58: ='SA1'!E33 -> 5979333.86 | F58: ='SA1'!F33 -> 6338094.04 | G58: ='SA1'!G33 -> 6338094.04 | H58: ='SA1'!H33 -> 6338093.892 | I58: ='SA1'!J33 -> 6718379.525 | J58: ='SA1'!K33 -> 7188666.092 | K58: ='SA1'!L33 -> 7691872.718
A59: Cost of Free Basic Services provided - Informal Formal Settlements (R'000) | C59: ='SA9'!E260+'SA9'!E272+'SA9'!E284+'SA9'!E296 -> 0 | D59: ='SA9'!F260+'SA9'!F272+'SA9'!F284+'SA9'!F296 -> 0 | E59: ='SA9'!G260+'SA9'!G272+'SA9'!G284+'SA9'!G296 -> 0 | F59: ='SA9'!H260+'SA9'!H272+'SA9'!H284+'SA9'!H296 -> 0 | G59: ='SA9'!I260+'SA9'!I272+'SA9'!I284+'SA9'!I296 -> 0 | H59: ='SA9'!J260+'SA9'!J272+'SA9'!J284+'SA9'!J296 -> 0 | I59: ='SA9'!K260+'SA9'!K272+'SA9'!K284+'SA9'!K296 -> 0 | J59: ='SA9'!L260+'SA9'!L272+'SA9'!L284+'SA9'!L296 -> 0 | K59: ='SA9'!M260+'SA9'!M272+'SA9'!M284+'SA9'!M296 -> 0
A60: Total cost of FBS provided | C60: =SUM(C55:C59) -> 158670652.8 | D60: 169523695.1 | E60: 169960906.6 | F60: 183952676.4 | G60: 183952677.4 | H60: 192703683.4 | I60: 218603828.2 | J60: 233906096.2 | K60: 250279522.9
A62: Highest level of free service provided per household
A63: Property rates (R value threshold) | C63: 150000 | D63: 100000 | E63: 100000 | F63: 120000 | G63: 120000 | H63: 120000 | I63: 120000 | J63: 120000 | K63: 120000
A64: Water (kilolitres per household per month) | C64: 6 | D64: 6 | E64: 6 | F64: 6 | G64: 6 | H64: 6 | I64: 6 | J64: 6 | K64: 6
A65: Sanitation (kilolitres per household per month) | C65: 0 | D65: 0 | E65: 0 | F65: 0 | G65: 0 | H65: 0 | I65: 0 | J65: 0 | K65: 0
A66: Sanitation (Rand per household per month) | C66: 136.36 | D66: 144.67 | E66: 153.3502 | F66: 162.551212 | G66: 162.551212 | H66: 162.551212 | I66: 172.3042847 | J66: 182.6425418 | K66: 193.6010943
A67: Electricity (kwh per household per month) | C67: 70 | D67: 70 | E67: 70 | F67: 70 | G67: 70 | H67: 70 | I67: 70 | J67: 70 | K67: 70
A68: Refuse (average litres per week) | C68: 200 | D68: 200 | E68: 200 | F68: 200 | G68: 200 | H68: 200 | I68: 200 | J68: 200 | K68: 200
A69: Revenue cost of subsidised services provided (R'000) | B69: 9
